Workbook

Sheet PI vs x
A1: Measurement | B1: Hall
A2: Type | B2: Off-axis
A4: Project | B4: ='10 y=-0.2'!B5 -> 504314
A5: PS serial no | B5: ='10 y=-0.2'!B7 -> 2410109
A7: Measurement date | B7: =LEFT('10 y=-0.2'!B4,10) -> 02-10-2024
C11: Nominal gap [mm] | D11: Encoder [counts] | E11: Encoder [mm] | F11: PI [T^2mm^3] | G11: y [mm] | H11: Encoder value at 10 mm gap:
B12: ='PI vs x'!$C$12 & "mm gap" -> 10mm gap | C12: ='10 y=-0.2'!B48 -> 10 | D12: ='10 y=-0.2'!$B$50 -> 19.8325 | E12: =D12-$H$12+10 -> 10.00115 | F12: ='10 y=-0.2'!$K$3 -> 10404.23346 | G12: -0.2 | H12: 19.83135
C13: =C12 -> 10 | D13: ='10 y=-0.1'!$B$50 -> 19.8325 | E13: =D13-$H$12+10 -> 10.00115 | F13: ='10 y=-0.1'!$K$3 -> 10402.8721 | G13: -0.1
C14: =C13 -> 10 | D14: ='10 y=0'!$B$50 -> 19.8325 | E14: 10.00115 | F14: ='10 y=0'!$K$3 -> 10402.71988 | G14: 0
C15: 10 | D15: ='10 y=0.1'!$B$50 -> 19.8325 | E15: 10.00115 | F15: ='10 y=0.1'!$K$3 -> 10403.19444 | G15: 0.1
C16: 10 | D16: ='10 y=0.2'!$B$50 -> 19.8325 | E16: 10.00115 | F16: ='10 y=0.2'!$K$3 -> 10406.52614 | G16: 0.2
B17: ='PI vs x'!$C$17 & "mm gap" -> mm gap

Sheet 10 y=-0.2
A1: =IF('DF raw data'!A1="","",'DF raw data'!A1) -> Number of header lines | B1: =IF('DF raw data'!B1="","",'DF raw data'!B1) -> 54 | C1: =IF('DF raw data'!C1="","",'DF raw data'!C1) ->  | D1: =IF('DF raw data'!D1="","",'DF raw data'!D1) ->  | F1: T_coeff | G1: -0.001 | H1: /degC | J1: IBy total | K1: =J1262*1000 -> -3.254979633 | L1: muTm | M1: =L1262*1000 -> -9.156311488 | R1: DF ref | S1: 1
A2: =IF('DF raw data'!A2="","",'DF raw data'!A2) -> Measured by | B2: =IF('DF raw data'!B2="","",'DF raw data'!B2) -> Danfysik | C2: =IF('DF raw data'!C2="","",'DF raw data'!C2) ->  | D2: =IF('DF raw data'!D2="","",'DF raw data'!D2) ->  | F2: Tcorr | G2: 20 | H2: degC | J2: JBy total | K2: =K1262 -> -24.40734881 | L2: muTm^2 | M2: =M1262 -> -0.920413288
A3: =IF('DF raw data'!A3="","",'DF raw data'!A3) -> Operator | B3: =IF('DF raw data'!B3="","",'DF raw data'!B3) -> PMHA | C3: =IF('DF raw data'!C3="","",'DF raw data'!C3) ->  | D3: =IF('DF raw data'!D3="","",'DF raw data'!D3) ->  | F3: Step | G3: =A63-A62 -> 0.5 | H3: mm | J3: PI total | K3: =N1262 -> 10404.23346 | L3: T^2mm^3
A4: =IF('DF raw data'!A4="","",'DF raw data'!A4) -> Data-time | B4: =IF('DF raw data'!B4="","",'DF raw data'!B4) -> 02-10-2024, 14:09:09 | C4: =IF('DF raw data'!C4="","",'DF raw data'!C4) ->  | D4: =IF('DF raw data'!D4="","",'DF raw data'!D4) -> 
A5: =IF('DF raw data'!A5="","",'DF raw data'!A5) -> Project | B5: =IF('DF raw data'!B5="","",'DF raw data'!B5) -> 504314 | C5: =IF('DF raw data'!C5="","",'DF raw data'!C5) ->  | D5: =IF('DF raw data'!D5="","",'DF raw data'!D5) -> 
A6: =IF('DF raw data'!A6="","",'DF raw data'!A6) -> Magnet type | B6: =IF('DF raw data'!B6="","",'DF raw data'!B6) -> Dipole | C6: =IF('DF raw data'!C6="","",'DF raw data'!C6) ->  | D6: =IF('DF raw data'!D6="","",'DF raw data'!D6) -> 
A7: =IF('DF raw data'!A7="","",'DF raw data'!A7) -> Magnet nr. | B7: =IF('DF raw data'!B7="","",'DF raw data'!B7) -> 2410109 | C7: =IF('DF raw data'!C7="","",'DF raw data'!C7) ->  | D7: =IF('DF raw data'!D7="","",'DF raw data'!D7) -> 
A8: =IF('DF raw data'!A8="","",'DF raw data'!A8) -> Meas. number | B8: =IF('DF raw data'!B8="","",'DF raw data'!B8) -> 944 | C8: =IF('DF raw data'!C8="","",'DF raw data'!C8) ->  | D8: =IF('DF raw data'!D8="","",'DF raw data'!D8) -> 
A9: =IF('DF raw data'!A9="","",'DF raw data'!A9) -> Add. info | B9: =IF('DF raw data'!B9="","",'DF raw data'!B9) -> Y-alignment scan 1) | C9: =IF('DF raw data'!C9="","",'DF raw data'!C9) ->  | D9: =IF('DF raw data'!D9="","",'DF raw data'!D9) -> 
A10: =IF('DF raw data'!A10="","",'DF raw data'!A10) -> Device | B10: =IF('DF raw data'!B10="","",'DF raw data'!B10) -> (HAL) HALL-PROBE | C10: =IF('DF raw data'!C10="","",'DF raw data'!C10) ->  | D10: =IF('DF raw data'!D10="","",'DF raw data'!D10) -> 
A11: =IF('DF raw data'!A11="","",'DF raw data'!A11) -> Goal | B11: =IF('DF raw data'!B11="","",'DF raw data'!B11) -> (AXI) AXis Integral (Line, EFB) | C11: =IF('DF raw data'!C11="","",'DF raw data'!C11) ->  | D11: =IF('DF raw data'!D11="","",'DF raw data'!D11) -> 
A12: =IF('DF raw data'!A12="","",'DF raw data'!A12) -> Power supply mode | B12: =IF('DF raw data'!B12="","",'DF raw data'!B12) -> (PM) Permanent Magnet (no MPS in use) | C12: =IF('DF raw data'!C12="","",'DF raw data'!C12) ->  | D12: =IF('DF raw data'!D12="","",'DF raw data'!D12) -> 
A13: =IF('DF raw data'!A13="","",'DF raw data'!A13) -> Data format | B13: =IF('DF raw data'!B13="","",'DF raw data'!B13) -> Raw data text file | C13: =IF('DF raw data'!C13="","",'DF raw data'!C13) ->  | D13: =IF('DF raw data'!D13="","",'DF raw data'!D13) -> 
A14: =IF('DF raw data'!A14="","",'DF raw data'!A14) -> Direction of the pos. x-axis | B14: =IF('DF raw data'!B14="","",'DF raw data'!B14) -> See test program | C14: =IF('DF raw data'!C14="","",'DF raw data'!C14) ->  | D14: =IF('DF raw data'!D14="","",'DF raw data'!D14) -> 
A15: =IF('DF raw data'!A15="","",'DF raw data'!A15) -> Direction of the pos. y-axis | B15: =IF('DF raw data'!B15="","",'DF raw data'!B15) -> Vertical up | C15: =IF('DF raw data'!C15="","",'DF raw data'!C15) ->  | D15: =IF('DF raw data'!D15="","",'DF raw data'!D15) -> 
A16: =IF('DF raw data'!A16="","",'DF raw data'!A16) -> Direction of the pos. z-axis | B16: =IF('DF raw data'!B16="","",'DF raw data'!B16) -> See test program | C16: =IF('DF raw data'!C16="","",'DF raw data'!C16) ->  | D16: =IF('DF raw data'!D16="","",'DF raw data'!D16) -> 
A17: =IF('DF raw data'!A17="","",'DF raw data'!A17) -> Mapper type | B17: =IF('DF raw data'!B17="","",'DF raw data'!B17) -> Precision Hall Mapper | C17: =IF('DF raw data'!C17="","",'DF raw data'!C17) ->  | D17: =IF('DF raw data'!D17="","",'DF raw data'!D17) -> 
A18: =IF('DF raw data'!A18="","",'DF raw data'!A18) -> Mapper Danfysik Reg. Number | B18: =IF('DF raw data'!B18="","",'DF raw data'!B18) -> 2033-D (mapper 1) | C18: =IF('DF raw data'!C18="","",'DF raw data'!C18) ->  | D18: =IF('DF raw data'!D18="","",'DF raw data'!D18) -> 
A19: =IF('DF raw data'!A19="","",'DF raw data'!A19) -> Measurement consept | B19: =IF('DF raw data'!B19="","",'DF raw data'!B19) -> Square line grid | C19: =IF('DF raw data'!C19="","",'DF raw data'!C19) ->  | D19: =IF('DF raw data'!D19="","",'DF raw data'!D19) -> 
A20: =IF('DF raw data'!A20="","",'DF raw data'!A20) -> Mode | B20: =IF('DF raw data'!B20="","",'DF raw data'!B20) -> On-the-fly measurement | C20: =IF('DF raw data'!C20="","",'DF raw data'!C20) ->  | D20: =IF('DF raw data'!D20="","",'DF raw data'!D20) -> 
A21: =IF('DF raw data'!A21="","",'DF raw data'!A21) ->  | B21: =IF('DF raw data'!B21="","",'DF raw data'!B21) ->  | C21: =IF('DF raw data'!C21="","",'DF raw data'!C21) ->  | D21: =IF('DF raw data'!D21="","",'DF raw data'!D21) -> 
A22: =IF('DF raw data'!A22="","",'DF raw data'!A22) -> Probe Name | B22: =IF('DF raw data'!B22="","",'DF raw data'!B22) -> ID12_By | C22: =IF('DF raw data'!C22="","",'DF raw data'!C22) ->  | D22: =IF('DF raw data'!D22="","",'DF raw data'!D22) -> 
A23: =IF('DF raw data'!A23="","",'DF raw data'!A23) -> Probe Type | B23: =IF('DF raw data'!B23="","",'DF raw data'!B23) -> DF_ID_3D_Bxyz | C23: =IF('DF raw data'!C23="","",'DF raw data'!C23) ->  | D23: =IF('DF raw data'!D23="","",'DF raw data'!D23) -> 
A24: =IF('DF raw data'!A24="","",'DF raw data'!A24) -> Probe Danfysik Reg. Number | B24: =IF('DF raw data'!B24="","",'DF raw data'!B24) -> 2277 | C24: =IF('DF raw data'!C24="","",'DF raw data'!C24) ->  | D24: =IF('DF raw data'!D24="","",'DF raw data'!D24) -> 
A25: =IF('DF raw data'!A25="","",'DF raw data'!A25) -> Probe Axis | B25: =IF('DF raw data'!B25="","",'DF raw data'!B25) -> By | C25: =IF('DF raw data'!C25="","",'DF raw data'!C25) ->  | D25: =IF('DF raw data'!D25="","",'DF raw data'!D25) -> 
A26: =IF('DF raw data'!A26="","",'DF raw data'!A26) -> Probe Current Supply | B26: =IF('DF raw data'!B26="","",'DF raw data'!B26) -> 1825-D | C26: =IF('DF raw data'!C26="","",'DF raw data'!C26) ->  | D26: =IF('DF raw data'!D26="","",'DF raw data'!D26) -> 
A27: =IF('DF raw data'!A27="","",'DF raw data'!A27) -> Probe Gain Correction | B27: =IF('DF raw data'!B27="","",'DF raw data'!B27) -> 0.99618 | C27: =IF('DF raw data'!C27="","",'DF raw data'!C27) ->  | D27: =IF('DF raw data'!D27="","",'DF raw data'!D27) -> 
A28: =IF('DF raw data'!A28="","",'DF raw data'!A28) -> Probe Offset Correction | B28: =IF('DF raw data'!B28="","",'DF raw data'!B28) -> 0.002742 | C28: =IF('DF raw data'!C28="","",'DF raw data'!C28) ->  | D28: =IF('DF raw data'!D28="","",'DF raw data'!D28) -> 
A29: =IF('DF raw data'!A29="","",'DF raw data'!A29) -> DVM Number | B29: =IF('DF raw data'!B29="","",'DF raw data'!B29) -> 2 | C29: =IF('DF raw data'!C29="","",'DF raw data'!C29) ->  | D29: =IF('DF raw data'!D29="","",'DF raw data'!D29) -> 
A30: =IF('DF raw data'!A30="","",'DF raw data'!A30) -> DVM Type | B30: =IF('DF raw data'!B30="","",'DF raw data'!B30) -> K2701 | C30: =IF('DF raw data'!C30="","",'DF raw data'!C30) ->  | D30: =IF('DF raw data'!D30="","",'DF raw data'!D30) -> 
A31: =IF('DF raw data'!A31="","",'DF raw data'!A31) -> DVM Danfysik Reg. Number | B31: =IF('DF raw data'!B31="","",'DF raw data'!B31) -> 1743-D | C31: =IF('DF raw data'!C31="","",'DF raw data'!C31) ->  | D31: =IF('DF raw data'!D31="","",'DF raw data'!D31) -> 
A32: =IF('DF raw data'!A32="","",'DF raw data'!A32) -> Probe Name | B32: =IF('DF raw data'!B32="","",'DF raw data'!B32) -> ID12_Bx | C32: =IF('DF raw data'!C32="","",'DF raw data'!C32) ->  | D32: =IF('DF raw data'!D32="","",'DF raw data'!D32) -> 
A33: =IF('DF raw data'!A33="","",'DF raw data'!A33) -> Probe Type | B33: =IF('DF raw data'!B33="","",'DF raw data'!B33) -> DF_ID_3D_Bxyz | C33: =IF('DF raw data'!C33="","",'DF raw data'!C33) ->  | D33: =IF('DF raw data'!D33="","",'DF raw data'!D33) -> 
A34: =IF('DF raw data'!A34="","",'DF raw data'!A34) -> Probe Danfysik Reg. Number | B34: =IF('DF raw data'!B34="","",'DF raw data'!B34) -> 2277 | C34: =IF('DF raw data'!C34="","",'DF raw data'!C34) ->  | D34: =IF('DF raw data'!D34="","",'DF raw data'!D34) -> 
A35: =IF('DF raw data'!A35="","",'DF raw data'!A35) -> Probe Axis | B35: =IF('DF raw data'!B35="","",'DF raw data'!B35) -> Bx | C35: =IF('DF raw data'!C35="","",'DF raw data'!C35) ->  | D35: =IF('DF raw data'!D35="","",'DF raw data'!D35) -> 
A36: =IF('DF raw data'!A36="","",'DF raw data'!A36) -> Probe Current Supply | B36: =IF('DF raw data'!B36="","",'DF raw data'!B36) -> 1825-D | C36: =IF('DF raw data'!C36="","",'DF raw data'!C36) ->  | D36: =IF('DF raw data'!D36="","",'DF raw data'!D36) -> 
A37: =IF('DF raw data'!A37="","",'DF raw data'!A37) -> Probe Gain Correction | B37: =IF('DF raw data'!B37="","",'DF raw data'!B37) -> 1 | C37: =IF('DF raw data'!C37="","",'DF raw data'!C37) ->  | D37: =IF('DF raw data'!D37="","",'DF raw data'!D37) -> 
A38: =IF('DF raw data'!A38="","",'DF raw data'!A38) -> Probe Offset Correction | B38: =IF('DF raw data'!B38="","",'DF raw data'!B38) -> -0.17582 | C38: =IF('DF raw data'!C38="","",'DF raw data'!C38) ->  | D38: =IF('DF raw data'!D38="","",'DF raw data'!D38) -> 
A39: =IF('DF raw data'!A39="","",'DF raw data'!A39) -> DVM Number | B39: =IF('DF raw data'!B39="","",'DF raw data'!B39) -> 3 | C39: =IF('DF raw data'!C39="","",'DF raw data'!C39) ->  | D39: =IF('DF raw data'!D39="","",'DF raw data'!D39) -> 
A40: =IF('DF raw data'!A40="","",'DF raw data'!A40) -> DVM Type | B40: =IF('DF raw data'!B40="","",'DF raw data'!B40) -> K2701 | C40: =IF('DF raw data'!C40="","",'DF raw data'!C40) ->  | D40: =IF('DF raw data'!D40="","",'DF raw data'!D40) -> 
A41: =IF('DF raw data'!A41="","",'DF raw data'!A41) -> DVM Danfysik Reg. Number | B41: =IF('DF raw data'!B41="","",'DF raw data'!B41) -> 1744-D | C41: =IF('DF raw data'!C41="","",'DF raw data'!C41) ->  | D41: =IF('DF raw data'!D41="","",'DF raw data'!D41) -> 
A42: =IF('DF raw data'!A42="","",'DF raw data'!A42) -> Probe Name | B42: =IF('DF raw data'!B42="","",'DF raw data'!B42) -> ID12_Bz | C42: =IF('DF raw data'!C42="","",'DF raw data'!C42) ->  | D42: =IF('DF raw data'!D42="","",'DF raw data'!D42) -> 
A43: =IF('DF raw data'!A43="","",'DF raw data'!A43) -> Probe Type | B43: =IF('DF raw data'!B43="","",'DF raw data'!B43) -> DF_ID_3D_Bxyz | C43: =IF('DF raw data'!C43="","",'DF raw data'!C43) ->  | D43: =IF('DF raw data'!D43="","",'DF raw data'!D43) -> 
A44: =IF('DF raw data'!A44="","",'DF raw data'!A44) -> Probe Danfysik Reg. Number | B44: =IF('DF raw data'!B44="","",'DF raw data'!B44) -> 2277 | C44: =IF('DF raw data'!C44="","",'DF raw data'!C44) ->  | D44: =IF('DF raw data'!D44="","",'DF raw data'!D44) -> 
A45: =IF('DF raw data'!A45="","",'DF raw data'!A45) -> Probe Axis | B45: =IF('DF raw data'!B45="","",'DF raw data'!B45) -> Bz | C45: =IF('DF raw data'!C45="","",'DF raw data'!C45) ->  | D45: =IF('DF raw data'!D45="","",'DF raw data'!D45) -> 
A46: =IF('DF raw data'!A46="","",'DF raw data'!A46) -> Probe Current Supply | B46: =IF('DF raw data'!B46="","",'DF raw data'!B46) -> 1825-D | C46: =IF('DF raw data'!C46="","",'DF raw data'!C46) ->  | D46: =IF('DF raw data'!D46="","",'DF raw data'!D46) -> 
A47: =IF('DF raw data'!A47="","",'DF raw data'!A47) -> Probe Gain Correction | B47: =IF('DF raw data'!B47="","",'DF raw data'!B47) -> 1 | C47: =IF('DF raw data'!C47="","",'DF raw data'!C47) ->  | D47: =IF('DF raw data'!D47="","",'DF raw data'!D47) -> 
A48: =IF('DF raw data'!A53="","",'DF raw data'!A53) -> PS-Gap: | B48: =IF('DF raw data'!B53="","",'DF raw data'!B53) -> 10 | C48: =IF('DF raw data'!C53="","",'DF raw data'!C53) ->  | D48: =IF('DF raw data'!D53="","",'DF raw data'!D53) -> 
A49: =IF('DF raw data'!A54="","",'DF raw data'!A54) -> PS-Temperature: | B49: =IF('DF raw data'!B54="","",'DF raw data'!B54) -> 24.9 | C49: =IF('DF raw data'!C54="","",'DF raw data'!C54) ->  | D49: =IF('DF raw data'!D54="","",'DF raw data'!D54) -> 
A50: =IF('DF raw data'!A55="","",'DF raw data'!A55) -> PS-Encoder: | B50: =IF('DF raw data'!B55="","",'DF raw data'!B55) -> 19.8325 | C50: =IF('DF raw data'!C55="","",'DF raw data'!C55) ->  | D50: =IF('DF raw data'!D55="","",'DF raw data'!D55) -> 
A51: =IF('DF raw data'!A56="","",'DF raw data'!A56) ->  | B51: =IF('DF raw data'!B56="","",'DF raw data'!B56) ->  | C51: =IF('DF raw data'!C56="","",'DF raw data'!C56) ->  | D51: =IF('DF raw data'!D56="","",'DF raw data'!D56) -> 
A52: =IF('DF raw data'!A57="","",'DF raw data'!A57) -> Monitor-Index | B52: =IF('DF raw data'!B57="","",'DF raw data'!B57) -> [1,1,4] | C52: =IF('DF raw data'!C57="","",'DF raw data'!C57) ->  | D52: =IF('DF raw data'!D57="","",'DF raw data'!D57) -> 
A53: =IF('DF raw data'!A58="","",'DF raw data'!A58) ->  | B53: =IF('DF raw data'!B58="","",'DF raw data'!B58) ->  | C53: =IF('DF raw data'!C58="","",'DF raw data'!C58) ->  | D53: =IF('DF raw data'!D58="","",'DF raw data'!D58) -> 
A54: =IF('DF raw data'!A59="","",'DF raw data'!A59) -> Time [s] | B54: =IF('DF raw data'!B59="","",'DF raw data'!B59) -> Y [mm] | C54: =IF('DF raw data'!C59="","",'DF raw data'!C59) -> X [mm] | D54: =IF('DF raw data'!D59="","",'DF raw data'!D59) -> Nominal current [A]
A55: =IF('DF raw data'!A60="","",'DF raw data'!A60) ->  | B55: =IF('DF raw data'!B60="","",'DF raw data'!B60) ->  | C55: =IF('DF raw data'!C60="","",'DF raw data'!C60) ->  | D55: =IF('DF raw data'!D60="","",'DF raw data'!D60) -> 
A56: =IF('DF raw data'!A61="","",'DF raw data'!A61) -> 209.9 | B56: =IF('DF raw data'!B61="","",'DF raw data'!B61) -> 31.3 | C56: =IF('DF raw data'!C61="","",'DF raw data'!C61) -> 301.8 | D56: =IF('DF raw data'!D61="","",'DF raw data'!D61) -> 0
A57: =IF('DF raw data'!A62="","",'DF raw data'!A62) ->  | B57: =IF('DF raw data'!B62="","",'DF raw data'!B62) ->  | C57: =IF('DF raw data'!C62="","",'DF raw data'!C62) ->  | D57: =IF('DF raw data'!D62="","",'DF raw data'!D62) -> 
A58: =IF('DF raw data'!A63="","",'DF raw data'!A63) -> Measurement-Index | B58: =IF('DF raw data'!B63="","",'DF raw data'!B63) -> [1,1,1201,2] | C58: =IF('DF raw data'!C63="","",'DF raw data'!C63) ->  | D58: =IF('DF raw data'!D63="","",'DF raw data'!D63) -> 
A59: =IF('DF raw data'!A64="","",'DF raw data'!A64) ->  | B59: =IF('DF raw data'!B64="","",'DF raw data'!B64) ->  | C59: =IF('DF raw data'!C64="","",'DF raw data'!C64) ->  | D59: =IF('DF raw data'!D64="","",'DF raw data'!D64) -> 
A60: =IF('DF raw data'!A65="","",'DF raw data'!A65) -> Z [mm] | B60: =IF('DF raw data'!B65="","",'DF raw data'!B65) -> By [T] | C60: =IF('DF raw data'!C65="","",'DF raw data'!C65) -> Bx [T] | D60: =IF('DF raw data'!D65="","",'DF raw data'!D65) -> Bz [T] | F60: By_corr | G60: Bx_corr | H60: Bz_corr | J60: Iy | K60: Jy | L60: Ix | M60: Jx | N60: PI
A62: =IF('DF raw data'!A67="","",'DF raw data'!A67) -> -300 | B62: =IF('DF raw data'!B67="","",'DF raw data'!B67) -> -5.18683e-06 | C62: =IF('DF raw data'!C67="","",'DF raw data'!C67) -> 6.39923e-05 | D62: =IF('DF raw data'!D67="","",'DF raw data'!D67) -> -2.12688e-05 | F62: =(1-$G$1*($B$49))*B62 -> -5.315982067e-06 | G62: =(1-$G$1*($B$49-$G$2))*C62 -> 6.430586227e-05 | H62: =(1-$G$1*($B$49-$G$2))*D62 -> -2.137301712e-05 | J62: =F62*$G$3 -> -2.657991033e-06 | K62: =J62*$G$3 -> -1.328995517e-06 | L62: =G62*$G$3 -> 3.215293113e-05 | M62: =L62*$G$3 -> 1.607646557e-05 | N62: =(J62^2+L62^2)*$G$3 -> 5.204379485e-10
A63: =IF('DF raw data'!A68="","",'DF raw data'!A68) -> -299.5 | B63: =IF('DF raw data'!B68="","",'DF raw data'!B68) -> -4.41757e-06 | C63: =IF('DF raw data'!C68="","",'DF raw data'!C68) -> 6.43316e-05 | D63: =IF('DF raw data'!D68="","",'DF raw data'!D68) -> -2.13215e-05 | F63: =(1-$G$1*($B$49-$G$2))*B63 -> -4.439216093e-06 | G63: =(1-$G$1*($B$49-$G$2))*C63 -> 6.464682484e-05 | H63: -2.142597535e-05 | J63: =F63*$G$3+J62 -> -4.87759908e-06 | K63: =J63*$G$3+K62 -> -3.767795057e-06 | L63: =G63*$G$3+L62 -> 6.447634355e-05 | M63: =L63*$G$3+M62 -> 4.831463734e-05 | N63: =(J63^2+L63^2)*$G$3+N62 -> 2.610932874e-09
A64: =IF('DF raw data'!A69="","",'DF raw data'!A69) -> -299 | B64: =IF('DF raw data'!B69="","",'DF raw data'!B69) -> -1.62131e-05 | C64: =IF('DF raw data'!C69="","",'DF raw data'!C69) -> 6.08377e-05 | D64: =IF('DF raw data'!D69="","",'DF raw data'!D69) -> -2.10557e-05 | F64: =(1-$G$1*($B$49-$G$2))*B64 -> -1.629254419e-05 | G64: 6.113580473e-05 | H64: -2.115887293e-05 | J64: =F64*$G$3+J63 -> -1.302387117e-05 | K64: =J64*$G$3+K63 -> -1.027973064e-05 | L64: =G64*$G$3+L63 -> 9.504424592e-05 | M64: =L64*$G$3+M63 -> 9.58367603e-05 | N64: =(J64^2+L64^2)*$G$3+N63 -> 7.212447825e-09
A65: =IF('DF raw data'!A70="","",'DF raw data'!A70) -> -298.5 | B65: =IF('DF raw data'!B70="","",'DF raw data'!B70) -> -1.31363e-05 | C65: =IF('DF raw data'!C70="","",'DF raw data'!C70) -> 6.27611e-05 | D65: =IF('DF raw data'!D70="","",'DF raw data'!D70) -> -2.04642e-05 | F65: -1.320066787e-05 | G65: 6.306862939e-05 | H65: -2.056447458e-05 | J65: -1.962420511e-05 | K65: -2.00918332e-05 | L65: 0.0001265785606 | M65: 0.0001591260406 | N65: 1.541606854e-08
A66: =IF('DF raw data'!A71="","",'DF raw data'!A71) -> -298 | B66: =IF('DF raw data'!B71="","",'DF raw data'!B71) -> -1.17264e-05 | C66: =IF('DF raw data'!C71="","",'DF raw data'!C71) -> 7.41423e-05 | D66: =IF('DF raw data'!D71="","",'DF raw data'!D71) -> -1.99959e-05 | F66: -1.178385936e-05 | G66: 7.450559727e-05 | H66: -2.009387991e-05 | J66: -2.551613479e-05 | K66: -3.284990059e-05 | L66: 0.0001638313592 | M66: 0.0002410417202 | N66: 2.916196225e-08
A67: =IF('DF raw data'!A72="","",'DF raw data'!A72) -> -297.5 | B67: =IF('DF raw data'!B72="","",'DF raw data'!B72) -> -1.48677e-05 | C67: =IF('DF raw data'!C72="","",'DF raw data'!C72) -> 7.38092e-05 | D67: =IF('DF raw data'!D72="","",'DF raw data'!D72) -> -1.9743e-05 | F67: -1.494055173e-05 | G67: 7.417086508e-05 | H67: -1.98397407e-05 | J67: -3.298641065e-05 | K67: -4.934310592e-05 | L67: 0.0002009167918 | M67: 0.0003415001161 | N67: 4.98897925e-08
A68: =IF('DF raw data'!A73="","",'DF raw data'!A73) -> -297 | B68: =IF('DF raw data'!B73="","",'DF raw data'!B73) -> -4.73938e-06 | C68: =IF('DF raw data'!C73="","",'DF raw data'!C73) -> 5.84927e-05 | D68: =IF('DF raw data'!D73="","",'DF raw data'!D73) -> -1.95211e-05 | F68: -4.762602962e-06 | G68: 5.877931423e-05 | H68: -1.961675339e-05 | J68: -3.536771214e-05 | K68: -6.702696199e-05 | L68: 0.0002303064489 | M68: 0.0004566533406 | N68: 7.703576024e-08
A69: =IF('DF raw data'!A74="","",'DF raw data'!A74) -> -296.5 | B69: =IF('DF raw data'!B74="","",'DF raw data'!B74) -> -1.3586e-05 | C69: =IF('DF raw data'!C74="","",'DF raw data'!C74) -> 6.1357e-05 | D69: =IF('DF raw data'!D74="","",'DF raw data'!D74) -> -1.92265e-05 | F69: -1.36525714e-05 | G69: 6.16576493e-05 | H69: -1.932070985e-05 | J69: -4.219399784e-05 | K69: -8.812396091e-05 | L69: 0.0002611352736 | M69: 0.0005872209774 | N69: 1.120217425e-07
A70: =IF('DF raw data'!A75="","",'DF raw data'!A75) -> -296 | B70: =IF('DF raw data'!B75="","",'DF raw data'!B75) -> 2.88925e-06 | C70: =IF('DF raw data'!C75="","",'DF raw data'!C75) -> 6.52578e-05 | D70: =IF('DF raw data'!D75="","",'DF raw data'!D75) -> -1.95578e-05 | F70: 2.903407325e-06 | G70: 6.557756322e-05 | H70: -1.965363322e-05 | J70: -4.074229417e-05 | K70: -0.000108495108 | L70: 0.0002939240552 | M70: 0.0007341830049 | N70: 1.560473849e-07
A71: =IF('DF raw data'!A76="","",'DF raw data'!A76) -> -295.5 | B71: =IF('DF raw data'!B76="","",'DF raw data'!B76) -> -5.7198e-07 | C71: =IF('DF raw data'!C76="","",'DF raw data'!C76) -> 6.06484e-05 | D71: =IF('DF raw data'!D76="","",'DF raw data'!D76) -> -2.04493e-05 | F71: -5.74782702e-07 | G71: 6.094557716e-05 | H71: -2.054950157e-05 | J71: -4.102968552e-05 | K71: -0.0001290099508 | L71: 0.0003243968437 | M71: 0.0008963814268 | N71: 2.095057585e-07
A72: =IF('DF raw data'!A77="","",'DF raw data'!A77) -> -295 | B72: =IF('DF raw data'!B77="","",'DF raw data'!B77) -> -3.07182e-06 | C72: =IF('DF raw data'!C77="","",'DF raw data'!C77) -> 5.9299e-05 | D72: =IF('DF raw data'!D77="","",'DF raw data'!D77) -> -2.09071e-05 | F72: -3.086871918e-06 | G72: 5.95895651e-05 | H72: -2.100954479e-05 | J72: -4.257312148e-05 | K72: -0.0001502965115 | L72: 0.0003541916263 | M72: 0.00107347724 | N72: 2.731378479e-07
A73: =IF('DF raw data'!A78="","",'DF raw data'!A78) -> -294.5 | B73: =IF('DF raw data'!B78="","",'DF raw data'!B78) -> -1.04439e-05 | C73: =IF('DF raw data'!C78="","",'DF raw data'!C78) -> 6.33175e-05 | D73: =IF('DF raw data'!D78="","",'DF raw data'!D78) -> -2.067e-05 | F73: -1.049507511e-05 | G73: 6.362775575e-05 | H73: -2.0771283e-05 | J73: -4.782065904e-05 | K73: -0.000174206841 | L73: 0.0003860055042 | M73: 0.001266479992 | N73: 3.487813803e-07
A74: =IF('DF raw data'!A79="","",'DF raw data'!A79) -> -294 | B74: =IF('DF raw data'!B79="","",'DF raw data'!B79) -> -1.02033e-06 | C74: =IF('DF raw data'!C79="","",'DF raw data'!C79) -> 6.80293e-05 | D74: =IF('DF raw data'!D79="","",'DF raw data'!D79) -> -2.0818e-05 | F74: -1.025329617e-06 | G74: 6.836264357e-05 | H74: -2.09200082e-05 | J74: -4.833332385e-05 | K74: -0.0001983735029 | L74: 0.000420186826 | M74: 0.001476573405 | N74: 4.382279197e-07
A75: =IF('DF raw data'!A80="","",'DF raw data'!A80) -> -293.5 | B75: =IF('DF raw data'!B80="","",'DF raw data'!B80) -> -8.39229e-06 | C75: =IF('DF raw data'!C80="","",'DF raw data'!C80) -> 6.00305e-05 | D75: =IF('DF raw data'!D80="","",'DF raw data'!D80) -> -2.11846e-05 | F75: -8.433412221e-06 | G75: 6.032464945e-05 | H75: -2.128840454e-05 | J75: -5.255002996e-05 | K75: -0.0002246485179 | L75: 0.0004503491507 | M75: 0.00170174798 | N75: 5.410158513e-07
A76: =IF('DF raw data'!A81="","",'DF raw data'!A81) -> -293 | B76: =IF('DF raw data'!B81="","",'DF raw data'!B81) -> -1.46106e-05 | C76: =IF('DF raw data'!C81="","",'DF raw data'!C81) -> 6.78487e-05 | D76: =IF('DF raw data'!D81="","",'DF raw data'!D81) -> -2.08272e-05 | F76: -1.468219194e-05 | G76: 6.818115863e-05 | H76: -2.092925328e-05 | J76: -5.989112593e-05 | K76: -0.0002545940809 | L76: 0.00048443973 | M76: 0.001943967845 | N76: 6.601502508e-07
A77: =IF('DF raw data'!A82="","",'DF raw data'!A82) -> -292.5 | B77: =IF('DF raw data'!B82="","",'DF raw data'!B82) -> -1.49957e-05 | C77: =IF('DF raw data'!C82="","",'DF raw data'!C82) -> 6.77893e-05 | D77: =IF('DF raw data'!D82="","",'DF raw data'!D82) -> -2.01573e-05 | F77: -1.506917893e-05 | G77: 6.812146757e-05 | H77: -2.025607077e-05 | J77: -6.742571539e-05 | K77: -0.0002883069386 | L77: 0.0005185004638 | M77: 0.002203218077 | N77: 7.968447298e-07
A78: =IF('DF raw data'!A83="","",'DF raw data'!A83) -> -292 | B78: =IF('DF raw data'!B83="","",'DF raw data'!B83) -> -5.95674e-06 | C78: =IF('DF raw data'!C83="","",'DF raw data'!C83) -> 6.2309e-05 | D78: =IF('DF raw data'!D83="","",'DF raw data'!D83) -> -2.02312e-05 | F78: -5.985928026e-06 | G78: 6.26143141e-05 | H78: -2.033033288e-05 | J78: -7.041867941e-05 | K78: -0.0003235162783 | L78: 0.0005498076208 | M78: 0.002478121888 | N78: 9.50468335e-07
A79: =IF('DF raw data'!A84="","",'DF raw data'!A84) -> -291.5 | B79: =IF('DF raw data'!B84="","",'DF raw data'!B84) -> -1.31375e-05 | C79: =IF('DF raw data'!C84="","",'DF raw data'!C84) -> 6.57677e-05 | D79: =IF('DF raw data'!D84="","",'DF raw data'!D84) -> -1.87606e-05 | F79: -1.320187375e-05 | G79: 6.608996173e-05 | H79: -1.885252694e-05 | J79: -7.701961628e-05 | K79: -0.0003620260864 | L79: 0.0005828526017 | M79: 0.002769548189 | N79: 1.123292923e-06
A80: =IF('DF raw data'!A85="","",'DF raw data'!A85) -> -291 | B80: =IF('DF raw data'!B85="","",'DF raw data'!B85) -> -1.42929e-05 | C80: =IF('DF raw data'!C85="","",'DF raw data'!C85) -> 6.30265e-05 | D80: =IF('DF raw data'!D85="","",'DF raw data'!D85) -> -1.62259e-05 | F80: -1.436293521e-05 | G80: 6.333532985e-05 | H80: -1.630540691e-05 | J80: -8.420108389e-05 | K80: -0.0004041266284 | L80: 0.0006145202666 | M80: 0.003076808322 | N80: 1.315655414e-06
A81: =IF('DF raw data'!A86="","",'DF raw data'!A86) -> -290.5 | B81: =IF('DF raw data'!B86="","",'DF raw data'!B86) -> -1.25006e-05 | C81: =IF('DF raw data'!C86="","",'DF raw data'!C86) -> 6.72961e-05 | D81: =IF('DF raw data'!D86="","",'DF raw data'!D86) -> -1.23268e-05 | F81: -1.256185294e-05 | G81: 6.762585089e-05 | H81: -1.238720132e-05 | J81: -9.048201036e-05 | K81: -0.0004493676335 | L81: 0.0006483331921 | M81: 0.003400974918 | N81: 1.529916875e-06
A82: =IF('DF raw data'!A87="","",'DF raw data'!A87) -> -290 | B82: =IF('DF raw data'!B87="","",'DF raw data'!B87) -> -9.60664e-07 | C82: =IF('DF raw data'!C87="","",'DF raw data'!C87) -> 6.57543e-05 | D82: =IF('DF raw data'!D87="","",'DF raw data'!D87) -> -1.41754e-05 | F82: -9.653712536e-07 | G82: 6.607649607e-05 | H82: -1.424485946e-05 | J82: -9.096469598e-05 | K82: -0.0004948499815 | L82: 0.0006813714401 | M82: 0.003741660638 | N82: 1.766187682e-06
A83: =IF('DF raw data'!A88="","",'DF raw data'!A88) -> -289.5 | B83: =IF('DF raw data'!B88="","",'DF raw data'!B88) -> -7.82067e-06 | C83: =IF('DF raw data'!C88="","",'DF raw data'!C88) -> 6.86737e-05 | D83: =IF('DF raw data'!D88="","",'DF raw data'!D88) -> -1.27985e-05 | F83: -7.858991283e-06 | G83: 6.901020113e-05 | H83: -1.286121265e-05 | J83: -9.489419162e-05 | K83: -0.0005422970773 | L83: 0.0007158765407 | M83: 0.004099598908 | N83: 2.026929747e-06
A84: =IF('DF raw data'!A89="","",'DF raw data'!A89) -> -289 | B84: =IF('DF raw data'!B89="","",'DF raw data'!B89) -> -2.11032e-06 | C84: =IF('DF raw data'!C89="","",'DF raw data'!C89) -> 6.7927e-05 | D84: =IF('DF raw data'!D89="","",'DF raw data'!D89) -> -2.06464e-05 | F84: -2.120660568e-06 | G84: 6.82598423e-05 | H84: -2.074756736e-05 | J84: -9.595452191e-05 | K84: -0.0005902743383 | L84: 0.0007500064618 | M84: 0.004474602139 | N84: 2.312788228e-06
A85: =IF('DF raw data'!A90="","",'DF raw data'!A90) -> -288.5 | B85: =IF('DF raw data'!B90="","",'DF raw data'!B90) -> -3.45638e-06 | C85: =IF('DF raw data'!C90="","",'DF raw data'!C90) -> 6.06034e-05 | D85: =IF('DF raw data'!D90="","",'DF raw data'!D90) -> -2.09908e-05 | F85: -3.473316262e-06 | G85: 6.090035666e-05 | H85: -2.109365492e-05 | J85: -9.769118004e-05 | K85: -0.0006391199283 | L85: 0.0007804566401 | M85: 0.004864830459 | N85: 2.622116295e-06
A86: =IF('DF raw data'!A91="","",'DF raw data'!A91) -> -288 | B86: =IF('DF raw data'!B91="","",'DF raw data'!B91) -> -6.67083e-06 | C86: =IF('DF raw data'!C91="","",'DF raw data'!C91) -> 6.3399e-05 | D86: =IF('DF raw data'!D91="","",'DF raw data'!D91) -> -6.61363e-06 | F86: -6.703517067e-06 | G86: 6.37096551e-05 | H86: -6.646036787e-06 | J86: -0.0001010429386 | K86: -0.0006896413976 | L86: 0.0008123114677 | M86: 0.005270986193 | N86: 2.957146093e-06
A87: =IF('DF raw data'!A92="","",'DF raw data'!A92) -> -287.5 | B87: =IF('DF raw data'!B92="","",'DF raw data'!B92) -> -4.02947e-06 | C87: =IF('DF raw data'!C92="","",'DF raw data'!C92) -> 6.58e-05 | D87: =IF('DF raw data'!D92="","",'DF raw data'!D92) -> -2.67022e-05 | F87: -4.049214403e-06 | G87: 6.612242e-05 | H87: -2.683304078e-05 | J87: -0.0001030675458 | K87: -0.0007411751705 | L87: 0.0008453726777 | M87: 0.005693672532 | N87: 3.319785035e-06
A88: =IF('DF raw data'!A93="","",'DF raw data'!A93) -> -287 | B88: =IF('DF raw data'!B93="","",'DF raw data'!B93) -> -9.16541e-06 | C88: =IF('DF raw data'!C93="","",'DF raw data'!C93) -> 6.69739e-05 | D88: =IF('DF raw data'!D93="","",'DF raw data'!D93) -> -1.51938e-05 | F88: -9.210320509e-06 | G88: 6.730207211e-05 | H88: -1.526824962e-05 | J88: -0.000107672706 | K88: -0.0007950115235 | L88: 0.0008790237137 | M88: 0.006133184389 | N88: 3.711923085e-06
A89: =IF('DF raw data'!A94="","",'DF raw data'!A94) -> -286.5 | B89: =IF('DF raw data'!B94="","",'DF raw data'!B94) -> -7.62879e-06 | C89: =IF('DF raw data'!C94="","",'DF raw data'!C94) -> 6.60785e-05 | D89: =IF('DF raw data'!D94="","",'DF raw data'!D94) -> -1.23401e-05 | F89: -7.666171071e-06 | G89: 6.640228465e-05 | H89: -1.240056649e-05 | J89: -0.0001115057916 | K89: -0.0008507644193 | L89: 0.0009122248561 | M89: 0.006589296817 | N89: 4.13421695e-06
A90: =IF('DF raw data'!A95="","",'DF raw data'!A95) -> -286 | B90: =IF('DF raw data'!B95="","",'DF raw data'!B95) -> -7.42792e-06 | C90: =IF('DF raw data'!C95="","",'DF raw data'!C95) -> 5.89665e-05 | D90: =IF('DF raw data'!D95="","",'DF raw data'!D95) -> -2.53435e-05 | F90: -7.464316808e-06 | G90: 5.925543585e-05 | H90: -2.546768315e-05 | J90: -0.00011523795 | K90: -0.0009083833943 | L90: 0.000941852574 | M90: 0.007060223104 | N90: 4.584399978e-06
A91: =IF('DF raw data'!A96="","",'DF raw data'!A96) -> -285.5 | B91: =IF('DF raw data'!B96="","",'DF raw data'!B96) -> -3.5904e-06 | C91: =IF('DF raw data'!C96="","",'DF raw data'!C96) -> 5.62052e-05 | D91: =IF('DF raw data'!D96="","",'DF raw data'!D96) -> -1.20245e-05 | F91: -3.60799296e-06 | G91: 5.648060548e-05 | H91: -1.208342005e-05 | J91: -0.0001170419464 | K91: -0.0009669043675 | L91: 0.0009700928767 | M91: 0.007545269542 | N91: 5.061789482e-06
A92: =IF('DF raw data'!A97="","",'DF raw data'!A97) -> -285 | B92: =IF('DF raw data'!B97="","",'DF raw data'!B97) -> 2.05759e-06 | C92: =IF('DF raw data'!C97="","",'DF raw data'!C97) -> 6.05398e-05 | D92: =IF('DF raw data'!D97="","",'DF raw data'!D97) -> -2.23493e-05 | F92: 2.067672191e-06 | G92: 6.083644502e-05 | H92: -2.245881157e-05 | J92: -0.0001160081104 | K92: -0.001024908423 | L92: 0.001000511099 | M92: 0.008045525092 | N92: 5.569029652e-06
A93: =IF('DF raw data'!A98="","",'DF raw data'!A98) -> -284.5 | B93: =IF('DF raw data'!B98="","",'DF raw data'!B98) -> -1.14744e-05 | C93: =IF('DF raw data'!C98="","",'DF raw data'!C98) -> 6.94426e-05 | D93: =IF('DF raw data'!D98="","",'DF raw data'!D98) -> -1.31952e-05 | F93: -1.153062456e-05 | G93: 6.978286874e-05 | H93: -1.325985648e-05 | J93: -0.0001217734226 | K93: -0.001085795134 | L93: 0.001035402534 | M93: 0.008563226359 | N93: 6.112473239e-06
A94: =IF('DF raw data'!A99="","",'DF raw data'!A99) -> -284 | B94: =IF('DF raw data'!B99="","",'DF raw data'!B99) -> 4.48856e-06 | C94: =IF('DF raw data'!C99="","",'DF raw data'!C99) -> 7.10117e-05 | D94: =IF('DF raw data'!D99="","",'DF raw data'!D99) -> -1.47391e-05 | F94: 4.510553944e-06 | G94: 7.135965733e-05 | H94: -1.481132159e-05 | J94: -0.0001195181457 | K94: -0.001145554207 | L94: 0.001071082362 | M94: 0.00909876754 | N94: 6.693224246e-06
A95: =IF('DF raw data'!A100="","",'DF raw data'!A100) -> -283.5 | B95: =IF('DF raw data'!B100="","",'DF raw data'!B100) -> -1.21183e-05 | C95: =IF('DF raw data'!C100="","",'DF raw data'!C100) -> 6.84251e-05 | D95: =IF('DF raw data'!D100="","",'DF raw data'!D100) -> -8.69021e-06 | F95: -1.217767967e-05 | G95: 6.876038299e-05 | H95: -8.732792029e-06 | J95: -0.0001256069855 | K95: -0.0012083577 | L95: 0.001105462554 | M95: 0.009651498817 | N95: 7.312136532e-06
A96: =IF('DF raw data'!A101="","",'DF raw data'!A101) -> -283 | B96: =IF('DF raw data'!B101="","",'DF raw data'!B101) -> -1.15856e-06 | C96: =IF('DF raw data'!C101="","",'DF raw data'!C101) -> 5.85921e-05 | D96: =IF('DF raw data'!D101="","",'DF raw data'!D101) -> -5.35393e-06 | F96: -1.164236944e-06 | G96: 5.887920129e-05 | H96: -5.380164257e-06 | J96: -0.000126189104 | K96: -0.001271452252 | L96: 0.001134902154 | M96: 0.01021894989 | N96: 7.964099827e-06
A97: =IF('DF raw data'!A102="","",'DF raw data'!A102) -> -282.5 | B97: =IF('DF raw data'!B102="","",'DF raw data'!B102) -> -5.1276e-06 | C97: =IF('DF raw data'!C102="","",'DF raw data'!C102) -> 5.99853e-05 | D97: =IF('DF raw data'!D102="","",'DF raw data'!D102) -> -1.39741e-05 | F97: -5.15272524e-06 | G97: 6.027922797e-05 | H97: -1.404257309e-05 | J97: -0.0001287654666 | K97: -0.001335834985 | L97: 0.001165041768 | M97: 0.01080147078 | N97: 8.651051261e-06
A98: =IF('DF raw data'!A103="","",'DF raw data'!A103) -> -282 | B98: =IF('DF raw data'!B103="","",'DF raw data'!B103) -> -1.74972e-05 | C98: =IF('DF raw data'!C103="","",'DF raw data'!C103) -> 6.32042e-05 | D98: =IF('DF raw data'!D103="","",'DF raw data'!D103) -> -1.7928e-05 | F98: -1.758293628e-05 | G98: 6.351390058e-05 | H98: -1.80158472e-05 | J98: -0.0001375569347 | K98: -0.001404613452 | L98: 0.001196798719 | M98: 0.01139987014 | N98: 9.376675803e-06
A99: =IF('DF raw data'!A104="","",'DF raw data'!A104) -> -281.5 | B99: =IF('DF raw data'!B104="","",'DF raw data'!B104) -> -7.36925e-06 | C99: =IF('DF raw data'!C104="","",'DF raw data'!C104) -> 5.77742e-05 | D99: =IF('DF raw data'!D104="","",'DF raw data'!D104) -> -1.71697e-05 | F99: -7.405359325e-06 | G99: 5.805729358e-05 | H99: -1.725383153e-05 | J99: -0.0001412596144 | K99: -0.001475243259 | L99: 0.001225827365 | M99: 0.01201278382 | N99: 1.013797931e-05
A100: =IF('DF raw data'!A105="","",'DF raw data'!A105) -> -281 | B100: =IF('DF raw data'!B105="","",'DF raw data'!B105) -> -1.98531e-06 | C100: =IF('DF raw data'!C105="","",'DF raw data'!C105) -> 5.99728e-05 | D100: =IF('DF raw data'!D105="","",'DF raw data'!D105) -> -1.57196e-05 | F100: -1.995038019e-06 | G100: 6.026666672e-05 | H100: -1.579662604e-05 | J100: -0.0001422571334 | K100: -0.001546371826 | L100: 0.001255960699 | M100: 0.01264076417 | N100: 1.093681649e-05
A101: =IF('DF raw data'!A106="","",'DF raw data'!A106) -> -280.5 | B101: =IF('DF raw data'!B106="","",'DF raw data'!B106) -> -4.09854e-06 | C101: =IF('DF raw data'!C106="","",'DF raw data'!C106) -> 5.3111e-05 | D101: =IF('DF raw data'!D106="","",'DF raw data'!D106) -> -1.92428e-05 | F101: -4.118622846e-06 | G101: 5.33712439e-05 | H101: -1.933708972e-05 | J101: -0.0001443164448 | K101: -0.001618530049 | L101: 0.001282646321 | M101: 0.01328208733 | N101: 1.17698209e-05
A102: =IF('DF raw data'!A107="","",'DF raw data'!A107) -> -280 | B102: =IF('DF raw data'!B107="","",'DF raw data'!B107) -> 4.94429e-06 | C102: =IF('DF raw data'!C107="","",'DF raw data'!C107) -> 5.94742e-05 | D102: =IF('DF raw data'!D107="","",'DF raw data'!D107) -> -2.53471e-05 | F102: 4.968517021e-06 | G102: 5.976562358e-05 | H102: -2.547130079e-05 | J102: -0.0001418321863 | K102: -0.001689446142 | L102: 0.001312529133 | M102: 0.0139383519 | N102: 1.264124545e-05
A103: =IF('DF raw data'!A108="","",'DF raw data'!A108) -> -279.5 | B103: =IF('DF raw data'!B108="","",'DF raw data'!B108) -> -1.20502e-05 | C103: =IF('DF raw data'!C108="","",'DF raw data'!C108) -> 6.07924e-05 | D103: =IF('DF raw data'!D108="","",'DF raw data'!D108) -> -1.51075e-05 | F103: -1.210924598e-05 | G103: 6.109028276e-05 | H103: -1.518152675e-05 | J103: -0.0001478868093 | K103: -0.001763389546 | L103: 0.001343074274 | M103: 0.01460988903 | N103: 1.355410496e-05
A104: =IF('DF raw data'!A109="","",'DF raw data'!A109) -> -279 | B104: =IF('DF raw data'!B109="","",'DF raw data'!B109) -> -1.54493e-05 | C104: =IF('DF raw data'!C109="","",'DF raw data'!C109) -> 5.89403e-05 | D104: =IF('DF raw data'!D109="","",'DF raw data'!D109) -> -1.28058e-05 | F104: -1.552500157e-05 | G104: 5.922910747e-05 | H104: -1.286854842e-05 | J104: -0.0001556493101 | K104: -0.001841214201 | L104: 0.001372688828 | M104: 0.01529623345 | N104: 1.450835562e-05
A105: =IF('DF raw data'!A110="","",'DF raw data'!A110) -> -278.5 | B105: =IF('DF raw data'!B110="","",'DF raw data'!B110) -> -1.60879e-05 | C105: =IF('DF raw data'!C110="","",'DF raw data'!C110) -> 5.17376e-05 | D105: =IF('DF raw data'!D110="","",'DF raw data'!D110) -> -1.6597e-05 | F105: -1.616673071e-05 | G105: 5.199111424e-05 | H105: -1.66783253e-05 | J105: -0.0001637326754 | K105: -0.001923080539 | L105: 0.001398684385 | M105: 0.01599557564 | N105: 1.549991882e-05
A106: =IF('DF raw data'!A111="","",'DF raw data'!A111) -> -278 | B106: =IF('DF raw data'!B111="","",'DF raw data'!B111) -> -1.35881e-05 | C106: =IF('DF raw data'!C111="","",'DF raw data'!C111) -> 4.69994e-05 | D106: =IF('DF raw data'!D111="","",'DF raw data'!D111) -> -1.59976e-05 | F106: -1.365468169e-05 | G106: 4.722969706e-05 | H106: -1.607598824e-05 | J106: -0.0001705600163 | K106: -0.002008360547 | L106: 0.001422299233 | M106: 0.01670672526 | N106: 1.652593173e-05
A107: =IF('DF raw data'!A112="","",'DF raw data'!A112) -> -277.5 | B107: =IF('DF raw data'!B112="","",'DF raw data'!B112) -> -6.15571e-06 | C107: =IF('DF raw data'!C112="","",'DF raw data'!C112) -> 5.67102e-05 | D107: =IF('DF raw data'!D112="","",'DF raw data'!D112) -> -1.01697e-05 | F107: -6.185872979e-06 | G107: 5.698807998e-05 | H107: -1.021953153e-05 | J107: -0.0001736529528 | K107: -0.002095187024 | L107: 0.001450793273 | M107: 0.01743212189 | N107: 1.759340997e-05
A108: =IF('DF raw data'!A113="","",'DF raw data'!A113) -> -277 | B108: =IF('DF raw data'!B113="","",'DF raw data'!B113) -> -7.81858e-06 | C108: =IF('DF raw data'!C113="","",'DF raw data'!C113) -> 5.97132e-05 | D108: =IF('DF raw data'!D113="","",'DF raw data'!D113) -> -1.60356e-05 | F108: -7.856891042e-06 | G108: 6.000579468e-05 | H108: -1.611417444e-05 | J108: -0.0001775813983 | K108: -0.002183977723 | L108: 0.001480796171 | M108: 0.01817251998 | N108: 1.870555619e-05
A109: =IF('DF raw data'!A114="","",'DF raw data'!A114) -> -276.5 | B109: =IF('DF raw data'!B114="","",'DF raw data'!B114) -> -8.24884e-07 | C109: =IF('DF raw data'!C114="","",'DF raw data'!C114) -> 5.32638e-05 | D109: =IF('DF raw data'!D114="","",'DF raw data'!D114) -> -2.58584e-05 | F109: -8.289259316e-07 | G109: 5.352479262e-05 | H109: -2.598510616e-05 | J109: -0.0001779958613 | K109: -0.002272975653 | L109: 0.001507558567 | M109: 0.01892629926 | N109: 1.985776387e-05
A110: =IF('DF raw data'!A115="","",'DF raw data'!A115) -> -276 | B110: =IF('DF raw data'!B115="","",'DF raw data'!B115) -> -1.46797e-05 | C110: =IF('DF raw data'!C115="","",'DF raw data'!C115) -> 5.83917e-05 | D110: =IF('DF raw data'!D115="","",'DF raw data'!D115) -> -1.29376e-05 | F110: -1.475163053e-05 | G110: 5.867781933e-05 | H110: -1.300099424e-05 | J110: -0.0001853716765 | K110: -0.002365661492 | L110: 0.001536897477 | M110: 0.019694748 | N110: 2.105597213e-05
A111: =IF('DF raw data'!A116="","",'DF raw data'!A116) -> -275.5 | B111: =IF('DF raw data'!B116="","",'DF raw data'!B116) -> -7.6241e-06 | C111: =IF('DF raw data'!C116="","",'DF raw data'!C116) -> 6.16183e-05 | D111: =IF('DF raw data'!D116="","",'DF raw data'!D116) -> -1.95888e-05 | F111: -7.66145809e-06 | G111: 6.192022967e-05 | H111: -1.968478512e-05 | J111: -0.0001892024056 | K111: -0.002460262694 | L111: 0.001567857591 | M111: 0.0204786768 | N111: 2.230295962e-05
A112: =IF('DF raw data'!A117="","",'DF raw data'!A117) -> -275 | B112: =IF('DF raw data'!B117="","",'DF raw data'!B117) -> -7.16923e-06 | C112: =IF('DF raw data'!C117="","",'DF raw data'!C117) -> 5.93634e-05 | D112: =IF('DF raw data'!D117="","",'DF raw data'!D117) -> -2.88723e-05 | F112: -7.204359227e-06 | G112: 5.965428066e-05 | H112: -2.901377427e-05 | J112: -0.0001928045852 | K112: -0.002556664987 | L112: 0.001597684732 | M112: 0.02127751916 | N112: 2.359784467e-05
A113: =IF('DF raw data'!A118="","",'DF raw data'!A118) -> -274.5 | B113: =IF('DF raw data'!B118="","",'DF raw data'!B118) -> -1.05675e-05 | C113: =IF('DF raw data'!C118="","",'DF raw data'!C118) -> 6.26282e-05 | D113: =IF('DF raw data'!D118="","",'DF raw data'!D118) -> -2.77604e-05 | F113: -1.061928075e-05 | G113: 6.293507818e-05 | H113: -2.789642596e-05 | J113: -0.0001981142256 | K113: -0.0026557221 | L113: 0.001629152271 | M113: 0.0220920953 | N113: 2.494453786e-05
A114: =IF('DF raw data'!A119="","",'DF raw data'!A119) -> -274 | B114: =IF('DF raw data'!B119="","",'DF raw data'!B119) -> -2.94552e-06 | C114: =IF('DF raw data'!C119="","",'DF raw data'!C119) -> 5.92015e-05 | D114: =IF('DF raw data'!D119="","",'DF raw data'!D119) -> -1.79645e-05 | F114: -2.959953048e-06 | G114: 5.949158735e-05 | H114: -1.805252605e-05 | J114: -0.0001995942021 | K114: -0.002755519201 | L114: 0.001658898065 | M114: 0.02292154433 | N114: 2.634042817e-05
A115: =IF('DF raw data'!A120="","",'DF raw data'!A120) -> -273.5 | B115: =IF('DF raw data'!B120="","",'DF raw data'!B120) -> -3.83831e-06 | C115: =IF('DF raw data'!C120="","",'DF raw data'!C120) -> 5.42944e-05 | D115: =IF('DF raw data'!D120="","",'DF raw data'!D120) -> -2.51478e-05 | F115: -3.857117719e-06 | G115: 5.456044256e-05 | H115: -2.527102422e-05 | J115: -0.0002015227609 | K115: -0.002856280581 | L115: 0.001686178286 | M115: 0.02376463347 | N115: 2.778233249e-05
A116: =IF('DF raw data'!A121="","",'DF raw data'!A121) -> -273 | B116: =IF('DF raw data'!B121="","",'DF raw data'!B121) -> 3.66027e-06 | C116: =IF('DF raw data'!C121="","",'DF raw data'!C121) -> 6.88681e-05 | D116: =IF('DF raw data'!D121="","",'DF raw data'!D121) -> -2.23099e-05 | F116: 3.678205323e-06 | G116: 6.920555369e-05 | H116: -2.241921851e-05 | J116: -0.0001996836583 | K116: -0.00295612241 | L116: 0.001720781063 | M116: 0.024625024 | N116: 2.9282813e-05
A117: =IF('DF raw data'!A122="","",'DF raw data'!A122) -> -272.5 | B117: =IF('DF raw data'!B122="","",'DF raw data'!B122) -> -4.73392e-06 | C117: =IF('DF raw data'!C122="","",'DF raw data'!C122) -> 6.57083e-05 | D117: =IF('DF raw data'!D122="","",'DF raw data'!D122) -> -2.7965e-05 | F117: -4.757116208e-06 | G117: 6.603027067e-05 | H117: -2.81020285e-05 | J117: -0.0002020622164 | K117: -0.003057153519 | L117: 0.001753796198 | M117: 0.0255019221 | N117: 3.084112813e-05
A118: =IF('DF raw data'!A123="","",'DF raw data'!A123) -> -272 | B118: =IF('DF raw data'!B123="","",'DF raw data'!B123) -> 4.36724e-06 | C118: =IF('DF raw data'!C123="","",'DF raw data'!C123) -> 6.02483e-05 | D118: =IF('DF raw data'!D123="","",'DF raw data'!D123) -> -2.53596e-05 | F118: 4.388639476e-06 | G118: 6.054351667e-05 | H118: -2.548386204e-05 | J118: -0.0001998678966 | K118: -0.003157087467 | L118: 0.001784067956 | M118: 0.02639395608 | N118: 3.245255095e-05
A119: =IF('DF raw data'!A124="","",'DF raw data'!A124) -> -271.5 | B119: =IF('DF raw data'!B124="","",'DF raw data'!B124) -> -8.13445e-06 | C119: =IF('DF raw data'!C124="","",'DF raw data'!C124) -> 6.28505e-05 | D119: =IF('DF raw data'!D124="","",'DF raw data'!D124) -> -2.33989e-05 | F119: -8.174308805e-06 | G119: 6.315846745e-05 | H119: -2.351355461e-05 | J119: -0.0002039550511 | K119: -0.003259064993 | L119: 0.00181564719 | M119: 0.02730177968 | N119: 3.412163714e-05
A120: =IF('DF raw data'!A125="","",'DF raw data'!A125) -> -271 | B120: =IF('DF raw data'!B125="","",'DF raw data'!B125) -> -6.66782e-06 | C120: =IF('DF raw data'!C125="","",'DF raw data'!C125) -> 7.16561e-05 | D120: =IF('DF raw data'!D125="","",'DF raw data'!D125) -> -1.12681e-05 | F120: -6.700492318e-06 | G120: 7.200721489e-05 | H120: -1.132331369e-05 | J120: -0.0002073052972 | K120: -0.003362717641 | L120: 0.001851650798 | M120: 0.02822760507 | N120: 3.585743022e-05
A121: =IF('DF raw data'!A126="","",'DF raw data'!A126) -> -270.5 | B121: =IF('DF raw data'!B126="","",'DF raw data'!B126) -> -7.02457e-07 | C121: =IF('DF raw data'!C126="","",'DF raw data'!C126) -> 6.754e-05 | D121: =IF('DF raw data'!D126="","",'DF raw data'!D126) -> -1.69487e-05 | F121: -7.058990393e-07 | G121: 6.7870946e-05 | H121: -1.703174863e-05 | J121: -0.0002076582467 | K121: -0.003466546764 | L121: 0.001885586271 | M121: 0.02917039821 | N121: 3.765670899e-05
A122: =IF('DF raw data'!A127="","",'DF raw data'!A127) -> -270 | B122: =IF('DF raw data'!B127="","",'DF raw data'!B127) -> -1.87107e-05 | C122: =IF('DF raw data'!C127="","",'DF raw data'!C127) -> 6.36903e-05 | D122: =IF('DF raw data'!D127="","",'DF raw data'!D127) -> -2.46282e-05 | F122: -1.880238243e-05 | G122: 6.400238247e-05 | H122: -2.474887818e-05 | J122: -0.0002170594379 | K122: -0.003575076483 | L122: 0.001917587462 | M122: 0.03012919194 | N122: 3.951883723e-05
A123: =IF('DF raw data'!A128="","",'DF raw data'!A128) -> -269.5 | B123: =IF('DF raw data'!B128="","",'DF raw data'!B128) -> -7.31338e-06 | C123: =IF('DF raw data'!C128="","",'DF raw data'!C128) -> 6.07473e-05 | D123: =IF('DF raw data'!D128="","",'DF raw data'!D128) -> -4.27597e-06 | F123: -7.349215562e-06 | G123: 6.104496177e-05 | H123: -4.296922253e-06 | J123: -0.0002207340457 | K123: -0.003685443506 | L123: 0.001948109943 | M123: 0.03110324691 | N123: 4.144076516e-05
A124: =IF('DF raw data'!A129="","",'DF raw data'!A129) -> -269 | B124: =IF('DF raw data'!B129="","",'DF raw data'!B129) -> -1.73119e-06 | C124: =IF('DF raw data'!C129="","",'DF raw data'!C129) -> 6.08411e-05 | D124: =IF('DF raw data'!D129="","",'DF raw data'!D129) -> -1.21818e-05 | F124: -1.739672831e-06 | G124: 6.113922139e-05 | H124: -1.224149082e-05 | J124: -0.0002216038821 | K124: -0.003796245447 | L124: 0.001978679553 | M124: 0.03209258669 | N124: 4.342290569e-05
A125: =IF('DF raw data'!A130="","",'DF raw data'!A130) -> -268.5 | B125: =IF('DF raw data'!B130="","",'DF raw data'!B130) -> -4.86294e-06 | C125: =IF('DF raw data'!C130="","",'DF raw data'!C130) -> 6.42914e-05 | D125: =IF('DF raw data'!D130="","",'DF raw data'!D130) -> -2.66995e-05 | F125: -4.886768406e-06 | G125: 6.460642786e-05 | H125: -2.683032755e-05 | J125: -0.0002240472663 | K125: -0.003908269081 | L125: 0.002010982767 | M125: 0.03309807807 | N125: 4.547003012e-05
A126: =IF('DF raw data'!A131="","",'DF raw data'!A131) -> -268 | B126: =IF('DF raw data'!B131="","",'DF raw data'!B131) -> -8.90842e-06 | C126: =IF('DF raw data'!C131="","",'DF raw data'!C131) -> 5.42113e-05 | D126: =IF('DF raw data'!D131="","",'DF raw data'!D131) -> -1.6095e-05 | F126: -8.952071258e-06 | G126: 5.447693537e-05 | H126: -1.61738655e-05 | J126: -0.000228523302 | K126: -0.004022530732 | L126: 0.002038221235 | M126: 0.03411718869 | N126: 4.757331447e-05
A127: =IF('DF raw data'!A132="","",'DF raw data'!A132) -> -267.5 | B127: =IF('DF raw data'!B132="","",'DF raw data'!B132) -> -1.15269e-06 | C127: =IF('DF raw data'!C132="","",'DF raw data'!C132) -> 5.85856e-05 | D127: =IF('DF raw data'!D132="","",'DF raw data'!D132) -> -1.44061e-05 | F127: -1.158338181e-06 | G127: 5.887266944e-05 | H127: -1.447668989e-05 | J127: -0.0002291024711 | K127: -0.004137081967 | L127: 0.00206765757 | M127: 0.03515101748 | N127: 4.973716236e-05
A128: =IF('DF raw data'!A133="","",'DF raw data'!A133) -> -267 | B128: =IF('DF raw data'!B133="","",'DF raw data'!B133) -> -2.68144e-06 | C128: =IF('DF raw data'!C133="","",'DF raw data'!C133) -> 5.76163e-05 | D128: =IF('DF raw data'!D133="","",'DF raw data'!D133) -> -2.97981e-05 | F128: =(1-$G$1*($B$49-$G$2))*B128 -> -2.694579056e-06 | G128: 5.789861987e-05 | H128: -2.994411069e-05 | J128: =F128*$G$3+J127 -> -0.0002304497606 | K128: =J128*$G$3+K127 -> -0.004252306847 | L128: =G128*$G$3+L127 -> 0.00209660688 | M128: =L128*$G$3+M127 -> 0.03619932091 | N128: =(J128^2+L128^2)*$G$3+N127 -> 5.196159611e-05
A129: =IF('DF raw data'!A134="","",'DF raw data'!A134) -> -266.5 | B129: =IF('DF raw data'!B134="","",'DF raw data'!B134) -> -5.70151e-06 | C129: =IF('DF raw data'!C134="","",'DF raw data'!C134) -> 5.98553e-05 | D129: =IF('DF raw data'!D134="","",'DF raw data'!D134) -> -1.84296e-05 | F129: -5.729447399e-06 | G129: 6.014859097e-05 | H129: -1.851990504e-05 | J129: -0.0002333144843 | K129: -0.00436896409 | L129: 0.002126681175 | M129: 0.0372626615 | N129: 5.425020034e-05
A130: =IF('DF raw data'!A135="","",'DF raw data'!A135) -> -266 | B130: =IF('DF raw data'!B135="","",'DF raw data'!B135) -> 4.16372e-06 | C130: =IF('DF raw data'!C135="","",'DF raw data'!C135) -> 6.62121e-05 | D130: =IF('DF raw data'!D135="","",'DF raw data'!D135) -> -7.85118e-06 | F130: 4.184122228e-06 | G130: 6.653653929e-05 | H130: -7.889650782e-06 | J130: -0.0002312224232 | K130: -0.004484575301 | L130: 0.002159949445 | M130: 0.03834263622 | N130: 5.660962305e-05
A131: =IF('DF raw data'!A136="","",'DF raw data'!A136) -> -265.5 | B131: =IF('DF raw data'!B136="","",'DF raw data'!B136) -> -8.85275e-06 | C131: =IF('DF raw data'!C136="","",'DF raw data'!C136) -> 6.47792e-05 | D131: =IF('DF raw data'!D136="","",'DF raw data'!D136) -> -2.90254e-06 | F131: -8.896128475e-06 | G131: 6.509661808e-05 | H131: -2.916762446e-06 | J131: -0.0002356704874 | K131: -0.004602410545 | L131: 0.002192497754 | M131: 0.0394388851 | N131: 5.904091654e-05
A132: =IF('DF raw data'!A137="","",'DF raw data'!A137) -> -265 | B132: =IF('DF raw data'!B137="","",'DF raw data'!B137) -> 3.77557e-06 | C132: =IF('DF raw data'!C137="","",'DF raw data'!C137) -> 6.93556e-05 | D132: =IF('DF raw data'!D137="","",'DF raw data'!D137) -> -2.40394e-06 | F132: 3.794070293e-06 | G132: 6.969544244e-05 | H132: -2.415719306e-06 | J132: -0.0002337734523 | K132: -0.004719297271 | L132: 0.002227345475 | M132: 0.04055255784 | N132: 6.154877548e-05
A133: =IF('DF raw data'!A138="","",'DF raw data'!A138) -> -264.5 | B133: =IF('DF raw data'!B138="","",'DF raw data'!B138) -> -1.34671e-06 | C133: =IF('DF raw data'!C138="","",'DF raw data'!C138) -> 6.13541e-05 | D133: =IF('DF raw data'!D138="","",'DF raw data'!D138) -> -1.19783e-05 | F133: -1.353308879e-06 | G133: 6.165473509e-05 | H133: -1.203699367e-05 | J133: -0.0002344501067 | K133: -0.004836522324 | L133: 0.002258172843 | M133: 0.04168164426 | N133: 6.41259312e-05
A134: =IF('DF raw data'!A139="","",'DF raw data'!A139) -> -264 | B134: =IF('DF raw data'!B139="","",'DF raw data'!B139) -> 6.41589e-06 | C134: =IF('DF raw data'!C139="","",'DF raw data'!C139) -> 5.96162e-05 | D134: =IF('DF raw data'!D139="","",'DF raw data'!D139) -> -2.12823e-05 | F134: 6.447327861e-06 | G134: 5.990831938e-05 | H134: -2.138658327e-05 | J134: -0.0002312264428 | K134: -0.004952135546 | L134: 0.002288127002 | M134: 0.04282570776 | N134: 6.677042663e-05
A135: =IF('DF raw data'!A140="","",'DF raw data'!A140) -> -263.5 | B135: =IF('DF raw data'!B140="","",'DF raw data'!B140) -> -7.6889e-06 | C135: =IF('DF raw data'!C140="","",'DF raw data'!C140) -> 5.66246e-05 | D135: =IF('DF raw data'!D140="","",'DF raw data'!D140) -> -1.83189e-05 | F135: -7.72657561e-06 | G135: 5.690206054e-05 | H135: -1.840866261e-05 | J135: -0.0002350897306 | K135: -0.005069680411 | L135: 0.002316578033 | M135: 0.04398399678 | N135: 6.948132711e-05
A136: =IF('DF raw data'!A141="","",'DF raw data'!A141) -> -263 | B136: =IF('DF raw data'!B141="","",'DF raw data'!B141) -> -1.09526e-05 | C136: =IF('DF raw data'!C141="","",'DF raw data'!C141) -> 6.43187e-05 | D136: =IF('DF raw data'!D141="","",'DF raw data'!D141) -> -2.6997e-05 | F136: -1.100626774e-05 | G136: 6.463386163e-05 | H136: -2.71292853e-05 | J136: -0.0002405928645 | K136: -0.005189976843 | L136: 0.002348894963 | M136: 0.04515844426 | N136: 7.226892334e-05
A137: =IF('DF raw data'!A142="","",'DF raw data'!A142) -> -262.5 | B137: =IF('DF raw data'!B142="","",'DF raw data'!B142) -> -3.06945e-06 | C137: =IF('DF raw data'!C142="","",'DF raw data'!C142) -> 6.85763e-05 | D137: =IF('DF raw data'!D142="","",'DF raw data'!D142) -> -2.45607e-05 | F137: -3.084490305e-06 | G137: 6.891232387e-05 | H137: -2.468104743e-05 | J137: -0.0002421351096 | K137: -0.005311044398 | L137: 0.002383351125 | M137: 0.04635011982 | N137: 7.513841934e-05
A138: =IF('DF raw data'!A143="","",'DF raw data'!A143) -> -262 | B138: =IF('DF raw data'!B143="","",'DF raw data'!B143) -> -4.48663e-06 | C138: =IF('DF raw data'!C143="","",'DF raw data'!C143) -> 6.6966e-05 | D138: =IF('DF raw data'!D143="","",'DF raw data'!D143) -> -1.38935e-05 | F138: -4.508614487e-06 | G138: 6.72941334e-05 | H138: -1.396157815e-05 | J138: -0.0002443894168 | K138: -0.005433239106 | L138: 0.002416998192 | M138: 0.04755861892 | N138: 7.808922257e-05
A139: =IF('DF raw data'!A144="","",'DF raw data'!A144) -> -261.5 | B139: =IF('DF raw data'!B144="","",'DF raw data'!B144) -> 4.6207e-06 | C139: =IF('DF raw data'!C144="","",'DF raw data'!C144) -> 7.21038e-05 | D139: =IF('DF raw data'!D144="","",'DF raw data'!D144) -> -2.08001e-05 | F139: 4.64334143e-06 | G139: 7.245710862e-05 | H139: -2.090202049e-05 | J139: -0.0002420677461 | K139: -0.00555427298 | L139: 0.002453226746 | M139: 0.04878523229 | N139: 8.11276817e-05
A140: =IF('DF raw data'!A145="","",'DF raw data'!A145) -> -261 | B140: =IF('DF raw data'!B145="","",'DF raw data'!B145) -> -4.93575e-06 | C140: =IF('DF raw data'!C145="","",'DF raw data'!C145) -> 6.68427e-05 | D140: =IF('DF raw data'!D145="","",'DF raw data'!D145) -> -1.30816e-05 | F140: -4.959935175e-06 | G140: 6.717022923e-05 | H140: -1.314569984e-05 | J140: -0.0002445477137 | K140: -0.005676546836 | L140: 0.002486811861 | M140: 0.05002863822 | N140: 8.424970011e-05
A141: =IF('DF raw data'!A146="","",'DF raw data'!A146) -> -260.5 | B141: =IF('DF raw data'!B146="","",'DF raw data'!B146) -> -1.02596e-06 | C141: =IF('DF raw data'!C146="","",'DF raw data'!C146) -> 5.94319e-05 | D141: =IF('DF raw data'!D146="","",'DF raw data'!D146) -> -1.21294e-05 | F141: -1.030987204e-06 | G141: 5.972311631e-05 | H141: -1.218883406e-05 | J141: -0.0002450632073 | K141: -0.00579907844 | L141: 0.002516673419 | M141: 0.05128697493 | N141: 8.744655064e-05
A142: =IF('DF raw data'!A147="","",'DF raw data'!A147) -> -260 | B142: =IF('DF raw data'!B147="","",'DF raw data'!B147) -> -5.89383e-06 | C142: =IF('DF raw data'!C147="","",'DF raw data'!C147) -> 5.61301e-05 | D142: =IF('DF raw data'!D147="","",'DF raw data'!D147) -> -1.86174e-05 | F142: -5.922709767e-06 | G142: 5.640513749e-05 | H142: -1.870862526e-05 | J142: -0.0002480245622 | K142: -0.005923090721 | L142: 0.002544875988 | M142: 0.05255941293 | N142: 9.071550563e-05
A143: =IF('DF raw data'!A148="","",'DF raw data'!A148) -> -259.5 | B143: =IF('DF raw data'!B148="","",'DF raw data'!B148) -> -5.89157e-06 | C143: =IF('DF raw data'!C148="","",'DF raw data'!C148) -> 5.65677e-05 | D143: =IF('DF raw data'!D148="","",'DF raw data'!D148) -> -2.21005e-05 | F143: -5.920438693e-06 | G143: 5.684488173e-05 | H143: -2.220879245e-05 | J143: -0.0002509847816 | K143: -0.006048583112 | L143: 0.002573298429 | M143: 0.05384606214 | N143: 9.405793471e-05
A144: =IF('DF raw data'!A149="","",'DF raw data'!A149) -> -259 | B144: =IF('DF raw data'!B149="","",'DF raw data'!B149) -> 7.95005e-06 | C144: =IF('DF raw data'!C149="","",'DF raw data'!C149) -> 5.72002e-05 | D144: =IF('DF raw data'!D149="","",'DF raw data'!D149) -> -1.42386e-05 | F144: 7.989005245e-06 | G144: 5.748048098e-05 | H144: -1.430836914e-05 | J144: -0.0002469902789 | K144: -0.006172078251 | L144: 0.002602038669 | M144: 0.05514708147 | N144: 9.747373943e-05
A145: =IF('DF raw data'!A150="","",'DF raw data'!A150) -> -258.5 | B145: =IF('DF raw data'!B150="","",'DF raw data'!B150) -> -3.01772e-06 | C145: =IF('DF raw data'!C150="","",'DF raw data'!C150) -> 5.85987e-05 | D145: =IF('DF raw data'!D150="","",'DF raw data'!D150) -> -5.29263e-06 | F145: -3.032506828e-06 | G145: 5.888583363e-05 | H145: -5.318563887e-06 | J145: -0.0002485065323 | K145: -0.006296331518 | L145: 0.002631481586 | M145: 0.05646282227 | N145: 0.0001009669648
A146: =IF('DF raw data'!A151="","",'DF raw data'!A151) -> -258 | B146: =IF('DF raw data'!B151="","",'DF raw data'!B151) -> -7.95322e-06 | C146: =IF('DF raw data'!C151="","",'DF raw data'!C151) -> 6.4131e-05 | D146: =IF('DF raw data'!D151="","",'DF raw data'!D151) -> -6.11483e-06 | F146: -7.992190778e-06 | G146: 6.44452419e-05 | H146: -6.144792667e-06 | J146: -0.0002525026277 | K146: -0.006422582831 | L146: 0.002663704207 | M146: 0.05779467437 | N146: 0.0001045465037
A147: =IF('DF raw data'!A152="","",'DF raw data'!A152) -> -257.5 | B147: =IF('DF raw data'!B152="","",'DF raw data'!B152) -> -5.57246e-06 | C147: =IF('DF raw data'!C152="","",'DF raw data'!C152) -> 5.72204e-05 | D147: =IF('DF raw data'!D152="","",'DF raw data'!D152) -> -1.97331e-05 | F147: -5.599765054e-06 | G147: 5.750077996e-05 | H147: -1.982979219e-05 | J147: -0.0002553025103 | K147: -0.006550234087 | L147: 0.002692454597 | M147: 0.05914090167 | N147: 0.0001082037493
A148: =IF('DF raw data'!A153="","",'DF raw data'!A153) -> -257 | B148: =IF('DF raw data'!B153="","",'DF raw data'!B153) -> 3.91081e-07 | C148: =IF('DF raw data'!C153="","",'DF raw data'!C153) -> 5.48356e-05 | D148: =IF('DF raw data'!D153="","",'DF raw data'!D153) -> -2.25917e-05 | F148: 3.929972969e-07 | G148: 5.510429444e-05 | H148: -2.270239933e-05 | J148: -0.0002551060116 | K148: -0.006677787092 | L148: 0.002720006744 | M148: 0.06050090504 | N148: 0.0001119355071
A149: =IF('DF raw data'!A154="","",'DF raw data'!A154) -> -256.5 | B149: =IF('DF raw data'!B154="","",'DF raw data'!B154) -> 1.21192e-05 | C149: =IF('DF raw data'!C154="","",'DF raw data'!C154) -> 5.41219e-05 | D149: =IF('DF raw data'!D154="","",'DF raw data'!D154) -> -1.78932e-05 | F149: 1.217858408e-05 | G149: 5.438709731e-05 | H149: -1.798087668e-05 | J149: -0.0002490167196 | K149: -0.006802295452 | L149: 0.002747200293 | M149: 0.06187450519 | N149: 0.0001157400665
A150: =IF('DF raw data'!A155="","",'DF raw data'!A155) -> -256 | B150: =IF('DF raw data'!B155="","",'DF raw data'!B155) -> -7.11084e-06 | C150: =IF('DF raw data'!C155="","",'DF raw data'!C155) -> 5.73892e-05 | D150: =IF('DF raw data'!D155="","",'DF raw data'!D155) -> -2.0278e-05 | F150: -7.145683116e-06 | G150: 5.767040708e-05 | H150: -2.03773622e-05 | J150: -0.0002525895611 | K150: -0.006928590233 | L150: 0.002776035496 | M150: 0.06326252294 | N150: 0.0001196251538
A151: =IF('DF raw data'!A156="","",'DF raw data'!A156) -> -255.5 | B151: =IF('DF raw data'!B156="","",'DF raw data'!B156) -> 9.61888e-07 | C151: =IF('DF raw data'!C156="","",'DF raw data'!C156) -> 5.80638e-05 | D151: =IF('DF raw data'!D156="","",'DF raw data'!D156) -> -1.33597e-05 | F151: 9.666012512e-07 | G151: 5.834831262e-05 | H151: -1.342516253e-05 | J151: -0.0002521062605 | K151: -0.007054643363 | L151: 0.002805209653 | M151: 0.06466512776 | N151: 0.0001235915332
A152: =IF('DF raw data'!A157="","",'DF raw data'!A157) -> -255 | B152: =IF('DF raw data'!B157="","",'DF raw data'!B157) -> 2.1197e-06 | C152: =IF('DF raw data'!C157="","",'DF raw data'!C157) -> 5.56917e-05 | D152: =IF('DF raw data'!D157="","",'DF raw data'!D157) -> -1.94756e-05 | F152: 2.13008653e-06 | G152: 5.596458933e-05 | H152: -1.957103044e-05 | J152: -0.0002510412172 | K152: -0.007180163972 | L152: 0.002833191947 | M152: 0.06608172374 | N152: 0.0001276365323
A153: =IF('DF raw data'!A158="","",'DF raw data'!A158) -> -254.5 | B153: =IF('DF raw data'!B158="","",'DF raw data'!B158) -> 3.21579e-06 | C153: =IF('DF raw data'!C158="","",'DF raw data'!C158) -> 5.29604e-05 | D153: =IF('DF raw data'!D158="","",'DF raw data'!D158) -> -2.90415e-05 | F153: 3.231547371e-06 | G153: 5.321990596e-05 | H153: -2.918380335e-05 | J153: -0.0002494254436 | K153: -0.007304876693 | L153: 0.0028598019 | M153: 0.06751162469 | N153: 0.0001317568723
A154: =IF('DF raw data'!A159="","",'DF raw data'!A159) -> -254 | B154: =IF('DF raw data'!B159="","",'DF raw data'!B159) -> -1.1212e-05 | C154: =IF('DF raw data'!C159="","",'DF raw data'!C159) -> 4.86952e-05 | D154: =IF('DF raw data'!D159="","",'DF raw data'!D159) -> -2.24306e-05 | F154: -1.12669388e-05 | G154: 4.893380648e-05 | H154: -2.254050994e-05 | J154: -0.000255058913 | K154: -0.00743240615 | L154: 0.002884268804 | M154: 0.06895375909 | N154: 0.0001359489031
A155: =IF('DF raw data'!A160="","",'DF raw data'!A160) -> -253.5 | B155: =IF('DF raw data'!B160="","",'DF raw data'!B160) -> -3.97906e-06 | C155: =IF('DF raw data'!C160="","",'DF raw data'!C160) -> 5.24577e-05 | D155: =IF('DF raw data'!D160="","",'DF raw data'!D160) -> -5.80856e-06 | F155: -3.998557394e-06 | G155: 5.271474273e-05 | H155: -5.837021944e-06 | J155: -0.0002570581917 | K155: -0.007560935246 | L155: 0.002910626175 | M155: 0.07040907218 | N155: 0.0001402178149
A156: =IF('DF raw data'!A161="","",'DF raw data'!A161) -> -253 | B156: =IF('DF raw data'!B161="","",'DF raw data'!B161) -> -1.218e-06 | C156: =IF('DF raw data'!C161="","",'DF raw data'!C161) -> 5.03078e-05 | D156: =IF('DF raw data'!D161="","",'DF raw data'!D161) -> -1.27569e-05 | F156: -1.2239682e-06 | G156: 5.055430822e-05 | H156: -1.281940881e-05 | J156: -0.0002576701758 | K156: -0.007689770334 | L156: 0.002935903329 | M156: 0.07187702384 | N156: 0.0001445607761
A157: =IF('DF raw data'!A162="","",'DF raw data'!A162) -> -252.5 | B157: =IF('DF raw data'!B162="","",'DF raw data'!B162) -> 7.78498e-07 | C157: =IF('DF raw data'!C162="","",'DF raw data'!C162) -> 4.54868e-05 | D157: =IF('DF raw data'!D162="","",'DF raw data'!D162) -> -2.69094e-05 | F157: 7.823126402e-07 | G157: 4.570968532e-05 | H157: -2.704125606e-05 | J157: -0.0002572790194 | K157: -0.007818409843 | L157: 0.002958758172 | M157: 0.07335640293 | N157: 0.0001489709973
A158: =IF('DF raw data'!A163="","",'DF raw data'!A163) -> -252 | B158: =IF('DF raw data'!B163="","",'DF raw data'!B163) -> -1.28162e-06 | C158: =IF('DF raw data'!C163="","",'DF raw data'!C163) -> 4.62425e-05 | D158: =IF('DF raw data'!D163="","",'DF raw data'!D163) -> -1.32908e-05 | F158: -1.287899938e-06 | G158: 4.646908825e-05 | H158: -1.335592492e-05 | J158: -0.0002579229694 | K158: -0.007947371328 | L158: 0.002981992716 | M158: 0.07484739928 | N158: 0.0001534503997
A159: =IF('DF raw data'!A164="","",'DF raw data'!A164) -> -251.5 | B159: =IF('DF raw data'!B164="","",'DF raw data'!B164) -> 7.50035e-06 | C159: =IF('DF raw data'!C164="","",'DF raw data'!C164) -> 4.93273e-05 | D159: =IF('DF raw data'!D164="","",'DF raw data'!D164) -> -1.29265e-05 | F159: 7.537101715e-06 | G159: 4.956900377e-05 | H159: -1.298983985e-05 | J159: -0.0002541544185 | K159: -0.008074448537 | L159: 0.003006777218 | M159: 0.07635078789 | N159: 0.0001580030515
A160: =IF('DF raw data'!A165="","",'DF raw data'!A165) -> -251 | B160: =IF('DF raw data'!B165="","",'DF raw data'!B165) -> 2.88666e-06 | C160: =IF('DF raw data'!C165="","",'DF raw data'!C165) -> 5.7309e-05 | D160: =IF('DF raw data'!D165="","",'DF raw data'!D165) -> -1.55558e-05 | F160: 2.900804634e-06 | G160: 5.75898141e-05 | H160: -1.563202342e-05 | J160: -0.0002527040162 | K160: -0.008200800545 | L160: 0.003035572125 | M160: 0.07786857395 | N160: 0.0001626423303
A161: =IF('DF raw data'!A166="","",'DF raw data'!A166) -> -250.5 | B161: =IF('DF raw data'!B166="","",'DF raw data'!B166) -> -7.37266e-06 | C161: =IF('DF raw data'!C166="","",'DF raw data'!C166) -> 5.63329e-05 | D161: =IF('DF raw data'!D166="","",'DF raw data'!D166) -> -1.19488e-05 | F161: -7.408786034e-06 | G161: 5.660893121e-05 | H161: -1.200734912e-05 | J161: -0.0002564084092 | K161: -0.00832900475 | L161: 0.00306387659 | M161: 0.07940051225 | N161: 0.0001673688728
A162: =IF('DF raw data'!A167="","",'DF raw data'!A167) -> -250 | B162: =IF('DF raw data'!B167="","",'DF raw data'!B167) -> 2.24415e-06 | C162: =IF('DF raw data'!C167="","",'DF raw data'!C167) -> 5.87579e-05 | D162: =IF('DF raw data'!D167="","",'DF raw data'!D167) -> -1.36809e-05 | F162: 2.255146335e-06 | G162: 5.904581371e-05 | H162: -1.374793641e-05 | J162: -0.0002552808361 | K162: -0.008456645168 | L162: 0.003093399497 | M162: 0.080947212 | N162: 0.0001721860171
A163: =IF('DF raw data'!A168="","",'DF raw data'!A168) -> -249.5 | B163: =IF('DF raw data'!B168="","",'DF raw data'!B168) -> -5.68497e-07 | C163: =IF('DF raw data'!C168="","",'DF raw data'!C168) -> 6.06974e-05 | D163: =IF('DF raw data'!D168="","",'DF raw data'!D168) -> -2.5823e-05 | F163: -5.712826353e-07 | G163: 6.099481726e-05 | H163: -2.59495327e-05 | J163: -0.0002555664774 | K163: -0.008584428407 | L163: 0.003123896906 | M163: 0.08250916045 | N163: 0.0001770980402
A164: =IF('DF raw data'!A169="","",'DF raw data'!A169) -> -249 | B164: =IF('DF raw data'!B169="","",'DF raw data'!B169) -> -1.19812e-05 | C164: =IF('DF raw data'!C169="","",'DF raw data'!C169) -> 5.82886e-05 | D164: =IF('DF raw data'!D169="","",'DF raw data'!D169) -> -2.25122e-05 | F164: -1.203990788e-05 | G164: 5.857421414e-05 | H164: -2.262250978e-05 | J164: -0.0002615864313 | K164: -0.008715221622 | L164: 0.003153184013 | M164: 0.08408575246 | N164: 0.0001821035386
A165: =IF('DF raw data'!A170="","",'DF raw data'!A170) -> -248.5 | B165: =IF('DF raw data'!B170="","",'DF raw data'!B170) -> -3.33358e-06 | C165: =IF('DF raw data'!C170="","",'DF raw data'!C170) -> 4.97658e-05 | D165: =IF('DF raw data'!D170="","",'DF raw data'!D170) -> -1.26684e-05 | F165: -3.349914542e-06 | G165: 5.000965242e-05 | H165: -1.273047516e-05 | J165: -0.0002632613886 | K165: -0.008846852317 | L165: 0.003178188839 | M165: 0.08567484688 | N165: 0.0001871886341
A166: =IF('DF raw data'!A171="","",'DF raw data'!A171) -> -248 | B166: =IF('DF raw data'!B171="","",'DF raw data'!B171) -> 6.67354e-06 | C166: =IF('DF raw data'!C171="","",'DF raw data'!C171) -> 5.31251e-05 | D166: =IF('DF raw data'!D171="","",'DF raw data'!D171) -> -2.31895e-05 | F166: 6.706240346e-06 | G166: 5.338541299e-05 | H166: -2.330312855e-05 | J166: -0.0002599082684 | K166: -0.008976806451 | L166: 0.003204881546 | M166: 0.08727728765 | N166: 0.0001923580431
A167: =IF('DF raw data'!A172="","",'DF raw data'!A172) -> -247.5 | B167: =IF('DF raw data'!B172="","",'DF raw data'!B172) -> -1.06411e-05 | C167: =IF('DF raw data'!C172="","",'DF raw data'!C172) -> 5.65491e-05 | D167: =IF('DF raw data'!D172="","",'DF raw data'!D172) -> -1.33439e-05 | F167: -1.069324139e-05 | G167: 5.682619059e-05 | H167: -1.340928511e-05 | J167: -0.0002652548891 | K167: -0.009109433895 | L167: 0.003233294641 | M167: 0.08889393497 | N167: 0.0001976203203
A168: =IF('DF raw data'!A173="","",'DF raw data'!A173) -> -247 | B168: =IF('DF raw data'!B173="","",'DF raw data'!B173) -> -5.07521e-06 | C168: =IF('DF raw data'!C173="","",'DF raw data'!C173) -> 5.67053e-05 | D168: =IF('DF raw data'!D173="","",'DF raw data'!D173) -> 4.27463e-06 | F168: -5.100078529e-06 | G168: 5.698315597e-05 | H168: 4.295575687e-06 | J168: -0.0002678049284 | K168: -0.00924333636 | L168: 0.003261786219 | M168: 0.09052482808 | N168: 0.0002029758047
A169: =IF('DF raw data'!A174="","",'DF raw data'!A174) -> -246.5 | B169: =IF('DF raw data'!B174="","",'DF raw data'!B174) -> -1.14087e-05 | C169: =IF('DF raw data'!C174="","",'DF raw data'!C174) -> 5.51322e-05 | D169: =IF('DF raw data'!D174="","",'DF raw data'!D174) -> -1.59331e-05 | F169: -1.146460263e-05 | G169: 5.540234778e-05 | H169: -1.601117219e-05 | J169: -0.0002735372297 | K169: -0.009380104975 | L169: 0.003289487393 | M169: 0.09216957178 | N169: 0.0002084235796
A170: =IF('DF raw data'!A175="","",'DF raw data'!A175) -> -246 | B170: =IF('DF raw data'!B175="","",'DF raw data'!B175) -> 1.27681e-07 | C170: =IF('DF raw data'!C175="","",'DF raw data'!C175) -> 4.98358e-05 | D170: =IF('DF raw data'!D175="","",'DF raw data'!D175) -> -1.1814e-05 | F170: 1.283066369e-07 | G170: 5.007999542e-05 | H170: -1.18718886e-05 | J170: -0.0002734730764 | K170: -0.009516841513 | L170: 0.00331452739 | M170: 0.09382683547 | N170: 0.0002139540193
A171: =IF('DF raw data'!A176="","",'DF raw data'!A176) -> -245.5 | B171: =IF('DF raw data'!B176="","",'DF raw data'!B176) -> 4.93273e-06 | C171: =IF('DF raw data'!C176="","",'DF raw data'!C176) -> 5.47438e-05 | D171: =IF('DF raw data'!D176="","",'DF raw data'!D176) -> -7.50269e-06 | F171: 4.956900377e-06 | G171: 5.501204462e-05 | H171: -7.539453181e-06 | J171: -0.0002709946262 | K171: -0.009652338826 | L171: 0.003342033413 | M171: 0.09549785218 | N171: 0.000219575332
A172: =IF('DF raw data'!A177="","",'DF raw data'!A177) -> -245 | B172: =IF('DF raw data'!B177="","",'DF raw data'!B177) -> -2.48094e-07 | C172: =IF('DF raw data'!C177="","",'DF raw data'!C177) -> 6.59407e-05 | D172: =IF('DF raw data'!D177="","",'DF raw data'!D177) -> -2.54473e-05 | F172: -2.493096606e-07 | G172: 6.626380943e-05 | H172: -2.557199177e-05 | J172: -0.000271119281 | K172: -0.009787898466 | L172: 0.003375165317 | M172: 0.09718543484 | N172: 0.0002253079553
A173: =IF('DF raw data'!A178="","",'DF raw data'!A178) -> -244.5 | B173: =IF('DF raw data'!B178="","",'DF raw data'!B178) -> -5.31843e-06 | C173: =IF('DF raw data'!C178="","",'DF raw data'!C178) -> 5.86979e-05 | D173: =IF('DF raw data'!D178="","",'DF raw data'!D178) -> -1.60739e-05 | F173: -5.344490307e-06 | G173: 5.898551971e-05 | H173: -1.615266211e-05 | J173: -0.0002737915262 | K173: -0.009924794229 | L173: 0.003404658077 | M173: 0.09888776388 | N173: 0.0002311412845
A174: =IF('DF raw data'!A179="","",'DF raw data'!A179) -> -244 | B174: =IF('DF raw data'!B179="","",'DF raw data'!B179) -> 7.24087e-06 | C174: =IF('DF raw data'!C179="","",'DF raw data'!C179) -> 5.11814e-05 | D174: =IF('DF raw data'!D179="","",'DF raw data'!D179) -> -8.18146e-06 | F174: 7.276350263e-06 | G174: 5.143218886e-05 | H174: -8.221549154e-06 | J174: -0.0002701533511 | K174: -0.0100598709 | L174: 0.003430374172 | M174: 0.100602951 | N174: 0.0002370615094
A175: =IF('DF raw data'!A180="","",'DF raw data'!A180) -> -243.5 | B175: =IF('DF raw data'!B180="","",'DF raw data'!B180) -> -5.25657e-06 | C175: =IF('DF raw data'!C180="","",'DF raw data'!C180) -> 4.61425e-05 | D175: =IF('DF raw data'!D180="","",'DF raw data'!D180) -> -1.28181e-05 | F175: -5.282327193e-06 | G175: 4.636859825e-05 | H175: -1.288090869e-05 | J175: -0.0002727945146 | K175: -0.01019626816 | L175: 0.003453558471 | M175: 0.1023297302 | N175: 0.0002430622509
A176: =IF('DF raw data'!A181="","",'DF raw data'!A181) -> -243 | B176: =IF('DF raw data'!B181="","",'DF raw data'!B181) -> -7.81644e-06 | C176: =IF('DF raw data'!C181="","",'DF raw data'!C181) -> 4.04148e-05 | D176: =IF('DF raw data'!D181="","",'DF raw data'!D181) -> -1.93464e-05 | F176: -7.854740556e-06 | G176: 4.061283252e-05 | H176: -1.944119736e-05 | J176: -0.0002767218849 | K176: -0.0103346291 | L176: 0.003473864887 | M176: 0.1040666626 | N176: 0.000249134407
A177: =IF('DF raw data'!A182="","",'DF raw data'!A182) -> -242.5 | B177: =IF('DF raw data'!B182="","",'DF raw data'!B182) -> -2.88447e-06 | C177: =IF('DF raw data'!C182="","",'DF raw data'!C182) -> 4.84302e-05 | D177: =IF('DF raw data'!D182="","",'DF raw data'!D182) -> -1.30724e-05 | F177: -2.898603903e-06 | G177: 4.866750798e-05 | H177: -1.313645476e-05 | J177: -0.0002781711869 | K177: -0.0104737147 | L177: 0.003498198641 | M177: 0.105815762 | N177: 0.0002552917935
A178: =IF('DF raw data'!A183="","",'DF raw data'!A183) -> -242 | B178: =IF('DF raw data'!B183="","",'DF raw data'!B183) -> -5.95686e-06 | C178: =IF('DF raw data'!C183="","",'DF raw data'!C183) -> 4.90075e-05 | D178: =IF('DF raw data'!D183="","",'DF raw data'!D183) -> -2.0067e-05 | F178: -5.986048614e-06 | G178: 4.924763675e-05 | H178: -2.01653283e-05 | J178: -0.0002811642112 | K178: -0.0106142968 | L178: 0.00352282246 | M178: 0.1075771732 | N178: 0.0002615364592
A179: =IF('DF raw data'!A184="","",'DF raw data'!A184) -> -241.5 | B179: =IF('DF raw data'!B184="","",'DF raw data'!B184) -> -7.68696e-06 | C179: =IF('DF raw data'!C184="","",'DF raw data'!C184) -> 3.87816e-05 | D179: =IF('DF raw data'!D184="","",'DF raw data'!D184) -> -2.13174e-05 | F179: -7.724626104e-06 | G179: 3.897162984e-05 | H179: -2.142185526e-05 | J179: -0.0002850265242 | K179: -0.01075681007 | L179: 0.003542308274 | M179: 0.1093483273 | N179: 0.0002678510532
A180: =IF('DF raw data'!A185="","",'DF raw data'!A185) -> -241 | B180: =IF('DF raw data'!B185="","",'DF raw data'!B185) -> -1.10844e-05 | C180: =IF('DF raw data'!C185="","",'DF raw data'!C185) -> 4.40315e-05 | D180: =IF('DF raw data'!D185="","",'DF raw data'!D185) -> -2.14789e-05 | F180: -1.113871356e-05 | G180: 4.424725435e-05 | H180: -2.158414661e-05 | J180: -0.000290595881 | K180: -0.01090210801 | L180: 0.003564431902 | M180: 0.1111305433 | N180: 0.0002742458636
A181: =IF('DF raw data'!A186="","",'DF raw data'!A186) -> -240.5 | B181: =IF('DF raw data'!B186="","",'DF raw data'!B186) -> -6.97887e-06 | C181: =IF('DF raw data'!C186="","",'DF raw data'!C186) -> 4.63705e-05 | D181: =IF('DF raw data'!D186="","",'DF raw data'!D186) -> -2.60775e-05 | F181: -7.013066463e-06 | G181: 4.659771545e-05 | H181: -2.620527975e-05 | J181: -0.0002941024142 | K181: -0.01104915921 | L181: 0.003587730759 | M181: 0.1129244087 | N181: 0.0002807250177
A182: =IF('DF raw data'!A187="","",'DF raw data'!A187) -> -240 | B182: =IF('DF raw data'!B187="","",'DF raw data'!B187) -> -1.05061e-05 | C182: =IF('DF raw data'!C187="","",'DF raw data'!C187) -> 4.11065e-05 | D182: =IF('DF raw data'!D187="","",'DF raw data'!D187) -> -2.37985e-05 | F182: -1.055757989e-05 | G182: 4.130792185e-05 | H182: -2.391511265e-05 | J182: -0.0002993812042 | K182: -0.01119884982 | L182: 0.00360838472 | M182: 0.114728601 | N182: 0.0002872800524
A183: =IF('DF raw data'!A188="","",'DF raw data'!A188) -> -239.5 | B183: =IF('DF raw data'!B188="","",'DF raw data'!B188) -> -1.04437e-05 | C183: =IF('DF raw data'!C188="","",'DF raw data'!C188) -> 4.02223e-05 | D183: =IF('DF raw data'!D188="","",'DF raw data'!D188) -> -2.10333e-05 | F183: -1.049487413e-05 | G183: 4.041938927e-05 | H183: -2.113636317e-05 | J183: -0.0003046286413 | K183: -0.01135116414 | L183: 0.003628594415 | M183: 0.1165428982 | N183: 0.0002939098004
A184: =IF('DF raw data'!A189="","",'DF raw data'!A189) -> -239 | B184: =IF('DF raw data'!B189="","",'DF raw data'!B189) -> -1.46752e-05 | C184: =IF('DF raw data'!C189="","",'DF raw data'!C189) -> 4.47942e-05 | D184: =IF('DF raw data'!D189="","",'DF raw data'!D189) -> -1.98564e-05 | F184: -1.474710848e-05 | G184: 4.501369158e-05 | H184: -1.995369636e-05 | J184: -0.0003120021955 | K184: -0.01150716523 | L184: 0.003651101261 | M184: 0.1183684489 | N184: 0.0003006237433
A185: =IF('DF raw data'!A190="","",'DF raw data'!A190) -> -238.5 | B185: =IF('DF raw data'!B190="","",'DF raw data'!B190) -> -9.02785e-06 | C185: =IF('DF raw data'!C190="","",'DF raw data'!C190) -> 5.4592e-05 | D185: =IF('DF raw data'!D190="","",'DF raw data'!D190) -> -2.96534e-05 | F185: -9.072086465e-06 | G185: 5.48595008e-05 | H185: -2.979870166e-05 | J185: -0.0003165382387 | K185: -0.01166543435 | L185: 0.003678531011 | M185: 0.1202077144 | N185: 0.0003074396367
A186: =IF('DF raw data'!A191="","",'DF raw data'!A191) -> -238 | B186: =IF('DF raw data'!B191="","",'DF raw data'!B191) -> -8.5884e-06 | C186: =IF('DF raw data'!C191="","",'DF raw data'!C191) -> 5.28038e-05 | D186: =IF('DF raw data'!D191="","",'DF raw data'!D191) -> -1.51543e-05 | F186: -8.63048316e-06 | G186: 5.306253862e-05 | H186: -1.522855607e-05 | J186: -0.0003208534803 | K186: -0.01182586109 | L186: 0.00370506228 | M186: 0.1220602455 | N186: 0.0003143548535
A187: =IF('DF raw data'!A192="","",'DF raw data'!A192) -> -237.5 | B187: =IF('DF raw data'!B192="","",'DF raw data'!B192) -> -1.98354e-06 | C187: =IF('DF raw data'!C192="","",'DF raw data'!C192) -> 5.06095e-05 | D187: =IF('DF raw data'!D192="","",'DF raw data'!D192) -> -1.84443e-05 | F187: -1.993259346e-06 | G187: 5.085748655e-05 | H187: -1.853467707e-05 | J187: -0.00032185011 | K187: -0.01198678615 | L187: 0.003730491024 | M187: 0.123925491 | N187: 0.0003213649289
A188: =IF('DF raw data'!A193="","",'DF raw data'!A193) -> -237 | B188: =IF('DF raw data'!B193="","",'DF raw data'!B193) -> 3.14237e-06 | C188: =IF('DF raw data'!C193="","",'DF raw data'!C193) -> 4.72115e-05 | D188: =IF('DF raw data'!D193="","",'DF raw data'!D193) -> -1.44713e-05 | F188: 3.157767613e-06 | G188: 4.744283635e-05 | H188: -1.454220937e-05 | J188: -0.0003202712262 | K188: -0.01214692176 | L188: 0.003754212442 | M188: 0.1258025972 | N188: 0.0003284632712
A189: =IF('DF raw data'!A194="","",'DF raw data'!A194) -> -236.5 | B189: =IF('DF raw data'!B194="","",'DF raw data'!B194) -> 3.59676e-06 | C189: =IF('DF raw data'!C194="","",'DF raw data'!C194) -> 4.7444e-05 | D189: =IF('DF raw data'!D194="","",'DF raw data'!D194) -> -2.34175e-05 | F189: 3.614384124e-06 | G189: 4.76764756e-05 | H189: -2.353224575e-05 | J189: -0.0003184640341 | K189: -0.01230615378 | L189: 0.00377805068 | M189: 0.1276916226 | N189: 0.0003356508144
A190: =IF('DF raw data'!A195="","",'DF raw data'!A195) -> -236 | B190: =IF('DF raw data'!B195="","",'DF raw data'!B195) -> 1.01907e-06 | C190: =IF('DF raw data'!C195="","",'DF raw data'!C195) -> 4.57598e-05 | D190: =IF('DF raw data'!D195="","",'DF raw data'!D195) -> -2.48301e-06 | F190: 1.024063443e-06 | G190: 4.598402302e-05 | H190: -2.495176749e-06 | J190: -0.0003179520024 | K190: -0.01246512978 | L190: 0.003801042691 | M190: 0.1295921439 | N190: 0.0003429253239
A191: =IF('DF raw data'!A196="","",'DF raw data'!A196) -> -235.5 | B191: =IF('DF raw data'!B196="","",'DF raw data'!B196) -> 4.93469e-06 | C191: =IF('DF raw data'!C196="","",'DF raw data'!C196) -> 4.92622e-05 | D191: =IF('DF raw data'!D196="","",'DF raw data'!D196) -> -1.05377e-05 | F191: 4.958869981e-06 | G191: 4.950358478e-05 | H191: -1.058933473e-05 | J191: -0.0003154725674 | K191: -0.01262286606 | L191: 0.003825794484 | M191: 0.1315050412 | N191: 0.0003502934371
A192: =IF('DF raw data'!A197="","",'DF raw data'!A197) -> -235 | B192: =IF('DF raw data'!B197="","",'DF raw data'!B197) -> 4.55538e-06 | C192: =IF('DF raw data'!C197="","",'DF raw data'!C197) -> 4.68076e-05 | D192: =IF('DF raw data'!D197="","",'DF raw data'!D197) -> -1.87198e-05 | F192: =(1-$G$1*($B$49-$G$2))*B192 -> 4.577701362e-06 | G192: 4.703695724e-05 | H192: -1.881152702e-05 | J192: =F192*$G$3+J191 -> -0.0003131837167 | K192: =J192*$G$3+K191 -> -0.01277945792 | L192: =G192*$G$3+L191 -> 0.003849312962 | M192: =L192*$G$3+M191 -> 0.1334296976 | N192: =(J192^2+L192^2)*$G$3+N191 -> 0.0003577510842
A193: =IF('DF raw data'!A198="","",'DF raw data'!A198) -> -234.5 | B193: =IF('DF raw data'!B198="","",'DF raw data'!B198) -> 6.60401e-06 | C193: =IF('DF raw data'!C198="","",'DF raw data'!C198) -> 4.9684e-05 | D193: =IF('DF raw data'!D198="","",'DF raw data'!D198) -> -1.4618e-05 | F193: 6.636369649e-06 | G193: 4.99274516e-05 | H193: -1.46896282e-05 | J193: -0.0003098655319 | K193: -0.01293439069 | L193: 0.003874276688 | M193: 0.135366836 | N193: 0.0003653041025
A194: =IF('DF raw data'!A199="","",'DF raw data'!A199) -> -234 | B194: =IF('DF raw data'!B199="","",'DF raw data'!B199) -> 5.78828e-07 | C194: =IF('DF raw data'!C199="","",'DF raw data'!C199) -> 4.80746e-05 | D194: =IF('DF raw data'!D199="","",'DF raw data'!D199) -> -1.57614e-05 | F194: 5.816642572e-07 | G194: 4.831016554e-05 | H194: -1.583863086e-05 | J194: -0.0003095746998 | K194: -0.01308917804 | L194: 0.003898431771 | M194: 0.1373160519 | N194: 0.0003729509058
A195: =IF('DF raw data'!A200="","",'DF raw data'!A200) -> -233.5 | B195: =IF('DF raw data'!B200="","",'DF raw data'!B200) -> -9.7393e-06 | C195: =IF('DF raw data'!C200="","",'DF raw data'!C200) -> 4.5402e-05 | D195: =IF('DF raw data'!D200="","",'DF raw data'!D200) -> -1.9703e-05 | F195: -9.78702257e-06 | G195: 4.56244698e-05 | H195: -1.97995447e-05 | J195: -0.0003144682111 | K195: -0.01324641214 | L195: 0.003921244006 | M195: 0.1392766739 | N195: 0.0003806884283
A196: =IF('DF raw data'!A201="","",'DF raw data'!A201) -> -233 | B196: =IF('DF raw data'!B201="","",'DF raw data'!B201) -> -4.2946e-06 | C196: =IF('DF raw data'!C201="","",'DF raw data'!C201) -> 4.84361e-05 | D196: =IF('DF raw data'!D201="","",'DF raw data'!D201) -> -1.32724e-05 | F196: -4.31564354e-06 | G196: 4.867343689e-05 | H196: -1.333743476e-05 | J196: -0.0003166260328 | K196: -0.01340472516 | L196: 0.003945580724 | M196: 0.1412494642 | N196: 0.0003885223579
A197: =IF('DF raw data'!A202="","",'DF raw data'!A202) -> -232.5 | B197: =IF('DF raw data'!B202="","",'DF raw data'!B202) -> -3.58939e-06 | C197: =IF('DF raw data'!C202="","",'DF raw data'!C202) -> 4.92747e-05 | D197: =IF('DF raw data'!D202="","",'DF raw data'!D202) -> -1.35898e-05 | F197: -3.606978011e-06 | G197: 4.951614603e-05 | H197: -1.365639002e-05 | J197: -0.0003184295218 | K197: -0.01356393992 | L197: 0.003970338797 | M197: 0.1432346336 | N197: 0.0003964548517
A198: =IF('DF raw data'!A203="","",'DF raw data'!A203) -> -232 | B198: =IF('DF raw data'!B203="","",'DF raw data'!B203) -> 9.62024e-06 | C198: =IF('DF raw data'!C203="","",'DF raw data'!C203) -> 4.71856e-05 | D198: =IF('DF raw data'!D203="","",'DF raw data'!D203) -> -1.9644e-05 | F198: 9.667379176e-06 | G198: 4.741680944e-05 | H198: -1.97402556e-05 | J198: -0.0003135958322 | K198: -0.01372073784 | L198: 0.003994047202 | M198: 0.1452316572 | N198: 0.0004044802294
A199: =IF('DF raw data'!A204="","",'DF raw data'!A204) -> -231.5 | B199: =IF('DF raw data'!B204="","",'DF raw data'!B204) -> 1.13522e-05 | C199: =IF('DF raw data'!C204="","",'DF raw data'!C204) -> 5.36153e-05 | D199: =IF('DF raw data'!D204="","",'DF raw data'!D204) -> -2.13122e-05 | F199: 1.140782578e-05 | G199: 5.387801497e-05 | H199: -2.141662978e-05 | J199: -0.0003078919194 | K199: -0.0138746838 | L199: 0.004020986209 | M199: 0.1472421503 | N199: 0.0004126117931
A200: =IF('DF raw data'!A205="","",'DF raw data'!A205) -> -231 | B200: =IF('DF raw data'!B205="","",'DF raw data'!B205) -> 1.09642e-06 | C200: =IF('DF raw data'!C205="","",'DF raw data'!C205) -> 5.80245e-05 | D200: =IF('DF raw data'!D205="","",'DF raw data'!D205) -> -2.31115e-05 | F200: 1.101792458e-06 | G200: 5.830882005e-05 | H200: -2.322474635e-05 | J200: -0.0003073410231 | K200: -0.01402835431 | L200: 0.004050140619 | M200: 0.1492672207 | N200: 0.0004208608419
A201: =IF('DF raw data'!A206="","",'DF raw data'!A206) -> -230.5 | B201: =IF('DF raw data'!B206="","",'DF raw data'!B206) -> -1.03788e-05 | C201: =IF('DF raw data'!C206="","",'DF raw data'!C206) -> 4.93382e-05 | D201: =IF('DF raw data'!D206="","",'DF raw data'!D206) -> -2.20373e-05 | F201: -1.042965612e-05 | G201: 4.957995718e-05 | H201: -2.214528277e-05 | J201: -0.0003125558512 | K201: -0.01418463223 | L201: 0.004074930598 | M201: 0.1513046859 | N201: 0.0004292122172
... 1061 more rows

Sheet 10 y=-0.1
A1: =IF('DF raw data'!E1="","",'DF raw data'!E1) -> Number of header lines | B1: =IF('DF raw data'!F1="","",'DF raw data'!F1) -> 54 | C1: =IF('DF raw data'!G1="","",'DF raw data'!G1) ->  | D1: =IF('DF raw data'!H1="","",'DF raw data'!H1) ->  | F1: T_coeff | G1: -0.001 | H1: /degC | J1: IBy total | K1: =J1262*1000 -> -6.552229394 | L1: muTm | M1: =L1262*1000 -> -37.89654327 | R1: DF ref | S1: ='10 y=-0.2'!S1 -> 1
A2: =IF('DF raw data'!E2="","",'DF raw data'!E2) -> Measured by | B2: =IF('DF raw data'!F2="","",'DF raw data'!F2) -> Danfysik | C2: =IF('DF raw data'!G2="","",'DF raw data'!G2) ->  | D2: =IF('DF raw data'!H2="","",'DF raw data'!H2) ->  | F2: Tcorr | G2: 20 | H2: degC | J2: JBy total | K2: =K1262 -> -25.4774171 | L2: muTm^2 | M2: =M1262 -> -10.80675831
A3: =IF('DF raw data'!E3="","",'DF raw data'!E3) -> Operator | B3: =IF('DF raw data'!F3="","",'DF raw data'!F3) -> PMHA | C3: =IF('DF raw data'!G3="","",'DF raw data'!G3) ->  | D3: =IF('DF raw data'!H3="","",'DF raw data'!H3) ->  | F3: Step | G3: =A63-A62 -> 0.5 | H3: mm | J3: PI total | K3: =N1262 -> 10402.8721 | L3: T^2mm^3
A4: =IF('DF raw data'!E4="","",'DF raw data'!E4) -> Data-time | B4: =IF('DF raw data'!F4="","",'DF raw data'!F4) -> 02-10-2024, 14:12:38 | C4: =IF('DF raw data'!G4="","",'DF raw data'!G4) ->  | D4: =IF('DF raw data'!H4="","",'DF raw data'!H4) -> 
A5: =IF('DF raw data'!E5="","",'DF raw data'!E5) -> Project | B5: =IF('DF raw data'!F5="","",'DF raw data'!F5) -> 504314 | C5: =IF('DF raw data'!G5="","",'DF raw data'!G5) ->  | D5: =IF('DF raw data'!H5="","",'DF raw data'!H5) -> 
A6: =IF('DF raw data'!E6="","",'DF raw data'!E6) -> Magnet type | B6: =IF('DF raw data'!F6="","",'DF raw data'!F6) -> Dipole | C6: =IF('DF raw data'!G6="","",'DF raw data'!G6) ->  | D6: =IF('DF raw data'!H6="","",'DF raw data'!H6) -> 
A7: =IF('DF raw data'!E7="","",'DF raw data'!E7) -> Magnet nr. | B7: =IF('DF raw data'!F7="","",'DF raw data'!F7) -> 2410109 | C7: =IF('DF raw data'!G7="","",'DF raw data'!G7) ->  | D7: =IF('DF raw data'!H7="","",'DF raw data'!H7) -> 
A8: =IF('DF raw data'!E8="","",'DF raw data'!E8) -> Meas. number | B8: =IF('DF raw data'!F8="","",'DF raw data'!F8) -> 945 | C8: =IF('DF raw data'!G8="","",'DF raw data'!G8) ->  | D8: =IF('DF raw data'!H8="","",'DF raw data'!H8) -> 
A9: =IF('DF raw data'!E9="","",'DF raw data'!E9) -> Add. info | B9: =IF('DF raw data'!F9="","",'DF raw data'!F9) -> Y-alignment scan 2) | C9: =IF('DF raw data'!G9="","",'DF raw data'!G9) ->  | D9: =IF('DF raw data'!H9="","",'DF raw data'!H9) -> 
A10: =IF('DF raw data'!E10="","",'DF raw data'!E10) -> Device | B10: =IF('DF raw data'!F10="","",'DF raw data'!F10) -> (HAL) HALL-PROBE | C10: =IF('DF raw data'!G10="","",'DF raw data'!G10) ->  | D10: =IF('DF raw data'!H10="","",'DF raw data'!H10) -> 
A11: =IF('DF raw data'!E11="","",'DF raw data'!E11) -> Goal | B11: =IF('DF raw data'!F11="","",'DF raw data'!F11) -> (AXI) AXis Integral (Line, EFB) | C11: =IF('DF raw data'!G11="","",'DF raw data'!G11) ->  | D11: =IF('DF raw data'!H11="","",'DF raw data'!H11) -> 
A12: =IF('DF raw data'!E12="","",'DF raw data'!E12) -> Power supply mode | B12: =IF('DF raw data'!F12="","",'DF raw data'!F12) -> (PM) Permanent Magnet (no MPS in use) | C12: =IF('DF raw data'!G12="","",'DF raw data'!G12) ->  | D12: =IF('DF raw data'!H12="","",'DF raw data'!H12) -> 
A13: =IF('DF raw data'!E13="","",'DF raw data'!E13) -> Data format | B13: =IF('DF raw data'!F13="","",'DF raw data'!F13) -> Raw data text file | C13: =IF('DF raw data'!G13="","",'DF raw data'!G13) ->  | D13: =IF('DF raw data'!H13="","",'DF raw data'!H13) -> 
A14: =IF('DF raw data'!E14="","",'DF raw data'!E14) -> Direction of the pos. x-axis | B14: =IF('DF raw data'!F14="","",'DF raw data'!F14) -> See test program | C14: =IF('DF raw data'!G14="","",'DF raw data'!G14) ->  | D14: =IF('DF raw data'!H14="","",'DF raw data'!H14) -> 
A15: =IF('DF raw data'!E15="","",'DF raw data'!E15) -> Direction of the pos. y-axis | B15: =IF('DF raw data'!F15="","",'DF raw data'!F15) -> Vertical up | C15: =IF('DF raw data'!G15="","",'DF raw data'!G15) ->  | D15: =IF('DF raw data'!H15="","",'DF raw data'!H15) -> 
A16: =IF('DF raw data'!E16="","",'DF raw data'!E16) -> Direction of the pos. z-axis | B16: =IF('DF raw data'!F16="","",'DF raw data'!F16) -> See test program | C16: =IF('DF raw data'!G16="","",'DF raw data'!G16) ->  | D16: =IF('DF raw data'!H16="","",'DF raw data'!H16) -> 
A17: =IF('DF raw data'!E17="","",'DF raw data'!E17) -> Mapper type | B17: =IF('DF raw data'!F17="","",'DF raw data'!F17) -> Precision Hall Mapper | C17: =IF('DF raw data'!G17="","",'DF raw data'!G17) ->  | D17: =IF('DF raw data'!H17="","",'DF raw data'!H17) -> 
A18: =IF('DF raw data'!E18="","",'DF raw data'!E18) -> Mapper Danfysik Reg. Number | B18: =IF('DF raw data'!F18="","",'DF raw data'!F18) -> 2033-D (mapper 1) | C18: =IF('DF raw data'!G18="","",'DF raw data'!G18) ->  | D18: =IF('DF raw data'!H18="","",'DF raw data'!H18) -> 
A19: =IF('DF raw data'!E19="","",'DF raw data'!E19) -> Measurement consept | B19: =IF('DF raw data'!F19="","",'DF raw data'!F19) -> Square line grid | C19: =IF('DF raw data'!G19="","",'DF raw data'!G19) ->  | D19: =IF('DF raw data'!H19="","",'DF raw data'!H19) -> 
A20: =IF('DF raw data'!E20="","",'DF raw data'!E20) -> Mode | B20: =IF('DF raw data'!F20="","",'DF raw data'!F20) -> On-the-fly measurement | C20: =IF('DF raw data'!G20="","",'DF raw data'!G20) ->  | D20: =IF('DF raw data'!H20="","",'DF raw data'!H20) -> 
A21: =IF('DF raw data'!E21="","",'DF raw data'!E21) ->  | B21: =IF('DF raw data'!F21="","",'DF raw data'!F21) ->  | C21: =IF('DF raw data'!G21="","",'DF raw data'!G21) ->  | D21: =IF('DF raw data'!H21="","",'DF raw data'!H21) -> 
A22: =IF('DF raw data'!E22="","",'DF raw data'!E22) -> Probe Name | B22: =IF('DF raw data'!F22="","",'DF raw data'!F22) -> ID12_By | C22: =IF('DF raw data'!G22="","",'DF raw data'!G22) ->  | D22: =IF('DF raw data'!H22="","",'DF raw data'!H22) -> 
A23: =IF('DF raw data'!E23="","",'DF raw data'!E23) -> Probe Type | B23: =IF('DF raw data'!F23="","",'DF raw data'!F23) -> DF_ID_3D_Bxyz | C23: =IF('DF raw data'!G23="","",'DF raw data'!G23) ->  | D23: =IF('DF raw data'!H23="","",'DF raw data'!H23) -> 
A24: =IF('DF raw data'!E24="","",'DF raw data'!E24) -> Probe Danfysik Reg. Number | B24: =IF('DF raw data'!F24="","",'DF raw data'!F24) -> 2277 | C24: =IF('DF raw data'!G24="","",'DF raw data'!G24) ->  | D24: =IF('DF raw data'!H24="","",'DF raw data'!H24) -> 
A25: =IF('DF raw data'!E25="","",'DF raw data'!E25) -> Probe Axis | B25: =IF('DF raw data'!F25="","",'DF raw data'!F25) -> By | C25: =IF('DF raw data'!G25="","",'DF raw data'!G25) ->  | D25: =IF('DF raw data'!H25="","",'DF raw data'!H25) -> 
A26: =IF('DF raw data'!E26="","",'DF raw data'!E26) -> Probe Current Supply | B26: =IF('DF raw data'!F26="","",'DF raw data'!F26) -> 1825-D | C26: =IF('DF raw data'!G26="","",'DF raw data'!G26) ->  | D26: =IF('DF raw data'!H26="","",'DF raw data'!H26) -> 
A27: =IF('DF raw data'!E27="","",'DF raw data'!E27) -> Probe Gain Correction | B27: =IF('DF raw data'!F27="","",'DF raw data'!F27) -> 0.99618 | C27: =IF('DF raw data'!G27="","",'DF raw data'!G27) ->  | D27: =IF('DF raw data'!H27="","",'DF raw data'!H27) -> 
A28: =IF('DF raw data'!E28="","",'DF raw data'!E28) -> Probe Offset Correction | B28: =IF('DF raw data'!F28="","",'DF raw data'!F28) -> 0.002742 | C28: =IF('DF raw data'!G28="","",'DF raw data'!G28) ->  | D28: =IF('DF raw data'!H28="","",'DF raw data'!H28) -> 
A29: =IF('DF raw data'!E29="","",'DF raw data'!E29) -> DVM Number | B29: =IF('DF raw data'!F29="","",'DF raw data'!F29) -> 2 | C29: =IF('DF raw data'!G29="","",'DF raw data'!G29) ->  | D29: =IF('DF raw data'!H29="","",'DF raw data'!H29) -> 
A30: =IF('DF raw data'!E30="","",'DF raw data'!E30) -> DVM Type | B30: =IF('DF raw data'!F30="","",'DF raw data'!F30) -> K2701 | C30: =IF('DF raw data'!G30="","",'DF raw data'!G30) ->  | D30: =IF('DF raw data'!H30="","",'DF raw data'!H30) -> 
A31: =IF('DF raw data'!E31="","",'DF raw data'!E31) -> DVM Danfysik Reg. Number | B31: =IF('DF raw data'!F31="","",'DF raw data'!F31) -> 1743-D | C31: =IF('DF raw data'!G31="","",'DF raw data'!G31) ->  | D31: =IF('DF raw data'!H31="","",'DF raw data'!H31) -> 
A32: =IF('DF raw data'!E32="","",'DF raw data'!E32) -> Probe Name | B32: =IF('DF raw data'!F32="","",'DF raw data'!F32) -> ID12_Bx | C32: =IF('DF raw data'!G32="","",'DF raw data'!G32) ->  | D32: =IF('DF raw data'!H32="","",'DF raw data'!H32) -> 
A33: =IF('DF raw data'!E33="","",'DF raw data'!E33) -> Probe Type | B33: =IF('DF raw data'!F33="","",'DF raw data'!F33) -> DF_ID_3D_Bxyz | C33: =IF('DF raw data'!G33="","",'DF raw data'!G33) ->  | D33: =IF('DF raw data'!H33="","",'DF raw data'!H33) -> 
A34: =IF('DF raw data'!E34="","",'DF raw data'!E34) -> Probe Danfysik Reg. Number | B34: =IF('DF raw data'!F34="","",'DF raw data'!F34) -> 2277 | C34: =IF('DF raw data'!G34="","",'DF raw data'!G34) ->  | D34: =IF('DF raw data'!H34="","",'DF raw data'!H34) -> 
A35: =IF('DF raw data'!E35="","",'DF raw data'!E35) -> Probe Axis | B35: =IF('DF raw data'!F35="","",'DF raw data'!F35) -> Bx | C35: =IF('DF raw data'!G35="","",'DF raw data'!G35) ->  | D35: =IF('DF raw data'!H35="","",'DF raw data'!H35) -> 
A36: =IF('DF raw data'!E36="","",'DF raw data'!E36) -> Probe Current Supply | B36: =IF('DF raw data'!F36="","",'DF raw data'!F36) -> 1825-D | C36: =IF('DF raw data'!G36="","",'DF raw data'!G36) ->  | D36: =IF('DF raw data'!H36="","",'DF raw data'!H36) -> 
A37: =IF('DF raw data'!E37="","",'DF raw data'!E37) -> Probe Gain Correction | B37: =IF('DF raw data'!F37="","",'DF raw data'!F37) -> 1 | C37: =IF('DF raw data'!G37="","",'DF raw data'!G37) ->  | D37: =IF('DF raw data'!H37="","",'DF raw data'!H37) -> 
A38: =IF('DF raw data'!E38="","",'DF raw data'!E38) -> Probe Offset Correction | B38: =IF('DF raw data'!F38="","",'DF raw data'!F38) -> -0.17582 | C38: =IF('DF raw data'!G38="","",'DF raw data'!G38) ->  | D38: =IF('DF raw data'!H38="","",'DF raw data'!H38) -> 
A39: =IF('DF raw data'!E39="","",'DF raw data'!E39) -> DVM Number | B39: =IF('DF raw data'!F39="","",'DF raw data'!F39) -> 3 | C39: =IF('DF raw data'!G39="","",'DF raw data'!G39) ->  | D39: =IF('DF raw data'!H39="","",'DF raw data'!H39) -> 
A40: =IF('DF raw data'!E40="","",'DF raw data'!E40) -> DVM Type | B40: =IF('DF raw data'!F40="","",'DF raw data'!F40) -> K2701 | C40: =IF('DF raw data'!G40="","",'DF raw data'!G40) ->  | D40: =IF('DF raw data'!H40="","",'DF raw data'!H40) -> 
A41: =IF('DF raw data'!E41="","",'DF raw data'!E41) -> DVM Danfysik Reg. Number | B41: =IF('DF raw data'!F41="","",'DF raw data'!F41) -> 1744-D | C41: =IF('DF raw data'!G41="","",'DF raw data'!G41) ->  | D41: =IF('DF raw data'!H41="","",'DF raw data'!H41) -> 
A42: =IF('DF raw data'!E42="","",'DF raw data'!E42) -> Probe Name | B42: =IF('DF raw data'!F42="","",'DF raw data'!F42) -> ID12_Bz | C42: =IF('DF raw data'!G42="","",'DF raw data'!G42) ->  | D42: =IF('DF raw data'!H42="","",'DF raw data'!H42) -> 
A43: =IF('DF raw data'!E43="","",'DF raw data'!E43) -> Probe Type | B43: =IF('DF raw data'!F43="","",'DF raw data'!F43) -> DF_ID_3D_Bxyz | C43: =IF('DF raw data'!G43="","",'DF raw data'!G43) ->  | D43: =IF('DF raw data'!H43="","",'DF raw data'!H43) -> 
A44: =IF('DF raw data'!E44="","",'DF raw data'!E44) -> Probe Danfysik Reg. Number | B44: =IF('DF raw data'!F44="","",'DF raw data'!F44) -> 2277 | C44: =IF('DF raw data'!G44="","",'DF raw data'!G44) ->  | D44: =IF('DF raw data'!H44="","",'DF raw data'!H44) -> 
A45: =IF('DF raw data'!E45="","",'DF raw data'!E45) -> Probe Axis | B45: =IF('DF raw data'!F45="","",'DF raw data'!F45) -> Bz | C45: =IF('DF raw data'!G45="","",'DF raw data'!G45) ->  | D45: =IF('DF raw data'!H45="","",'DF raw data'!H45) -> 
A46: =IF('DF raw data'!E46="","",'DF raw data'!E46) -> Probe Current Supply | B46: =IF('DF raw data'!F46="","",'DF raw data'!F46) -> 1825-D | C46: =IF('DF raw data'!G46="","",'DF raw data'!G46) ->  | D46: =IF('DF raw data'!H46="","",'DF raw data'!H46) -> 
A47: =IF('DF raw data'!E47="","",'DF raw data'!E47) -> Probe Gain Correction | B47: =IF('DF raw data'!F47="","",'DF raw data'!F47) -> 1 | C47: =IF('DF raw data'!G47="","",'DF raw data'!G47) ->  | D47: =IF('DF raw data'!H47="","",'DF raw data'!H47) -> 
A48: =IF('DF raw data'!E53="","",'DF raw data'!E53) -> PS-Gap: | B48: =IF('DF raw data'!F53="","",'DF raw data'!F53) -> 10 | C48: =IF('DF raw data'!G53="","",'DF raw data'!G53) ->  | D48: =IF('DF raw data'!H53="","",'DF raw data'!H53) -> 
A49: =IF('DF raw data'!E54="","",'DF raw data'!E54) -> PS-Temperature: | B49: =IF('DF raw data'!F54="","",'DF raw data'!F54) -> 24.9 | C49: =IF('DF raw data'!G54="","",'DF raw data'!G54) ->  | D49: =IF('DF raw data'!H54="","",'DF raw data'!H54) -> 
A50: =IF('DF raw data'!E55="","",'DF raw data'!E55) -> PS-Encoder: | B50: =IF('DF raw data'!F55="","",'DF raw data'!F55) -> 19.8325 | C50: =IF('DF raw data'!G55="","",'DF raw data'!G55) ->  | D50: =IF('DF raw data'!H55="","",'DF raw data'!H55) -> 
A51: =IF('DF raw data'!E56="","",'DF raw data'!E56) ->  | B51: =IF('DF raw data'!F56="","",'DF raw data'!F56) ->  | C51: =IF('DF raw data'!G56="","",'DF raw data'!G56) ->  | D51: =IF('DF raw data'!H56="","",'DF raw data'!H56) -> 
A52: =IF('DF raw data'!E57="","",'DF raw data'!E57) -> Monitor-Index | B52: =IF('DF raw data'!F57="","",'DF raw data'!F57) -> [1,1,4] | C52: =IF('DF raw data'!G57="","",'DF raw data'!G57) ->  | D52: =IF('DF raw data'!H57="","",'DF raw data'!H57) -> 
A53: =IF('DF raw data'!E58="","",'DF raw data'!E58) ->  | B53: =IF('DF raw data'!F58="","",'DF raw data'!F58) ->  | C53: =IF('DF raw data'!G58="","",'DF raw data'!G58) ->  | D53: =IF('DF raw data'!H58="","",'DF raw data'!H58) -> 
A54: =IF('DF raw data'!E59="","",'DF raw data'!E59) -> Time [s] | B54: =IF('DF raw data'!F59="","",'DF raw data'!F59) -> Y [mm] | C54: =IF('DF raw data'!G59="","",'DF raw data'!G59) -> X [mm] | D54: =IF('DF raw data'!H59="","",'DF raw data'!H59) -> Nominal current [A]
A55: =IF('DF raw data'!E60="","",'DF raw data'!E60) ->  | B55: =IF('DF raw data'!F60="","",'DF raw data'!F60) ->  | C55: =IF('DF raw data'!G60="","",'DF raw data'!G60) ->  | D55: =IF('DF raw data'!H60="","",'DF raw data'!H60) -> 
A56: =IF('DF raw data'!E61="","",'DF raw data'!E61) -> 208.3 | B56: =IF('DF raw data'!F61="","",'DF raw data'!F61) -> 31.4 | C56: =IF('DF raw data'!G61="","",'DF raw data'!G61) -> 301.8 | D56: =IF('DF raw data'!H61="","",'DF raw data'!H61) -> 0
A57: =IF('DF raw data'!E62="","",'DF raw data'!E62) ->  | B57: =IF('DF raw data'!F62="","",'DF raw data'!F62) ->  | C57: =IF('DF raw data'!G62="","",'DF raw data'!G62) ->  | D57: =IF('DF raw data'!H62="","",'DF raw data'!H62) -> 
A58: =IF('DF raw data'!E63="","",'DF raw data'!E63) -> Measurement-Index | B58: =IF('DF raw data'!F63="","",'DF raw data'!F63) -> [1,1,1201,2] | C58: =IF('DF raw data'!G63="","",'DF raw data'!G63) ->  | D58: =IF('DF raw data'!H63="","",'DF raw data'!H63) -> 
A59: =IF('DF raw data'!E64="","",'DF raw data'!E64) ->  | B59: =IF('DF raw data'!F64="","",'DF raw data'!F64) ->  | C59: =IF('DF raw data'!G64="","",'DF raw data'!G64) ->  | D59: =IF('DF raw data'!H64="","",'DF raw data'!H64) -> 
A60: =IF('DF raw data'!E65="","",'DF raw data'!E65) -> Z [mm] | B60: By [T] | C60: Bx [T] | D60: Bz [T] | F60: By_corr | G60: Bx_corr | H60: Bz_corr | J60: Iy | K60: Jy | L60: Ix | M60: Jx | N60: PI
A62: =IF('DF raw data'!E67="","",'DF raw data'!E67) -> -300 | B62: =IF('DF raw data'!F67="","",'DF raw data'!F67) -> -1.26e-05 | C62: =IF('DF raw data'!G67="","",'DF raw data'!G67) -> 5.49337e-06 | D62: =IF('DF raw data'!H67="","",'DF raw data'!H67) -> -2.1368e-05 | F62: =(1-$G$1*($B$49))*B62 -> -1.291374e-05 | G62: =(1-$G$1*($B$49-$G$2))*C62 -> 5.520287513e-06 | H62: =(1-$G$1*($B$49-$G$2))*D62 -> -2.14727032e-05 | J62: =F62*$G$3 -> -6.45687e-06 | K62: =J62*$G$3 -> -3.228435e-06 | L62: =G62*$G$3 -> 2.760143756e-06 | M62: =L62*$G$3 -> 1.380071878e-06 | N62: =(J62^2+L62^2)*$G$3 -> 2.465478188e-11
A63: =IF('DF raw data'!E68="","",'DF raw data'!E68) -> -299.5 | B63: =IF('DF raw data'!F68="","",'DF raw data'!F68) -> -5.03492e-06 | C63: =IF('DF raw data'!G68="","",'DF raw data'!G68) -> 8.27491e-06 | D63: =IF('DF raw data'!H68="","",'DF raw data'!H68) -> -2.19494e-05 | F63: =(1-$G$1*($B$49-$G$2))*B63 -> -5.059591108e-06 | G63: =(1-$G$1*($B$49-$G$2))*C63 -> 8.315457059e-06 | H63: -2.205695206e-05 | J63: =F63*$G$3+J62 -> -8.986665554e-06 | K63: =J63*$G$3+K62 -> -7.721767777e-06 | L63: =G63*$G$3+L62 -> 6.917872286e-06 | M63: =L63*$G$3+M62 -> 4.839008021e-06 | N63: =(J63^2+L63^2)*$G$3+N62 -> 8.896333925e-11
A64: =IF('DF raw data'!E69="","",'DF raw data'!E69) -> -299 | B64: =IF('DF raw data'!F69="","",'DF raw data'!F69) -> -1.11248e-05 | C64: =IF('DF raw data'!G69="","",'DF raw data'!G69) -> 9.55791e-06 | D64: =IF('DF raw data'!H69="","",'DF raw data'!H69) -> -2.24535e-05 | F64: =(1-$G$1*($B$49-$G$2))*B64 -> -1.117931152e-05 | G64: 9.604743759e-06 | H64: -2.256352215e-05 | J64: =F64*$G$3+J63 -> -1.457632131e-05 | K64: =J64*$G$3+K63 -> -1.500992843e-05 | L64: =G64*$G$3+L63 -> 1.172024417e-05 | M64: =L64*$G$3+M63 -> 1.06991301e-05 | N64: =(J64^2+L64^2)*$G$3+N63 -> 2.638799724e-10
A65: =IF('DF raw data'!E70="","",'DF raw data'!E70) -> -298.5 | B65: =IF('DF raw data'!F70="","",'DF raw data'!F70) -> -1.73437e-05 | C65: =IF('DF raw data'!G70="","",'DF raw data'!G70) -> 9.40474e-06 | D65: =IF('DF raw data'!H70="","",'DF raw data'!H70) -> -2.17182e-05 | F65: -1.742868413e-05 | G65: 9.450823226e-06 | H65: -2.182461918e-05 | J65: -2.329066338e-05 | K65: -2.665526012e-05 | L65: 1.644565578e-05 | M65: 1.892195799e-05 | N65: 6.703372697e-10
A66: =IF('DF raw data'!E71="","",'DF raw data'!E71) -> -298 | B66: =IF('DF raw data'!F71="","",'DF raw data'!F71) -> -1.02283e-05 | C66: =IF('DF raw data'!G71="","",'DF raw data'!G71) -> 3.46351e-06 | D66: =IF('DF raw data'!H71="","",'DF raw data'!H71) -> -2.096e-05 | F66: -1.027841867e-05 | G66: 3.480481199e-06 | H66: -2.1062704e-05 | J66: -2.842987271e-05 | K66: -4.087019648e-05 | L66: 1.818589638e-05 | M66: 2.801490618e-05 | N66: 1.239829515e-09
A67: =IF('DF raw data'!E72="","",'DF raw data'!E72) -> -297.5 | B67: =IF('DF raw data'!F72="","",'DF raw data'!F72) -> 2.40139e-06 | C67: =IF('DF raw data'!G72="","",'DF raw data'!G72) -> -1.89047e-06 | D67: =IF('DF raw data'!H72="","",'DF raw data'!H72) -> -2.15805e-05 | F67: 2.413156811e-06 | G67: -1.899733303e-06 | H67: -2.168624445e-05 | J67: -2.722329431e-05 | K67: -5.448184363e-05 | L67: 1.723602973e-05 | M67: 3.663292105e-05 | N67: 1.758923751e-09
A68: =IF('DF raw data'!E73="","",'DF raw data'!E73) -> -297 | B68: =IF('DF raw data'!F73="","",'DF raw data'!F73) -> -5.16266e-06 | C68: =IF('DF raw data'!G73="","",'DF raw data'!G73) -> 5.13244e-07 | D68: =IF('DF raw data'!H73="","",'DF raw data'!H73) -> -2.2674e-05 | F68: -5.187957034e-06 | G68: 5.157588956e-07 | H68: -2.27851026e-05 | J68: -2.981727283e-05 | K68: -6.939048005e-05 | L68: 1.749390917e-05 | M68: 4.537987563e-05 | N68: 2.35647706e-09
A69: =IF('DF raw data'!E74="","",'DF raw data'!E74) -> -296.5 | B69: =IF('DF raw data'!F74="","",'DF raw data'!F74) -> -8.36776e-06 | C69: =IF('DF raw data'!G74="","",'DF raw data'!G74) -> -2.25419e-06 | D69: =IF('DF raw data'!H74="","",'DF raw data'!H74) -> -2.29684e-05 | F69: -8.408762024e-06 | G69: -2.265235531e-06 | H69: -2.308094516e-05 | J69: -3.402165384e-05 | K69: -8.640130697e-05 | L69: 1.636129141e-05 | M69: 5.356052134e-05 | N69: 3.069059453e-09
A70: =IF('DF raw data'!E75="","",'DF raw data'!E75) -> -296 | B70: =IF('DF raw data'!F75="","",'DF raw data'!F75) -> -1.08682e-05 | C70: =IF('DF raw data'!G75="","",'DF raw data'!G75) -> -4.87854e-06 | D70: =IF('DF raw data'!H75="","",'DF raw data'!H75) -> -2.26304e-05 | F70: -1.092145418e-05 | G70: -4.902444846e-06 | H70: -2.274128896e-05 | J70: -3.948238093e-05 | K70: -0.0001061424974 | L70: 1.391006899e-05 | M70: 6.051555583e-05 | N70: 3.945233665e-09
A71: =IF('DF raw data'!E76="","",'DF raw data'!E76) -> -295.5 | B71: =IF('DF raw data'!F76="","",'DF raw data'!F76) -> -1.04837e-05 | C71: =IF('DF raw data'!G76="","",'DF raw data'!G76) -> 1.12538e-06 | D71: =IF('DF raw data'!H76="","",'DF raw data'!H76) -> -2.25116e-05 | F71: -1.053507013e-05 | G71: 1.130894362e-06 | H71: -2.262190684e-05 | J71: -4.474991599e-05 | K71: -0.0001285174554 | L71: 1.447551617e-05 | M71: 6.775331391e-05 | N71: 5.051281439e-09
A72: =IF('DF raw data'!E77="","",'DF raw data'!E77) -> -295 | B72: =IF('DF raw data'!F77="","",'DF raw data'!F77) -> -9.9707e-06 | C72: =IF('DF raw data'!G77="","",'DF raw data'!G77) -> 7.17348e-06 | D72: =IF('DF raw data'!H77="","",'DF raw data'!H77) -> -2.27203e-05 | F72: -1.001955643e-05 | G72: 7.208630052e-06 | H72: -2.283162947e-05 | J72: -4.975969421e-05 | K72: -0.0001533973025 | L72: 1.807983119e-05 | M72: 7.679322951e-05 | N72: 6.452735171e-09
A73: =IF('DF raw data'!E78="","",'DF raw data'!E78) -> -294.5 | B73: =IF('DF raw data'!F78="","",'DF raw data'!F78) -> -1.47789e-05 | C73: =IF('DF raw data'!G78="","",'DF raw data'!G78) -> 6.4769e-06 | D73: =IF('DF raw data'!H78="","",'DF raw data'!H78) -> -2.26053e-05 | F73: -1.485131661e-05 | G73: 6.50863681e-06 | H73: -2.271606597e-05 | J73: -5.718535251e-05 | K73: -0.0001819899788 | L73: 2.13341496e-05 | M73: 8.746030431e-05 | N73: 8.315390412e-09
A74: =IF('DF raw data'!E79="","",'DF raw data'!E79) -> -294 | B74: =IF('DF raw data'!F79="","",'DF raw data'!F79) -> -1.90745e-05 | C74: =IF('DF raw data'!G79="","",'DF raw data'!G79) -> 5.53103e-06 | D74: =IF('DF raw data'!H79="","",'DF raw data'!H79) -> -2.19611e-05 | F74: -1.916796505e-05 | G74: 5.558132047e-06 | H74: -2.206870939e-05 | J74: -6.676933504e-05 | K74: -0.0002153746463 | L74: 2.411321562e-05 | M74: 9.951691212e-05 | N74: 1.083518605e-08
A75: =IF('DF raw data'!E80="","",'DF raw data'!E80) -> -293.5 | B75: =IF('DF raw data'!F80="","",'DF raw data'!F80) -> -9.71508e-06 | C75: =IF('DF raw data'!G80="","",'DF raw data'!G80) -> 7.86936e-06 | D75: =IF('DF raw data'!H80="","",'DF raw data'!H80) -> -2.14969e-05 | F75: -9.762683892e-06 | G75: 7.907919864e-06 | H75: -2.160223481e-05 | J75: -7.165067698e-05 | K75: -0.0002511999848 | L75: 2.806717555e-05 | M75: 0.0001135504999 | N75: 1.379597897e-08
A76: =IF('DF raw data'!E81="","",'DF raw data'!E81) -> -293 | B76: =IF('DF raw data'!F81="","",'DF raw data'!F81) -> -1.41384e-05 | C76: =IF('DF raw data'!G81="","",'DF raw data'!G81) -> 8.00887e-06 | D76: =IF('DF raw data'!H81="","",'DF raw data'!H81) -> -2.17166e-05 | F76: -1.420767816e-05 | G76: 8.048113463e-06 | H76: -2.182301134e-05 | J76: -7.875451606e-05 | K76: -0.0002905772428 | L76: 3.209123228e-05 | M76: 0.000129596116 | N76: 1.741203947e-08
A77: =IF('DF raw data'!E82="","",'DF raw data'!E82) -> -292.5 | B77: =IF('DF raw data'!F82="","",'DF raw data'!F82) -> -2.14974e-06 | C77: =IF('DF raw data'!G82="","",'DF raw data'!G82) -> 1.63006e-05 | D77: =IF('DF raw data'!H82="","",'DF raw data'!H82) -> -2.2388e-05 | F77: -2.160273726e-06 | G77: 1.638047294e-05 | H77: -2.24977012e-05 | J77: -7.983465293e-05 | K77: -0.0003304945693 | L77: 4.028146875e-05 | M77: 0.0001497368504 | N77: 2.141012374e-08
A78: =IF('DF raw data'!E83="","",'DF raw data'!E83) -> -292 | B78: =IF('DF raw data'!F83="","",'DF raw data'!F83) -> -1.91383e-05 | C78: =IF('DF raw data'!G83="","",'DF raw data'!G83) -> 1.38862e-05 | D78: =IF('DF raw data'!H83="","",'DF raw data'!H83) -> -2.25872e-05 | F78: -1.923207767e-05 | G78: 1.395424238e-05 | H78: -2.269787728e-05 | J78: -8.945069176e-05 | K78: -0.0003752199152 | L78: 4.725858994e-05 | M78: 0.0001733661454 | N78: 2.652752403e-08
A79: =IF('DF raw data'!E84="","",'DF raw data'!E84) -> -291.5 | B79: =IF('DF raw data'!F84="","",'DF raw data'!F84) -> -9.52408e-06 | C79: =IF('DF raw data'!G84="","",'DF raw data'!G84) -> 2.57747e-06 | D79: =IF('DF raw data'!H84="","",'DF raw data'!H84) -> -1.92478e-05 | F79: -9.570747992e-06 | G79: 2.590099603e-06 | H79: -1.934211422e-05 | J79: -9.423606576e-05 | K79: -0.0004223379481 | L79: 4.855363975e-05 | M79: 0.0001976429653 | N79: 3.214647004e-08
A80: =IF('DF raw data'!E85="","",'DF raw data'!E85) -> -291 | B80: =IF('DF raw data'!F85="","",'DF raw data'!F85) -> -1.50388e-05 | C80: =IF('DF raw data'!G85="","",'DF raw data'!G85) -> -6.22042e-06 | D80: =IF('DF raw data'!H85="","",'DF raw data'!H85) -> -1.70999e-05 | F80: -1.511249012e-05 | G80: -6.250900058e-06 | H80: -1.718368951e-05 | J80: -0.0001017923108 | K80: -0.0004732341035 | L80: 4.542818972e-05 | M80: 0.0002203570601 | N80: 3.835916752e-08
A81: =IF('DF raw data'!E86="","",'DF raw data'!E86) -> -290.5 | B81: =IF('DF raw data'!F86="","",'DF raw data'!F86) -> -1.45311e-05 | C81: =IF('DF raw data'!G86="","",'DF raw data'!G86) -> -6.80214e-06 | D81: =IF('DF raw data'!H86="","",'DF raw data'!H86) -> -9.25319e-06 | F81: -1.460230239e-05 | G81: -6.835470486e-06 | H81: -9.298530631e-06 | J81: -0.000109093462 | K81: -0.0005277808345 | L81: 4.201045447e-05 | M81: 0.0002413622874 | N81: 4.519229839e-08
A82: =IF('DF raw data'!E87="","",'DF raw data'!E87) -> -290 | B82: =IF('DF raw data'!F87="","",'DF raw data'!F87) -> -9.13868e-06 | C82: =IF('DF raw data'!G87="","",'DF raw data'!G87) -> 1.84782e-06 | D82: =IF('DF raw data'!H87="","",'DF raw data'!H87) -> -2.04379e-05 | F82: -9.183459532e-06 | G82: 1.856874318e-06 | H82: -2.053804571e-05 | J82: -0.0001136851918 | K82: -0.0005846234304 | L82: 4.293889163e-05 | M82: 0.0002628317332 | N82: 5.257633401e-08
A83: =IF('DF raw data'!E88="","",'DF raw data'!E88) -> -289.5 | B83: =IF('DF raw data'!F88="","",'DF raw data'!F88) -> -2.50365e-05 | C83: =IF('DF raw data'!G88="","",'DF raw data'!G88) -> 2.29384e-06 | D83: =IF('DF raw data'!H88="","",'DF raw data'!H88) -> -2.23491e-05 | F83: -2.515917885e-05 | G83: 2.305079816e-06 | H83: -2.245861059e-05 | J83: -0.0001262647812 | K83: -0.000647755821 | L83: 4.409143154e-05 | M83: 0.0002848774489 | N83: 6.151975866e-08
A84: =IF('DF raw data'!E89="","",'DF raw data'!E89) -> -289 | B84: =IF('DF raw data'!F89="","",'DF raw data'!F89) -> -1.03595e-05 | C84: =IF('DF raw data'!G89="","",'DF raw data'!G89) -> 1.92588e-07 | D84: =IF('DF raw data'!H89="","",'DF raw data'!H89) -> -1.63473e-05 | F84: -1.041026155e-05 | G84: 1.935316812e-07 | H84: -1.642740177e-05 | J84: -0.000131469912 | K84: -0.0007134907769 | L84: 4.418819738e-05 | M84: 0.0003069715476 | N84: 7.113822594e-08
A85: =IF('DF raw data'!E90="","",'DF raw data'!E90) -> -288.5 | B85: =IF('DF raw data'!F90="","",'DF raw data'!F90) -> -1.31134e-05 | C85: =IF('DF raw data'!G90="","",'DF raw data'!G90) -> -3.16026e-06 | D85: =IF('DF raw data'!H90="","",'DF raw data'!H90) -> -2.06739e-05 | F85: -1.317765566e-05 | G85: -3.175745274e-06 | H85: -2.077520211e-05 | J85: -0.0001380587398 | K85: -0.0007825201469 | L85: 4.260032474e-05 | M85: 0.00032827171 | N85: 8.157572759e-08
A86: =IF('DF raw data'!E91="","",'DF raw data'!E91) -> -288 | B86: =IF('DF raw data'!F91="","",'DF raw data'!F91) -> -1.15079e-05 | C86: =IF('DF raw data'!G91="","",'DF raw data'!G91) -> -1.63106e-06 | D86: =IF('DF raw data'!H91="","",'DF raw data'!H91) -> -2.48653e-05 | F86: -1.156428871e-05 | G86: -1.639052194e-06 | H86: -2.498713997e-05 | J86: -0.0001438408842 | K86: -0.0008544405889 | L86: 4.178079865e-05 | M86: 0.0003491621093 | N86: 9.279364513e-08
A87: =IF('DF raw data'!E92="","",'DF raw data'!E92) -> -287.5 | B87: =IF('DF raw data'!F92="","",'DF raw data'!F92) -> -1.3117e-05 | C87: =IF('DF raw data'!G92="","",'DF raw data'!G92) -> -1.80367e-06 | D87: =IF('DF raw data'!H92="","",'DF raw data'!H92) -> -1.50726e-05 | F87: -1.31812733e-05 | G87: -1.812507983e-06 | H87: -1.514645574e-05 | J87: -0.0001504315208 | K87: -0.0009296563493 | L87: 4.087454466e-05 | M87: 0.0003695993817 | N87: 1.049438306e-07
A88: =IF('DF raw data'!E93="","",'DF raw data'!E93) -> -287 | B88: =IF('DF raw data'!F93="","",'DF raw data'!F93) -> -1.01012e-05 | C88: =IF('DF raw data'!G93="","",'DF raw data'!G93) -> 6.15382e-06 | D88: =IF('DF raw data'!H93="","",'DF raw data'!H93) -> -1.91875e-05 | F88: -1.015069588e-05 | G88: 6.183973718e-06 | H88: -1.928151875e-05 | J88: -0.0001555068688 | K88: -0.001007409784 | L88: 4.396653152e-05 | M88: 0.0003915826474 | N88: 1.180015516e-07
A89: =IF('DF raw data'!E94="","",'DF raw data'!E94) -> -286.5 | B89: =IF('DF raw data'!F94="","",'DF raw data'!F94) -> -2.13853e-05 | C89: =IF('DF raw data'!G94="","",'DF raw data'!G94) -> -4.75933e-06 | D89: =IF('DF raw data'!H94="","",'DF raw data'!H94) -> -1.72871e-05 | F89: -2.149008797e-05 | G89: -4.782650717e-06 | H89: -1.737180679e-05 | J89: -0.0001662519127 | K89: -0.00109053574 | L89: 4.157520616e-05 | M89: 0.0004123702505 | N89: 1.326856498e-07
A90: =IF('DF raw data'!E95="","",'DF raw data'!E95) -> -286 | B90: =IF('DF raw data'!F95="","",'DF raw data'!F95) -> -5.16314e-06 | C90: =IF('DF raw data'!G95="","",'DF raw data'!G95) -> -4.33795e-07 | D90: =IF('DF raw data'!H95="","",'DF raw data'!H95) -> -2.19371e-05 | F90: -5.188439386e-06 | G90: -4.359205955e-07 | H90: -2.204459179e-05 | J90: -0.0001688461324 | K90: -0.001174958806 | L90: 4.135724586e-05 | M90: 0.0004330488734 | N90: 1.477953689e-07
A91: =IF('DF raw data'!E96="","",'DF raw data'!E96) -> -285.5 | B91: =IF('DF raw data'!F96="","",'DF raw data'!F96) -> -1.38873e-05 | C91: =IF('DF raw data'!G96="","",'DF raw data'!G96) -> 1.78157e-06 | D91: =IF('DF raw data'!H96="","",'DF raw data'!H96) -> -1.35241e-05 | F91: -1.395534777e-05 | G91: 1.790299693e-06 | H91: -1.359036809e-05 | J91: -0.0001758238063 | K91: -0.001262870709 | L91: 4.225239571e-05 | M91: 0.0004541750713 | N91: 1.641450068e-07
A92: =IF('DF raw data'!E97="","",'DF raw data'!E97) -> -285 | B92: =IF('DF raw data'!F97="","",'DF raw data'!F97) -> -5.7378e-06 | C92: =IF('DF raw data'!G97="","",'DF raw data'!G97) -> 4.7088e-06 | D92: =IF('DF raw data'!H97="","",'DF raw data'!H97) -> -2.52746e-05 | F92: -5.76591522e-06 | G92: 4.73187312e-06 | H92: -2.539844554e-05 | J92: -0.0001787067639 | K92: -0.001352224091 | L92: 4.461833227e-05 | M92: 0.0004764842374 | N92: 1.811084583e-07
A93: =IF('DF raw data'!E98="","",'DF raw data'!E98) -> -284.5 | B93: =IF('DF raw data'!F98="","",'DF raw data'!F98) -> -1.02256e-05 | C93: =IF('DF raw data'!G98="","",'DF raw data'!G98) -> 3.78601e-06 | D93: =IF('DF raw data'!H98="","",'DF raw data'!H98) -> -2.50734e-05 | F93: -1.027570544e-05 | G93: 3.804561449e-06 | H93: -2.519625966e-05 | J93: -0.0001838446166 | K93: -0.0014441464 | L93: 4.652061299e-05 | M93: 0.0004997445439 | N93: 1.990899635e-07
A94: =IF('DF raw data'!E99="","",'DF raw data'!E99) -> -284 | B94: =IF('DF raw data'!F99="","",'DF raw data'!F99) -> -1.4969e-05 | C94: =IF('DF raw data'!G99="","",'DF raw data'!G99) -> 2.43215e-06 | D94: =IF('DF raw data'!H99="","",'DF raw data'!H99) -> -2.61179e-05 | F94: -1.50423481e-05 | G94: 2.444067535e-06 | H94: -2.624587771e-05 | J94: -0.0001913657907 | K94: -0.001539829295 | L94: 4.774264676e-05 | M94: 0.0005236158673 | N94: 2.185400766e-07
A95: =IF('DF raw data'!E100="","",'DF raw data'!E100) -> -283.5 | B95: =IF('DF raw data'!F100="","",'DF raw data'!F100) -> -4.91656e-06 | C95: =IF('DF raw data'!G100="","",'DF raw data'!G100) -> 9.36666e-06 | D95: =IF('DF raw data'!H100="","",'DF raw data'!H100) -> -6.75153e-06 | F95: -4.940651144e-06 | G95: 9.412556634e-06 | H95: -6.784612497e-06 | J95: -0.0001938361163 | K95: -0.001636747353 | L95: 5.244892507e-05 | M95: 0.0005498403298 | N95: 2.387017415e-07
A96: =IF('DF raw data'!E101="","",'DF raw data'!E101) -> -283 | B96: =IF('DF raw data'!F101="","",'DF raw data'!F101) -> -2.17678e-05 | C96: =IF('DF raw data'!G101="","",'DF raw data'!G101) -> 1.36959e-05 | D96: =IF('DF raw data'!H101="","",'DF raw data'!H101) -> -2.10655e-05 | F96: -2.187446222e-05 | G96: 1.376300991e-05 | H96: -2.116872095e-05 | J96: -0.0002047733474 | K96: -0.001739134027 | L96: 5.933043003e-05 | M96: 0.0005795055448 | N96: 2.614278533e-07
A97: =IF('DF raw data'!E102="","",'DF raw data'!E102) -> -282.5 | B97: =IF('DF raw data'!F102="","",'DF raw data'!F102) -> -1.81157e-05 | C97: =IF('DF raw data'!G102="","",'DF raw data'!G102) -> 1.49548e-05 | D97: =IF('DF raw data'!H102="","",'DF raw data'!H102) -> -1.77847e-05 | F97: -1.820446693e-05 | G97: 1.502807852e-05 | H97: -1.787184503e-05 | J97: -0.0002138755808 | K97: -0.001846071817 | L97: 6.684446929e-05 | M97: 0.0006129277795 | N97: 2.865333269e-07
A98: =IF('DF raw data'!E103="","",'DF raw data'!E103) -> -282 | B98: =IF('DF raw data'!F103="","",'DF raw data'!F103) -> -1.0295e-05 | C98: =IF('DF raw data'!G103="","",'DF raw data'!G103) -> 4.40905e-06 | D98: =IF('DF raw data'!H103="","",'DF raw data'!H103) -> -1.66688e-05 | F98: -1.03454455e-05 | G98: 4.430654345e-06 | H98: -1.675047712e-05 | J98: -0.0002190483036 | K98: -0.001955595969 | L98: 6.905979646e-05 | M98: 0.0006474576777 | N98: 3.129090343e-07
A99: =IF('DF raw data'!E104="","",'DF raw data'!E104) -> -281.5 | B99: =IF('DF raw data'!F104="","",'DF raw data'!F104) -> -9.58873e-06 | C99: =IF('DF raw data'!G104="","",'DF raw data'!G104) -> -2.60167e-06 | D99: =IF('DF raw data'!H104="","",'DF raw data'!H104) -> -1.86148e-05 | F99: -9.635714777e-06 | G99: -2.614418183e-06 | H99: -1.870601252e-05 | J99: -0.000223866161 | K99: -0.00206752905 | L99: 6.775258737e-05 | M99: 0.0006813339714 | N99: 3.402622699e-07
A100: =IF('DF raw data'!E105="","",'DF raw data'!E105) -> -281 | B100: =IF('DF raw data'!F105="","",'DF raw data'!F105) -> -1.31137e-05 | C100: =IF('DF raw data'!G105="","",'DF raw data'!G105) -> -7.00848e-06 | D100: =IF('DF raw data'!H105="","",'DF raw data'!H105) -> -2.01002e-05 | F100: -1.317795713e-05 | G100: -7.042821552e-06 | H100: -2.019869098e-05 | J100: -0.0002304551395 | K100: -0.002182756619 | L100: 6.423117659e-05 | M100: 0.0007134495597 | N100: 3.688798776e-07
A101: =IF('DF raw data'!E106="","",'DF raw data'!E106) -> -280.5 | B101: =IF('DF raw data'!F106="","",'DF raw data'!F106) -> 1.37075e-06 | C101: =IF('DF raw data'!G106="","",'DF raw data'!G106) -> 4.33708e-06 | D101: =IF('DF raw data'!H106="","",'DF raw data'!H106) -> -1.39558e-05 | F101: 1.377466675e-06 | G101: 4.358331692e-06 | H101: -1.402418342e-05 | J101: -0.0002297664062 | K101: -0.002297639823 | L101: 6.641034244e-05 | M101: 0.0007466547309 | N101: 3.974813451e-07
A102: =IF('DF raw data'!E107="","",'DF raw data'!E107) -> -280 | B102: =IF('DF raw data'!F107="","",'DF raw data'!F107) -> -1.26014e-05 | C102: =IF('DF raw data'!G107="","",'DF raw data'!G107) -> 3.73006e-06 | D102: =IF('DF raw data'!H107="","",'DF raw data'!H107) -> -1.93574e-05 | F102: -1.266314686e-05 | G102: 3.748337294e-06 | H102: -1.945225126e-05 | J102: -0.0002360979796 | K102: -0.002415688812 | L102: 6.828451109e-05 | M102: 0.0007807969865 | N102: 4.276838603e-07
A103: =IF('DF raw data'!E108="","",'DF raw data'!E108) -> -279.5 | B103: =IF('DF raw data'!F108="","",'DF raw data'!F108) -> -4.72044e-06 | C103: =IF('DF raw data'!G108="","",'DF raw data'!G108) -> -5.59218e-06 | D103: =IF('DF raw data'!H108="","",'DF raw data'!H108) -> -1.24166e-05 | F103: -4.743570156e-06 | G103: -5.619581682e-06 | H103: -1.247744134e-05 | J103: -0.0002384697647 | K103: -0.002534923695 | L103: 6.547472025e-05 | M103: 0.0008135343466 | N103: 4.582612441e-07
A104: =IF('DF raw data'!E109="","",'DF raw data'!E109) -> -279 | B104: =IF('DF raw data'!F109="","",'DF raw data'!F109) -> -6.12838e-06 | C104: =IF('DF raw data'!G109="","",'DF raw data'!G109) -> 3.37302e-06 | D104: =IF('DF raw data'!H109="","",'DF raw data'!H109) -> -1.61002e-05 | F104: -6.158409062e-06 | G104: 3.389547798e-06 | H104: -1.617909098e-05 | J104: -0.0002415489692 | K104: -0.002655698179 | L104: 6.716949415e-05 | M104: 0.0008471190937 | N104: 4.896900669e-07
A105: =IF('DF raw data'!E110="","",'DF raw data'!E110) -> -278.5 | B105: =IF('DF raw data'!F110="","",'DF raw data'!F110) -> -1.52232e-05 | C105: =IF('DF raw data'!G110="","",'DF raw data'!G110) -> 6.65895e-06 | D105: =IF('DF raw data'!H110="","",'DF raw data'!H110) -> -2.96065e-05 | F105: -1.529779368e-05 | G105: 6.691578855e-06 | H105: -2.975157185e-05 | J105: -0.0002491978661 | K105: -0.002780297112 | L105: 7.051528357e-05 | M105: 0.0008823767354 | N105: 5.232260577e-07
A106: =IF('DF raw data'!E111="","",'DF raw data'!E111) -> -278 | B106: =IF('DF raw data'!F111="","",'DF raw data'!F111) -> -6.38234e-06 | C106: =IF('DF raw data'!G111="","",'DF raw data'!G111) -> -1.42246e-07 | D106: =IF('DF raw data'!H111="","",'DF raw data'!H111) -> -1.99038e-05 | F106: -6.413613466e-06 | G106: -1.429430054e-07 | H106: -2.000132862e-05 | J106: -0.0002524046728 | K106: -0.002906499449 | L106: 7.044381207e-05 | M106: 0.0009175986415 | N106: 5.575612825e-07
A107: =IF('DF raw data'!E112="","",'DF raw data'!E112) -> -277.5 | B107: =IF('DF raw data'!F112="","",'DF raw data'!F112) -> 2.14364e-06 | C107: =IF('DF raw data'!G112="","",'DF raw data'!G112) -> -1.47971e-06 | D107: =IF('DF raw data'!H112="","",'DF raw data'!H112) -> -1.9543e-05 | F107: 2.154143836e-06 | G107: -1.486960579e-06 | H107: -1.96387607e-05 | J107: -0.0002513276009 | K107: -0.003032163249 | L107: 6.970033178e-05 | M107: 0.0009524488074 | N107: 5.915731321e-07
A108: =IF('DF raw data'!E113="","",'DF raw data'!E113) -> -277 | B108: =IF('DF raw data'!F113="","",'DF raw data'!F113) -> -1.74759e-05 | C108: =IF('DF raw data'!G113="","",'DF raw data'!G113) -> -1.91802e-06 | D108: =IF('DF raw data'!H113="","",'DF raw data'!H113) -> -1.55674e-05 | F108: -1.756153191e-05 | G108: -1.927418298e-06 | H108: -1.564368026e-05 | J108: -0.0002601083669 | K108: -0.003162217433 | L108: 6.873662263e-05 | M108: 0.0009868171187 | N108: 6.27763675e-07
A109: =IF('DF raw data'!E114="","",'DF raw data'!E114) -> -276.5 | B109: =IF('DF raw data'!F114="","",'DF raw data'!F114) -> -9.90803e-06 | C109: =IF('DF raw data'!G114="","",'DF raw data'!G114) -> -1.8823e-07 | D109: =IF('DF raw data'!H114="","",'DF raw data'!H114) -> -2.03106e-05 | F109: -9.956579347e-06 | G109: -1.89152327e-07 | H109: -2.041012194e-05 | J109: -0.0002650866565 | K109: -0.003294760761 | L109: 6.864204647e-05 | M109: 0.001021138142 | N109: 6.65255008e-07
A110: =IF('DF raw data'!E115="","",'DF raw data'!E115) -> -276 | B110: =IF('DF raw data'!F115="","",'DF raw data'!F115) -> -3.49258e-06 | C110: =IF('DF raw data'!G115="","",'DF raw data'!G115) -> -3.52716e-06 | D110: =IF('DF raw data'!H115="","",'DF raw data'!H115) -> -2.7404e-05 | F110: -3.509693642e-06 | G110: -3.544443084e-06 | H110: -2.75382796e-05 | J110: -0.0002668415034 | K110: -0.003428181513 | L110: 6.686982493e-05 | M110: 0.001054573054 | N110: 7.030929887e-07
A111: =IF('DF raw data'!E116="","",'DF raw data'!E116) -> -275.5 | B111: =IF('DF raw data'!F116="","",'DF raw data'!F116) -> -6.31577e-06 | C111: =IF('DF raw data'!G116="","",'DF raw data'!G116) -> 1.39096e-06 | D111: =IF('DF raw data'!H116="","",'DF raw data'!H116) -> -2.39035e-05 | F111: -6.346717273e-06 | G111: 1.397775704e-06 | H111: -2.402062715e-05 | J111: -0.000270014862 | K111: -0.003563188944 | L111: 6.756871278e-05 | M111: 0.001088357411 | N111: 7.41829767e-07
A112: =IF('DF raw data'!E117="","",'DF raw data'!E117) -> -275 | B112: =IF('DF raw data'!F117="","",'DF raw data'!F117) -> -3.30688e-06 | C112: =IF('DF raw data'!G117="","",'DF raw data'!G117) -> -6.25375e-06 | D112: =IF('DF raw data'!H117="","",'DF raw data'!H117) -> -1.74082e-05 | F112: -3.323083712e-06 | G112: -6.284393375e-06 | H112: -1.749350018e-05 | J112: -0.0002716764038 | K112: -0.003699027146 | L112: 6.442651609e-05 | M112: 0.001120570669 | N112: 7.808091892e-07
A113: =IF('DF raw data'!E118="","",'DF raw data'!E118) -> -274.5 | B113: =IF('DF raw data'!F118="","",'DF raw data'!F118) -> -1.1769e-05 | C113: =IF('DF raw data'!G118="","",'DF raw data'!G118) -> -1.14379e-05 | D113: =IF('DF raw data'!H118="","",'DF raw data'!H118) -> -1.75355e-05 | F113: -1.18266681e-05 | G113: -1.149394571e-05 | H113: -1.762142395e-05 | J113: -0.0002775897379 | K113: -0.003837822014 | L113: 5.867954324e-05 | M113: 0.00114991044 | N113: 8.210588649e-07
A114: =IF('DF raw data'!E119="","",'DF raw data'!E119) -> -274 | B114: =IF('DF raw data'!F119="","",'DF raw data'!F119) -> -9.39767e-06 | C114: =IF('DF raw data'!G119="","",'DF raw data'!G119) -> -9.509e-06 | D114: =IF('DF raw data'!H119="","",'DF raw data'!H119) -> -1.64815e-05 | F114: -9.443718583e-06 | G114: -9.5555941e-06 | H114: -1.656225935e-05 | J114: -0.0002823115972 | K114: -0.003978977813 | L114: 5.390174619e-05 | M114: 0.001176861314 | N114: 8.62361483e-07
A115: =IF('DF raw data'!E120="","",'DF raw data'!E120) -> -273.5 | B115: =IF('DF raw data'!F120="","",'DF raw data'!F120) -> -9.85072e-06 | C115: =IF('DF raw data'!G120="","",'DF raw data'!G120) -> -2.40074e-06 | D115: =IF('DF raw data'!H120="","",'DF raw data'!H120) -> -1.00343e-05 | F115: -9.898988528e-06 | G115: -2.412503626e-06 | H115: -1.008346807e-05 | J115: -0.0002872610915 | K115: -0.004122608359 | L115: 5.269549437e-05 | M115: 0.001203209061 | N115: 9.050093579e-07
A116: =IF('DF raw data'!E121="","",'DF raw data'!E121) -> -273 | B116: =IF('DF raw data'!F121="","",'DF raw data'!F121) -> -2.42093e-05 | C116: =IF('DF raw data'!G121="","",'DF raw data'!G121) -> 7.26829e-07 | D116: =IF('DF raw data'!H121="","",'DF raw data'!H121) -> -1.2679e-05 | F116: -2.432792557e-05 | G116: 7.303904621e-07 | H116: -1.27411271e-05 | J116: -0.0002994250542 | K116: -0.004272320886 | L116: 5.30606896e-05 | M116: 0.001229739406 | N116: 9.512447578e-07
A117: =IF('DF raw data'!E122="","",'DF raw data'!E122) -> -272.5 | B117: =IF('DF raw data'!F122="","",'DF raw data'!F122) -> -1.08697e-05 | C117: =IF('DF raw data'!G122="","",'DF raw data'!G122) -> -3.77893e-06 | D117: =IF('DF raw data'!H122="","",'DF raw data'!H122) -> -2.03298e-05 | F117: -1.092296153e-05 | G117: -3.797446757e-06 | H117: -2.042941602e-05 | J117: -0.000304886535 | K117: -0.004424764153 | L117: 5.116196623e-05 | M117: 0.001255320389 | N117: 9.990314308e-07
A118: =IF('DF raw data'!E123="","",'DF raw data'!E123) -> -272 | B118: =IF('DF raw data'!F123="","",'DF raw data'!F123) -> -6.32015e-06 | C118: =IF('DF raw data'!G123="","",'DF raw data'!G123) -> -2.52869e-06 | D118: =IF('DF raw data'!H123="","",'DF raw data'!H123) -> -1.71576e-05 | F118: -6.351118735e-06 | G118: -2.541080581e-06 | H118: -1.724167224e-05 | J118: -0.0003080620944 | K118: -0.004578795201 | L118: 4.989142593e-05 | M118: 0.001280266102 | N118: 1.047727135e-06
A119: =IF('DF raw data'!E124="","",'DF raw data'!E124) -> -271.5 | B119: =IF('DF raw data'!F124="","",'DF raw data'!F124) -> -7.67175e-06 | C119: =IF('DF raw data'!G124="","",'DF raw data'!G124) -> -4.00375e-06 | D119: =IF('DF raw data'!H124="","",'DF raw data'!H124) -> -9.05886e-06 | F119: -7.709341575e-06 | G119: -4.023368375e-06 | H119: -9.103248414e-06 | J119: -0.0003119167652 | K119: -0.004734753583 | L119: 4.787974175e-05 | M119: 0.001304205972 | N119: 1.097519404e-06
A120: =IF('DF raw data'!E125="","",'DF raw data'!E125) -> -271 | B120: =IF('DF raw data'!F125="","",'DF raw data'!F125) -> -1.24738e-05 | C120: =IF('DF raw data'!G125="","",'DF raw data'!G125) -> -5.99306e-06 | D120: =IF('DF raw data'!H125="","",'DF raw data'!H125) -> -1.83728e-05 | F120: -1.253492162e-05 | G120: -6.022425994e-06 | H120: -1.846282672e-05 | J120: -0.000318184226 | K120: -0.004893845696 | L120: 4.486852875e-05 | M120: 0.001326640237 | N120: 1.149146597e-06
A121: =IF('DF raw data'!E126="","",'DF raw data'!E126) -> -270.5 | B121: =IF('DF raw data'!F126="","",'DF raw data'!F126) -> -6.19181e-06 | C121: =IF('DF raw data'!G126="","",'DF raw data'!G126) -> 5.51742e-07 | D121: =IF('DF raw data'!H126="","",'DF raw data'!H126) -> -1.73498e-05 | F121: -6.222149869e-06 | G121: 5.544455358e-07 | H121: -1.743481402e-05 | J121: -0.0003212953009 | K121: -0.005054493347 | L121: 4.514575152e-05 | M121: 0.001349213113 | N121: 1.201781002e-06
A122: =IF('DF raw data'!E127="","",'DF raw data'!E127) -> -270 | B122: =IF('DF raw data'!F127="","",'DF raw data'!F127) -> -4.72287e-06 | C122: =IF('DF raw data'!G127="","",'DF raw data'!G127) -> -1.05682e-07 | D122: =IF('DF raw data'!H127="","",'DF raw data'!H127) -> -8.68088e-06 | F122: -4.746012063e-06 | G122: -1.061998418e-07 | H122: -8.723416312e-06 | J122: -0.0003236683069 | K122: -0.0052163275 | L122: 4.50926516e-05 | M122: 0.001371759438 | N122: 1.255178262e-06
A123: =IF('DF raw data'!E128="","",'DF raw data'!E128) -> -269.5 | B123: =IF('DF raw data'!F128="","",'DF raw data'!F128) -> -8.49492e-06 | C123: =IF('DF raw data'!G128="","",'DF raw data'!G128) -> -1.12845e-06 | D123: =IF('DF raw data'!H128="","",'DF raw data'!H128) -> -2.46086e-05 | F123: -8.536545108e-06 | G123: -1.133979405e-06 | H123: -2.472918214e-05 | J123: -0.0003279365795 | K123: -0.00538029579 | L123: 4.452566189e-05 | M123: 0.001394022269 | N123: 1.309940729e-06
A124: =IF('DF raw data'!E129="","",'DF raw data'!E129) -> -269 | B124: =IF('DF raw data'!F129="","",'DF raw data'!F129) -> -5.09479e-06 | C124: =IF('DF raw data'!G129="","",'DF raw data'!G129) -> 1.27518e-06 | D124: =IF('DF raw data'!H129="","",'DF raw data'!H129) -> -2.82785e-05 | F124: -5.119754471e-06 | G124: 1.281428382e-06 | H124: -2.841706465e-05 | J124: -0.0003304964567 | K124: -0.005545544018 | L124: 4.516637609e-05 | M124: 0.001416605457 | N124: 1.365574684e-06
A125: =IF('DF raw data'!E130="","",'DF raw data'!E130) -> -268.5 | B125: =IF('DF raw data'!F130="","",'DF raw data'!F130) -> -1.41398e-05 | C125: =IF('DF raw data'!G130="","",'DF raw data'!G130) -> -6.20634e-06 | D125: =IF('DF raw data'!H130="","",'DF raw data'!H130) -> -1.95493e-05 | F125: -1.420908502e-05 | G125: -6.236751066e-06 | H125: -1.964509157e-05 | J125: -0.0003376009992 | K125: -0.005714344518 | L125: 4.204800055e-05 | M125: 0.001437629458 | N125: 1.423445919e-06
A126: =IF('DF raw data'!E131="","",'DF raw data'!E131) -> -268 | B126: =IF('DF raw data'!F131="","",'DF raw data'!F131) -> -2.73317e-06 | C126: =IF('DF raw data'!G131="","",'DF raw data'!G131) -> -8.09861e-06 | D126: =IF('DF raw data'!H131="","",'DF raw data'!H131) -> -1.21983e-05 | F126: -2.746562533e-06 | G126: -8.138293189e-06 | H126: -1.225807167e-05 | J126: -0.0003389742805 | K126: -0.005883831658 | L126: 3.797885396e-05 | M126: 0.001456618885 | N126: 1.481618897e-06
A127: =IF('DF raw data'!E132="","",'DF raw data'!E132) -> -267.5 | B127: =IF('DF raw data'!F132="","",'DF raw data'!F132) -> -1.38869e-05 | C127: =IF('DF raw data'!G132="","",'DF raw data'!G132) -> -1.26654e-05 | D127: =IF('DF raw data'!H132="","",'DF raw data'!H132) -> -1.41217e-05 | F127: -1.395494581e-05 | G127: -1.272746046e-05 | H127: -1.419089633e-05 | J127: -0.0003459517534 | K127: -0.006056807535 | L127: 3.161512373e-05 | M127: 0.001472426447 | N127: 1.541959963e-06
A128: =IF('DF raw data'!E133="","",'DF raw data'!E133) -> -267 | B128: =IF('DF raw data'!F133="","",'DF raw data'!F133) -> -1.22863e-05 | C128: =IF('DF raw data'!G133="","",'DF raw data'!G133) -> -7.49863e-06 | D128: =IF('DF raw data'!H133="","",'DF raw data'!H133) -> -1.07849e-05 | F128: =(1-$G$1*($B$49-$G$2))*B128 -> -1.234650287e-05 | G128: -7.535373287e-06 | H128: -1.083774601e-05 | J128: =F128*$G$3+J127 -> -0.0003521250048 | K128: =J128*$G$3+K127 -> -0.006232870037 | L128: =G128*$G$3+L127 -> 2.784743708e-05 | M128: =L128*$G$3+M127 -> 0.001486350165 | N128: =(J128^2+L128^2)*$G$3+N127 -> 1.604343712e-06
A129: =IF('DF raw data'!E134="","",'DF raw data'!E134) -> -266.5 | B129: =IF('DF raw data'!F134="","",'DF raw data'!F134) -> -1.48431e-05 | C129: =IF('DF raw data'!G134="","",'DF raw data'!G134) -> 1.00073e-06 | D129: =IF('DF raw data'!H134="","",'DF raw data'!H134) -> -2.26471e-05 | F129: -1.491583119e-05 | G129: 1.005633577e-06 | H129: -2.275807079e-05 | J129: -0.0003595829204 | K129: -0.006412661497 | L129: 2.835025387e-05 | M129: 0.001500525292 | N129: 1.669395519e-06
A130: =IF('DF raw data'!E135="","",'DF raw data'!E135) -> -266 | B130: =IF('DF raw data'!F135="","",'DF raw data'!F135) -> -1.52916e-05 | C130: =IF('DF raw data'!G135="","",'DF raw data'!G135) -> -1.0868e-06 | D130: =IF('DF raw data'!H135="","",'DF raw data'!H135) -> -2.27355e-05 | F130: -1.536652884e-05 | G130: -1.09212532e-06 | H130: -2.284690395e-05 | J130: -0.0003672661849 | K130: -0.00659629459 | L130: 2.780419121e-05 | M130: 0.001514427388 | N130: 1.737224281e-06
A131: =IF('DF raw data'!E136="","",'DF raw data'!E136) -> -265.5 | B131: =IF('DF raw data'!F136="","",'DF raw data'!F136) -> -4.07908e-06 | C131: =IF('DF raw data'!G136="","",'DF raw data'!G136) -> -1.09535e-06 | D131: =IF('DF raw data'!H136="","",'DF raw data'!H136) -> -1.28779e-05 | F131: -4.099067492e-06 | G131: -1.100717215e-06 | H131: -1.294100171e-05 | J131: -0.0003693157186 | K131: -0.006780952449 | L131: 2.725383261e-05 | M131: 0.001528054304 | N131: 1.805792716e-06
A132: =IF('DF raw data'!E137="","",'DF raw data'!E137) -> -265 | B132: =IF('DF raw data'!F137="","",'DF raw data'!F137) -> -1.40063e-05 | C132: =IF('DF raw data'!G137="","",'DF raw data'!G137) -> 4.2771e-06 | D132: =IF('DF raw data'!H137="","",'DF raw data'!H137) -> -2.77126e-05 | F132: -1.407493087e-05 | G132: 4.29805779e-06 | H132: -2.784839174e-05 | J132: -0.000376353184 | K132: -0.006969129041 | L132: 2.94028615e-05 | M132: 0.001542755735 | N132: 1.87704584e-06
A133: =IF('DF raw data'!E138="","",'DF raw data'!E138) -> -264.5 | B133: =IF('DF raw data'!F138="","",'DF raw data'!F138) -> -1.13229e-05 | C133: =IF('DF raw data'!G138="","",'DF raw data'!G138) -> 7.28912e-06 | D133: =IF('DF raw data'!H138="","",'DF raw data'!H138) -> -1.36866e-05 | F133: -1.137838221e-05 | G133: 7.324836688e-06 | H133: -1.375366434e-05 | J133: -0.0003820423751 | K133: -0.007160150229 | L133: 3.306527984e-05 | M133: 0.001559288375 | N133: 1.950570684e-06
A134: =IF('DF raw data'!E139="","",'DF raw data'!E139) -> -264 | B134: =IF('DF raw data'!F139="","",'DF raw data'!F139) -> -1.34344e-05 | C134: =IF('DF raw data'!G139="","",'DF raw data'!G139) -> 8.63071e-06 | D134: =IF('DF raw data'!H139="","",'DF raw data'!H139) -> -1.96876e-05 | F134: -1.350022856e-05 | G134: 8.673000479e-06 | H134: -1.978406924e-05 | J134: -0.0003887924894 | K134: -0.007354546473 | L134: 3.740178008e-05 | M134: 0.001577989265 | N134: 2.026849931e-06
A135: =IF('DF raw data'!E140="","",'DF raw data'!E140) -> -263.5 | B135: =IF('DF raw data'!F140="","",'DF raw data'!F140) -> -9.07349e-06 | C135: =IF('DF raw data'!G140="","",'DF raw data'!G140) -> 7.22739e-06 | D135: =IF('DF raw data'!H140="","",'DF raw data'!H140) -> -2.23124e-05 | F135: -9.117950101e-06 | G135: 7.262804211e-06 | H135: -2.242173076e-05 | J135: -0.0003933514645 | K135: -0.007551222206 | L135: 4.103318219e-05 | M135: 0.001598505856 | N135: 2.105054479e-06
A136: =IF('DF raw data'!E141="","",'DF raw data'!E141) -> -263 | B136: =IF('DF raw data'!F141="","",'DF raw data'!F141) -> -4.45847e-06 | C136: =IF('DF raw data'!G141="","",'DF raw data'!G141) -> 4.27105e-06 | D136: =IF('DF raw data'!H141="","",'DF raw data'!H141) -> -2.09714e-05 | F136: -4.480316503e-06 | G136: 4.291978145e-06 | H136: -2.107415986e-05 | J136: -0.0003955916227 | K136: -0.007749018017 | L136: 4.317917126e-05 | M136: 0.001620095441 | N136: 2.184233066e-06
A137: =IF('DF raw data'!E142="","",'DF raw data'!E142) -> -262.5 | B137: =IF('DF raw data'!F142="","",'DF raw data'!F142) -> -1.47142e-05 | C137: =IF('DF raw data'!G142="","",'DF raw data'!G142) -> 1.35799e-06 | D137: =IF('DF raw data'!H142="","",'DF raw data'!H142) -> -2.36495e-05 | F137: -1.478629958e-05 | G137: 1.364644151e-06 | H137: -2.376538255e-05 | J137: -0.0004029847725 | K137: -0.007950510403 | L137: 4.386149334e-05 | M137: 0.001642026188 | N137: 2.266393344e-06
A138: =IF('DF raw data'!E143="","",'DF raw data'!E143) -> -262 | B138: =IF('DF raw data'!F143="","",'DF raw data'!F143) -> -6.12494e-06 | C138: =IF('DF raw data'!G143="","",'DF raw data'!G143) -> -2.39945e-06 | D138: =IF('DF raw data'!H143="","",'DF raw data'!H143) -> -2.14141e-05 | F138: -6.154952206e-06 | G138: -2.411207305e-06 | H138: -2.151902909e-05 | J138: -0.0004060622486 | K138: -0.008153541528 | L138: 4.265588969e-05 | M138: 0.001663354133 | N138: 2.349746382e-06
A139: =IF('DF raw data'!E144="","",'DF raw data'!E144) -> -261.5 | B139: =IF('DF raw data'!F144="","",'DF raw data'!F144) -> -2.16437e-05 | C139: =IF('DF raw data'!G144="","",'DF raw data'!G144) -> 3.18969e-06 | D139: =IF('DF raw data'!H144="","",'DF raw data'!H144) -> -1.46901e-05 | F139: -2.174975413e-05 | G139: 3.205319481e-06 | H139: -1.476208149e-05 | J139: -0.0004169371257 | K139: -0.00836201009 | L139: 4.425854943e-05 | M139: 0.001685483408 | N139: 2.437644075e-06
A140: =IF('DF raw data'!E145="","",'DF raw data'!E145) -> -261 | B140: =IF('DF raw data'!F145="","",'DF raw data'!F145) -> -8.88926e-06 | C140: =IF('DF raw data'!G145="","",'DF raw data'!G145) -> -6.77103e-07 | D140: =IF('DF raw data'!H145="","",'DF raw data'!H145) -> -9.62661e-06 | F140: -8.932817374e-06 | G140: -6.804208047e-07 | H140: -9.673780389e-06 | J140: -0.0004214035344 | K140: -0.008572711858 | L140: 4.391833902e-05 | M140: 0.001707442577 | N140: 2.527398954e-06
A141: =IF('DF raw data'!E146="","",'DF raw data'!E146) -> -260.5 | B141: =IF('DF raw data'!F146="","",'DF raw data'!F146) -> -7.79246e-06 | C141: =IF('DF raw data'!G146="","",'DF raw data'!G146) -> -5.19132e-06 | D141: =IF('DF raw data'!H146="","",'DF raw data'!H146) -> -2.06344e-05 | F141: -7.830643054e-06 | G141: -5.216757468e-06 | H141: -2.073550856e-05 | J141: -0.0004253188559 | K141: -0.008785371286 | L141: 4.130996029e-05 | M141: 0.001728097557 | N141: 2.618700275e-06
A142: =IF('DF raw data'!E147="","",'DF raw data'!E147) -> -260 | B142: =IF('DF raw data'!F147="","",'DF raw data'!F147) -> -2.97877e-06 | C142: =IF('DF raw data'!G147="","",'DF raw data'!G147) -> -6.33759e-06 | D142: =IF('DF raw data'!H147="","",'DF raw data'!H147) -> -2.88905e-05 | F142: -2.993365973e-06 | G142: -6.368644191e-06 | H142: -2.903206345e-05 | J142: -0.0004268155389 | K142: -0.008998779055 | L142: 3.812563819e-05 | M142: 0.001747160376 | N142: 2.71051281e-06
A143: =IF('DF raw data'!E148="","",'DF raw data'!E148) -> -259.5 | B143: =IF('DF raw data'!F148="","",'DF raw data'!F148) -> -8.55865e-06 | C143: =IF('DF raw data'!G148="","",'DF raw data'!G148) -> -5.83181e-06 | D143: =IF('DF raw data'!H148="","",'DF raw data'!H148) -> -2.53843e-05 | F143: -8.600587385e-06 | G143: -5.860385869e-06 | H143: -2.550868307e-05 | J143: -0.0004311158326 | K143: -0.009214336971 | L143: 3.519544526e-05 | M143: 0.001764758099 | N143: 2.8040626e-06
A144: =IF('DF raw data'!E149="","",'DF raw data'!E149) -> -259 | B144: =IF('DF raw data'!F149="","",'DF raw data'!F149) -> -5.61248e-06 | C144: =IF('DF raw data'!G149="","",'DF raw data'!G149) -> -7.10981e-06 | D144: =IF('DF raw data'!H149="","",'DF raw data'!H149) -> -2.08135e-05 | F144: -5.639981152e-06 | G144: -7.144648069e-06 | H144: -2.091548615e-05 | J144: -0.0004339358231 | K144: -0.009431304883 | L144: 3.162312123e-05 | M144: 0.00178056966 | N144: 2.89871276e-06
A145: =IF('DF raw data'!E150="","",'DF raw data'!E150) -> -258.5 | B145: =IF('DF raw data'!F150="","",'DF raw data'!F150) -> -1.18951e-05 | C145: =IF('DF raw data'!G150="","",'DF raw data'!G150) -> -7.16744e-06 | D145: =IF('DF raw data'!H150="","",'DF raw data'!H150) -> -2.08383e-05 | F145: -1.195338599e-05 | G145: -7.202560456e-06 | H145: -2.094040767e-05 | J145: -0.0004399125161 | K145: -0.009651261141 | L145: 2.8021841e-05 | M145: 0.00179458058 | N145: 2.995866883e-06
A146: =IF('DF raw data'!E151="","",'DF raw data'!E151) -> -258 | B146: =IF('DF raw data'!F151="","",'DF raw data'!F151) -> -2.72891e-06 | C146: =IF('DF raw data'!G151="","",'DF raw data'!G151) -> -4.0848e-06 | D146: =IF('DF raw data'!H151="","",'DF raw data'!H151) -> -1.87709e-05 | F146: -2.742281659e-06 | G146: -4.10481552e-06 | H146: -1.886287741e-05 | J146: -0.000441283657 | K146: -0.009871902969 | L146: 2.596943324e-05 | M146: 0.001807565297 | N146: 3.093569721e-06
A147: =IF('DF raw data'!E152="","",'DF raw data'!E152) -> -257.5 | B147: =IF('DF raw data'!F152="","",'DF raw data'!F152) -> -8.23606e-06 | C147: =IF('DF raw data'!G152="","",'DF raw data'!G152) -> -5.53748e-06 | D147: =IF('DF raw data'!H152="","",'DF raw data'!H152) -> -2.83489e-05 | F147: -8.276416694e-06 | G147: -5.564613652e-06 | H147: -2.848780961e-05 | J147: -0.0004454218653 | K147: -0.0100946139 | L147: 2.318712641e-05 | M147: 0.00181915886 | N147: 3.193038862e-06
A148: =IF('DF raw data'!E153="","",'DF raw data'!E153) -> -257 | B148: =IF('DF raw data'!F153="","",'DF raw data'!F153) -> -9.71812e-06 | C148: =IF('DF raw data'!G153="","",'DF raw data'!G153) -> -1.19252e-05 | D148: =IF('DF raw data'!H153="","",'DF raw data'!H153) -> -1.67953e-05 | F148: -9.765738788e-06 | G148: -1.198363348e-05 | H148: -1.687759697e-05 | J148: -0.0004503047347 | K148: -0.01031976627 | L148: 1.719530967e-05 | M148: 0.001827756515 | N148: 3.294573878e-06
A149: =IF('DF raw data'!E154="","",'DF raw data'!E154) -> -256.5 | B149: =IF('DF raw data'!F154="","",'DF raw data'!F154) -> 1.75996e-06 | C149: =IF('DF raw data'!G154="","",'DF raw data'!G154) -> -4.36274e-06 | D149: =IF('DF raw data'!H154="","",'DF raw data'!H154) -> -2.10097e-05 | F149: 1.768583804e-06 | G149: -4.384117426e-06 | H149: -2.111264753e-05 | J149: -0.0004494204428 | K149: -0.01054447649 | L149: 1.500325096e-05 | M149: 0.00183525814 | N149: 3.395675794e-06
A150: =IF('DF raw data'!E155="","",'DF raw data'!E155) -> -256 | B150: =IF('DF raw data'!F155="","",'DF raw data'!F155) -> -1.11894e-05 | C150: =IF('DF raw data'!G155="","",'DF raw data'!G155) -> 2.14112e-06 | D150: =IF('DF raw data'!H155="","",'DF raw data'!H155) -> -2.19435e-05 | F150: -1.124422806e-05 | G150: 2.151611488e-06 | H150: -2.205102315e-05 | J150: -0.0004550425568 | K150: -0.01077199777 | L150: 1.60790567e-05 | M150: 0.001843297669 | N150: 3.499336927e-06
A151: =IF('DF raw data'!E156="","",'DF raw data'!E156) -> -255.5 | B151: =IF('DF raw data'!F156="","",'DF raw data'!F156) -> -1.95014e-06 | C151: =IF('DF raw data'!G156="","",'DF raw data'!G156) -> 1.35676e-06 | D151: =IF('DF raw data'!H156="","",'DF raw data'!H156) -> -3.34103e-05 | F151: -1.959695686e-06 | G151: 1.363408124e-06 | H151: -3.357401047e-05 | J151: -0.0004560224047 | K151: -0.01100000897 | L151: 1.676076076e-05 | M151: 0.001851678049 | N151: 3.603455605e-06
A152: =IF('DF raw data'!E157="","",'DF raw data'!E157) -> -255 | B152: =IF('DF raw data'!F157="","",'DF raw data'!F157) -> -4.07114e-06 | C152: =IF('DF raw data'!G157="","",'DF raw data'!G157) -> -1.60883e-06 | D152: =IF('DF raw data'!H157="","",'DF raw data'!H157) -> -2.51298e-05 | F152: -4.091088586e-06 | G152: -1.616713267e-06 | H152: -2.525293602e-05 | J152: -0.000458067949 | K152: -0.01122904295 | L152: 1.595240413e-05 | M152: 0.001859654251 | N152: 3.708495968e-06
A153: =IF('DF raw data'!E158="","",'DF raw data'!E158) -> -254.5 | B153: =IF('DF raw data'!F158="","",'DF raw data'!F158) -> -1.86268e-05 | C153: =IF('DF raw data'!G158="","",'DF raw data'!G158) -> 2.31933e-06 | D153: =IF('DF raw data'!H158="","",'DF raw data'!H158) -> -2.05543e-05 | F153: -1.871807132e-05 | G153: 2.330694717e-06 | H153: -2.065501607e-05 | J153: -0.0004674269846 | K153: -0.01146275644 | L153: 1.711775149e-05 | M153: 0.001868213127 | N153: 3.817886469e-06
A154: =IF('DF raw data'!E159="","",'DF raw data'!E159) -> -254 | B154: =IF('DF raw data'!F159="","",'DF raw data'!F159) -> -1.23432e-05 | C154: =IF('DF raw data'!G159="","",'DF raw data'!G159) -> -8.9723e-06 | D154: =IF('DF raw data'!H159="","",'DF raw data'!H159) -> -2.2006e-05 | F154: -1.240368168e-05 | G154: -9.01626427e-06 | H154: -2.21138294e-05 | J154: -0.0004736288255 | K154: -0.01169957085 | L154: 1.260961935e-05 | M154: 0.001874517936 | N154: 3.930128103e-06
A155: =IF('DF raw data'!E160="","",'DF raw data'!E160) -> -253.5 | B155: =IF('DF raw data'!F160="","",'DF raw data'!F160) -> -2.73007e-06 | C155: =IF('DF raw data'!G160="","",'DF raw data'!G160) -> -6.98605e-06 | D155: =IF('DF raw data'!H160="","",'DF raw data'!H160) -> -1.69745e-05 | F155: -2.743447343e-06 | G155: -7.020281645e-06 | H155: -1.705767505e-05 | J155: -0.0004750005491 | K155: -0.01193707113 | L155: 9.099478532e-06 | M155: 0.001879067676 | N155: 4.042982264e-06
A156: =IF('DF raw data'!E161="","",'DF raw data'!E161) -> -253 | B156: =IF('DF raw data'!F161="","",'DF raw data'!F161) -> -1.01649e-05 | C156: =IF('DF raw data'!G161="","",'DF raw data'!G161) -> 2.65863e-06 | D156: =IF('DF raw data'!H161="","",'DF raw data'!H161) -> -1.96833e-05 | F156: -1.021470801e-05 | G156: 2.671657287e-06 | H156: -1.977974817e-05 | J156: -0.0004801079032 | K156: -0.01217712508 | L156: 1.043530718e-05 | M156: 0.001884285329 | N156: 4.158288511e-06
A157: =IF('DF raw data'!E162="","",'DF raw data'!E162) -> -252.5 | B157: =IF('DF raw data'!F162="","",'DF raw data'!F162) -> -1.61295e-05 | C157: =IF('DF raw data'!G162="","",'DF raw data'!G162) -> 8.10634e-07 | D157: =IF('DF raw data'!H162="","",'DF raw data'!H162) -> -1.5979e-05 | F157: -1.620853455e-05 | G157: 8.146061066e-07 | H157: -1.60572971e-05 | J157: -0.0004882121704 | K157: -0.01242123116 | L157: 1.084261023e-05 | M157: 0.001889706634 | N157: 4.277522854e-06
A158: =IF('DF raw data'!E163="","",'DF raw data'!E163) -> -252 | B158: =IF('DF raw data'!F163="","",'DF raw data'!F163) -> -9.7876e-06 | C158: =IF('DF raw data'!G163="","",'DF raw data'!G163) -> -6.48471e-06 | D158: =IF('DF raw data'!H163="","",'DF raw data'!H163) -> -8.31359e-06 | F158: -9.83555924e-06 | G158: -6.516485079e-06 | H158: -8.354326591e-06 | J158: -0.00049312995 | K158: -0.01266779614 | L158: 7.584367689e-06 | M158: 0.001893498818 | N158: 4.399140189e-06
A159: =IF('DF raw data'!E164="","",'DF raw data'!E164) -> -251.5 | B159: =IF('DF raw data'!F164="","",'DF raw data'!F164) -> -1.16412e-05 | C159: =IF('DF raw data'!G164="","",'DF raw data'!G164) -> -1.52761e-05 | D159: =IF('DF raw data'!H164="","",'DF raw data'!H164) -> -1.7018e-05 | F159: -1.169824188e-05 | G159: -1.535095289e-05 | H159: -1.71013882e-05 | J159: -0.000498979071 | K159: -0.01291728567 | L159: -9.110875605e-08 | M159: 0.001893453264 | N159: 4.52363025e-06
A160: =IF('DF raw data'!E165="","",'DF raw data'!E165) -> -251 | B160: =IF('DF raw data'!F165="","",'DF raw data'!F165) -> -5.428e-06 | C160: =IF('DF raw data'!G165="","",'DF raw data'!G165) -> -8.16037e-06 | D160: =IF('DF raw data'!H165="","",'DF raw data'!H165) -> -8.93103e-06 | F160: -5.4545972e-06 | G160: -8.200355813e-06 | H160: -8.974792047e-06 | J160: -0.0005017063696 | K160: -0.01316813886 | L160: -4.191286663e-06 | M160: 0.001891357621 | N160: 4.649493674e-06
A161: =IF('DF raw data'!E166="","",'DF raw data'!E166) -> -250.5 | B161: =IF('DF raw data'!F166="","",'DF raw data'!F166) -> -5.42301e-06 | C161: =IF('DF raw data'!G166="","",'DF raw data'!G166) -> 4.85135e-06 | D161: =IF('DF raw data'!H166="","",'DF raw data'!H166) -> -1.66252e-05 | F161: -5.449582749e-06 | G161: 4.875121615e-06 | H161: -1.670666348e-05 | J161: -0.000504431161 | K161: -0.01342035444 | L161: -1.753725855e-06 | M161: 0.001890480758 | N161: 4.77672061e-06
A162: =IF('DF raw data'!E167="","",'DF raw data'!E167) -> -250 | B162: =IF('DF raw data'!F167="","",'DF raw data'!F167) -> -1.27877e-05 | C162: =IF('DF raw data'!G167="","",'DF raw data'!G167) -> 7.73914e-06 | D162: =IF('DF raw data'!H167="","",'DF raw data'!H167) -> -2.83414e-05 | F162: -1.285035973e-05 | G162: 7.777061786e-06 | H162: -2.848027286e-05 | J162: -0.0005108563408 | K162: -0.01367578261 | L162: 2.134805038e-06 | M162: 0.00189154816 | N162: 4.907209989e-06
A163: =IF('DF raw data'!E168="","",'DF raw data'!E168) -> -249.5 | B163: =IF('DF raw data'!F168="","",'DF raw data'!F168) -> -3.75613e-06 | C163: =IF('DF raw data'!G168="","",'DF raw data'!G168) -> -1.28149e-07 | D163: =IF('DF raw data'!H168="","",'DF raw data'!H168) -> -1.64151e-05 | F163: -3.774535037e-06 | G163: -1.287769301e-07 | H163: -1.649553399e-05 | J163: -0.0005127436083 | K163: -0.01393215441 | L163: 2.070416573e-06 | M163: 0.001892583368 | N163: 5.038665136e-06
A164: =IF('DF raw data'!E169="","",'DF raw data'!E169) -> -249 | B164: =IF('DF raw data'!F169="","",'DF raw data'!F169) -> -3.69026e-06 | C164: =IF('DF raw data'!G169="","",'DF raw data'!G169) -> -7.19691e-06 | D164: =IF('DF raw data'!H169="","",'DF raw data'!H169) -> -1.93315e-05 | F164: -3.708342274e-06 | G164: -7.232174859e-06 | H164: -1.942622435e-05 | J164: -0.0005145977795 | K164: -0.0141894533 | L164: -1.545670857e-06 | M164: 0.001891810533 | N164: 5.171071768e-06
A165: =IF('DF raw data'!E170="","",'DF raw data'!E170) -> -248.5 | B165: =IF('DF raw data'!F170="","",'DF raw data'!F170) -> -1.62703e-07 | C165: =IF('DF raw data'!G170="","",'DF raw data'!G170) -> -2.53829e-06 | D165: =IF('DF raw data'!H170="","",'DF raw data'!H170) -> -2.18053e-05 | F165: -1.635002447e-07 | G165: -2.550727621e-06 | H165: -2.191214597e-05 | J165: -0.0005146795296 | K165: -0.01444679307 | L165: -2.821034667e-06 | M165: 0.001890400016 | N165: 5.303523256e-06
A166: =IF('DF raw data'!E171="","",'DF raw data'!E171) -> -248 | B166: =IF('DF raw data'!F171="","",'DF raw data'!F171) -> -4.6512e-06 | C166: =IF('DF raw data'!G171="","",'DF raw data'!G171) -> 8.18546e-06 | D166: =IF('DF raw data'!H171="","",'DF raw data'!H171) -> -2.05438e-05 | F166: -4.67399088e-06 | G166: 8.225568754e-06 | H166: -2.064446462e-05 | J166: -0.000517016525 | K166: -0.01470530133 | L166: 1.29174971e-06 | M166: 0.00189104589 | N166: 5.437177134e-06
A167: =IF('DF raw data'!E172="","",'DF raw data'!E172) -> -247.5 | B167: =IF('DF raw data'!F172="","",'DF raw data'!F172) -> -1.3815e-05 | C167: =IF('DF raw data'!G172="","",'DF raw data'!G172) -> 4.93515e-06 | D167: =IF('DF raw data'!H172="","",'DF raw data'!H172) -> -2.58859e-05 | F167: -1.38826935e-05 | G167: 4.959332235e-06 | H167: -2.601274091e-05 | J167: -0.0005239578718 | K167: -0.01496728027 | L167: 3.771415827e-06 | M167: 0.001892931598 | N167: 5.574450171e-06
A168: =IF('DF raw data'!E173="","",'DF raw data'!E173) -> -247 | B168: =IF('DF raw data'!F173="","",'DF raw data'!F173) -> 4.45572e-06 | C168: =IF('DF raw data'!G173="","",'DF raw data'!G173) -> 8.48855e-06 | D168: =IF('DF raw data'!H173="","",'DF raw data'!H173) -> -2.57106e-05 | F168: 4.477553028e-06 | G168: 8.530143895e-06 | H168: -2.583658194e-05 | J168: -0.0005217190953 | K168: -0.01522813981 | L168: 8.036487775e-06 | M168: 0.001896949842 | N168: 5.710577871e-06
A169: =IF('DF raw data'!E174="","",'DF raw data'!E174) -> -246.5 | B169: =IF('DF raw data'!F174="","",'DF raw data'!F174) -> -6.76832e-06 | C169: =IF('DF raw data'!G174="","",'DF raw data'!G174) -> 1.69499e-05 | D169: =IF('DF raw data'!H174="","",'DF raw data'!H174) -> -1.7834e-05 | F169: -6.801484768e-06 | G169: 1.703295451e-05 | H169: -1.79213866e-05 | J169: -0.0005251198377 | K169: -0.01549069973 | L169: 1.655296503e-05 | M169: 0.001905226325 | N169: 5.848590293e-06
A170: =IF('DF raw data'!E175="","",'DF raw data'!E175) -> -246 | B170: =IF('DF raw data'!F175="","",'DF raw data'!F175) -> -1.86292e-05 | C170: =IF('DF raw data'!G175="","",'DF raw data'!G175) -> 5.75801e-06 | D170: =IF('DF raw data'!H175="","",'DF raw data'!H175) -> -1.68774e-05 | F170: -1.872048308e-05 | G170: 5.786224249e-06 | H170: -1.696009926e-05 | J170: -0.0005344800792 | K170: -0.01575793977 | L170: 1.944607715e-05 | M170: 0.001914949363 | N170: 5.991613846e-06
A171: =IF('DF raw data'!E176="","",'DF raw data'!E176) -> -245.5 | B171: =IF('DF raw data'!F176="","",'DF raw data'!F176) -> -1.08721e-05 | C171: =IF('DF raw data'!G176="","",'DF raw data'!G176) -> 4.29144e-06 | D171: =IF('DF raw data'!H176="","",'DF raw data'!H176) -> -1.66271e-05 | F171: -1.092537329e-05 | G171: 4.312468056e-06 | H171: -1.670857279e-05 | J171: -0.0005399427659 | K171: -0.01602791115 | L171: 2.160231118e-05 | M171: 0.001925750519 | N171: 6.137616271e-06
A172: =IF('DF raw data'!E177="","",'DF raw data'!E177) -> -245 | B172: =IF('DF raw data'!F177="","",'DF raw data'!F177) -> -7.7277e-06 | C172: =IF('DF raw data'!G177="","",'DF raw data'!G177) -> 9.68766e-06 | D172: =IF('DF raw data'!H177="","",'DF raw data'!H177) -> -2.14359e-05 | F172: -7.76556573e-06 | G172: 9.735129534e-06 | H172: -2.154093591e-05 | J172: -0.0005438255487 | K172: -0.01629982393 | L172: 2.646987595e-05 | M172: 0.001938985457 | N172: 6.285839712e-06
A173: =IF('DF raw data'!E178="","",'DF raw data'!E178) -> -244.5 | B173: =IF('DF raw data'!F178="","",'DF raw data'!F178) -> -1.20225e-05 | C173: =IF('DF raw data'!G178="","",'DF raw data'!G178) -> -2.64338e-06 | D173: =IF('DF raw data'!H178="","",'DF raw data'!H178) -> -2.20399e-05 | F173: -1.208141025e-05 | G173: -2.656332562e-06 | H173: -2.214789551e-05 | J173: -0.0005498662538 | K173: -0.01657475706 | L173: 2.514170967e-05 | M173: 0.001951556312 | N173: 6.437332213e-06
A174: =IF('DF raw data'!E179="","",'DF raw data'!E179) -> -244 | B174: =IF('DF raw data'!F179="","",'DF raw data'!F179) -> -1.65094e-05 | C174: =IF('DF raw data'!G179="","",'DF raw data'!G179) -> -3.22011e-06 | D174: =IF('DF raw data'!H179="","",'DF raw data'!H179) -> -2.33356e-05 | F174: -1.659029606e-05 | G174: -3.235888539e-06 | H174: -2.344994444e-05 | J174: -0.0005581614019 | K174: -0.01685383776 | L174: 2.35237654e-05 | M174: 0.001963318194 | N174: 6.593380972e-06
A175: =IF('DF raw data'!E180="","",'DF raw data'!E180) -> -243.5 | B175: =IF('DF raw data'!F180="","",'DF raw data'!F180) -> -5.72743e-06 | C175: =IF('DF raw data'!G180="","",'DF raw data'!G180) -> -8.888e-07 | D175: =IF('DF raw data'!H180="","",'DF raw data'!H180) -> -4.12638e-05 | F175: -5.755494407e-06 | G175: -8.9315512e-07 | H175: -4.146599262e-05 | J175: -0.0005610391491 | K175: -0.01713435733 | L175: 2.307718784e-05 | M175: 0.001974856788 | N175: 6.751029714e-06
A176: =IF('DF raw data'!E181="","",'DF raw data'!E181) -> -243 | B176: =IF('DF raw data'!F181="","",'DF raw data'!F181) -> -3.68114e-06 | C176: =IF('DF raw data'!G181="","",'DF raw data'!G181) -> -8.53274e-06 | D176: =IF('DF raw data'!H181="","",'DF raw data'!H181) -> -3.34035e-05 | F176: -3.699177586e-06 | G176: -8.574550426e-06 | H176: -3.356717715e-05 | J176: -0.0005628887379 | K176: -0.0174158017 | L176: 1.878991263e-05 | M176: 0.001984251745 | N176: 6.90962811e-06
A177: =IF('DF raw data'!E182="","",'DF raw data'!E182) -> -242.5 | B177: =IF('DF raw data'!F182="","",'DF raw data'!F182) -> -4.20036e-06 | C177: =IF('DF raw data'!G182="","",'DF raw data'!G182) -> -5.84684e-06 | D177: =IF('DF raw data'!H182="","",'DF raw data'!H182) -> -2.35664e-05 | F177: -4.220941764e-06 | G177: -5.875489516e-06 | H177: -2.368187536e-05 | J177: -0.0005649992087 | K177: -0.0176983013 | L177: 1.585216787e-05 | M177: 0.001992177829 | N177: 7.069365809e-06
A178: =IF('DF raw data'!E183="","",'DF raw data'!E183) -> -242 | B178: =IF('DF raw data'!F183="","",'DF raw data'!F183) -> -8.11325e-06 | C178: =IF('DF raw data'!G183="","",'DF raw data'!G183) -> -9.9313e-06 | D178: =IF('DF raw data'!H183="","",'DF raw data'!H183) -> -2.00311e-05 | F178: -8.153004925e-06 | G178: -9.97996337e-06 | H178: -2.012925239e-05 | J178: -0.0005690757112 | K178: -0.01798283916 | L178: 1.086218618e-05 | M178: 0.001997608922 | N178: 7.231348385e-06
A179: =IF('DF raw data'!E184="","",'DF raw data'!E184) -> -241.5 | B179: =IF('DF raw data'!F184="","",'DF raw data'!F184) -> 4.15757e-07 | C179: =IF('DF raw data'!G184="","",'DF raw data'!G184) -> -3.02814e-06 | D179: =IF('DF raw data'!H184="","",'DF raw data'!H184) -> -2.39257e-05 | F179: 4.177942093e-07 | G179: -3.042977886e-06 | H179: -2.404293593e-05 | J179: -0.0005688668141 | K179: -0.01826727257 | L179: 9.34069724e-06 | M179: 0.00200227927 | N179: 7.393196735e-06
A180: =IF('DF raw data'!E185="","",'DF raw data'!E185) -> -241 | B180: =IF('DF raw data'!F185="","",'DF raw data'!F185) -> -1.07445e-05 | C180: =IF('DF raw data'!G185="","",'DF raw data'!G185) -> -4.03521e-06 | D180: =IF('DF raw data'!H185="","",'DF raw data'!H185) -> -1.57226e-05 | F180: -1.079714805e-05 | G180: -4.054982529e-06 | H180: -1.579964074e-05 | J180: -0.0005742653881 | K180: -0.01855440526 | L180: 7.313205975e-06 | M180: 0.002005935873 | N180: 7.558113845e-06
A181: =IF('DF raw data'!E186="","",'DF raw data'!E186) -> -240.5 | B181: =IF('DF raw data'!F186="","",'DF raw data'!F186) -> -1.55469e-05 | C181: =IF('DF raw data'!G186="","",'DF raw data'!G186) -> -5.44272e-06 | D181: =IF('DF raw data'!H186="","",'DF raw data'!H186) -> -2.45122e-05 | F181: -1.562307981e-05 | G181: -5.469389328e-06 | H181: -2.463230978e-05 | J181: -0.000582076928 | K181: -0.01884544373 | L181: 4.578511311e-06 | M181: 0.002008225129 | N181: 7.727531101e-06
A182: =IF('DF raw data'!E187="","",'DF raw data'!E187) -> -240 | B182: =IF('DF raw data'!F187="","",'DF raw data'!F187) -> -5.48346e-06 | C182: =IF('DF raw data'!G187="","",'DF raw data'!G187) -> -8.85015e-06 | D182: =IF('DF raw data'!H187="","",'DF raw data'!H187) -> -2.20596e-05 | F182: -5.510328954e-06 | G182: -8.893515735e-06 | H182: -2.216769204e-05 | J182: -0.0005848320925 | K182: -0.01913785977 | L182: 1.317534439e-07 | M182: 0.002008291006 | N182: 7.898545398e-06
A183: =IF('DF raw data'!E188="","",'DF raw data'!E188) -> -239.5 | B183: =IF('DF raw data'!F188="","",'DF raw data'!F188) -> -6.69582e-06 | C183: =IF('DF raw data'!G188="","",'DF raw data'!G188) -> -8.22402e-06 | D183: =IF('DF raw data'!H188="","",'DF raw data'!H188) -> -3.09812e-05 | F183: -6.728629518e-06 | G183: -8.264317698e-06 | H183: -3.113300788e-05 | J183: -0.0005881964073 | K183: -0.01943195798 | L183: -4.000405405e-06 | M183: 0.002006290803 | N183: 8.071540906e-06
A184: =IF('DF raw data'!E189="","",'DF raw data'!E189) -> -239 | B184: =IF('DF raw data'!F189="","",'DF raw data'!F189) -> -2.24403e-07 | C184: =IF('DF raw data'!G189="","",'DF raw data'!G189) -> -1.42573e-06 | D184: =IF('DF raw data'!H189="","",'DF raw data'!H189) -> -2.53113e-05 | F184: -2.255025747e-07 | G184: -1.432716077e-06 | H184: -2.543532537e-05 | J184: -0.0005883091586 | K184: -0.01972611255 | L184: -4.716763444e-06 | M184: 0.002003932421 | N184: 8.244605863e-06
A185: =IF('DF raw data'!E190="","",'DF raw data'!E190) -> -238.5 | B185: =IF('DF raw data'!F190="","",'DF raw data'!F190) -> -2.33716e-06 | C185: =IF('DF raw data'!G190="","",'DF raw data'!G190) -> 9.09524e-07 | D185: =IF('DF raw data'!H190="","",'DF raw data'!H190) -> -2.97282e-05 | F185: -2.348612084e-06 | G185: 9.139806676e-07 | H185: -2.987386818e-05 | J185: -0.0005894834646 | K185: -0.02002085429 | L185: -4.25977311e-06 | M185: 0.002001802535 | N185: 8.418360314e-06
A186: =IF('DF raw data'!E191="","",'DF raw data'!E191) -> -238 | B186: =IF('DF raw data'!F191="","",'DF raw data'!F191) -> -3.69137e-06 | C186: =IF('DF raw data'!G191="","",'DF raw data'!G191) -> -1.54648e-06 | D186: =IF('DF raw data'!H191="","",'DF raw data'!H191) -> -1.7622e-05 | F186: -3.709457713e-06 | G186: -1.554057752e-06 | H186: -1.77083478e-05 | J186: -0.0005913381935 | K186: -0.02031652338 | L186: -5.036801986e-06 | M186: 0.001999284134 | N186: 8.593213428e-06
A187: =IF('DF raw data'!E192="","",'DF raw data'!E192) -> -237.5 | B187: =IF('DF raw data'!F192="","",'DF raw data'!F192) -> -1.61924e-05 | C187: =IF('DF raw data'!G192="","",'DF raw data'!G192) -> -4.5906e-06 | D187: =IF('DF raw data'!H192="","",'DF raw data'!H192) -> -1.76123e-05 | F187: -1.627174276e-05 | G187: -4.61309394e-06 | H187: -1.769860027e-05 | J187: -0.0005994740648 | K187: -0.02061626042 | L187: -7.343348956e-06 | M187: 0.001995612459 | N187: 8.772924967e-06
A188: =IF('DF raw data'!E193="","",'DF raw data'!E193) -> -237 | B188: =IF('DF raw data'!F193="","",'DF raw data'!F193) -> -7.67112e-06 | C188: =IF('DF raw data'!G193="","",'DF raw data'!G193) -> 2.02658e-06 | D188: =IF('DF raw data'!H193="","",'DF raw data'!H193) -> -1.00346e-05 | F188: -7.708708488e-06 | G188: 2.036510242e-06 | H188: -1.008376954e-05 | J188: -0.0006033284191 | K188: -0.02091792463 | L188: -6.325093835e-06 | M188: 0.001992449912 | N188: 8.954947562e-06
A189: =IF('DF raw data'!E194="","",'DF raw data'!E194) -> -236.5 | B189: =IF('DF raw data'!F194="","",'DF raw data'!F194) -> -9.94127e-07 | C189: =IF('DF raw data'!G194="","",'DF raw data'!G194) -> -2.28256e-06 | D189: =IF('DF raw data'!H194="","",'DF raw data'!H194) -> -2.50206e-05 | F189: -9.989982223e-07 | G189: -2.293744544e-06 | H189: -2.514320094e-05 | J189: -0.0006038279182 | K189: -0.02121983858 | L189: -7.471966107e-06 | M189: 0.001988713929 | N189: 9.137279554e-06
A190: =IF('DF raw data'!E195="","",'DF raw data'!E195) -> -236 | B190: =IF('DF raw data'!F195="","",'DF raw data'!F195) -> -9.19849e-08 | C190: =IF('DF raw data'!G195="","",'DF raw data'!G195) -> -8.83927e-06 | D190: =IF('DF raw data'!H195="","",'DF raw data'!H195) -> -3.1798e-05 | F190: -9.243562601e-08 | G190: -8.882582423e-06 | H190: -3.19538102e-05 | J190: -0.000603874136 | K190: -0.02152177565 | L190: -1.191325732e-05 | M190: 0.001982757301 | N190: 9.319682503e-06
A191: =IF('DF raw data'!E196="","",'DF raw data'!E196) -> -235.5 | B191: =IF('DF raw data'!F196="","",'DF raw data'!F196) -> -1.33696e-05 | C191: =IF('DF raw data'!G196="","",'DF raw data'!G196) -> -3.96303e-06 | D191: =IF('DF raw data'!H196="","",'DF raw data'!H196) -> -2.09692e-05 | F191: -1.343511104e-05 | G191: -3.982448847e-06 | H191: -2.107194908e-05 | J191: -0.0006105916915 | K191: -0.0218270715 | L191: -1.390448174e-05 | M191: 0.00197580506 | N191: 9.506190277e-06
A192: =IF('DF raw data'!E197="","",'DF raw data'!E197) -> -235 | B192: =IF('DF raw data'!F197="","",'DF raw data'!F197) -> -1.4391e-05 | C192: =IF('DF raw data'!G197="","",'DF raw data'!G197) -> 4.60892e-07 | D192: =IF('DF raw data'!H197="","",'DF raw data'!H197) -> -2.7637e-05 | F192: =(1-$G$1*($B$49-$G$2))*B192 -> -1.44615159e-05 | G192: 4.631503708e-07 | H192: -2.77724213e-05 | J192: =F192*$G$3+J191 -> -0.0006178224495 | K192: =J192*$G$3+K191 -> -0.02213598272 | L192: =G192*$G$3+L191 -> -1.367290656e-05 | M192: =L192*$G$3+M191 -> 0.001968968607 | N192: =(J192^2+L192^2)*$G$3+N191 -> 9.697136041e-06
A193: =IF('DF raw data'!E198="","",'DF raw data'!E198) -> -234.5 | B193: =IF('DF raw data'!F198="","",'DF raw data'!F198) -> -7.28521e-06 | C193: =IF('DF raw data'!G198="","",'DF raw data'!G198) -> -2.97994e-06 | D193: =IF('DF raw data'!H198="","",'DF raw data'!H198) -> -1.15987e-05 | F193: -7.320907529e-06 | G193: -2.994541706e-06 | H193: -1.165553363e-05 | J193: -0.0006214829032 | K193: -0.02244672418 | L193: -1.517017741e-05 | M193: 0.001961383518 | N193: 9.890371608e-06
A194: =IF('DF raw data'!E199="","",'DF raw data'!E199) -> -234 | B194: =IF('DF raw data'!F199="","",'DF raw data'!F199) -> -8.68758e-06 | C194: =IF('DF raw data'!G199="","",'DF raw data'!G199) -> -8.98597e-06 | D194: =IF('DF raw data'!H199="","",'DF raw data'!H199) -> -2.42755e-05 | F194: -8.730149142e-06 | G194: -9.030001253e-06 | H194: -2.439444995e-05 | J194: -0.0006258479778 | K194: -0.02275964816 | L194: -1.968517804e-05 | M194: 0.001951540929 | N194: 1.008640821e-05
A195: =IF('DF raw data'!E200="","",'DF raw data'!E200) -> -233.5 | B195: =IF('DF raw data'!F200="","",'DF raw data'!F200) -> -1.54838e-05 | C195: =IF('DF raw data'!G200="","",'DF raw data'!G200) -> -1.25936e-05 | D195: =IF('DF raw data'!H200="","",'DF raw data'!H200) -> -2.31305e-05 | F195: -1.555967062e-05 | G195: -1.265530864e-05 | H195: -2.324383945e-05 | J195: -0.0006336278131 | K195: -0.02307646207 | L195: -2.601283236e-05 | M195: 0.001938534513 | N195: 1.028748864e-05
A196: =IF('DF raw data'!E201="","",'DF raw data'!E201) -> -233 | B196: =IF('DF raw data'!F201="","",'DF raw data'!F201) -> -1.24717e-05 | C196: =IF('DF raw data'!G201="","",'DF raw data'!G201) -> -1.3056e-05 | D196: =IF('DF raw data'!H201="","",'DF raw data'!H201) -> -2.16127e-05 | F196: -1.253281133e-05 | G196: -1.31199744e-05 | H196: -2.171860223e-05 | J196: -0.0006398942188 | K196: -0.02339640918 | L196: -3.257281956e-05 | M196: 0.001922248103 | N196: 1.049275144e-05
A197: =IF('DF raw data'!E202="","",'DF raw data'!E202) -> -232.5 | B197: =IF('DF raw data'!F202="","",'DF raw data'!F202) -> -8.17963e-06 | C197: =IF('DF raw data'!G202="","",'DF raw data'!G202) -> -1.14648e-05 | D197: =IF('DF raw data'!H202="","",'DF raw data'!H202) -> -1.67176e-05 | F197: -8.219710187e-06 | G197: -1.152097752e-05 | H197: -1.679951624e-05 | J197: -0.0006440040739 | K197: -0.02371841122 | L197: -3.833330832e-05 | M197: 0.001903081449 | N197: 1.070085679e-05
A198: =IF('DF raw data'!E203="","",'DF raw data'!E203) -> -232 | B198: =IF('DF raw data'!F203="","",'DF raw data'!F203) -> -8.62454e-06 | C198: =IF('DF raw data'!G203="","",'DF raw data'!G203) -> -9.37021e-07 | D198: =IF('DF raw data'!H203="","",'DF raw data'!H203) -> -2.24375e-05 | F198: -8.666800246e-06 | G198: -9.416124029e-07 | H198: -2.254744375e-05 | J198: -0.000648337474 | K198: -0.02404257995 | L198: -3.880411452e-05 | M198: 0.001883679391 | N198: 1.091178041e-05
A199: =IF('DF raw data'!E204="","",'DF raw data'!E204) -> -231.5 | B199: =IF('DF raw data'!F204="","",'DF raw data'!F204) -> -9.25612e-06 | C199: =IF('DF raw data'!G204="","",'DF raw data'!G204) -> -7.15512e-07 | D199: =IF('DF raw data'!H204="","",'DF raw data'!H204) -> -3.70407e-05 | F199: -9.301474988e-06 | G199: -7.190180088e-07 | H199: -3.722219943e-05 | J199: -0.0006529882115 | K199: -0.02436907406 | L199: -3.916362352e-05 | M199: 0.00186409758 | N199: 1.11257441e-05
A200: =IF('DF raw data'!E205="","",'DF raw data'!E205) -> -231 | B200: =IF('DF raw data'!F205="","",'DF raw data'!F205) -> -6.50582e-06 | C200: =IF('DF raw data'!G205="","",'DF raw data'!G205) -> -6.11554e-06 | D200: =IF('DF raw data'!H205="","",'DF raw data'!H205) -> -2.71935e-05 | F200: -6.537698518e-06 | G200: -6.145506146e-06 | H200: -2.732674815e-05 | J200: -0.0006562570608 | K200: -0.02469720259 | L200: -4.223637659e-05 | M200: 0.001842979391 | N200: 1.134197272e-05
A201: =IF('DF raw data'!E206="","",'DF raw data'!E206) -> -230.5 | B201: =IF('DF raw data'!F206="","",'DF raw data'!F206) -> 4.00624e-06 | C201: =IF('DF raw data'!G206="","",'DF raw data'!G206) -> -9.85464e-06 | D201: =IF('DF raw data'!H206="","",'DF raw data'!H206) -> -2.47758e-05 | F201: 4.025870576e-06 | G201: -9.902927736e-06 | H201: -2.489720142e-05 | J201: -0.0006542441255 | K201: -0.02502432465 | L201: -4.718784046e-05 | M201: 0.001819385471 | N201: 1.155710376e-05
... 1061 more rows

Sheet 10 y=0
A1: =IF('DF raw data'!I1="","",'DF raw data'!I1) -> Number of header lines | B1: =IF('DF raw data'!J1="","",'DF raw data'!J1) -> 54 | C1: =IF('DF raw data'!K1="","",'DF raw data'!K1) ->  | D1: =IF('DF raw data'!L1="","",'DF raw data'!L1) ->  | F1: T_coeff | G1: -0.001 | H1: /degC | J1: IBy total | K1: =J1262*1000 -> -6.693504361 | L1: muTm | M1: =L1262*1000 -> -31.35768397 | R1: DF ref | S1: ='10 y=-0.2'!S1 -> 1
A2: =IF('DF raw data'!I2="","",'DF raw data'!I2) -> Measured by | B2: =IF('DF raw data'!J2="","",'DF raw data'!J2) -> Danfysik | C2: =IF('DF raw data'!K2="","",'DF raw data'!K2) ->  | D2: =IF('DF raw data'!L2="","",'DF raw data'!L2) ->  | F2: Tcorr | G2: 20 | H2: degC | J2: JBy total | K2: =K1262 -> -25.38599422 | L2: muTm^2 | M2: =M1262 -> -8.27984059
A3: =IF('DF raw data'!I3="","",'DF raw data'!I3) -> Operator | B3: =IF('DF raw data'!J3="","",'DF raw data'!J3) -> PMHA | C3: =IF('DF raw data'!K3="","",'DF raw data'!K3) ->  | D3: =IF('DF raw data'!L3="","",'DF raw data'!L3) ->  | F3: Step | G3: =A63-A62 -> 0.5 | H3: mm | J3: PI total | K3: =N1262 -> 10402.71988 | L3: T^2mm^3
A4: =IF('DF raw data'!I4="","",'DF raw data'!I4) -> Data-time | B4: =IF('DF raw data'!J4="","",'DF raw data'!J4) -> 02-10-2024, 14:16:06 | C4: =IF('DF raw data'!K4="","",'DF raw data'!K4) ->  | D4: =IF('DF raw data'!L4="","",'DF raw data'!L4) -> 
A5: =IF('DF raw data'!I5="","",'DF raw data'!I5) -> Project | B5: =IF('DF raw data'!J5="","",'DF raw data'!J5) -> 504314 | C5: =IF('DF raw data'!K5="","",'DF raw data'!K5) ->  | D5: =IF('DF raw data'!L5="","",'DF raw data'!L5) -> 
A6: =IF('DF raw data'!I6="","",'DF raw data'!I6) -> Magnet type | B6: =IF('DF raw data'!J6="","",'DF raw data'!J6) -> Dipole | C6: =IF('DF raw data'!K6="","",'DF raw data'!K6) ->  | D6: =IF('DF raw data'!L6="","",'DF raw data'!L6) -> 
A7: =IF('DF raw data'!I7="","",'DF raw data'!I7) -> Magnet nr. | B7: =IF('DF raw data'!J7="","",'DF raw data'!J7) -> 2410109 | C7: =IF('DF raw data'!K7="","",'DF raw data'!K7) ->  | D7: =IF('DF raw data'!L7="","",'DF raw data'!L7) -> 
A8: =IF('DF raw data'!I8="","",'DF raw data'!I8) -> Meas. number | B8: =IF('DF raw data'!J8="","",'DF raw data'!J8) -> 946 | C8: =IF('DF raw data'!K8="","",'DF raw data'!K8) ->  | D8: =IF('DF raw data'!L8="","",'DF raw data'!L8) -> 
A9: =IF('DF raw data'!I9="","",'DF raw data'!I9) -> Add. info | B9: =IF('DF raw data'!J9="","",'DF raw data'!J9) -> Y-alignment scan 3) | C9: =IF('DF raw data'!K9="","",'DF raw data'!K9) ->  | D9: =IF('DF raw data'!L9="","",'DF raw data'!L9) -> 
A10: =IF('DF raw data'!I10="","",'DF raw data'!I10) -> Device | B10: =IF('DF raw data'!J10="","",'DF raw data'!J10) -> (HAL) HALL-PROBE | C10: =IF('DF raw data'!K10="","",'DF raw data'!K10) ->  | D10: =IF('DF raw data'!L10="","",'DF raw data'!L10) -> 
A11: =IF('DF raw data'!I11="","",'DF raw data'!I11) -> Goal | B11: =IF('DF raw data'!J11="","",'DF raw data'!J11) -> (AXI) AXis Integral (Line, EFB) | C11: =IF('DF raw data'!K11="","",'DF raw data'!K11) ->  | D11: =IF('DF raw data'!L11="","",'DF raw data'!L11) -> 
A12: =IF('DF raw data'!I12="","",'DF raw data'!I12) -> Power supply mode | B12: =IF('DF raw data'!J12="","",'DF raw data'!J12) -> (PM) Permanent Magnet (no MPS in use) | C12: =IF('DF raw data'!K12="","",'DF raw data'!K12) ->  | D12: =IF('DF raw data'!L12="","",'DF raw data'!L12) -> 
A13: =IF('DF raw data'!I13="","",'DF raw data'!I13) -> Data format | B13: =IF('DF raw data'!J13="","",'DF raw data'!J13) -> Raw data text file | C13: =IF('DF raw data'!K13="","",'DF raw data'!K13) ->  | D13: =IF('DF raw data'!L13="","",'DF raw data'!L13) -> 
A14: =IF('DF raw data'!I14="","",'DF raw data'!I14) -> Direction of the pos. x-axis | B14: =IF('DF raw data'!J14="","",'DF raw data'!J14) -> See test program | C14: =IF('DF raw data'!K14="","",'DF raw data'!K14) ->  | D14: =IF('DF raw data'!L14="","",'DF raw data'!L14) -> 
A15: =IF('DF raw data'!I15="","",'DF raw data'!I15) -> Direction of the pos. y-axis | B15: =IF('DF raw data'!J15="","",'DF raw data'!J15) -> Vertical up | C15: =IF('DF raw data'!K15="","",'DF raw data'!K15) ->  | D15: =IF('DF raw data'!L15="","",'DF raw data'!L15) -> 
A16: =IF('DF raw data'!I16="","",'DF raw data'!I16) -> Direction of the pos. z-axis | B16: =IF('DF raw data'!J16="","",'DF raw data'!J16) -> See test program | C16: =IF('DF raw data'!K16="","",'DF raw data'!K16) ->  | D16: =IF('DF raw data'!L16="","",'DF raw data'!L16) -> 
A17: =IF('DF raw data'!I17="","",'DF raw data'!I17) -> Mapper type | B17: =IF('DF raw data'!J17="","",'DF raw data'!J17) -> Precision Hall Mapper | C17: =IF('DF raw data'!K17="","",'DF raw data'!K17) ->  | D17: =IF('DF raw data'!L17="","",'DF raw data'!L17) -> 
A18: =IF('DF raw data'!I18="","",'DF raw data'!I18) -> Mapper Danfysik Reg. Number | B18: =IF('DF raw data'!J18="","",'DF raw data'!J18) -> 2033-D (mapper 1) | C18: =IF('DF raw data'!K18="","",'DF raw data'!K18) ->  | D18: =IF('DF raw data'!L18="","",'DF raw data'!L18) -> 
A19: =IF('DF raw data'!I19="","",'DF raw data'!I19) -> Measurement consept | B19: =IF('DF raw data'!J19="","",'DF raw data'!J19) -> Square line grid | C19: =IF('DF raw data'!K19="","",'DF raw data'!K19) ->  | D19: =IF('DF raw data'!L19="","",'DF raw data'!L19) -> 
A20: =IF('DF raw data'!I20="","",'DF raw data'!I20) -> Mode | B20: =IF('DF raw data'!J20="","",'DF raw data'!J20) -> On-the-fly measurement | C20: =IF('DF raw data'!K20="","",'DF raw data'!K20) ->  | D20: =IF('DF raw data'!L20="","",'DF raw data'!L20) -> 
A21: =IF('DF raw data'!I21="","",'DF raw data'!I21) ->  | B21: =IF('DF raw data'!J21="","",'DF raw data'!J21) ->  | C21: =IF('DF raw data'!K21="","",'DF raw data'!K21) ->  | D21: =IF('DF raw data'!L21="","",'DF raw data'!L21) -> 
A22: =IF('DF raw data'!I22="","",'DF raw data'!I22) -> Probe Name | B22: =IF('DF raw data'!J22="","",'DF raw data'!J22) -> ID12_By | C22: =IF('DF raw data'!K22="","",'DF raw data'!K22) ->  | D22: =IF('DF raw data'!L22="","",'DF raw data'!L22) -> 
A23: =IF('DF raw data'!I23="","",'DF raw data'!I23) -> Probe Type | B23: =IF('DF raw data'!J23="","",'DF raw data'!J23) -> DF_ID_3D_Bxyz | C23: =IF('DF raw data'!K23="","",'DF raw data'!K23) ->  | D23: =IF('DF raw data'!L23="","",'DF raw data'!L23) -> 
A24: =IF('DF raw data'!I24="","",'DF raw data'!I24) -> Probe Danfysik Reg. Number | B24: =IF('DF raw data'!J24="","",'DF raw data'!J24) -> 2277 | C24: =IF('DF raw data'!K24="","",'DF raw data'!K24) ->  | D24: =IF('DF raw data'!L24="","",'DF raw data'!L24) -> 
A25: =IF('DF raw data'!I25="","",'DF raw data'!I25) -> Probe Axis | B25: =IF('DF raw data'!J25="","",'DF raw data'!J25) -> By | C25: =IF('DF raw data'!K25="","",'DF raw data'!K25) ->  | D25: =IF('DF raw data'!L25="","",'DF raw data'!L25) -> 
A26: =IF('DF raw data'!I26="","",'DF raw data'!I26) -> Probe Current Supply | B26: =IF('DF raw data'!J26="","",'DF raw data'!J26) -> 1825-D | C26: =IF('DF raw data'!K26="","",'DF raw data'!K26) ->  | D26: =IF('DF raw data'!L26="","",'DF raw data'!L26) -> 
A27: =IF('DF raw data'!I27="","",'DF raw data'!I27) -> Probe Gain Correction | B27: =IF('DF raw data'!J27="","",'DF raw data'!J27) -> 0.99618 | C27: =IF('DF raw data'!K27="","",'DF raw data'!K27) ->  | D27: =IF('DF raw data'!L27="","",'DF raw data'!L27) -> 
A28: =IF('DF raw data'!I28="","",'DF raw data'!I28) -> Probe Offset Correction | B28: =IF('DF raw data'!J28="","",'DF raw data'!J28) -> 0.002742 | C28: =IF('DF raw data'!K28="","",'DF raw data'!K28) ->  | D28: =IF('DF raw data'!L28="","",'DF raw data'!L28) -> 
A29: =IF('DF raw data'!I29="","",'DF raw data'!I29) -> DVM Number | B29: =IF('DF raw data'!J29="","",'DF raw data'!J29) -> 2 | C29: =IF('DF raw data'!K29="","",'DF raw data'!K29) ->  | D29: =IF('DF raw data'!L29="","",'DF raw data'!L29) -> 
A30: =IF('DF raw data'!I30="","",'DF raw data'!I30) -> DVM Type | B30: =IF('DF raw data'!J30="","",'DF raw data'!J30) -> K2701 | C30: =IF('DF raw data'!K30="","",'DF raw data'!K30) ->  | D30: =IF('DF raw data'!L30="","",'DF raw data'!L30) -> 
A31: =IF('DF raw data'!I31="","",'DF raw data'!I31) -> DVM Danfysik Reg. Number | B31: =IF('DF raw data'!J31="","",'DF raw data'!J31) -> 1743-D | C31: =IF('DF raw data'!K31="","",'DF raw data'!K31) ->  | D31: =IF('DF raw data'!L31="","",'DF raw data'!L31) -> 
A32: =IF('DF raw data'!I32="","",'DF raw data'!I32) -> Probe Name | B32: =IF('DF raw data'!J32="","",'DF raw data'!J32) -> ID12_Bx | C32: =IF('DF raw data'!K32="","",'DF raw data'!K32) ->  | D32: =IF('DF raw data'!L32="","",'DF raw data'!L32) -> 
A33: =IF('DF raw data'!I33="","",'DF raw data'!I33) -> Probe Type | B33: =IF('DF raw data'!J33="","",'DF raw data'!J33) -> DF_ID_3D_Bxyz | C33: =IF('DF raw data'!K33="","",'DF raw data'!K33) ->  | D33: =IF('DF raw data'!L33="","",'DF raw data'!L33) -> 
A34: =IF('DF raw data'!I34="","",'DF raw data'!I34) -> Probe Danfysik Reg. Number | B34: =IF('DF raw data'!J34="","",'DF raw data'!J34) -> 2277 | C34: =IF('DF raw data'!K34="","",'DF raw data'!K34) ->  | D34: =IF('DF raw data'!L34="","",'DF raw data'!L34) -> 
A35: =IF('DF raw data'!I35="","",'DF raw data'!I35) -> Probe Axis | B35: =IF('DF raw data'!J35="","",'DF raw data'!J35) -> Bx | C35: =IF('DF raw data'!K35="","",'DF raw data'!K35) ->  | D35: =IF('DF raw data'!L35="","",'DF raw data'!L35) -> 
A36: =IF('DF raw data'!I36="","",'DF raw data'!I36) -> Probe Current Supply | B36: =IF('DF raw data'!J36="","",'DF raw data'!J36) -> 1825-D | C36: =IF('DF raw data'!K36="","",'DF raw data'!K36) ->  | D36: =IF('DF raw data'!L36="","",'DF raw data'!L36) -> 
A37: =IF('DF raw data'!I37="","",'DF raw data'!I37) -> Probe Gain Correction | B37: =IF('DF raw data'!J37="","",'DF raw data'!J37) -> 1 | C37: =IF('DF raw data'!K37="","",'DF raw data'!K37) ->  | D37: =IF('DF raw data'!L37="","",'DF raw data'!L37) -> 
A38: =IF('DF raw data'!I38="","",'DF raw data'!I38) -> Probe Offset Correction | B38: =IF('DF raw data'!J38="","",'DF raw data'!J38) -> -0.17582 | C38: =IF('DF raw data'!K38="","",'DF raw data'!K38) ->  | D38: =IF('DF raw data'!L38="","",'DF raw data'!L38) -> 
A39: =IF('DF raw data'!I39="","",'DF raw data'!I39) -> DVM Number | B39: =IF('DF raw data'!J39="","",'DF raw data'!J39) -> 3 | C39: =IF('DF raw data'!K39="","",'DF raw data'!K39) ->  | D39: =IF('DF raw data'!L39="","",'DF raw data'!L39) -> 
A40: =IF('DF raw data'!I40="","",'DF raw data'!I40) -> DVM Type | B40: =IF('DF raw data'!J40="","",'DF raw data'!J40) -> K2701 | C40: =IF('DF raw data'!K40="","",'DF raw data'!K40) ->  | D40: =IF('DF raw data'!L40="","",'DF raw data'!L40) -> 
A41: =IF('DF raw data'!I41="","",'DF raw data'!I41) -> DVM Danfysik Reg. Number | B41: =IF('DF raw data'!J41="","",'DF raw data'!J41) -> 1744-D | C41: =IF('DF raw data'!K41="","",'DF raw data'!K41) ->  | D41: =IF('DF raw data'!L41="","",'DF raw data'!L41) -> 
A42: =IF('DF raw data'!I42="","",'DF raw data'!I42) -> Probe Name | B42: =IF('DF raw data'!J42="","",'DF raw data'!J42) -> ID12_Bz | C42: =IF('DF raw data'!K42="","",'DF raw data'!K42) ->  | D42: =IF('DF raw data'!L42="","",'DF raw data'!L42) -> 
A43: =IF('DF raw data'!I43="","",'DF raw data'!I43) -> Probe Type | B43: =IF('DF raw data'!J43="","",'DF raw data'!J43) -> DF_ID_3D_Bxyz | C43: =IF('DF raw data'!K43="","",'DF raw data'!K43) ->  | D43: =IF('DF raw data'!L43="","",'DF raw data'!L43) -> 
A44: =IF('DF raw data'!I44="","",'DF raw data'!I44) -> Probe Danfysik Reg. Number | B44: =IF('DF raw data'!J44="","",'DF raw data'!J44) -> 2277 | C44: =IF('DF raw data'!K44="","",'DF raw data'!K44) ->  | D44: =IF('DF raw data'!L44="","",'DF raw data'!L44) -> 
A45: =IF('DF raw data'!I45="","",'DF raw data'!I45) -> Probe Axis | B45: =IF('DF raw data'!J45="","",'DF raw data'!J45) -> Bz | C45: =IF('DF raw data'!K45="","",'DF raw data'!K45) ->  | D45: =IF('DF raw data'!L45="","",'DF raw data'!L45) -> 
A46: =IF('DF raw data'!I46="","",'DF raw data'!I46) -> Probe Current Supply | B46: =IF('DF raw data'!J46="","",'DF raw data'!J46) -> 1825-D | C46: =IF('DF raw data'!K46="","",'DF raw data'!K46) ->  | D46: =IF('DF raw data'!L46="","",'DF raw data'!L46) -> 
A47: =IF('DF raw data'!I47="","",'DF raw data'!I47) -> Probe Gain Correction | B47: =IF('DF raw data'!J47="","",'DF raw data'!J47) -> 1 | C47: =IF('DF raw data'!K47="","",'DF raw data'!K47) ->  | D47: =IF('DF raw data'!L47="","",'DF raw data'!L47) -> 
A48: =IF('DF raw data'!I53="","",'DF raw data'!I53) -> PS-Gap: | B48: =IF('DF raw data'!J53="","",'DF raw data'!J53) -> 10 | C48: =IF('DF raw data'!K53="","",'DF raw data'!K53) ->  | D48: =IF('DF raw data'!L53="","",'DF raw data'!L53) -> 
A49: =IF('DF raw data'!I54="","",'DF raw data'!I54) -> PS-Temperature: | B49: =IF('DF raw data'!J54="","",'DF raw data'!J54) -> 24.9 | C49: =IF('DF raw data'!K54="","",'DF raw data'!K54) ->  | D49: =IF('DF raw data'!L54="","",'DF raw data'!L54) -> 
A50: =IF('DF raw data'!I55="","",'DF raw data'!I55) -> PS-Encoder: | B50: =IF('DF raw data'!J55="","",'DF raw data'!J55) -> 19.8325 | C50: =IF('DF raw data'!K55="","",'DF raw data'!K55) ->  | D50: =IF('DF raw data'!L55="","",'DF raw data'!L55) -> 
A51: =IF('DF raw data'!I56="","",'DF raw data'!I56) ->  | B51: =IF('DF raw data'!J56="","",'DF raw data'!J56) ->  | C51: =IF('DF raw data'!K56="","",'DF raw data'!K56) ->  | D51: =IF('DF raw data'!L56="","",'DF raw data'!L56) -> 
A52: =IF('DF raw data'!I57="","",'DF raw data'!I57) -> Monitor-Index | B52: =IF('DF raw data'!J57="","",'DF raw data'!J57) -> [1,1,4] | C52: =IF('DF raw data'!K57="","",'DF raw data'!K57) ->  | D52: =IF('DF raw data'!L57="","",'DF raw data'!L57) -> 
A53: =IF('DF raw data'!I58="","",'DF raw data'!I58) ->  | B53: =IF('DF raw data'!J58="","",'DF raw data'!J58) ->  | C53: =IF('DF raw data'!K58="","",'DF raw data'!K58) ->  | D53: =IF('DF raw data'!L58="","",'DF raw data'!L58) -> 
A54: =IF('DF raw data'!I59="","",'DF raw data'!I59) -> Time [s] | B54: =IF('DF raw data'!J59="","",'DF raw data'!J59) -> Y [mm] | C54: =IF('DF raw data'!K59="","",'DF raw data'!K59) -> X [mm] | D54: =IF('DF raw data'!L59="","",'DF raw data'!L59) -> Nominal current [A]
A55: =IF('DF raw data'!I60="","",'DF raw data'!I60) ->  | B55: =IF('DF raw data'!J60="","",'DF raw data'!J60) ->  | C55: =IF('DF raw data'!K60="","",'DF raw data'!K60) ->  | D55: =IF('DF raw data'!L60="","",'DF raw data'!L60) -> 
A56: =IF('DF raw data'!I61="","",'DF raw data'!I61) -> 208 | B56: =IF('DF raw data'!J61="","",'DF raw data'!J61) -> 31.5 | C56: =IF('DF raw data'!K61="","",'DF raw data'!K61) -> 301.8 | D56: =IF('DF raw data'!L61="","",'DF raw data'!L61) -> 0
A57: =IF('DF raw data'!I62="","",'DF raw data'!I62) ->  | B57: =IF('DF raw data'!J62="","",'DF raw data'!J62) ->  | C57: =IF('DF raw data'!K62="","",'DF raw data'!K62) ->  | D57: =IF('DF raw data'!L62="","",'DF raw data'!L62) -> 
A58: =IF('DF raw data'!I63="","",'DF raw data'!I63) -> Measurement-Index | B58: =IF('DF raw data'!J63="","",'DF raw data'!J63) -> [1,1,1201,2] | C58: =IF('DF raw data'!K63="","",'DF raw data'!K63) ->  | D58: =IF('DF raw data'!L63="","",'DF raw data'!L63) -> 
A59: =IF('DF raw data'!I64="","",'DF raw data'!I64) ->  | B59: =IF('DF raw data'!J64="","",'DF raw data'!J64) ->  | C59: =IF('DF raw data'!K64="","",'DF raw data'!K64) ->  | D59: =IF('DF raw data'!L64="","",'DF raw data'!L64) -> 
A60: =IF('DF raw data'!I65="","",'DF raw data'!I65) -> Z [mm] | B60: By [T] | C60: Bx [T] | D60: Bz [T] | F60: By_corr | G60: Bx_corr | H60: Bz_corr | J60: Iy | K60: Jy | L60: Ix | M60: Jx | N60: PI
A62: =IF('DF raw data'!I67="","",'DF raw data'!I67) -> -300 | B62: =IF('DF raw data'!J67="","",'DF raw data'!J67) -> 4.62214e-07 | C62: =IF('DF raw data'!K67="","",'DF raw data'!K67) -> 6.887e-06 | D62: =IF('DF raw data'!L67="","",'DF raw data'!L67) -> -1.40456e-05 | F62: =(1-$G$1*($B$49))*B62 -> 4.737231286e-07 | G62: =(1-$G$1*($B$49-$G$2))*C62 -> 6.9207463e-06 | H62: =(1-$G$1*($B$49-$G$2))*D62 -> -1.411442344e-05 | J62: =F62*$G$3 -> 2.368615643e-07 | K62: =J62*$G$3 -> 1.184307821e-07 | L62: =G62*$G$3 -> 3.46037315e-06 | M62: =L62*$G$3 -> 1.730186575e-06 | N62: =(J62^2+L62^2)*$G$3 -> 6.015142869e-12
A63: =IF('DF raw data'!I68="","",'DF raw data'!I68) -> -299.5 | B63: =IF('DF raw data'!J68="","",'DF raw data'!J68) -> -7.80766e-06 | C63: =IF('DF raw data'!K68="","",'DF raw data'!K68) -> 1.35434e-05 | D63: =IF('DF raw data'!L68="","",'DF raw data'!L68) -> -1.37399e-05 | F63: =(1-$G$1*($B$49-$G$2))*B63 -> -7.845917534e-06 | G63: =(1-$G$1*($B$49-$G$2))*C63 -> 1.360976266e-05 | H63: -1.380722551e-05 | J63: =F63*$G$3+J62 -> -3.686097203e-06 | K63: =J63*$G$3+K62 -> -1.724617819e-06 | L63: =G63*$G$3+L62 -> 1.026525448e-05 | M63: =L63*$G$3+M62 -> 6.862813815e-06 | N63: =(J63^2+L63^2)*$G$3+N62 -> 6.549652393e-11
A64: =IF('DF raw data'!I69="","",'DF raw data'!I69) -> -299 | B64: =IF('DF raw data'!J69="","",'DF raw data'!J69) -> -7.55164e-06 | C64: =IF('DF raw data'!K69="","",'DF raw data'!K69) -> 2.2576e-05 | D64: =IF('DF raw data'!L69="","",'DF raw data'!L69) -> -1.31171e-05 | F64: =(1-$G$1*($B$49-$G$2))*B64 -> -7.588643036e-06 | G64: 2.26866224e-05 | H64: -1.318137379e-05 | J64: =F64*$G$3+J63 -> -7.480418721e-06 | K64: =J64*$G$3+K63 -> -5.46482718e-06 | L64: =G64*$G$3+L63 -> 2.160856568e-05 | M64: =L64*$G$3+M63 -> 1.766709665e-05 | N64: =(J64^2+L64^2)*$G$3+N63 -> 3.269399114e-10
A65: =IF('DF raw data'!I70="","",'DF raw data'!I70) -> -298.5 | B65: =IF('DF raw data'!J70="","",'DF raw data'!J70) -> -1.16552e-05 | C65: =IF('DF raw data'!K70="","",'DF raw data'!K70) -> 1.1978e-05 | D65: =IF('DF raw data'!L70="","",'DF raw data'!L70) -> -1.22633e-05 | F65: -1.171231048e-05 | G65: 1.20366922e-05 | H65: -1.232339017e-05 | J65: -1.333657396e-05 | K65: -1.213311416e-05 | L65: 2.762691178e-05 | M65: 3.148055254e-05 | N65: 7.974951412e-10
A66: =IF('DF raw data'!I71="","",'DF raw data'!I71) -> -298 | B66: =IF('DF raw data'!J71="","",'DF raw data'!J71) -> -1.31303e-05 | C66: =IF('DF raw data'!K71="","",'DF raw data'!K71) -> 3.20785e-06 | D66: =IF('DF raw data'!L71="","",'DF raw data'!L71) -> -1.14312e-05 | F66: -1.319463847e-05 | G66: 3.223568465e-06 | H66: -1.148721288e-05 | J66: -1.99338932e-05 | K66: -2.210006076e-05 | L66: 2.923869601e-05 | M66: 4.609990055e-05 | N66: 1.423625862e-09
A67: =IF('DF raw data'!I72="","",'DF raw data'!I72) -> -297.5 | B67: =IF('DF raw data'!J72="","",'DF raw data'!J72) -> 1.10151e-06 | C67: =IF('DF raw data'!K72="","",'DF raw data'!K72) -> 6.33403e-06 | D67: =IF('DF raw data'!L72="","",'DF raw data'!L72) -> -1.13414e-05 | F67: 1.106907399e-06 | G67: 6.365066747e-06 | H67: -1.139697286e-05 | J67: -1.93804395e-05 | K67: -3.179028051e-05 | L67: 3.242122939e-05 | M67: 6.231051524e-05 | N67: 2.136994637e-09
A68: =IF('DF raw data'!I73="","",'DF raw data'!I73) -> -297 | B68: =IF('DF raw data'!J73="","",'DF raw data'!J73) -> -4.924e-06 | C68: =IF('DF raw data'!K73="","",'DF raw data'!K73) -> 4.94951e-06 | D68: =IF('DF raw data'!L73="","",'DF raw data'!L73) -> -1.18902e-05 | F68: -4.9481276e-06 | G68: 4.973762599e-06 | H68: -1.194846198e-05 | J68: -2.18545033e-05 | K68: -4.271753215e-05 | L68: 3.490811069e-05 | M68: 7.976457059e-05 | N68: 2.98509239e-09
A69: =IF('DF raw data'!I74="","",'DF raw data'!I74) -> -296.5 | B69: =IF('DF raw data'!J74="","",'DF raw data'!J74) -> 2.51284e-06 | C69: =IF('DF raw data'!K74="","",'DF raw data'!K74) -> -3.83074e-06 | D69: =IF('DF raw data'!L74="","",'DF raw data'!L74) -> -1.25067e-05 | F69: 2.525152916e-06 | G69: -3.849510626e-06 | H69: -1.256798283e-05 | J69: -2.059192684e-05 | K69: -5.301349557e-05 | L69: 3.298335537e-05 | M69: 9.625624827e-05 | N69: 3.741056982e-09
A70: =IF('DF raw data'!I75="","",'DF raw data'!I75) -> -296 | B70: =IF('DF raw data'!J75="","",'DF raw data'!J75) -> -7.29542e-06 | C70: =IF('DF raw data'!K75="","",'DF raw data'!K75) -> 1.15377e-06 | D70: =IF('DF raw data'!L75="","",'DF raw data'!L75) -> -1.28109e-05 | F70: -7.331167558e-06 | G70: 1.159423473e-06 | H70: -1.287367341e-05 | J70: -2.425751062e-05 | K70: -6.514225088e-05 | L70: 3.356306711e-05 | M70: 0.0001130377818 | N70: 4.598510129e-09
A71: =IF('DF raw data'!I76="","",'DF raw data'!I76) -> -295.5 | B71: =IF('DF raw data'!J76="","",'DF raw data'!J76) -> -5.00042e-07 | C71: =IF('DF raw data'!K76="","",'DF raw data'!K76) -> 1.26007e-06 | D71: =IF('DF raw data'!L76="","",'DF raw data'!L76) -> -1.27908e-05 | F71: -5.024922058e-07 | G71: 1.266244343e-06 | H71: -1.285347492e-05 | J71: -2.450875672e-05 | K71: -7.739662924e-05 | L71: 3.419618928e-05 | M71: 0.0001301358765 | N71: 5.483539388e-09
A72: =IF('DF raw data'!I77="","",'DF raw data'!I77) -> -295 | B72: =IF('DF raw data'!J77="","",'DF raw data'!J77) -> -1.22963e-05 | C72: =IF('DF raw data'!K77="","",'DF raw data'!K77) -> 9.97982e-07 | D72: =IF('DF raw data'!L77="","",'DF raw data'!L77) -> -1.21858e-05 | F72: -1.235655187e-05 | G72: 1.002872112e-06 | H72: -1.224551042e-05 | J72: -3.068703266e-05 | K72: -9.274014557e-05 | L72: 3.469762534e-05 | M72: 0.0001474846891 | N72: 6.556348976e-09
A73: =IF('DF raw data'!I78="","",'DF raw data'!I78) -> -294.5 | B73: =IF('DF raw data'!J78="","",'DF raw data'!J78) -> -5.05228e-06 | C73: =IF('DF raw data'!K78="","",'DF raw data'!K78) -> 8.95428e-06 | D73: =IF('DF raw data'!L78="","",'DF raw data'!L78) -> -1.17943e-05 | F73: -5.077036172e-06 | G73: 8.998155972e-06 | H73: -1.185209207e-05 | J73: -3.322555074e-05 | K73: -0.0001093529209 | L73: 3.919670332e-05 | M73: 0.0001670830408 | N73: 7.876508363e-09
A74: =IF('DF raw data'!I79="","",'DF raw data'!I79) -> -294 | B74: =IF('DF raw data'!J79="","",'DF raw data'!J79) -> 3.73063e-06 | C74: =IF('DF raw data'!K79="","",'DF raw data'!K79) -> 9.60031e-06 | D74: =IF('DF raw data'!L79="","",'DF raw data'!L79) -> -1.23918e-05 | F74: 3.748910087e-06 | G74: 9.647351519e-06 | H74: -1.245251982e-05 | J74: -3.13510957e-05 | K74: -0.0001250284688 | L74: 4.402037908e-05 | M74: 0.0001890932303 | N74: 9.336850851e-09
A75: =IF('DF raw data'!I80="","",'DF raw data'!I80) -> -293.5 | B75: =IF('DF raw data'!J80="","",'DF raw data'!J80) -> -8.96173e-06 | C75: =IF('DF raw data'!K80="","",'DF raw data'!K80) -> 1.10882e-05 | D75: =IF('DF raw data'!L80="","",'DF raw data'!L80) -> -1.34642e-05 | F75: -9.005642477e-06 | G75: 1.114253218e-05 | H75: -1.353017458e-05 | J75: -3.585391694e-05 | K75: -0.0001429554273 | L75: 4.959164517e-05 | M75: 0.0002138890529 | N75: 1.120926817e-08
A76: =IF('DF raw data'!I81="","",'DF raw data'!I81) -> -293 | B76: =IF('DF raw data'!J81="","",'DF raw data'!J81) -> -2.55093e-06 | C76: =IF('DF raw data'!K81="","",'DF raw data'!K81) -> 1.31769e-05 | D76: =IF('DF raw data'!L81="","",'DF raw data'!L81) -> -1.39259e-05 | F76: -2.563429557e-06 | G76: 1.324146681e-05 | H76: -1.399413691e-05 | J76: -3.713563171e-05 | K76: -0.0001615232431 | L76: 5.621237858e-05 | M76: 0.0002419952422 | N76: 1.347871149e-08
A77: =IF('DF raw data'!I82="","",'DF raw data'!I82) -> -292.5 | B77: =IF('DF raw data'!J82="","",'DF raw data'!J82) -> -2.55659e-05 | C77: =IF('DF raw data'!K82="","",'DF raw data'!K82) -> 1.46823e-05 | D77: =IF('DF raw data'!L82="","",'DF raw data'!L82) -> -1.29357e-05 | F77: -2.569117291e-05 | G77: 1.475424327e-05 | H77: -1.299908493e-05 | J77: -4.998121817e-05 | K77: -0.0001865138522 | L77: 6.358950021e-05 | M77: 0.0002737899923 | N77: 1.674958484e-08
A78: =IF('DF raw data'!I83="","",'DF raw data'!I83) -> -292 | B78: =IF('DF raw data'!J83="","",'DF raw data'!J83) -> -1.4989e-05 | C78: =IF('DF raw data'!K83="","",'DF raw data'!K83) -> 1.09913e-05 | D78: =IF('DF raw data'!L83="","",'DF raw data'!L83) -> -1.16537e-05 | F78: -1.50624461e-05 | G78: 1.104515737e-05 | H78: -1.171080313e-05 | J78: -5.751244122e-05 | K78: -0.0002152700728 | L78: 6.91120789e-05 | M78: 0.0003083460318 | N78: 2.079166502e-08
A79: =IF('DF raw data'!I84="","",'DF raw data'!I84) -> -291.5 | B79: =IF('DF raw data'!J84="","",'DF raw data'!J84) -> -7.23063e-06 | C79: =IF('DF raw data'!K84="","",'DF raw data'!K84) -> 3.13008e-06 | D79: =IF('DF raw data'!L84="","",'DF raw data'!L84) -> -1.40825e-05 | F79: -7.266060087e-06 | G79: 3.145417392e-06 | H79: -1.415150425e-05 | J79: -6.114547126e-05 | K79: -0.0002458428084 | L79: 7.068478759e-05 | M79: 0.0003436884256 | N79: 2.515921894e-08
A80: =IF('DF raw data'!I85="","",'DF raw data'!I85) -> -291 | B80: =IF('DF raw data'!J85="","",'DF raw data'!J85) -> -9.78955e-06 | C80: =IF('DF raw data'!K85="","",'DF raw data'!K85) -> 2.70114e-06 | D80: =IF('DF raw data'!L85="","",'DF raw data'!L85) -> -2.22306e-05 | F80: -9.837518795e-06 | G80: 2.714375586e-06 | H80: -2.233952994e-05 | J80: -6.606423066e-05 | K80: -0.0002788749238 | L80: 7.204197539e-05 | M80: 0.0003797094133 | N80: 2.993648334e-08
A81: =IF('DF raw data'!I86="","",'DF raw data'!I86) -> -290.5 | B81: =IF('DF raw data'!J86="","",'DF raw data'!J86) -> -9.7304e-06 | C81: =IF('DF raw data'!K86="","",'DF raw data'!K86) -> 7.0137e-06 | D81: =IF('DF raw data'!L86="","",'DF raw data'!L86) -> -1.4793e-05 | F81: -9.77807896e-06 | G81: 7.04806713e-06 | H81: -1.48654857e-05 | J81: -7.095327014e-05 | K81: -0.0003143515588 | L81: 7.556600895e-05 | M81: 0.0004174924177 | N81: 3.530877746e-08
A82: =IF('DF raw data'!I87="","",'DF raw data'!I87) -> -290 | B82: =IF('DF raw data'!J87="","",'DF raw data'!J87) -> -1.33859e-05 | C82: =IF('DF raw data'!K87="","",'DF raw data'!K87) -> 7.83611e-06 | D82: =IF('DF raw data'!L87="","",'DF raw data'!L87) -> -1.26791e-05 | F82: -1.345149091e-05 | G82: 7.874506939e-06 | H82: -1.274122759e-05 | J82: -7.76790156e-05 | K82: -0.0003531910666 | L82: 7.950326242e-05 | M82: 0.0004572440489 | N82: 4.148617656e-08
A83: =IF('DF raw data'!I88="","",'DF raw data'!I88) -> -289.5 | B83: =IF('DF raw data'!J88="","",'DF raw data'!J88) -> -2.42171e-06 | C83: =IF('DF raw data'!K88="","",'DF raw data'!K88) -> 4.20507e-06 | D83: =IF('DF raw data'!L88="","",'DF raw data'!L88) -> -1.54848e-05 | F83: -2.433576379e-06 | G83: 4.225674843e-06 | H83: -1.556067552e-05 | J83: -7.889580379e-05 | K83: -0.0003926389685 | L83: 8.161609984e-05 | M83: 0.0004980520989 | N83: 4.792904437e-08
A84: =IF('DF raw data'!I89="","",'DF raw data'!I89) -> -289 | B84: =IF('DF raw data'!J89="","",'DF raw data'!J89) -> -5.57106e-06 | C84: =IF('DF raw data'!K89="","",'DF raw data'!K89) -> -2.45614e-06 | D84: =IF('DF raw data'!L89="","",'DF raw data'!L89) -> -3.04176e-06 | F84: -5.598358194e-06 | G84: -2.468175086e-06 | H84: -3.056664624e-06 | J84: -8.169498288e-05 | K84: -0.00043348646 | L84: 8.03820123e-05 | M84: 0.000538243105 | N84: 5.449671343e-08
A85: =IF('DF raw data'!I90="","",'DF raw data'!I90) -> -288.5 | B85: =IF('DF raw data'!J90="","",'DF raw data'!J90) -> 1.13137e-08 | C85: =IF('DF raw data'!K90="","",'DF raw data'!K90) -> -9.80968e-06 | D85: =IF('DF raw data'!L90="","",'DF raw data'!L90) -> -1.05025e-05 | F85: 1.136913713e-08 | G85: -9.857747432e-06 | H85: -1.055396225e-05 | J85: -8.168929831e-05 | K85: -0.0004743311091 | L85: 7.545313858e-05 | M85: 0.0005759696743 | N85: 6.067987222e-08
A86: =IF('DF raw data'!I91="","",'DF raw data'!I91) -> -288 | B86: =IF('DF raw data'!J91="","",'DF raw data'!J91) -> -7.74557e-06 | C86: =IF('DF raw data'!K91="","",'DF raw data'!K91) -> -6.49813e-06 | D86: =IF('DF raw data'!L91="","",'DF raw data'!L91) -> -1.08546e-05 | F86: -7.783523293e-06 | G86: -6.529970837e-06 | H86: -1.090778754e-05 | J86: -8.558105996e-05 | K86: -0.0005171216391 | L86: 7.218815316e-05 | M86: 0.0006120637509 | N86: 6.694749586e-08
A87: =IF('DF raw data'!I92="","",'DF raw data'!I92) -> -287.5 | B87: =IF('DF raw data'!J92="","",'DF raw data'!J92) -> -2.04979e-05 | C87: =IF('DF raw data'!K92="","",'DF raw data'!K92) -> 4.03193e-06 | D87: =IF('DF raw data'!L92="","",'DF raw data'!L92) -> -1.84628e-05 | F87: -2.059833971e-05 | G87: 4.051686457e-06 | H87: -1.855326772e-05 | J87: -9.588022982e-05 | K87: -0.000565061754 | L87: 7.421399639e-05 | M87: 0.0006491707491 | N87: 7.429786373e-08
A88: =IF('DF raw data'!I93="","",'DF raw data'!I93) -> -287 | B88: =IF('DF raw data'!J93="","",'DF raw data'!J93) -> -9.79076e-06 | C88: =IF('DF raw data'!K93="","",'DF raw data'!K93) -> 3.76615e-06 | D88: =IF('DF raw data'!L93="","",'DF raw data'!L93) -> -2.03663e-05 | F88: -9.838734724e-06 | G88: 3.784604135e-06 | H88: -2.046609487e-05 | J88: -0.0001007995972 | K88: -0.0006154615526 | L88: 7.610629846e-05 | M88: 0.0006872238983 | N88: 8.227422746e-08
A89: =IF('DF raw data'!I94="","",'DF raw data'!I94) -> -286.5 | B89: =IF('DF raw data'!J94="","",'DF raw data'!J94) -> -8.38248e-06 | C89: =IF('DF raw data'!K94="","",'DF raw data'!K94) -> 5.74558e-06 | D89: =IF('DF raw data'!L94="","",'DF raw data'!L94) -> -1.72401e-05 | F89: -8.423554152e-06 | G89: 5.773733342e-06 | H89: -1.732457649e-05 | J89: -0.0001050113743 | K89: -0.0006679672397 | L89: 7.899316513e-05 | M89: 0.0007267204809 | N89: 9.090788189e-08
A90: =IF('DF raw data'!I95="","",'DF raw data'!I95) -> -286 | B90: =IF('DF raw data'!J95="","",'DF raw data'!J95) -> -3.379e-06 | C90: =IF('DF raw data'!K95="","",'DF raw data'!K95) -> 2.10081e-06 | D90: =IF('DF raw data'!L95="","",'DF raw data'!L95) -> -2.18991e-05 | F90: -3.3955571e-06 | G90: 2.111103969e-06 | H90: -2.200640559e-05 | J90: -0.0001067091528 | K90: -0.0007213218161 | L90: 8.004871712e-05 | M90: 0.0007667448394 | N90: 9.980520209e-08
A91: =IF('DF raw data'!I96="","",'DF raw data'!I96) -> -285.5 | B91: =IF('DF raw data'!J96="","",'DF raw data'!J96) -> -3.63836e-06 | C91: =IF('DF raw data'!K96="","",'DF raw data'!K96) -> -1.13799e-06 | D91: =IF('DF raw data'!L96="","",'DF raw data'!L96) -> -1.73639e-05 | F91: -3.656187964e-06 | G91: -1.143566151e-06 | H91: -1.744898311e-05 | J91: -0.0001085372468 | K91: -0.0007755904395 | L91: 7.947693404e-05 | M91: 0.0008064833065 | N91: 1.088536606e-07
A92: =IF('DF raw data'!I97="","",'DF raw data'!I97) -> -285 | B92: =IF('DF raw data'!J97="","",'DF raw data'!J97) -> -1.86427e-05 | C92: =IF('DF raw data'!K97="","",'DF raw data'!K97) -> 2.08023e-06 | D92: =IF('DF raw data'!L97="","",'DF raw data'!L97) -> -1.24199e-05 | F92: -1.873404923e-05 | G92: 2.090423127e-06 | H92: -1.248075751e-05 | J92: -0.0001179042714 | K92: -0.0008345425752 | L92: 8.05221456e-05 | M92: 0.0008467443793 | N92: 1.190462772e-07
A93: =IF('DF raw data'!I98="","",'DF raw data'!I98) -> -284.5 | B93: =IF('DF raw data'!J98="","",'DF raw data'!J98) -> -8.24816e-06 | C93: =IF('DF raw data'!K98="","",'DF raw data'!K98) -> -3.48401e-06 | D93: =IF('DF raw data'!L98="","",'DF raw data'!L98) -> -2.66558e-05 | F93: -8.288575984e-06 | G93: -3.501081649e-06 | H93: -2.678641342e-05 | J93: -0.0001220485594 | K93: -0.0008955668549 | L93: 7.877160478e-05 | M93: 0.0008861301816 | N93: 1.295966854e-07
A94: =IF('DF raw data'!I99="","",'DF raw data'!I99) -> -284 | B94: =IF('DF raw data'!J99="","",'DF raw data'!J99) -> -1.71963e-06 | C94: =IF('DF raw data'!K99="","",'DF raw data'!K99) -> -3.81271e-06 | D94: =IF('DF raw data'!L99="","",'DF raw data'!L99) -> -1.05505e-05 | F94: -1.728056187e-06 | G94: -3.831392279e-06 | H94: -1.060219745e-05 | J94: -0.0001229125875 | K94: -0.0009570231487 | L94: 7.685590864e-05 | M94: 0.000924558136 | N94: 1.401038529e-07
A95: =IF('DF raw data'!I100="","",'DF raw data'!I100) -> -283.5 | B95: =IF('DF raw data'!J100="","",'DF raw data'!J100) -> 6.55339e-07 | C95: =IF('DF raw data'!K100="","",'DF raw data'!K100) -> -1.20726e-06 | D95: =IF('DF raw data'!L100="","",'DF raw data'!L100) -> -1.50892e-05 | F95: 6.585501611e-07 | G95: -1.213175574e-06 | H95: -1.516313708e-05 | J95: -0.0001225833124 | K95: -0.001018314805 | L95: 7.624932085e-05 | M95: 0.0009626827964 | N95: 1.505241666e-07
A96: =IF('DF raw data'!I101="","",'DF raw data'!I101) -> -283 | B96: =IF('DF raw data'!J101="","",'DF raw data'!J101) -> -1.18375e-05 | C96: =IF('DF raw data'!K101="","",'DF raw data'!K101) -> 3.88175e-06 | D96: =IF('DF raw data'!L101="","",'DF raw data'!L101) -> -2.75393e-05 | F96: -1.189550375e-05 | G96: 3.900770575e-06 | H96: -2.767424257e-05 | J96: -0.0001285310643 | K96: -0.001082580337 | L96: 7.819970614e-05 | M96: 0.001001782649 | N96: 1.618418808e-07
A97: =IF('DF raw data'!I102="","",'DF raw data'!I102) -> -282.5 | B97: =IF('DF raw data'!J102="","",'DF raw data'!J102) -> -4.73538e-06 | C97: =IF('DF raw data'!K102="","",'DF raw data'!K102) -> 1.29869e-05 | D97: =IF('DF raw data'!L102="","",'DF raw data'!L102) -> -6.41805e-06 | F97: -4.758583362e-06 | G97: 1.305053581e-05 | H97: -6.449498445e-06 | J97: -0.000130910356 | K97: -0.001148035515 | L97: 8.472497405e-05 | M97: 0.001044145136 | N97: 1.739998021e-07
A98: =IF('DF raw data'!I103="","",'DF raw data'!I103) -> -282 | B98: =IF('DF raw data'!J103="","",'DF raw data'!J103) -> 1.87363e-06 | C98: =IF('DF raw data'!K103="","",'DF raw data'!K103) -> 8.1951e-06 | D98: =IF('DF raw data'!L103="","",'DF raw data'!L103) -> -1.57505e-05 | F98: 1.882810787e-06 | G98: 8.23525599e-06 | H98: -1.582767745e-05 | J98: -0.0001299689506 | K98: -0.00121301999 | L98: 8.884260204e-05 | M98: 0.001088566438 | N98: 1.863922701e-07
A99: =IF('DF raw data'!I104="","",'DF raw data'!I104) -> -281.5 | B99: =IF('DF raw data'!J104="","",'DF raw data'!J104) -> -6.26594e-06 | C99: =IF('DF raw data'!K104="","",'DF raw data'!K104) -> 2.42823e-06 | D99: =IF('DF raw data'!L104="","",'DF raw data'!L104) -> -1.86898e-05 | F99: -6.296643106e-06 | G99: 2.440128327e-06 | H99: -1.878138002e-05 | J99: -0.0001331172721 | K99: -0.001279578626 | L99: 9.00626662e-05 | M99: 0.001133597771 | N99: 1.993080161e-07
A100: =IF('DF raw data'!I105="","",'DF raw data'!I105) -> -281 | B100: =IF('DF raw data'!J105="","",'DF raw data'!J105) -> -5.94935e-06 | C100: =IF('DF raw data'!K105="","",'DF raw data'!K105) -> 3.6156e-06 | D100: =IF('DF raw data'!L105="","",'DF raw data'!L105) -> -1.28334e-05 | F100: -5.978501815e-06 | G100: 3.63331644e-06 | H100: -1.289628366e-05 | J100: -0.000136106523 | K100: -0.001347631888 | L100: 9.187932442e-05 | M100: 0.001179537433 | N100: 2.12791414e-07
A101: =IF('DF raw data'!I106="","",'DF raw data'!I106) -> -280.5 | B101: =IF('DF raw data'!J106="","",'DF raw data'!J106) -> -1.06301e-05 | C101: =IF('DF raw data'!K106="","",'DF raw data'!K106) -> 1.10942e-05 | D101: =IF('DF raw data'!L106="","",'DF raw data'!L106) -> -1.14139e-05 | F101: -1.068218749e-05 | G101: 1.114856158e-05 | H101: -1.146982811e-05 | J101: -0.0001414476168 | K101: -0.001418355696 | L101: 9.745360521e-05 | M101: 0.001228264235 | N101: 2.275437308e-07
A102: =IF('DF raw data'!I107="","",'DF raw data'!I107) -> -280 | B102: =IF('DF raw data'!J107="","",'DF raw data'!J107) -> 2.71444e-07 | C102: =IF('DF raw data'!K107="","",'DF raw data'!K107) -> 6.3315e-06 | D102: =IF('DF raw data'!L107="","",'DF raw data'!L107) -> -1.62235e-05 | F102: 2.727740756e-07 | G102: 6.36252435e-06 | H102: -1.630299515e-05 | J102: -0.0001413112297 | K102: -0.001489011311 | L102: 0.0001006348674 | M102: 0.001278581669 | N102: 2.425918509e-07
A103: =IF('DF raw data'!I108="","",'DF raw data'!I108) -> -279.5 | B103: =IF('DF raw data'!J108="","",'DF raw data'!J108) -> -1.4159e-05 | C103: =IF('DF raw data'!K108="","",'DF raw data'!K108) -> 3.80334e-06 | D103: =IF('DF raw data'!L108="","",'DF raw data'!L108) -> -6.78088e-06 | F103: -1.42283791e-05 | G103: 3.821976366e-06 | H103: -6.814106312e-06 | J103: -0.0001484254193 | K103: -0.001563224021 | L103: 0.0001025458556 | M103: 0.001329854597 | N103: 2.588647297e-07
A104: =IF('DF raw data'!I109="","",'DF raw data'!I109) -> -279 | B104: =IF('DF raw data'!J109="","",'DF raw data'!J109) -> -5.11781e-06 | C104: =IF('DF raw data'!K109="","",'DF raw data'!K109) -> 5.17232e-06 | D104: =IF('DF raw data'!L109="","",'DF raw data'!L109) -> -9.81301e-06 | F104: -5.142887269e-06 | G104: 5.197664368e-06 | H104: -9.861093749e-06 | J104: -0.0001509968629 | K104: -0.001638722452 | L104: 0.0001051446878 | M104: 0.001382426941 | N104: 2.757924586e-07
A105: =IF('DF raw data'!I110="","",'DF raw data'!I110) -> -278.5 | B105: =IF('DF raw data'!J110="","",'DF raw data'!J110) -> -2.55218e-06 | C105: =IF('DF raw data'!K110="","",'DF raw data'!K110) -> -2.45341e-06 | D105: =IF('DF raw data'!L110="","",'DF raw data'!L110) -> -1.20126e-05 | F105: -2.564685682e-06 | G105: -2.465431709e-06 | H105: -1.207146174e-05 | J105: -0.0001522792058 | K105: -0.001714862055 | L105: 0.0001039119719 | M105: 0.001434382927 | N105: 2.927857859e-07
A106: =IF('DF raw data'!I111="","",'DF raw data'!I111) -> -278 | B106: =IF('DF raw data'!J111="","",'DF raw data'!J111) -> -7.80577e-06 | C106: =IF('DF raw data'!K111="","",'DF raw data'!K111) -> 2.83887e-07 | D106: =IF('DF raw data'!L111="","",'DF raw data'!L111) -> -1.66934e-05 | F106: -7.844018273e-06 | G106: 2.852780463e-07 | H106: -1.677519766e-05 | J106: -0.0001562012149 | K106: -0.001792962663 | L106: 0.0001040546109 | M106: 0.001486410232 | N106: 3.103988766e-07
A107: =IF('DF raw data'!I112="","",'DF raw data'!I112) -> -277.5 | B107: =IF('DF raw data'!J112="","",'DF raw data'!J112) -> 4.24255e-06 | C107: =IF('DF raw data'!K112="","",'DF raw data'!K112) -> 4.96257e-06 | D107: =IF('DF raw data'!L112="","",'DF raw data'!L112) -> -1.09564e-05 | F107: 4.263338495e-06 | G107: 4.986886593e-06 | H107: -1.101008636e-05 | J107: -0.0001540695456 | K107: -0.001869997435 | L107: 0.0001065480542 | M107: 0.001539684259 | N107: 3.27943833e-07
A108: =IF('DF raw data'!I113="","",'DF raw data'!I113) -> -277 | B108: =IF('DF raw data'!J113="","",'DF raw data'!J113) -> -6.27759e-07 | C108: =IF('DF raw data'!K113="","",'DF raw data'!K113) -> 3.57122e-06 | D108: =IF('DF raw data'!L113="","",'DF raw data'!L113) -> -1.35535e-05 | F108: -6.308350191e-07 | G108: 3.588718978e-06 | H108: -1.361991215e-05 | J108: -0.0001543849632 | K108: -0.001947189917 | L108: 0.0001083424137 | M108: 0.001593855466 | N108: 3.457302308e-07
A109: =IF('DF raw data'!I114="","",'DF raw data'!I114) -> -276.5 | B109: =IF('DF raw data'!J114="","",'DF raw data'!J114) -> -6.40231e-06 | C109: =IF('DF raw data'!K114="","",'DF raw data'!K114) -> 1.0874e-05 | D109: =IF('DF raw data'!L114="","",'DF raw data'!L114) -> -6.11951e-06 | F109: -6.433681319e-06 | G109: 1.09272826e-05 | H109: -6.149495599e-06 | J109: -0.0001576018038 | K109: -0.002025990819 | L109: 0.000113806055 | M109: 0.001650758494 | N109: 3.646253041e-07
A110: =IF('DF raw data'!I115="","",'DF raw data'!I115) -> -276 | B110: =IF('DF raw data'!J115="","",'DF raw data'!J115) -> 5.91574e-06 | C110: =IF('DF raw data'!K115="","",'DF raw data'!K115) -> 1.04991e-05 | D110: =IF('DF raw data'!L115="","",'DF raw data'!L115) -> -2.09066e-05 | F110: 5.944727126e-06 | G110: 1.055054559e-05 | H110: -2.100904234e-05 | J110: -0.0001546294403 | K110: -0.002103305539 | L110: 0.0001190813278 | M110: 0.001710299158 | N110: 3.836706173e-07
A111: =IF('DF raw data'!I116="","",'DF raw data'!I116) -> -275.5 | B111: =IF('DF raw data'!J116="","",'DF raw data'!J116) -> 3.16024e-06 | C111: =IF('DF raw data'!K116="","",'DF raw data'!K116) -> 1.25078e-05 | D111: =IF('DF raw data'!L116="","",'DF raw data'!L116) -> -2.22833e-05 | F111: 3.175725176e-06 | G111: 1.256908822e-05 | H111: -2.239248817e-05 | J111: -0.0001530415777 | K111: -0.002179826328 | L111: 0.0001253658719 | M111: 0.001772982094 | N111: 4.032397805e-07
A112: =IF('DF raw data'!I117="","",'DF raw data'!I117) -> -275 | B112: =IF('DF raw data'!J117="","",'DF raw data'!J117) -> 1.42648e-06 | C112: =IF('DF raw data'!K117="","",'DF raw data'!K117) -> 5.5427e-06 | D112: =IF('DF raw data'!L117="","",'DF raw data'!L117) -> -1.79774e-05 | F112: 1.433469752e-06 | G112: 5.56985923e-06 | H112: -1.806548926e-05 | J112: -0.0001523248428 | K112: -0.002255988749 | L112: 0.0001281508015 | M112: 0.001837057494 | N112: 4.230525233e-07
A113: =IF('DF raw data'!I118="","",'DF raw data'!I118) -> -274.5 | B113: =IF('DF raw data'!J118="","",'DF raw data'!J118) -> -2.22074e-06 | C113: =IF('DF raw data'!K118="","",'DF raw data'!K118) -> -3.21321e-06 | D113: =IF('DF raw data'!L118="","",'DF raw data'!L118) -> -2.86382e-05 | F113: -2.231621626e-06 | G113: -3.228954729e-06 | H113: -2.877852718e-05 | J113: -0.0001534406536 | K113: -0.002332709076 | L113: 0.0001265363242 | M113: 0.001900325656 | N113: 4.428302611e-07
A114: =IF('DF raw data'!I119="","",'DF raw data'!I119) -> -274 | B114: =IF('DF raw data'!J119="","",'DF raw data'!J119) -> -1.84359e-06 | C114: =IF('DF raw data'!K119="","",'DF raw data'!K119) -> -2.17723e-06 | D114: =IF('DF raw data'!L119="","",'DF raw data'!L119) -> -1.70974e-05 | F114: -1.852623591e-06 | G114: -2.187898427e-06 | H114: -1.718117726e-05 | J114: -0.0001543669654 | K114: -0.002409892559 | L114: 0.000125442375 | M114: 0.001963046844 | N114: 4.626127358e-07
A115: =IF('DF raw data'!I120="","",'DF raw data'!I120) -> -273.5 | B115: =IF('DF raw data'!J120="","",'DF raw data'!J120) -> -5.81996e-06 | C115: =IF('DF raw data'!K120="","",'DF raw data'!K120) -> 1.169e-07 | D115: =IF('DF raw data'!L120="","",'DF raw data'!L120) -> -1.46629e-05 | F115: -5.848477804e-06 | G115: 1.1747281e-07 | H115: -1.473474821e-05 | J115: -0.0001572912043 | K115: -0.002488538161 | L115: 0.0001255011114 | M115: 0.0020257974 | N115: 4.828582618e-07
A116: =IF('DF raw data'!I121="","",'DF raw data'!I121) -> -273 | B116: =IF('DF raw data'!J121="","",'DF raw data'!J121) -> -6.87625e-07 | C116: =IF('DF raw data'!K121="","",'DF raw data'!K121) -> 4.61425e-06 | D116: =IF('DF raw data'!L121="","",'DF raw data'!L121) -> -2.02965e-05 | F116: -6.909943625e-07 | G116: 4.636859825e-06 | H116: -2.039595285e-05 | J116: -0.0001576367015 | K116: -0.002567356512 | L116: 0.0001278195413 | M116: 0.00208970717 | N116: 5.034518441e-07
A117: =IF('DF raw data'!I122="","",'DF raw data'!I122) -> -272.5 | B117: =IF('DF raw data'!J122="","",'DF raw data'!J122) -> -3.82771e-06 | C117: =IF('DF raw data'!K122="","",'DF raw data'!K122) -> 9.6621e-06 | D117: =IF('DF raw data'!L122="","",'DF raw data'!L122) -> -2.21565e-05 | F117: -3.846465779e-06 | G117: 9.70944429e-06 | H117: -2.226506685e-05 | J117: -0.0001595599344 | K117: -0.002647136479 | L117: 0.0001326742634 | M117: 0.002156044302 | N117: 5.249827606e-07
A118: =IF('DF raw data'!I123="","",'DF raw data'!I123) -> -272 | B118: =IF('DF raw data'!J123="","",'DF raw data'!J123) -> -5.93998e-06 | C118: =IF('DF raw data'!K123="","",'DF raw data'!K123) -> 5.46435e-06 | D118: =IF('DF raw data'!L123="","",'DF raw data'!L123) -> -2.72894e-05 | F118: -5.969085902e-06 | G118: 5.491125315e-06 | H118: -2.742311806e-05 | J118: -0.0001625444773 | K118: -0.002728408717 | L118: 0.0001354198261 | M118: 0.002223754215 | N118: 5.473623788e-07
A119: =IF('DF raw data'!I124="","",'DF raw data'!I124) -> -271.5 | B119: =IF('DF raw data'!J124="","",'DF raw data'!J124) -> 9.50449e-06 | C119: =IF('DF raw data'!K124="","",'DF raw data'!K124) -> 9.82055e-06 | D119: =IF('DF raw data'!L124="","",'DF raw data'!L124) -> -1.87372e-05 | F119: 9.551062001e-06 | G119: 9.868670695e-06 | H119: -1.882901228e-05 | J119: -0.0001577689463 | K119: -0.002807293191 | L119: 0.0001403541614 | M119: 0.002293931296 | N119: 5.696575443e-07
A120: =IF('DF raw data'!I125="","",'DF raw data'!I125) -> -271 | B120: =IF('DF raw data'!J125="","",'DF raw data'!J125) -> -9.28184e-06 | C120: =IF('DF raw data'!K125="","",'DF raw data'!K125) -> 1.1221e-05 | D120: =IF('DF raw data'!L125="","",'DF raw data'!L125) -> -1.43571e-05 | F120: -9.327321016e-06 | G120: 1.12759829e-05 | H120: -1.442744979e-05 | J120: -0.0001624326068 | K120: -0.002888509494 | L120: 0.0001459921529 | M120: 0.002366927372 | N120: 5.935065745e-07
A121: =IF('DF raw data'!I126="","",'DF raw data'!I126) -> -270.5 | B121: =IF('DF raw data'!J126="","",'DF raw data'!J126) -> -4.60165e-06 | C121: =IF('DF raw data'!K126="","",'DF raw data'!K126) -> 1.83708e-05 | D121: =IF('DF raw data'!L126="","",'DF raw data'!L126) -> -1.49462e-05 | F121: -4.624198085e-06 | G121: 1.846081692e-05 | H121: -1.501943638e-05 | J121: -0.0001647447059 | K121: -0.002970881847 | L121: 0.0001552225613 | M121: 0.002444538653 | N121: 6.191240054e-07
A122: =IF('DF raw data'!I127="","",'DF raw data'!I127) -> -270 | B122: =IF('DF raw data'!J127="","",'DF raw data'!J127) -> -4.73015e-06 | C122: =IF('DF raw data'!K127="","",'DF raw data'!K127) -> 1.50488e-05 | D122: =IF('DF raw data'!L127="","",'DF raw data'!L127) -> -1.4491e-05 | F122: -4.753327735e-06 | G122: 1.512253912e-05 | H122: -1.45620059e-05 | J122: -0.0001671213697 | K122: -0.003054442532 | L122: 0.0001627838309 | M122: 0.002525930568 | N122: 6.463380693e-07
A123: =IF('DF raw data'!I128="","",'DF raw data'!I128) -> -269.5 | B123: =IF('DF raw data'!J128="","",'DF raw data'!J128) -> -9.54112e-06 | C123: =IF('DF raw data'!K128="","",'DF raw data'!K128) -> 2.01321e-05 | D123: =IF('DF raw data'!L128="","",'DF raw data'!L128) -> -9.95253e-06 | F123: -9.587871488e-06 | G123: 2.023074729e-05 | H123: -1.00012974e-05 | J123: -0.0001719153055 | K123: -0.003140400185 | L123: 0.0001728992045 | M123: 0.00261238017 | N123: 6.760625729e-07
A124: =IF('DF raw data'!I129="","",'DF raw data'!I129) -> -269 | B124: =IF('DF raw data'!J129="","",'DF raw data'!J129) -> -1.04411e-05 | C124: =IF('DF raw data'!K129="","",'DF raw data'!K129) -> 2.32027e-05 | D124: =IF('DF raw data'!L129="","",'DF raw data'!L129) -> -6.15994e-06 | F124: -1.049226139e-05 | G124: 2.331639323e-05 | H124: -6.190123706e-06 | J124: -0.0001771614362 | K124: -0.003228980903 | L124: 0.0001845574011 | M124: 0.002704658871 | N124: 7.087863773e-07
A125: =IF('DF raw data'!I130="","",'DF raw data'!I130) -> -268.5 | B125: =IF('DF raw data'!J130="","",'DF raw data'!J130) -> -1.96956e-06 | C125: =IF('DF raw data'!K130="","",'DF raw data'!K130) -> 1.88668e-05 | D125: =IF('DF raw data'!L130="","",'DF raw data'!L130) -> -2.05642e-05 | F125: -1.979210844e-06 | G125: 1.895924732e-05 | H125: -2.066496458e-05 | J125: -0.0001781510416 | K125: -0.003318056423 | L125: 0.0001940370248 | M125: 0.002801677383 | N125: 7.434804576e-07
A126: =IF('DF raw data'!I131="","",'DF raw data'!I131) -> -268 | B126: =IF('DF raw data'!J131="","",'DF raw data'!J131) -> -1.46058e-05 | C126: =IF('DF raw data'!K131="","",'DF raw data'!K131) -> 1.17193e-05 | D126: =IF('DF raw data'!L131="","",'DF raw data'!L131) -> -9.53959e-06 | F126: -1.467736842e-05 | G126: 1.177672457e-05 | H126: -9.586333991e-06 | J126: -0.0001854897258 | K126: -0.003410801286 | L126: 0.0001999253871 | M126: 0.002901640077 | N126: 7.80668757e-07
A127: =IF('DF raw data'!I132="","",'DF raw data'!I132) -> -267.5 | B127: =IF('DF raw data'!J132="","",'DF raw data'!J132) -> -1.00536e-05 | C127: =IF('DF raw data'!K132="","",'DF raw data'!K132) -> 1.16687e-05 | D127: =IF('DF raw data'!L132="","",'DF raw data'!L132) -> -1.05266e-05 | F127: -1.010286264e-05 | G127: 1.172587663e-05 | H127: -1.057818034e-05 | J127: -0.0001905411571 | K127: -0.003506071865 | L127: 0.0002057883254 | M127: 0.00300453424 | N127: 8.199961407e-07
A128: =IF('DF raw data'!I133="","",'DF raw data'!I133) -> -267 | B128: =IF('DF raw data'!J133="","",'DF raw data'!J133) -> -1.77465e-05 | C128: =IF('DF raw data'!K133="","",'DF raw data'!K133) -> 1.10554e-05 | D128: =IF('DF raw data'!L133="","",'DF raw data'!L133) -> -1.05352e-05 | F128: =(1-$G$1*($B$49-$G$2))*B128 -> -1.783345785e-05 | G128: 1.110957146e-05 | H128: -1.058682248e-05 | J128: =F128*$G$3+J127 -> -0.0001994578861 | K128: =J128*$G$3+K127 -> -0.003605800808 | L128: =G128*$G$3+L127 -> 0.0002113431111 | M128: =L128*$G$3+M127 -> 0.003110205795 | N128: =(J128^2+L128^2)*$G$3+N127 -> 8.622208201e-07
A129: =IF('DF raw data'!I134="","",'DF raw data'!I134) -> -266.5 | B129: =IF('DF raw data'!J134="","",'DF raw data'!J134) -> -5.02862e-07 | C129: =IF('DF raw data'!K134="","",'DF raw data'!K134) -> 1.03721e-05 | D129: =IF('DF raw data'!L134="","",'DF raw data'!L134) -> -8.44577e-06 | F129: -5.053260238e-07 | G129: 1.042292329e-05 | H129: -8.487154273e-06 | J129: -0.0001997105491 | K129: -0.003705656083 | L129: 0.0002165545728 | M129: 0.003218483082 | N129: 9.056109133e-07
A130: =IF('DF raw data'!I135="","",'DF raw data'!I135) -> -266 | B130: =IF('DF raw data'!J135="","",'DF raw data'!J135) -> -8.57251e-06 | C130: =IF('DF raw data'!K135="","",'DF raw data'!K135) -> 7.55447e-06 | D130: =IF('DF raw data'!L135="","",'DF raw data'!L135) -> -2.06027e-05 | F130: -8.614515299e-06 | G130: 7.591486903e-06 | H130: -2.070365323e-05 | J130: -0.0002040178067 | K130: -0.003807664986 | L130: 0.0002203503162 | M130: 0.00332865824 | N130: 9.50699677e-07
A131: =IF('DF raw data'!I136="","",'DF raw data'!I136) -> -265.5 | B131: =IF('DF raw data'!J136="","",'DF raw data'!J136) -> -1.10763e-05 | C131: =IF('DF raw data'!K136="","",'DF raw data'!K136) -> 1.08897e-05 | D131: =IF('DF raw data'!L136="","",'DF raw data'!L136) -> -1.51302e-05 | F131: -1.113057387e-05 | G131: 1.094305953e-05 | H131: -1.520433798e-05 | J131: -0.0002095830937 | K131: -0.003912456533 | L131: 0.000225821846 | M131: 0.003441569163 | N131: 9.981599666e-07
A132: =IF('DF raw data'!I137="","",'DF raw data'!I137) -> -265 | B132: =IF('DF raw data'!J137="","",'DF raw data'!J137) -> -8.89045e-06 | C132: =IF('DF raw data'!K137="","",'DF raw data'!K137) -> 7.86883e-06 | D132: =IF('DF raw data'!L137="","",'DF raw data'!L137) -> -2.47974e-05 | F132: -8.934013205e-06 | G132: 7.907387267e-06 | H132: -2.491890726e-05 | J132: -0.0002140501003 | K132: -0.004019481583 | L132: 0.0002297755396 | M132: 0.003556456933 | N132: 1.047467089e-06
A133: =IF('DF raw data'!I138="","",'DF raw data'!I138) -> -264.5 | B133: =IF('DF raw data'!J138="","",'DF raw data'!J138) -> 1.35885e-06 | C133: =IF('DF raw data'!K138="","",'DF raw data'!K138) -> 1.33089e-05 | D133: =IF('DF raw data'!L138="","",'DF raw data'!L138) -> -1.27507e-05 | F133: 1.365508365e-06 | G133: 1.337411361e-05 | H133: -1.281317843e-05 | J133: -0.0002133673461 | K133: -0.004126165256 | L133: 0.0002364625964 | M133: 0.003674688231 | N133: 1.098187181e-06
A134: =IF('DF raw data'!I139="","",'DF raw data'!I139) -> -264 | B134: =IF('DF raw data'!J139="","",'DF raw data'!J139) -> -4.47462e-06 | C134: =IF('DF raw data'!K139="","",'DF raw data'!K139) -> 1.57823e-05 | D134: =IF('DF raw data'!L139="","",'DF raw data'!L139) -> -1.31212e-05 | F134: -4.496545638e-06 | G134: 1.585963327e-05 | H134: -1.318549388e-05 | J134: -0.0002156156189 | K134: -0.004233973065 | L134: 0.0002443924131 | M134: 0.003796884437 | N134: 1.151296054e-06
A135: =IF('DF raw data'!I140="","",'DF raw data'!I140) -> -263.5 | B135: =IF('DF raw data'!J140="","",'DF raw data'!J140) -> 1.74793e-06 | C135: =IF('DF raw data'!K140="","",'DF raw data'!K140) -> 1.45164e-05 | D135: =IF('DF raw data'!L140="","",'DF raw data'!L140) -> -1.96064e-05 | F135: 1.756494857e-06 | G135: 1.458753036e-05 | H135: -1.970247136e-05 | J135: -0.0002147373715 | K135: -0.004341341751 | L135: 0.0002516861783 | M135: 0.003922727526 | N135: 1.206025089e-06
A136: =IF('DF raw data'!I141="","",'DF raw data'!I141) -> -263 | B136: =IF('DF raw data'!J141="","",'DF raw data'!J141) -> -5.62469e-06 | C136: =IF('DF raw data'!K141="","",'DF raw data'!K141) -> 1.73372e-05 | D136: =IF('DF raw data'!L141="","",'DF raw data'!L141) -> -1.90381e-05 | F136: -5.652250981e-06 | G136: 1.742215228e-05 | H136: -1.913138669e-05 | J136: -0.000217563497 | K136: -0.0044501235 | L136: 0.0002603972544 | M136: 0.004052926154 | N136: 1.263595392e-06
A137: =IF('DF raw data'!I142="","",'DF raw data'!I142) -> -262.5 | B137: =IF('DF raw data'!J142="","",'DF raw data'!J142) -> -2.40789e-07 | C137: =IF('DF raw data'!K142="","",'DF raw data'!K142) -> 1.74571e-05 | D137: =IF('DF raw data'!L142="","",'DF raw data'!L142) -> -1.71616e-05 | F137: -2.419688661e-07 | G137: 1.754263979e-05 | H137: -1.724569184e-05 | J137: -0.0002176844814 | K137: -0.00455896574 | L137: 0.0002691685743 | M137: 0.004187510441 | N137: 1.32351452e-06
A138: =IF('DF raw data'!I143="","",'DF raw data'!I143) -> -262 | B138: =IF('DF raw data'!J143="","",'DF raw data'!J143) -> -4.3456e-06 | C138: =IF('DF raw data'!K143="","",'DF raw data'!K143) -> 1.52683e-05 | D138: =IF('DF raw data'!L143="","",'DF raw data'!L143) -> -1.4377e-05 | F138: -4.36689344e-06 | G138: 1.534311467e-05 | H138: -1.44474473e-05 | J138: -0.0002198679281 | K138: -0.004668899704 | L138: 0.0002768401316 | M138: 0.004325930507 | N138: 1.386005702e-06
A139: =IF('DF raw data'!I144="","",'DF raw data'!I144) -> -261.5 | B139: =IF('DF raw data'!J144="","",'DF raw data'!J144) -> -1.17128e-05 | C139: =IF('DF raw data'!K144="","",'DF raw data'!K144) -> 1.39127e-05 | D139: =IF('DF raw data'!L144="","",'DF raw data'!L144) -> -2.21548e-05 | F139: -1.177019272e-05 | G139: 1.398087223e-05 | H139: -2.226335852e-05 | J139: -0.0002257530245 | K139: -0.004781776216 | L139: 0.0002838305677 | M139: 0.00446784579 | N139: 1.451767811e-06
A140: =IF('DF raw data'!I145="","",'DF raw data'!I145) -> -261 | B140: =IF('DF raw data'!J145="","",'DF raw data'!J145) -> -1.9604e-05 | C140: =IF('DF raw data'!K145="","",'DF raw data'!K145) -> 9.69403e-06 | D140: =IF('DF raw data'!L145="","",'DF raw data'!L145) -> -1.31993e-05 | F140: -1.97000596e-05 | G140: 9.741530747e-06 | H140: -1.326397657e-05 | J140: -0.0002356030543 | K140: -0.004899577744 | L140: 0.0002887013331 | M140: 0.004612196457 | N140: 1.521196441e-06
A141: =IF('DF raw data'!I146="","",'DF raw data'!I146) -> -260.5 | B141: =IF('DF raw data'!J146="","",'DF raw data'!J146) -> -7.52269e-07 | C141: =IF('DF raw data'!K146="","",'DF raw data'!K146) -> 1.18132e-05 | D141: =IF('DF raw data'!L146="","",'DF raw data'!L146) -> -1.92633e-05 | F141: -7.559551181e-07 | G141: 1.187108468e-05 | H141: -1.935769017e-05 | J141: -0.0002359810318 | K141: -0.00501756826 | L141: 0.0002946368755 | M141: 0.004759514895 | N141: 1.592445409e-06
A142: =IF('DF raw data'!I147="","",'DF raw data'!I147) -> -260 | B142: =IF('DF raw data'!J147="","",'DF raw data'!J147) -> -1.51088e-05 | C142: =IF('DF raw data'!K147="","",'DF raw data'!K147) -> 7.04077e-06 | D142: =IF('DF raw data'!L147="","",'DF raw data'!L147) -> -2.48546e-05 | F142: -1.518283312e-05 | G142: 7.075269773e-06 | H142: -2.497638754e-05 | J142: -0.0002435724484 | K142: -0.005139354484 | L142: 0.0002981745103 | M142: 0.00490860215 | N142: 1.666563197e-06
A143: =IF('DF raw data'!I148="","",'DF raw data'!I148) -> -259.5 | B143: =IF('DF raw data'!J148="","",'DF raw data'!J148) -> -1.53008e-05 | C143: =IF('DF raw data'!K148="","",'DF raw data'!K148) -> 7.0403e-06 | D143: =IF('DF raw data'!L148="","",'DF raw data'!L148) -> -2.54985e-05 | F143: -1.537577392e-05 | G143: 7.07479747e-06 | H143: -2.562344265e-05 | J143: -0.0002512603353 | K143: -0.005264984651 | L143: 0.0003017119091 | M143: 0.005059458104 | N143: 1.743644113e-06
A144: =IF('DF raw data'!I149="","",'DF raw data'!I149) -> -259 | B144: =IF('DF raw data'!J149="","",'DF raw data'!J149) -> -1.51078e-05 | C144: =IF('DF raw data'!K149="","",'DF raw data'!K149) -> 4.40383e-06 | D144: =IF('DF raw data'!L149="","",'DF raw data'!L149) -> -2.62844e-05 | F144: -1.518182822e-05 | G144: 4.425408767e-06 | H144: -2.641319356e-05 | J144: -0.0002588512495 | K144: -0.005394410276 | L144: 0.0003039246135 | M144: 0.005211420411 | N144: 1.823331183e-06
A145: =IF('DF raw data'!I150="","",'DF raw data'!I150) -> -258.5 | B145: =IF('DF raw data'!J150="","",'DF raw data'!J150) -> -4.4618e-06 | C145: =IF('DF raw data'!K150="","",'DF raw data'!K150) -> 1.46883e-07 | D145: =IF('DF raw data'!L150="","",'DF raw data'!L150) -> -3.28941e-05 | F145: -4.48366282e-06 | G145: 1.476027267e-07 | H145: -3.305528109e-05 | J145: -0.0002610930809 | K145: -0.005524956817 | L145: 0.0003039984148 | M145: 0.005363419619 | N145: 1.903623499e-06
A146: =IF('DF raw data'!I151="","",'DF raw data'!I151) -> -258 | B146: =IF('DF raw data'!J151="","",'DF raw data'!J151) -> -8.69711e-06 | C146: =IF('DF raw data'!K151="","",'DF raw data'!K151) -> 5.58813e-06 | D146: =IF('DF raw data'!L151="","",'DF raw data'!L151) -> -2.61877e-05 | F146: -8.739725839e-06 | G146: 5.615511837e-06 | H146: -2.631601973e-05 | J146: -0.0002654629438 | K146: -0.005657688288 | L146: 0.0003068061707 | M146: 0.005516822704 | N146: 1.9859238e-06
A147: =IF('DF raw data'!I152="","",'DF raw data'!I152) -> -257.5 | B147: =IF('DF raw data'!J152="","",'DF raw data'!J152) -> 5.20332e-06 | C147: =IF('DF raw data'!K152="","",'DF raw data'!K152) -> 6.64436e-06 | D147: =IF('DF raw data'!L152="","",'DF raw data'!L152) -> -9.48793e-06 | F147: 5.228816268e-06 | G147: 6.676917364e-06 | H147: -9.534420857e-06 | J147: -0.0002628485357 | K147: -0.005789112556 | L147: 0.0003101446294 | M147: 0.005671895019 | N147: 2.068563322e-06
A148: =IF('DF raw data'!I153="","",'DF raw data'!I153) -> -257 | B148: =IF('DF raw data'!J153="","",'DF raw data'!J153) -> 5.13566e-06 | C148: =IF('DF raw data'!K153="","",'DF raw data'!K153) -> -3.08431e-06 | D148: =IF('DF raw data'!L153="","",'DF raw data'!L153) -> -4.20253e-06 | F148: 5.160824734e-06 | G148: -3.099423119e-06 | H148: -4.223122397e-06 | J148: -0.0002602681233 | K148: -0.005919246618 | L148: 0.0003085949179 | M148: 0.005826192478 | N148: 2.150048481e-06
A149: =IF('DF raw data'!I154="","",'DF raw data'!I154) -> -256.5 | B149: =IF('DF raw data'!J154="","",'DF raw data'!J154) -> 5.20657e-06 | C149: =IF('DF raw data'!K154="","",'DF raw data'!K154) -> -9.45179e-06 | D149: =IF('DF raw data'!L154="","",'DF raw data'!L154) -> -1.45009e-05 | F149: 5.232082193e-06 | G149: -9.498103771e-06 | H149: -1.457195441e-05 | J149: -0.0002576520822 | K149: -0.006048072659 | L149: 0.000303845866 | M149: 0.005978115411 | N149: 2.229401934e-06
A150: =IF('DF raw data'!I155="","",'DF raw data'!I155) -> -256 | B150: =IF('DF raw data'!J155="","",'DF raw data'!J155) -> -2.46997e-07 | C150: =IF('DF raw data'!K155="","",'DF raw data'!K155) -> -7.34732e-06 | D150: =IF('DF raw data'!L155="","",'DF raw data'!L155) -> -7.5885e-06 | F150: -2.482072853e-07 | G150: -7.383321868e-06 | H150: -7.62568365e-06 | J150: -0.0002577761858 | K150: -0.006176960752 | L150: 0.000300154205 | M150: 0.006128192513 | N150: 2.307672489e-06
A151: =IF('DF raw data'!I156="","",'DF raw data'!I156) -> -255.5 | B151: =IF('DF raw data'!J156="","",'DF raw data'!J156) -> -2.03662e-06 | C151: =IF('DF raw data'!K156="","",'DF raw data'!K156) -> 6.39383e-06 | D151: =IF('DF raw data'!L156="","",'DF raw data'!L156) -> -1.62152e-05 | F151: -2.046599438e-06 | G151: 6.425159767e-06 | H151: -1.629465448e-05 | J151: -0.0002587994856 | K151: -0.006306360495 | L151: 0.0003033667849 | M151: 0.006279875906 | N151: 2.387176779e-06
A152: =IF('DF raw data'!I157="","",'DF raw data'!I157) -> -255 | B152: =IF('DF raw data'!J157="","",'DF raw data'!J157) -> -4.34892e-06 | C152: =IF('DF raw data'!K157="","",'DF raw data'!K157) -> 7.56556e-07 | D152: =IF('DF raw data'!L157="","",'DF raw data'!L157) -> -9.26926e-06 | F152: -4.370229708e-06 | G152: 7.602631244e-07 | H152: -9.314679374e-06 | J152: -0.0002609846004 | K152: -0.006436852795 | L152: 0.0003037469165 | M152: 0.006431749364 | N152: 2.467364354e-06
A153: =IF('DF raw data'!I158="","",'DF raw data'!I158) -> -254.5 | B153: =IF('DF raw data'!J158="","",'DF raw data'!J158) -> 1.23083e-06 | C153: =IF('DF raw data'!K158="","",'DF raw data'!K158) -> -2.02853e-06 | D153: =IF('DF raw data'!L158="","",'DF raw data'!L158) -> -1.30481e-05 | F153: 1.236861067e-06 | G153: -2.038469797e-06 | H153: -1.311203569e-05 | J153: -0.0002603661699 | K153: -0.00656703588 | L153: 0.0003027276816 | M153: 0.006583113205 | N153: 2.54708165e-06
A154: =IF('DF raw data'!I159="","",'DF raw data'!I159) -> -254 | B154: =IF('DF raw data'!J159="","",'DF raw data'!J159) -> -1.0823e-06 | C154: =IF('DF raw data'!K159="","",'DF raw data'!K159) -> -4.95264e-06 | D154: =IF('DF raw data'!L159="","",'DF raw data'!L159) -> -4.81672e-06 | F154: -1.08760327e-06 | G154: -4.976907936e-06 | H154: -4.840321928e-06 | J154: -0.0002609099715 | K154: -0.006697490866 | L154: 0.0003002392276 | M154: 0.006733232818 | N154: 2.626190453e-06
A155: =IF('DF raw data'!I160="","",'DF raw data'!I160) -> -253.5 | B155: =IF('DF raw data'!J160="","",'DF raw data'!J160) -> 1.17455e-06 | C155: =IF('DF raw data'!K160="","",'DF raw data'!K160) -> -4.19404e-06 | D155: =IF('DF raw data'!L160="","",'DF raw data'!L160) -> -2.49081e-05 | F155: 1.180305295e-06 | G155: -4.214590796e-06 | H155: -2.503014969e-05 | J155: -0.0002603198189 | K155: -0.006827650775 | L155: 0.0002981319322 | M155: 0.006882298785 | N155: 2.704514982e-06
A156: =IF('DF raw data'!I161="","",'DF raw data'!I161) -> -253 | B156: =IF('DF raw data'!J161="","",'DF raw data'!J161) -> -9.48542e-07 | C156: =IF('DF raw data'!K161="","",'DF raw data'!K161) -> 1.79676e-06 | D156: =IF('DF raw data'!L161="","",'DF raw data'!L161) -> -1.33679e-05 | F156: -9.531898558e-07 | G156: 1.805564124e-06 | H156: -1.343340271e-05 | J156: -0.0002607964138 | K156: -0.006958048982 | L156: 0.0002990347143 | M156: 0.007031816142 | N156: 2.783233247e-06
A157: =IF('DF raw data'!I162="","",'DF raw data'!I162) -> -252.5 | B157: =IF('DF raw data'!J162="","",'DF raw data'!J162) -> 1.23708e-06 | C157: =IF('DF raw data'!K162="","",'DF raw data'!K162) -> 3.33565e-06 | D157: =IF('DF raw data'!L162="","",'DF raw data'!L162) -> -2.26761e-05 | F157: 1.243141692e-06 | G157: 3.351994685e-06 | H157: -2.278721289e-05 | J157: -0.0002601748429 | K157: -0.007088136403 | L157: 0.0003007107116 | M157: 0.007182171498 | N157: 2.862292187e-06
A158: =IF('DF raw data'!I163="","",'DF raw data'!I163) -> -252 | B158: =IF('DF raw data'!J163="","",'DF raw data'!J163) -> -1.07477e-05 | C158: =IF('DF raw data'!K163="","",'DF raw data'!K163) -> -1.95009e-07 | D158: =IF('DF raw data'!L163="","",'DF raw data'!L163) -> -2.78108e-05 | F158: -1.080036373e-05 | G158: -1.959645441e-07 | H158: -2.794707292e-05 | J158: -0.0002655750248 | K158: -0.007220923916 | L158: 0.0003006127294 | M158: 0.007332477862 | N158: 2.942741241e-06
A159: =IF('DF raw data'!I164="","",'DF raw data'!I164) -> -251.5 | B159: =IF('DF raw data'!J164="","",'DF raw data'!J164) -> -1.07445e-05 | C159: =IF('DF raw data'!K164="","",'DF raw data'!K164) -> 4.50158e-08 | D159: =IF('DF raw data'!L164="","",'DF raw data'!L164) -> -3.27008e-05 | F159: -1.079714805e-05 | G159: 4.523637742e-08 | H159: -3.286103392e-05 | J159: -0.0002709735988 | K159: -0.007356410715 | L159: 0.0003006353475 | M159: 0.007482795536 | N159: 3.024645393e-06
A160: =IF('DF raw data'!I165="","",'DF raw data'!I165) -> -251 | B160: =IF('DF raw data'!J165="","",'DF raw data'!J165) -> -1.76771e-05 | C160: =IF('DF raw data'!K165="","",'DF raw data'!K165) -> -1.18118e-06 | D160: =IF('DF raw data'!L165="","",'DF raw data'!L165) -> -1.902e-05 | F160: -1.776371779e-05 | G160: -1.186967782e-06 | H160: -1.9113198e-05 | J160: -0.0002798554577 | K160: -0.007496338444 | L160: 0.0003000418637 | M160: 0.007632816468 | N160: 3.108817491e-06
A161: =IF('DF raw data'!I166="","",'DF raw data'!I166) -> -250.5 | B161: =IF('DF raw data'!J166="","",'DF raw data'!J166) -> -1.60781e-05 | C161: =IF('DF raw data'!K166="","",'DF raw data'!K166) -> -1.21041e-06 | D161: =IF('DF raw data'!L166="","",'DF raw data'!L166) -> -1.30685e-05 | F161: -1.615688269e-05 | G161: -1.216341009e-06 | H161: -1.313253565e-05 | J161: -0.0002879338991 | K161: -0.007640305394 | L161: 0.0002994336931 | M161: 0.007782533314 | N161: 3.195100725e-06
A162: =IF('DF raw data'!I167="","",'DF raw data'!I167) -> -250 | B162: =IF('DF raw data'!J167="","",'DF raw data'!J167) -> -1.65885e-05 | C162: =IF('DF raw data'!K167="","",'DF raw data'!K167) -> -2.06669e-08 | D162: =IF('DF raw data'!L167="","",'DF raw data'!L167) -> -1.69059e-05 | F162: -1.666978365e-05 | G162: -2.076816781e-08 | H162: -1.698873891e-05 | J162: -0.0002962687909 | K162: -0.007788439789 | L162: 0.0002994233091 | M162: 0.007932244969 | N162: 3.283815482e-06
A163: =IF('DF raw data'!I168="","",'DF raw data'!I168) -> -249.5 | B163: =IF('DF raw data'!J168="","",'DF raw data'!J168) -> -7.74488e-06 | C163: =IF('DF raw data'!K168="","",'DF raw data'!K168) -> 6.27553e-06 | D163: =IF('DF raw data'!L168="","",'DF raw data'!L168) -> -1.19864e-05 | F163: -7.782829912e-06 | G163: 6.306280097e-06 | H163: -1.204513336e-05 | J163: -0.0003001602059 | K163: -0.007938519892 | L163: 0.0003025764491 | M163: 0.008083533193 | N163: 3.37463981e-06
A164: =IF('DF raw data'!I169="","",'DF raw data'!I169) -> -249 | B164: =IF('DF raw data'!J169="","",'DF raw data'!J169) -> -1.0038e-05 | C164: =IF('DF raw data'!K169="","",'DF raw data'!K169) -> 9.38331e-06 | D164: =IF('DF raw data'!L169="","",'DF raw data'!L169) -> -3.46195e-05 | F164: -1.00871862e-05 | G164: 9.429288219e-06 | H164: -3.478913555e-05 | J164: -0.000305203799 | K164: -0.008091121791 | L164: 0.0003072910932 | M164: 0.00823717874 | N164: 3.468428398e-06
A165: =IF('DF raw data'!I170="","",'DF raw data'!I170) -> -248.5 | B165: =IF('DF raw data'!J170="","",'DF raw data'!J170) -> -4.85146e-06 | C165: =IF('DF raw data'!K170="","",'DF raw data'!K170) -> 7.61724e-06 | D165: =IF('DF raw data'!L170="","",'DF raw data'!L170) -> -2.51517e-05 | F165: -4.875232154e-06 | G165: 7.654564476e-06 | H165: -2.527494333e-05 | J165: -0.000307641415 | K165: -0.008244942499 | L165: 0.0003111183755 | M165: 0.008392737928 | N165: 3.564147339e-06
A166: =IF('DF raw data'!I171="","",'DF raw data'!I171) -> -248 | B166: =IF('DF raw data'!J171="","",'DF raw data'!J171) -> -1.01731e-05 | C166: =IF('DF raw data'!K171="","",'DF raw data'!K171) -> 1.25289e-05 | D166: =IF('DF raw data'!L171="","",'DF raw data'!L171) -> -2.40683e-05 | F166: -1.022294819e-05 | G166: 1.259029161e-05 | H166: -2.418623467e-05 | J166: -0.0003127528891 | K166: -0.008401318944 | L166: 0.0003174135213 | M166: 0.008551444688 | N166: 3.663430196e-06
A167: =IF('DF raw data'!I172="","",'DF raw data'!I172) -> -247.5 | B167: =IF('DF raw data'!J172="","",'DF raw data'!J172) -> -3.26077e-06 | C167: =IF('DF raw data'!K172="","",'DF raw data'!K172) -> 8.45956e-06 | D167: =IF('DF raw data'!L172="","",'DF raw data'!L172) -> -6.52981e-06 | F167: -3.276747773e-06 | G167: 8.501011844e-06 | H167: -6.561806069e-06 | J167: -0.000314391263 | K167: -0.008558514575 | L167: 0.0003216640272 | M167: 0.008712276702 | N167: 3.764585002e-06
A168: =IF('DF raw data'!I173="","",'DF raw data'!I173) -> -247 | B168: =IF('DF raw data'!J173="","",'DF raw data'!J173) -> -1.10237e-05 | C168: =IF('DF raw data'!K173="","",'DF raw data'!K173) -> 3.7911e-06 | D168: =IF('DF raw data'!L173="","",'DF raw data'!L173) -> 2.29961e-06 | F168: -1.107771613e-05 | G168: 3.80967639e-06 | H168: 2.310878089e-06 | J168: -0.0003199301211 | K168: -0.008718479636 | L168: 0.0003235688654 | M168: 0.008874061135 | N168: 3.868111049e-06
A169: =IF('DF raw data'!I174="","",'DF raw data'!I174) -> -246.5 | B169: =IF('DF raw data'!J174="","",'DF raw data'!J174) -> -1.22875e-05 | C169: =IF('DF raw data'!K174="","",'DF raw data'!K174) -> 1.10891e-05 | D169: =IF('DF raw data'!L174="","",'DF raw data'!L174) -> -2.58877e-05 | F169: -1.234770875e-05 | G169: 1.114343659e-05 | H169: -2.601454973e-05 | J169: -0.0003261039755 | K169: -0.008881531623 | L169: 0.0003291405837 | M169: 0.009038631427 | N169: 3.975449712e-06
A170: =IF('DF raw data'!I175="","",'DF raw data'!I175) -> -246 | B170: =IF('DF raw data'!J175="","",'DF raw data'!J175) -> -2.35856e-05 | C170: =IF('DF raw data'!K175="","",'DF raw data'!K175) -> 6.75289e-06 | D170: =IF('DF raw data'!L175="","",'DF raw data'!L175) -> -2.27936e-06 | F170: -2.370116944e-05 | G170: 6.785979161e-06 | H170: -2.290528864e-06 | J170: -0.0003379545602 | K170: -0.009050508903 | L170: 0.0003325335733 | M170: 0.009204898213 | N170: 4.087845643e-06
A171: =IF('DF raw data'!I176="","",'DF raw data'!I176) -> -245.5 | B171: =IF('DF raw data'!J176="","",'DF raw data'!J176) -> -1.3774e-05 | C171: =IF('DF raw data'!K176="","",'DF raw data'!K176) -> 9.31928e-07 | D171: =IF('DF raw data'!L176="","",'DF raw data'!L176) -> -7.49154e-06 | F171: -1.38414926e-05 | G171: 9.364944472e-07 | H171: -7.528248546e-06 | J171: -0.0003448753065 | K171: -0.009222946557 | L171: 0.0003330018205 | M171: 0.009371399123 | N171: 4.202760238e-06
A172: =IF('DF raw data'!I177="","",'DF raw data'!I177) -> -245 | B172: =IF('DF raw data'!J177="","",'DF raw data'!J177) -> -1.31251e-05 | C172: =IF('DF raw data'!K177="","",'DF raw data'!K177) -> 9.54262e-06 | D172: =IF('DF raw data'!L177="","",'DF raw data'!L177) -> -1.95399e-05 | F172: -1.318941299e-05 | G172: 9.589378838e-06 | H172: -1.963564551e-05 | J172: -0.000351470013 | K172: -0.009398681563 | L172: 0.0003377965099 | M172: 0.009540297378 | N172: 4.321579064e-06
A173: =IF('DF raw data'!I178="","",'DF raw data'!I178) -> -244.5 | B173: =IF('DF raw data'!J178="","",'DF raw data'!J178) -> -1.96909e-06 | C173: =IF('DF raw data'!K178="","",'DF raw data'!K178) -> 8.83992e-06 | D173: =IF('DF raw data'!L178="","",'DF raw data'!L178) -> -2.12916e-05 | F173: -1.978738541e-06 | G173: 8.883235608e-06 | H173: -2.139592884e-05 | J173: -0.0003524593822 | K173: -0.009574911254 | L173: 0.0003422381277 | M173: 0.009711416442 | N173: 4.44225634e-06
A174: =IF('DF raw data'!I179="","",'DF raw data'!I179) -> -244 | B174: =IF('DF raw data'!J179="","",'DF raw data'!J179) -> -1.14022e-05 | C174: =IF('DF raw data'!K179="","",'DF raw data'!K179) -> 7.91609e-06 | D174: =IF('DF raw data'!L179="","",'DF raw data'!L179) -> -7.07673e-06 | F174: -1.145807078e-05 | G174: 7.954878841e-06 | H174: -7.111405977e-06 | J174: -0.0003581884176 | K174: -0.009754005463 | L174: 0.0003462155671 | M174: 0.009884524226 | N174: 4.566338421e-06
A175: =IF('DF raw data'!I180="","",'DF raw data'!I180) -> -243.5 | B175: =IF('DF raw data'!J180="","",'DF raw data'!J180) -> 3.02589e-06 | C175: =IF('DF raw data'!K180="","",'DF raw data'!K180) -> 1.94994e-06 | D175: =IF('DF raw data'!L180="","",'DF raw data'!L180) -> -1.27957e-05 | F175: 3.040716861e-06 | G175: 1.959494706e-06 | H175: -1.285839893e-05 | J175: -0.0003566680592 | K175: -0.009932339493 | L175: 0.0003471953145 | M175: 0.01005812188 | N175: 4.690216766e-06
A176: =IF('DF raw data'!I181="","",'DF raw data'!I181) -> -243 | B176: =IF('DF raw data'!J181="","",'DF raw data'!J181) -> -8.76822e-06 | C176: =IF('DF raw data'!K181="","",'DF raw data'!K181) -> -5.55938e-06 | D176: =IF('DF raw data'!L181="","",'DF raw data'!L181) -> -1.56222e-05 | F176: -8.811184278e-06 | G176: -5.586620962e-06 | H176: -1.569874878e-05 | J176: -0.0003610736513 | K176: -0.01011287632 | L176: 0.000344402004 | M176: 0.01023032289 | N176: 4.814710227e-06
A177: =IF('DF raw data'!I182="","",'DF raw data'!I182) -> -242.5 | B177: =IF('DF raw data'!J182="","",'DF raw data'!J182) -> -9.41026e-06 | C177: =IF('DF raw data'!K182="","",'DF raw data'!K182) -> 1.03356e-05 | D177: =IF('DF raw data'!L182="","",'DF raw data'!L182) -> -1.40956e-05 | F177: -9.456370274e-06 | G177: 1.038624444e-05 | H177: -1.416466844e-05 | J177: -0.0003658018365 | K177: -0.01029577724 | L177: 0.0003495951262 | M177: 0.01040512045 | N177: 4.942724095e-06
A178: =IF('DF raw data'!I183="","",'DF raw data'!I183) -> -242 | B178: =IF('DF raw data'!J183="","",'DF raw data'!J183) -> -1.51816e-05 | C178: =IF('DF raw data'!K183="","",'DF raw data'!K183) -> 9.68927e-06 | D178: =IF('DF raw data'!L183="","",'DF raw data'!L183) -> -1.16961e-05 | F178: -1.525598984e-05 | G178: 9.736747423e-06 | H178: -1.175341089e-05 | J178: -0.0003734298314 | K178: -0.01048249215 | L178: 0.0003544634999 | M178: 0.0105823522 | N178: 5.075271201e-06
A179: =IF('DF raw data'!I184="","",'DF raw data'!I184) -> -241.5 | B179: =IF('DF raw data'!J184="","",'DF raw data'!J184) -> -1.13547e-06 | C179: =IF('DF raw data'!K184="","",'DF raw data'!K184) -> 1.70399e-05 | D179: =IF('DF raw data'!L184="","",'DF raw data'!L184) -> -2.14776e-05 | F179: -1.141033803e-06 | G179: 1.712339551e-05 | H179: -2.158284024e-05 | J179: -0.0003740003483 | K179: -0.01066949233 | L179: 0.0003630251977 | M179: 0.0107638648 | N179: 5.211102978e-06
A180: =IF('DF raw data'!I185="","",'DF raw data'!I185) -> -241 | B180: =IF('DF raw data'!J185="","",'DF raw data'!J185) -> -8.51434e-06 | C180: =IF('DF raw data'!K185="","",'DF raw data'!K185) -> 1.54174e-05 | D180: =IF('DF raw data'!L185="","",'DF raw data'!L185) -> -1.17064e-05 | F180: -8.556060266e-06 | G180: 1.549294526e-05 | H180: -1.176376136e-05 | J180: -0.0003782783784 | K180: -0.01085863152 | L180: 0.0003707716703 | M180: 0.01094925063 | N180: 5.35138606e-06
A181: =IF('DF raw data'!I186="","",'DF raw data'!I186) -> -240.5 | B181: =IF('DF raw data'!J186="","",'DF raw data'!J186) -> 3.0248e-06 | C181: =IF('DF raw data'!K186="","",'DF raw data'!K186) -> 9.01083e-06 | D181: =IF('DF raw data'!L186="","",'DF raw data'!L186) -> -1.11068e-05 | F181: 3.03962152e-06 | G181: 9.054983067e-06 | H181: -1.116122332e-05 | J181: -0.0003767585677 | K181: -0.0110470108 | L181: 0.0003752991618 | M181: 0.01113690021 | N181: 5.4927843e-06
A182: =IF('DF raw data'!I187="","",'DF raw data'!I187) -> -240 | B182: =IF('DF raw data'!J187="","",'DF raw data'!J187) -> 1.10775e-06 | C182: =IF('DF raw data'!K187="","",'DF raw data'!K187) -> 1.08947e-05 | D182: =IF('DF raw data'!L187="","",'DF raw data'!L187) -> -2.09515e-05 | F182: 1.113177975e-06 | G182: 1.094808403e-05 | H182: -2.105416235e-05 | J182: -0.0003762019787 | K182: -0.01123511179 | L182: 0.0003807732039 | M182: 0.01132728681 | N182: 5.63604238e-06
A183: =IF('DF raw data'!I188="","",'DF raw data'!I188) -> -239.5 | B183: =IF('DF raw data'!J188="","",'DF raw data'!J188) -> -2.80662e-06 | C183: =IF('DF raw data'!K188="","",'DF raw data'!K188) -> 1.05971e-05 | D183: =IF('DF raw data'!L188="","",'DF raw data'!L188) -> -1.50926e-05 | F183: -2.820372438e-06 | G183: 1.064902579e-05 | H183: -1.516655374e-05 | J183: -0.0003776121649 | K183: -0.01142391787 | L183: 0.0003860977168 | M183: 0.01152033567 | N183: 5.781873577e-06
A184: =IF('DF raw data'!I189="","",'DF raw data'!I189) -> -239 | B184: =IF('DF raw data'!J189="","",'DF raw data'!J189) -> -6.78347e-06 | C184: =IF('DF raw data'!K189="","",'DF raw data'!K189) -> 2.5142e-06 | D184: =IF('DF raw data'!L189="","",'DF raw data'!L189) -> -1.15378e-05 | F184: -6.816709003e-06 | G184: 2.52651958e-06 | H184: -1.159433522e-05 | J184: -0.0003810205194 | K184: -0.01161442813 | L184: 0.0003873609765 | M184: 0.01171401616 | N184: 5.929486158e-06
A185: =IF('DF raw data'!I190="","",'DF raw data'!I190) -> -238.5 | B185: =IF('DF raw data'!J190="","",'DF raw data'!J190) -> 1.23186e-06 | C185: =IF('DF raw data'!K190="","",'DF raw data'!K190) -> -1.77036e-06 | D185: =IF('DF raw data'!L190="","",'DF raw data'!L190) -> -1.4631e-05 | F185: 1.237896114e-06 | G185: -1.779034764e-06 | H185: -1.47026919e-05 | J185: -0.0003804015713 | K185: -0.01180462892 | L185: 0.0003864714592 | M185: 0.01190725189 | N185: 6.076518931e-06
A186: =IF('DF raw data'!I191="","",'DF raw data'!I191) -> -238 | B186: =IF('DF raw data'!J191="","",'DF raw data'!J191) -> -3.7549e-07 | C186: =IF('DF raw data'!K191="","",'DF raw data'!K191) -> -3.36877e-06 | D186: =IF('DF raw data'!L191="","",'DF raw data'!L191) -> -7.15539e-06 | F186: -3.77329901e-07 | G186: -3.385276973e-06 | H186: -7.190451411e-06 | J186: -0.0003805902363 | K186: -0.01199492403 | L186: 0.0003847788207 | M186: 0.0120996413 | N186: 6.222970765e-06
A187: =IF('DF raw data'!I192="","",'DF raw data'!I192) -> -237.5 | B187: =IF('DF raw data'!J192="","",'DF raw data'!J192) -> 1.5564e-06 | C187: =IF('DF raw data'!K192="","",'DF raw data'!K192) -> 3.31469e-06 | D187: =IF('DF raw data'!L192="","",'DF raw data'!L192) -> -2.06109e-05 | F187: 1.56402636e-06 | G187: 3.330931981e-06 | H187: -2.071189341e-05 | J187: -0.0003798082231 | K187: -0.01218482815 | L187: 0.0003864442867 | M187: 0.01229286344 | N187: 6.369767502e-06
A188: =IF('DF raw data'!I193="","",'DF raw data'!I193) -> -237 | B188: =IF('DF raw data'!J193="","",'DF raw data'!J193) -> 2.0696e-06 | C188: =IF('DF raw data'!K193="","",'DF raw data'!K193) -> 1.19201e-05 | D188: =IF('DF raw data'!L193="","",'DF raw data'!L193) -> -2.11598e-05 | F188: 2.07974104e-06 | G188: 1.197850849e-05 | H188: -2.126348302e-05 | J188: -0.0003787683526 | K188: -0.01237421232 | L188: 0.0003924335409 | M188: 0.01248908022 | N188: 6.518502276e-06
A189: =IF('DF raw data'!I194="","",'DF raw data'!I194) -> -236.5 | B189: =IF('DF raw data'!J194="","",'DF raw data'!J194) -> -4.32546e-07 | C189: =IF('DF raw data'!K194="","",'DF raw data'!K194) -> 1.00877e-05 | D189: =IF('DF raw data'!L194="","",'DF raw data'!L194) -> -1.82298e-05 | F189: -4.346654754e-07 | G189: 1.013712973e-05 | H189: -1.831912602e-05 | J189: -0.0003789856853 | K189: -0.01256370517 | L189: 0.0003975021058 | M189: 0.01268783127 | N189: 6.669321313e-06
A190: =IF('DF raw data'!I195="","",'DF raw data'!I195) -> -236 | B190: =IF('DF raw data'!J195="","",'DF raw data'!J195) -> -1.5493e-05 | C190: =IF('DF raw data'!K195="","",'DF raw data'!K195) -> -7.39383e-07 | D190: =IF('DF raw data'!L195="","",'DF raw data'!L195) -> -2.55418e-05 | F190: -1.55689157e-05 | G190: -7.430059767e-07 | H190: -2.566695482e-05 | J190: -0.0003867701432 | K190: -0.01275709024 | L190: 0.0003971306028 | M190: 0.01288639657 | N190: 6.822973243e-06
A191: =IF('DF raw data'!I196="","",'DF raw data'!I196) -> -235.5 | B191: =IF('DF raw data'!J196="","",'DF raw data'!J196) -> 7.45967e-06 | C191: =IF('DF raw data'!K196="","",'DF raw data'!K196) -> 3.06363e-06 | D191: =IF('DF raw data'!L196="","",'DF raw data'!L196) -> -2.8771e-05 | F191: 7.496222383e-06 | G191: 3.078641787e-06 | H191: -2.89119779e-05 | J191: -0.000383022032 | K191: -0.01294860125 | L191: 0.0003986699237 | M191: 0.01308573153 | N191: 6.975795035e-06
A192: =IF('DF raw data'!I197="","",'DF raw data'!I197) -> -235 | B192: =IF('DF raw data'!J197="","",'DF raw data'!J197) -> -1.28719e-05 | C192: =IF('DF raw data'!K197="","",'DF raw data'!K197) -> 8.46316e-06 | D192: =IF('DF raw data'!L197="","",'DF raw data'!L197) -> -1.41844e-05 | F192: =(1-$G$1*($B$49-$G$2))*B192 -> -1.293497231e-05 | G192: 8.504629484e-06 | H192: -1.425390356e-05 | J192: =F192*$G$3+J191 -> -0.0003894895181 | K192: =J192*$G$3+K191 -> -0.01314334601 | L192: =G192*$G$3+L191 -> 0.0004029222384 | M192: =L192*$G$3+M191 -> 0.01328719265 | N192: =(J192^2+L192^2)*$G$3+N191 -> 7.132819243e-06
A193: =IF('DF raw data'!I198="","",'DF raw data'!I198) -> -234.5 | B193: =IF('DF raw data'!J198="","",'DF raw data'!J198) -> -1.08739e-05 | C193: =IF('DF raw data'!K198="","",'DF raw data'!K198) -> 1.36154e-05 | D193: =IF('DF raw data'!L198="","",'DF raw data'!L198) -> -3.10106e-05 | F193: -1.092718211e-05 | G193: 1.368211546e-05 | H193: -3.116255194e-05 | J193: -0.0003949531092 | K193: -0.01334082257 | L193: 0.0004097632962 | M193: 0.0134920743 | N193: 7.294766201e-06
A194: =IF('DF raw data'!I199="","",'DF raw data'!I199) -> -234 | B194: =IF('DF raw data'!J199="","",'DF raw data'!J199) -> -1.75471e-05 | C194: =IF('DF raw data'!K199="","",'DF raw data'!K199) -> 1.3354e-05 | D194: =IF('DF raw data'!L199="","",'DF raw data'!L199) -> -2.18011e-05 | F194: -1.763308079e-05 | G194: 1.34194346e-05 | H194: -2.190792539e-05 | J194: -0.0004037696496 | K194: -0.01354270739 | L194: 0.0004164730135 | M194: 0.01370031081 | N194: 7.463006052e-06
A195: =IF('DF raw data'!I200="","",'DF raw data'!I200) -> -233.5 | B195: =IF('DF raw data'!J200="","",'DF raw data'!J200) -> -4.46948e-06 | C195: =IF('DF raw data'!K200="","",'DF raw data'!K200) -> 1.12128e-05 | D195: =IF('DF raw data'!L200="","",'DF raw data'!L200) -> -2.10847e-05 | F195: -4.491380452e-06 | G195: 1.126774272e-05 | H195: -2.118801503e-05 | J195: -0.0004060153398 | K195: -0.01374571506 | L195: 0.0004221068848 | M195: 0.01391136425 | N195: 7.634517391e-06
A196: =IF('DF raw data'!I201="","",'DF raw data'!I201) -> -233 | B196: =IF('DF raw data'!J201="","",'DF raw data'!J201) -> -5.88035e-06 | C196: =IF('DF raw data'!K201="","",'DF raw data'!K201) -> 9.57324e-06 | D196: =IF('DF raw data'!L201="","",'DF raw data'!L201) -> -2.02435e-05 | F196: -5.909163715e-06 | G196: 9.620148876e-06 | H196: -2.034269315e-05 | J196: -0.0004089699217 | K196: -0.01395020002 | L196: 0.0004269169593 | M196: 0.01412482273 | N196: 7.809274634e-06
A197: =IF('DF raw data'!I202="","",'DF raw data'!I202) -> -232.5 | B197: =IF('DF raw data'!J202="","",'DF raw data'!J202) -> -5.68358e-06 | C197: =IF('DF raw data'!K202="","",'DF raw data'!K202) -> 8.75436e-06 | D197: =IF('DF raw data'!L202="","",'DF raw data'!L202) -> -2.73073e-05 | F197: -5.711429542e-06 | G197: 8.797256364e-06 | H197: -2.744110577e-05 | J197: -0.0004118256364 | K197: -0.01415611284 | L197: 0.0004313155874 | M197: 0.01434048052 | N197: 7.98709138e-06
A198: =IF('DF raw data'!I203="","",'DF raw data'!I203) -> -232 | B198: =IF('DF raw data'!J203="","",'DF raw data'!J203) -> -1.01797e-05 | C198: =IF('DF raw data'!K203="","",'DF raw data'!K203) -> 3.20386e-06 | D198: =IF('DF raw data'!L203="","",'DF raw data'!L203) -> -1.39136e-05 | F198: -1.022958053e-05 | G198: 3.219558914e-06 | H198: -1.398177664e-05 | J198: -0.0004169404267 | K198: -0.01436458305 | L198: 0.0004329253669 | M198: 0.0145569432 | N198: 8.167723226e-06
A199: =IF('DF raw data'!I204="","",'DF raw data'!I204) -> -231.5 | B199: =IF('DF raw data'!J204="","",'DF raw data'!J204) -> -1.29215e-05 | C199: =IF('DF raw data'!K204="","",'DF raw data'!K204) -> -5.60681e-07 | D199: =IF('DF raw data'!L204="","",'DF raw data'!L204) -> -3.67456e-05 | F199: -1.298481535e-05 | G199: -5.634283369e-07 | H199: -3.692565344e-05 | J199: -0.0004234328344 | K199: -0.01457629947 | L199: 0.0004326436527 | M199: 0.01477326503 | N199: 8.350961174e-06
A200: =IF('DF raw data'!I205="","",'DF raw data'!I205) -> -231 | B200: =IF('DF raw data'!J205="","",'DF raw data'!J205) -> -2.358e-06 | C200: =IF('DF raw data'!K205="","",'DF raw data'!K205) -> 2.91177e-06 | D200: =IF('DF raw data'!L205="","",'DF raw data'!L205) -> -1.47047e-05 | F200: -2.3695542e-06 | G200: 2.926037673e-06 | H200: -1.477675303e-05 | J200: -0.0004246176115 | K200: -0.01478860828 | L200: 0.0004341066716 | M200: 0.01499031837 | N200: 8.535335533e-06
A201: =IF('DF raw data'!I206="","",'DF raw data'!I206) -> -230.5 | B201: =IF('DF raw data'!J206="","",'DF raw data'!J206) -> -1.38837e-06 | C201: =IF('DF raw data'!K206="","",'DF raw data'!K206) -> 4.84686e-06 | D201: =IF('DF raw data'!L206="","",'DF raw data'!L206) -> -2.69041e-05 | F201: -1.395173013e-06 | G201: 4.870609614e-06 | H201: -2.703593009e-05 | J201: -0.000425315198 | K201: -0.01500126588 | L201: 0.0004365419764 | M201: 0.01520858936 | N201: 8.72106649e-06
... 1061 more rows

Sheet 10 y=0.1
A1: =IF('DF raw data'!M1="","",'DF raw data'!M1) -> Number of header lines | B1: =IF('DF raw data'!N1="","",'DF raw data'!N1) -> 54 | C1: =IF('DF raw data'!O1="","",'DF raw data'!O1) ->  | D1: =IF('DF raw data'!P1="","",'DF raw data'!P1) ->  | F1: T_coeff | G1: -0.001 | H1: /degC | J1: ='10 y=-0.2'!J1 -> IBy total | K1: ='10 y=-0.2'!K1 -> -3.254979633 | L1: ='10 y=-0.2'!L1 -> muTm | R1: ='10 y=-0.2'!R1 -> DF ref | S1: ='10 y=-0.2'!S1 -> 1
A2: =IF('DF raw data'!M2="","",'DF raw data'!M2) -> Measured by | B2: =IF('DF raw data'!N2="","",'DF raw data'!N2) -> Danfysik | C2: =IF('DF raw data'!O2="","",'DF raw data'!O2) ->  | D2: =IF('DF raw data'!P2="","",'DF raw data'!P2) ->  | F2: Tcorr | G2: 20 | H2: degC | J2: JBy total | K2: =K1262 -> -25.59938696 | L2: muTm^2 | M2: =M1262 -> -0.5247936875
A3: =IF('DF raw data'!M3="","",'DF raw data'!M3) -> Operator | B3: =IF('DF raw data'!N3="","",'DF raw data'!N3) -> PMHA | C3: =IF('DF raw data'!O3="","",'DF raw data'!O3) ->  | D3: =IF('DF raw data'!P3="","",'DF raw data'!P3) ->  | F3: Step | G3: =A63-A62 -> 0.5 | H3: mm | J3: PI total | K3: =N1262 -> 10403.19444 | L3: T^2mm^3
A4: =IF('DF raw data'!M4="","",'DF raw data'!M4) -> Data-time | B4: =IF('DF raw data'!N4="","",'DF raw data'!N4) -> 02-10-2024, 14:19:35 | C4: =IF('DF raw data'!O4="","",'DF raw data'!O4) ->  | D4: =IF('DF raw data'!P4="","",'DF raw data'!P4) -> 
A5: =IF('DF raw data'!M5="","",'DF raw data'!M5) -> Project | B5: =IF('DF raw data'!N5="","",'DF raw data'!N5) -> 504314 | C5: =IF('DF raw data'!O5="","",'DF raw data'!O5) ->  | D5: =IF('DF raw data'!P5="","",'DF raw data'!P5) -> 
A6: =IF('DF raw data'!M6="","",'DF raw data'!M6) -> Magnet type | B6: =IF('DF raw data'!N6="","",'DF raw data'!N6) -> Dipole | C6: =IF('DF raw data'!O6="","",'DF raw data'!O6) ->  | D6: =IF('DF raw data'!P6="","",'DF raw data'!P6) -> 
A7: =IF('DF raw data'!M7="","",'DF raw data'!M7) -> Magnet nr. | B7: =IF('DF raw data'!N7="","",'DF raw data'!N7) -> 2410109 | C7: =IF('DF raw data'!O7="","",'DF raw data'!O7) ->  | D7: =IF('DF raw data'!P7="","",'DF raw data'!P7) -> 
A8: =IF('DF raw data'!M8="","",'DF raw data'!M8) -> Meas. number | B8: =IF('DF raw data'!N8="","",'DF raw data'!N8) -> 947 | C8: =IF('DF raw data'!O8="","",'DF raw data'!O8) ->  | D8: =IF('DF raw data'!P8="","",'DF raw data'!P8) -> 
A9: =IF('DF raw data'!M9="","",'DF raw data'!M9) -> Add. info | B9: =IF('DF raw data'!N9="","",'DF raw data'!N9) -> Y-alignment scan 4) | C9: =IF('DF raw data'!O9="","",'DF raw data'!O9) ->  | D9: =IF('DF raw data'!P9="","",'DF raw data'!P9) -> 
A10: =IF('DF raw data'!M10="","",'DF raw data'!M10) -> Device | B10: =IF('DF raw data'!N10="","",'DF raw data'!N10) -> (HAL) HALL-PROBE | C10: =IF('DF raw data'!O10="","",'DF raw data'!O10) ->  | D10: =IF('DF raw data'!P10="","",'DF raw data'!P10) -> 
A11: =IF('DF raw data'!M11="","",'DF raw data'!M11) -> Goal | B11: =IF('DF raw data'!N11="","",'DF raw data'!N11) -> (AXI) AXis Integral (Line, EFB) | C11: =IF('DF raw data'!O11="","",'DF raw data'!O11) ->  | D11: =IF('DF raw data'!P11="","",'DF raw data'!P11) -> 
A12: =IF('DF raw data'!M12="","",'DF raw data'!M12) -> Power supply mode | B12: =IF('DF raw data'!N12="","",'DF raw data'!N12) -> (PM) Permanent Magnet (no MPS in use) | C12: =IF('DF raw data'!O12="","",'DF raw data'!O12) ->  | D12: =IF('DF raw data'!P12="","",'DF raw data'!P12) -> 
A13: =IF('DF raw data'!M13="","",'DF raw data'!M13) -> Data format | B13: =IF('DF raw data'!N13="","",'DF raw data'!N13) -> Raw data text file | C13: =IF('DF raw data'!O13="","",'DF raw data'!O13) ->  | D13: =IF('DF raw data'!P13="","",'DF raw data'!P13) -> 
A14: =IF('DF raw data'!M14="","",'DF raw data'!M14) -> Direction of the pos. x-axis | B14: =IF('DF raw data'!N14="","",'DF raw data'!N14) -> See test program | C14: =IF('DF raw data'!O14="","",'DF raw data'!O14) ->  | D14: =IF('DF raw data'!P14="","",'DF raw data'!P14) -> 
A15: =IF('DF raw data'!M15="","",'DF raw data'!M15) -> Direction of the pos. y-axis | B15: =IF('DF raw data'!N15="","",'DF raw data'!N15) -> Vertical up | C15: =IF('DF raw data'!O15="","",'DF raw data'!O15) ->  | D15: =IF('DF raw data'!P15="","",'DF raw data'!P15) -> 
A16: =IF('DF raw data'!M16="","",'DF raw data'!M16) -> Direction of the pos. z-axis | B16: =IF('DF raw data'!N16="","",'DF raw data'!N16) -> See test program | C16: =IF('DF raw data'!O16="","",'DF raw data'!O16) ->  | D16: =IF('DF raw data'!P16="","",'DF raw data'!P16) -> 
A17: =IF('DF raw data'!M17="","",'DF raw data'!M17) -> Mapper type | B17: =IF('DF raw data'!N17="","",'DF raw data'!N17) -> Precision Hall Mapper | C17: =IF('DF raw data'!O17="","",'DF raw data'!O17) ->  | D17: =IF('DF raw data'!P17="","",'DF raw data'!P17) -> 
A18: =IF('DF raw data'!M18="","",'DF raw data'!M18) -> Mapper Danfysik Reg. Number | B18: =IF('DF raw data'!N18="","",'DF raw data'!N18) -> 2033-D (mapper 1) | C18: =IF('DF raw data'!O18="","",'DF raw data'!O18) ->  | D18: =IF('DF raw data'!P18="","",'DF raw data'!P18) -> 
A19: =IF('DF raw data'!M19="","",'DF raw data'!M19) -> Measurement consept | B19: =IF('DF raw data'!N19="","",'DF raw data'!N19) -> Square line grid | C19: =IF('DF raw data'!O19="","",'DF raw data'!O19) ->  | D19: =IF('DF raw data'!P19="","",'DF raw data'!P19) -> 
A20: =IF('DF raw data'!M20="","",'DF raw data'!M20) -> Mode | B20: =IF('DF raw data'!N20="","",'DF raw data'!N20) -> On-the-fly measurement | C20: =IF('DF raw data'!O20="","",'DF raw data'!O20) ->  | D20: =IF('DF raw data'!P20="","",'DF raw data'!P20) -> 
A21: =IF('DF raw data'!M21="","",'DF raw data'!M21) ->  | B21: =IF('DF raw data'!N21="","",'DF raw data'!N21) ->  | C21: =IF('DF raw data'!O21="","",'DF raw data'!O21) ->  | D21: =IF('DF raw data'!P21="","",'DF raw data'!P21) -> 
A22: =IF('DF raw data'!M22="","",'DF raw data'!M22) -> Probe Name | B22: =IF('DF raw data'!N22="","",'DF raw data'!N22) -> ID12_By | C22: =IF('DF raw data'!O22="","",'DF raw data'!O22) ->  | D22: =IF('DF raw data'!P22="","",'DF raw data'!P22) -> 
A23: =IF('DF raw data'!M23="","",'DF raw data'!M23) -> Probe Type | B23: =IF('DF raw data'!N23="","",'DF raw data'!N23) -> DF_ID_3D_Bxyz | C23: =IF('DF raw data'!O23="","",'DF raw data'!O23) ->  | D23: =IF('DF raw data'!P23="","",'DF raw data'!P23) -> 
A24: =IF('DF raw data'!M24="","",'DF raw data'!M24) -> Probe Danfysik Reg. Number | B24: =IF('DF raw data'!N24="","",'DF raw data'!N24) -> 2277 | C24: =IF('DF raw data'!O24="","",'DF raw data'!O24) ->  | D24: =IF('DF raw data'!P24="","",'DF raw data'!P24) -> 
A25: =IF('DF raw data'!M25="","",'DF raw data'!M25) -> Probe Axis | B25: =IF('DF raw data'!N25="","",'DF raw data'!N25) -> By | C25: =IF('DF raw data'!O25="","",'DF raw data'!O25) ->  | D25: =IF('DF raw data'!P25="","",'DF raw data'!P25) -> 
A26: =IF('DF raw data'!M26="","",'DF raw data'!M26) -> Probe Current Supply | B26: =IF('DF raw data'!N26="","",'DF raw data'!N26) -> 1825-D | C26: =IF('DF raw data'!O26="","",'DF raw data'!O26) ->  | D26: =IF('DF raw data'!P26="","",'DF raw data'!P26) -> 
A27: =IF('DF raw data'!M27="","",'DF raw data'!M27) -> Probe Gain Correction | B27: =IF('DF raw data'!N27="","",'DF raw data'!N27) -> 0.99618 | C27: =IF('DF raw data'!O27="","",'DF raw data'!O27) ->  | D27: =IF('DF raw data'!P27="","",'DF raw data'!P27) -> 
A28: =IF('DF raw data'!M28="","",'DF raw data'!M28) -> Probe Offset Correction | B28: =IF('DF raw data'!N28="","",'DF raw data'!N28) -> 0.002742 | C28: =IF('DF raw data'!O28="","",'DF raw data'!O28) ->  | D28: =IF('DF raw data'!P28="","",'DF raw data'!P28) -> 
A29: =IF('DF raw data'!M29="","",'DF raw data'!M29) -> DVM Number | B29: =IF('DF raw data'!N29="","",'DF raw data'!N29) -> 2 | C29: =IF('DF raw data'!O29="","",'DF raw data'!O29) ->  | D29: =IF('DF raw data'!P29="","",'DF raw data'!P29) -> 
A30: =IF('DF raw data'!M30="","",'DF raw data'!M30) -> DVM Type | B30: =IF('DF raw data'!N30="","",'DF raw data'!N30) -> K2701 | C30: =IF('DF raw data'!O30="","",'DF raw data'!O30) ->  | D30: =IF('DF raw data'!P30="","",'DF raw data'!P30) -> 
A31: =IF('DF raw data'!M31="","",'DF raw data'!M31) -> DVM Danfysik Reg. Number | B31: =IF('DF raw data'!N31="","",'DF raw data'!N31) -> 1743-D | C31: =IF('DF raw data'!O31="","",'DF raw data'!O31) ->  | D31: =IF('DF raw data'!P31="","",'DF raw data'!P31) -> 
A32: =IF('DF raw data'!M32="","",'DF raw data'!M32) -> Probe Name | B32: =IF('DF raw data'!N32="","",'DF raw data'!N32) -> ID12_Bx | C32: =IF('DF raw data'!O32="","",'DF raw data'!O32) ->  | D32: =IF('DF raw data'!P32="","",'DF raw data'!P32) -> 
A33: =IF('DF raw data'!M33="","",'DF raw data'!M33) -> Probe Type | B33: =IF('DF raw data'!N33="","",'DF raw data'!N33) -> DF_ID_3D_Bxyz | C33: =IF('DF raw data'!O33="","",'DF raw data'!O33) ->  | D33: =IF('DF raw data'!P33="","",'DF raw data'!P33) -> 
A34: =IF('DF raw data'!M34="","",'DF raw data'!M34) -> Probe Danfysik Reg. Number | B34: =IF('DF raw data'!N34="","",'DF raw data'!N34) -> 2277 | C34: =IF('DF raw data'!O34="","",'DF raw data'!O34) ->  | D34: =IF('DF raw data'!P34="","",'DF raw data'!P34) -> 
A35: =IF('DF raw data'!M35="","",'DF raw data'!M35) -> Probe Axis | B35: =IF('DF raw data'!N35="","",'DF raw data'!N35) -> Bx | C35: =IF('DF raw data'!O35="","",'DF raw data'!O35) ->  | D35: =IF('DF raw data'!P35="","",'DF raw data'!P35) -> 
A36: =IF('DF raw data'!M36="","",'DF raw data'!M36) -> Probe Current Supply | B36: =IF('DF raw data'!N36="","",'DF raw data'!N36) -> 1825-D | C36: =IF('DF raw data'!O36="","",'DF raw data'!O36) ->  | D36: =IF('DF raw data'!P36="","",'DF raw data'!P36) -> 
A37: =IF('DF raw data'!M37="","",'DF raw data'!M37) -> Probe Gain Correction | B37: =IF('DF raw data'!N37="","",'DF raw data'!N37) -> 1 | C37: =IF('DF raw data'!O37="","",'DF raw data'!O37) ->  | D37: =IF('DF raw data'!P37="","",'DF raw data'!P37) -> 
A38: =IF('DF raw data'!M38="","",'DF raw data'!M38) -> Probe Offset Correction | B38: =IF('DF raw data'!N38="","",'DF raw data'!N38) -> -0.17582 | C38: =IF('DF raw data'!O38="","",'DF raw data'!O38) ->  | D38: =IF('DF raw data'!P38="","",'DF raw data'!P38) -> 
A39: =IF('DF raw data'!M39="","",'DF raw data'!M39) -> DVM Number | B39: =IF('DF raw data'!N39="","",'DF raw data'!N39) -> 3 | C39: =IF('DF raw data'!O39="","",'DF raw data'!O39) ->  | D39: =IF('DF raw data'!P39="","",'DF raw data'!P39) -> 
A40: =IF('DF raw data'!M40="","",'DF raw data'!M40) -> DVM Type | B40: =IF('DF raw data'!N40="","",'DF raw data'!N40) -> K2701 | C40: =IF('DF raw data'!O40="","",'DF raw data'!O40) ->  | D40: =IF('DF raw data'!P40="","",'DF raw data'!P40) -> 
A41: =IF('DF raw data'!M41="","",'DF raw data'!M41) -> DVM Danfysik Reg. Number | B41: =IF('DF raw data'!N41="","",'DF raw data'!N41) -> 1744-D | C41: =IF('DF raw data'!O41="","",'DF raw data'!O41) ->  | D41: =IF('DF raw data'!P41="","",'DF raw data'!P41) -> 
A42: =IF('DF raw data'!M42="","",'DF raw data'!M42) -> Probe Name | B42: =IF('DF raw data'!N42="","",'DF raw data'!N42) -> ID12_Bz | C42: =IF('DF raw data'!O42="","",'DF raw data'!O42) ->  | D42: =IF('DF raw data'!P42="","",'DF raw data'!P42) -> 
A43: =IF('DF raw data'!M43="","",'DF raw data'!M43) -> Probe Type | B43: =IF('DF raw data'!N43="","",'DF raw data'!N43) -> DF_ID_3D_Bxyz | C43: =IF('DF raw data'!O43="","",'DF raw data'!O43) ->  | D43: =IF('DF raw data'!P43="","",'DF raw data'!P43) -> 
A44: =IF('DF raw data'!M44="","",'DF raw data'!M44) -> Probe Danfysik Reg. Number | B44: =IF('DF raw data'!N44="","",'DF raw data'!N44) -> 2277 | C44: =IF('DF raw data'!O44="","",'DF raw data'!O44) ->  | D44: =IF('DF raw data'!P44="","",'DF raw data'!P44) -> 
A45: =IF('DF raw data'!M45="","",'DF raw data'!M45) -> Probe Axis | B45: =IF('DF raw data'!N45="","",'DF raw data'!N45) -> Bz | C45: =IF('DF raw data'!O45="","",'DF raw data'!O45) ->  | D45: =IF('DF raw data'!P45="","",'DF raw data'!P45) -> 
A46: =IF('DF raw data'!M46="","",'DF raw data'!M46) -> Probe Current Supply | B46: =IF('DF raw data'!N46="","",'DF raw data'!N46) -> 1825-D | C46: =IF('DF raw data'!O46="","",'DF raw data'!O46) ->  | D46: =IF('DF raw data'!P46="","",'DF raw data'!P46) -> 
A47: =IF('DF raw data'!M47="","",'DF raw data'!M47) -> Probe Gain Correction | B47: =IF('DF raw data'!N47="","",'DF raw data'!N47) -> 1 | C47: =IF('DF raw data'!O47="","",'DF raw data'!O47) ->  | D47: =IF('DF raw data'!P47="","",'DF raw data'!P47) -> 
A48: =IF('DF raw data'!M53="","",'DF raw data'!M53) -> PS-Gap: | B48: =IF('DF raw data'!N53="","",'DF raw data'!N53) -> 10 | C48: =IF('DF raw data'!O53="","",'DF raw data'!O53) ->  | D48: =IF('DF raw data'!P53="","",'DF raw data'!P53) -> 
A49: =IF('DF raw data'!M54="","",'DF raw data'!M54) -> PS-Temperature: | B49: =IF('DF raw data'!N54="","",'DF raw data'!N54) -> 24.9 | C49: =IF('DF raw data'!O54="","",'DF raw data'!O54) ->  | D49: =IF('DF raw data'!P54="","",'DF raw data'!P54) -> 
A50: =IF('DF raw data'!M55="","",'DF raw data'!M55) -> PS-Encoder: | B50: =IF('DF raw data'!N55="","",'DF raw data'!N55) -> 19.8325 | C50: =IF('DF raw data'!O55="","",'DF raw data'!O55) ->  | D50: =IF('DF raw data'!P55="","",'DF raw data'!P55) -> 
A51: =IF('DF raw data'!M56="","",'DF raw data'!M56) ->  | B51: =IF('DF raw data'!N56="","",'DF raw data'!N56) ->  | C51: =IF('DF raw data'!O56="","",'DF raw data'!O56) ->  | D51: =IF('DF raw data'!P56="","",'DF raw data'!P56) -> 
A52: =IF('DF raw data'!M57="","",'DF raw data'!M57) -> Monitor-Index | B52: =IF('DF raw data'!N57="","",'DF raw data'!N57) -> [1,1,4] | C52: =IF('DF raw data'!O57="","",'DF raw data'!O57) ->  | D52: =IF('DF raw data'!P57="","",'DF raw data'!P57) -> 
A53: =IF('DF raw data'!M58="","",'DF raw data'!M58) ->  | B53: =IF('DF raw data'!N58="","",'DF raw data'!N58) ->  | C53: =IF('DF raw data'!O58="","",'DF raw data'!O58) ->  | D53: =IF('DF raw data'!P58="","",'DF raw data'!P58) -> 
A54: =IF('DF raw data'!M59="","",'DF raw data'!M59) -> Time [s] | B54: =IF('DF raw data'!N59="","",'DF raw data'!N59) -> Y [mm] | C54: =IF('DF raw data'!O59="","",'DF raw data'!O59) -> X [mm] | D54: =IF('DF raw data'!P59="","",'DF raw data'!P59) -> Nominal current [A]
A55: =IF('DF raw data'!M60="","",'DF raw data'!M60) ->  | B55: =IF('DF raw data'!N60="","",'DF raw data'!N60) ->  | C55: =IF('DF raw data'!O60="","",'DF raw data'!O60) ->  | D55: =IF('DF raw data'!P60="","",'DF raw data'!P60) -> 
A56: =IF('DF raw data'!M61="","",'DF raw data'!M61) -> 208.6 | B56: =IF('DF raw data'!N61="","",'DF raw data'!N61) -> 31.6 | C56: =IF('DF raw data'!O61="","",'DF raw data'!O61) -> 301.8 | D56: =IF('DF raw data'!P61="","",'DF raw data'!P61) -> 0
A57: =IF('DF raw data'!M62="","",'DF raw data'!M62) ->  | B57: =IF('DF raw data'!N62="","",'DF raw data'!N62) ->  | C57: =IF('DF raw data'!O62="","",'DF raw data'!O62) ->  | D57: =IF('DF raw data'!P62="","",'DF raw data'!P62) -> 
A58: =IF('DF raw data'!M63="","",'DF raw data'!M63) -> Measurement-Index | B58: =IF('DF raw data'!N63="","",'DF raw data'!N63) -> [1,1,1201,2] | C58: =IF('DF raw data'!O63="","",'DF raw data'!O63) ->  | D58: =IF('DF raw data'!P63="","",'DF raw data'!P63) -> 
A59: =IF('DF raw data'!M64="","",'DF raw data'!M64) ->  | B59: =IF('DF raw data'!N64="","",'DF raw data'!N64) ->  | C59: =IF('DF raw data'!O64="","",'DF raw data'!O64) ->  | D59: =IF('DF raw data'!P64="","",'DF raw data'!P64) -> 
A60: =IF('DF raw data'!M65="","",'DF raw data'!M65) -> Z [mm] | B60: By [T] | C60: Bx [T] | D60: Bz [T] | F60: By_corr | G60: Bx_corr | H60: Bz_corr | J60: Iy | K60: Jy | L60: Ix | M60: Jx | N60: PI
A62: =IF('DF raw data'!M67="","",'DF raw data'!M67) -> -300 | B62: =IF('DF raw data'!N67="","",'DF raw data'!N67) -> -3.75705e-06 | C62: =IF('DF raw data'!O67="","",'DF raw data'!O67) -> 7.42377e-05 | D62: =IF('DF raw data'!P67="","",'DF raw data'!P67) -> -2.29079e-05 | F62: =(1-$G$1*($B$49))*B62 -> -3.850600545e-06 | G62: =(1-$G$1*($B$49-$G$2))*C62 -> 7.460146473e-05 | H62: =(1-$G$1*($B$49-$G$2))*D62 -> -2.302014871e-05 | J62: =F62*$G$3 -> -1.925300272e-06 | K62: =J62*$G$3 -> -9.626501362e-07 | L62: =G62*$G$3 -> 3.730073236e-05 | M62: =L62*$G$3 -> 1.865036618e-05 | N62: =(J62^2+L62^2)*$G$3 -> 6.975257081e-10
A63: =IF('DF raw data'!M68="","",'DF raw data'!M68) -> -299.5 | B63: =IF('DF raw data'!N68="","",'DF raw data'!N68) -> -1.77325e-05 | C63: =IF('DF raw data'!O68="","",'DF raw data'!O68) -> 6.53062e-05 | D63: =IF('DF raw data'!P68="","",'DF raw data'!P68) -> -2.22555e-05 | F63: =(1-$G$1*($B$49-$G$2))*B63 -> -1.781938925e-05 | G63: =(1-$G$1*($B$49-$G$2))*C63 -> 6.562620038e-05 | H63: -2.236455195e-05 | J63: =F63*$G$3+J62 -> -1.08349949e-05 | K63: =J63*$G$3+K62 -> -6.380147585e-06 | L63: =G63*$G$3+L62 -> 7.011383255e-05 | M63: =L63*$G$3+M62 -> 5.370728246e-05 | N63: =(J63^2+L63^2)*$G$3+N62 -> 3.214199023e-09
A64: =IF('DF raw data'!M69="","",'DF raw data'!M69) -> -299 | B64: =IF('DF raw data'!N69="","",'DF raw data'!N69) -> -4.33485e-06 | C64: =IF('DF raw data'!O69="","",'DF raw data'!O69) -> 6.88152e-05 | D64: =IF('DF raw data'!P69="","",'DF raw data'!P69) -> -2.17517e-05 | F64: =(1-$G$1*($B$49-$G$2))*B64 -> -4.356090765e-06 | G64: 6.915239448e-05 | H64: -2.185828333e-05 | J64: =F64*$G$3+J63 -> -1.301304028e-05 | K64: =J64*$G$3+K63 -> -1.288666772e-05 | L64: =G64*$G$3+L63 -> 0.0001046900298 | M64: =L64*$G$3+M63 -> 0.0001060522974 | N64: =(J64^2+L64^2)*$G$3+N63 -> 8.778869801e-09
A65: =IF('DF raw data'!M70="","",'DF raw data'!M70) -> -298.5 | B65: =IF('DF raw data'!N70="","",'DF raw data'!N70) -> -6.77068e-06 | C65: =IF('DF raw data'!O70="","",'DF raw data'!O70) -> 6.43668e-05 | D65: =IF('DF raw data'!P70="","",'DF raw data'!P70) -> -2.18963e-05 | F65: -6.803856332e-06 | G65: 6.468219732e-05 | H65: -2.200359187e-05 | J65: -1.641496845e-05 | K65: -2.109415195e-05 | L65: 0.0001370311285 | M65: 0.0001745678616 | N65: 1.830236048e-08
A66: =IF('DF raw data'!M71="","",'DF raw data'!M71) -> -298 | B66: =IF('DF raw data'!N71="","",'DF raw data'!N71) -> -2.22205e-05 | C66: =IF('DF raw data'!O71="","",'DF raw data'!O71) -> 7.0702e-05 | D66: =IF('DF raw data'!P71="","",'DF raw data'!P71) -> -2.14889e-05 | F66: -2.232938045e-05 | G66: 7.10484398e-05 | H66: -2.159419561e-05 | J66: -2.757965867e-05 | K66: -3.488398128e-05 | L66: 0.0001725553484 | M66: 0.0002608455358 | N66: 3.357035339e-08
A67: =IF('DF raw data'!M72="","",'DF raw data'!M72) -> -297.5 | B67: =IF('DF raw data'!N72="","",'DF raw data'!N72) -> -6.38665e-06 | C67: =IF('DF raw data'!O72="","",'DF raw data'!O72) -> 7.35891e-05 | D67: =IF('DF raw data'!P72="","",'DF raw data'!P72) -> -2.09888e-05 | F67: -6.417944585e-06 | G67: 7.394968659e-05 | H67: -2.109164512e-05 | J67: -3.078863096e-05 | K67: -5.027829677e-05 | L67: 0.0002095301916 | M67: 0.0003656106316 | N67: 5.599577389e-08
A68: =IF('DF raw data'!M73="","",'DF raw data'!M73) -> -297 | B68: =IF('DF raw data'!N73="","",'DF raw data'!N73) -> -1.04895e-05 | C68: =IF('DF raw data'!O73="","",'DF raw data'!O73) -> 6.55131e-05 | D68: =IF('DF raw data'!P73="","",'DF raw data'!P73) -> -2.10385e-05 | F68: -1.054089855e-05 | G68: 6.583411419e-05 | H68: -2.114158865e-05 | J68: -3.605908024e-05 | K68: -6.830783688e-05 | L68: 0.0002424472487 | M68: 0.000486834256 | N68: 8.603623674e-08
A69: =IF('DF raw data'!M74="","",'DF raw data'!M74) -> -296.5 | B69: =IF('DF raw data'!N74="","",'DF raw data'!N74) -> -1.01048e-05 | C69: =IF('DF raw data'!O74="","",'DF raw data'!O74) -> 6.53762e-05 | D69: =IF('DF raw data'!P74="","",'DF raw data'!P74) -> -2.11223e-05 | F69: -1.015431352e-05 | G69: 6.569654338e-05 | H69: -2.122579927e-05 | J69: -4.1136237e-05 | K69: -8.887595538e-05 | L69: 0.0002752955204 | M69: 0.0006244820162 | N69: 1.247761435e-07
A70: =IF('DF raw data'!M75="","",'DF raw data'!M75) -> -296 | B70: =IF('DF raw data'!N75="","",'DF raw data'!N75) -> -1.01048e-05 | C70: =IF('DF raw data'!O75="","",'DF raw data'!O75) -> 6.76338e-05 | D70: =IF('DF raw data'!P75="","",'DF raw data'!P75) -> -2.11087e-05 | F70: -1.015431352e-05 | G70: 6.796520562e-05 | H70: -2.121213263e-05 | J70: -4.621339376e-05 | K70: -0.0001119826523 | L70: 0.0003092781232 | M70: 0.0007791210778 | N70: 1.736704612e-07
A71: =IF('DF raw data'!M76="","",'DF raw data'!M76) -> -295.5 | B71: =IF('DF raw data'!N76="","",'DF raw data'!N76) -> -3.30933e-06 | C71: =IF('DF raw data'!O76="","",'DF raw data'!O76) -> 6.14118e-05 | D71: =IF('DF raw data'!P76="","",'DF raw data'!P76) -> -2.15588e-05 | F71: -3.325545717e-06 | G71: 6.171271782e-05 | H71: -2.166443812e-05 | J71: -4.787616662e-05 | K71: -0.0001359207356 | L71: 0.0003401344822 | M71: 0.0009491883189 | N71: 2.326622578e-07
A72: =IF('DF raw data'!M77="","",'DF raw data'!M77) -> -295 | B72: =IF('DF raw data'!N77="","",'DF raw data'!N77) -> -1.1322e-05 | C72: =IF('DF raw data'!O77="","",'DF raw data'!O77) -> 6.65501e-05 | D72: =IF('DF raw data'!P77="","",'DF raw data'!P77) -> -2.20813e-05 | F72: -1.13774778e-05 | G72: 6.687619549e-05 | H72: -2.218949837e-05 | J72: -5.356490552e-05 | K72: -0.0001627031883 | L72: 0.0003735725799 | M72: 0.001135974609 | N72: 3.038750936e-07
A73: =IF('DF raw data'!M78="","",'DF raw data'!M78) -> -294.5 | B73: =IF('DF raw data'!N78="","",'DF raw data'!N78) -> -1.05528e-05 | C73: =IF('DF raw data'!O78="","",'DF raw data'!O78) -> 7.04489e-05 | D73: =IF('DF raw data'!P78="","",'DF raw data'!P78) -> -2.20934e-05 | F73: -1.060450872e-05 | G73: 7.079409961e-05 | H73: -2.220165766e-05 | J73: -5.886715988e-05 | K73: -0.0001921367683 | L73: 0.0004089696297 | M73: 0.001340459424 | N73: 3.892358438e-07
A74: =IF('DF raw data'!M79="","",'DF raw data'!M79) -> -294 | B74: =IF('DF raw data'!N79="","",'DF raw data'!N79) -> -1.87586e-05 | C74: =IF('DF raw data'!O79="","",'DF raw data'!O79) -> 6.80834e-05 | D74: =IF('DF raw data'!P79="","",'DF raw data'!P79) -> -2.15835e-05 | F74: -1.885051714e-05 | G74: 6.841700866e-05 | H74: -2.168925915e-05 | J74: -6.829241845e-05 | K74: -0.0002262829775 | L74: 0.000443178134 | M74: 0.001562048491 | N74: 4.897712003e-07
A75: =IF('DF raw data'!M80="","",'DF raw data'!M80) -> -293.5 | B75: =IF('DF raw data'!N80="","",'DF raw data'!N80) -> -9.84844e-06 | C75: =IF('DF raw data'!O80="","",'DF raw data'!O80) -> 6.42674e-05 | D75: =IF('DF raw data'!P80="","",'DF raw data'!P80) -> -2.1047e-05 | F75: -9.896697356e-06 | G75: 6.458231026e-05 | H75: -2.11501303e-05 | J75: -7.324076712e-05 | K75: -0.0002629033611 | L75: 0.0004754692892 | M75: 0.001799783135 | N75: 6.054888278e-07
A76: =IF('DF raw data'!M81="","",'DF raw data'!M81) -> -293 | B76: =IF('DF raw data'!N81="","",'DF raw data'!N81) -> -1.83105e-05 | C76: =IF('DF raw data'!O81="","",'DF raw data'!O81) -> 6.54433e-05 | D76: =IF('DF raw data'!P81="","",'DF raw data'!P81) -> -2.08032e-05 | F76: -1.840022145e-05 | G76: 6.576397217e-05 | H76: -2.090513568e-05 | J76: -8.244087785e-05 | K76: -0.0003041238 | L76: 0.0005083512752 | M76: 0.002053958773 | N76: 7.380975864e-07
A77: =IF('DF raw data'!M82="","",'DF raw data'!M82) -> -292.5 | B77: =IF('DF raw data'!N82="","",'DF raw data'!N82) -> -2.28361e-06 | C77: =IF('DF raw data'!O82="","",'DF raw data'!O82) -> 7.21776e-05 | D77: =IF('DF raw data'!P82="","",'DF raw data'!P82) -> -2.12492e-05 | F77: -2.294799689e-06 | G77: 7.253127024e-05 | H77: -2.135332108e-05 | J77: -8.358827769e-05 | K77: -0.0003459179388 | L77: 0.0005446169104 | M77: 0.002326267228 | N77: 8.898948761e-07
A78: =IF('DF raw data'!M83="","",'DF raw data'!M83) -> -292 | B78: =IF('DF raw data'!N83="","",'DF raw data'!N83) -> -1.39506e-05 | C78: =IF('DF raw data'!O83="","",'DF raw data'!O83) -> 6.78188e-05 | D78: =IF('DF raw data'!P83="","",'DF raw data'!P83) -> -2.17081e-05 | F78: -1.401895794e-05 | G78: 6.815111212e-05 | H78: -2.181446969e-05 | J78: -9.059775666e-05 | K78: -0.0003912168172 | L78: 0.0005786924664 | M78: 0.002615613461 | N78: 1.061441338e-06
A79: =IF('DF raw data'!M84="","",'DF raw data'!M84) -> -291.5 | B79: =IF('DF raw data'!N84="","",'DF raw data'!N84) -> -1.3319e-05 | C79: =IF('DF raw data'!O84="","",'DF raw data'!O84) -> 5.7711e-05 | D79: =IF('DF raw data'!P84="","",'DF raw data'!P84) -> -7.15228e-06 | F79: -1.33842631e-05 | G79: 5.79937839e-05 | H79: -7.187326172e-06 | J79: -9.728988821e-05 | K79: -0.0004398617613 | L79: 0.0006076893584 | M79: 0.00291945814 | N79: 1.250817177e-06
A80: =IF('DF raw data'!M85="","",'DF raw data'!M85) -> -291 | B80: =IF('DF raw data'!N85="","",'DF raw data'!N85) -> -1.17725e-05 | C80: =IF('DF raw data'!O85="","",'DF raw data'!O85) -> 6.22644e-05 | D80: =IF('DF raw data'!P85="","",'DF raw data'!P85) -> -1.95267e-05 | F80: -1.183018525e-05 | G80: 6.256949556e-05 | H80: -1.962238083e-05 | J80: -0.0001032049808 | K80: -0.0004914642517 | L80: 0.0006389741062 | M80: 0.003238945194 | N80: 1.460286766e-06
A81: =IF('DF raw data'!M86="","",'DF raw data'!M86) -> -290.5 | B81: =IF('DF raw data'!N86="","",'DF raw data'!N86) -> -1.51754e-05 | C81: =IF('DF raw data'!O86="","",'DF raw data'!O86) -> 7.22168e-05 | D81: =IF('DF raw data'!P86="","",'DF raw data'!P86) -> -1.13332e-05 | F81: -1.524975946e-05 | G81: 7.257066232e-05 | H81: -1.138873268e-05 | J81: -0.0001108298606 | K81: -0.000546879182 | L81: 0.0006752594373 | M81: 0.003576574912 | N81: 1.694416049e-06
A82: =IF('DF raw data'!M87="","",'DF raw data'!M87) -> -290 | B82: =IF('DF raw data'!N87="","",'DF raw data'!N87) -> -1.69564e-05 | C82: =IF('DF raw data'!O87="","",'DF raw data'!O87) -> 6.81144e-05 | D82: =IF('DF raw data'!P87="","",'DF raw data'!P87) -> -3.28657e-05 | F82: -1.703948636e-05 | G82: 6.844816056e-05 | H82: -3.302674193e-05 | J82: -0.0001193496037 | K82: -0.0006065539838 | L82: 0.0007094835176 | M82: 0.003931316671 | N82: 1.953221643e-06
A83: =IF('DF raw data'!M88="","",'DF raw data'!M88) -> -289.5 | B83: =IF('DF raw data'!N88="","",'DF raw data'!N88) -> -1.57676e-06 | C83: =IF('DF raw data'!O88="","",'DF raw data'!O88) -> 6.76561e-05 | D83: =IF('DF raw data'!P88="","",'DF raw data'!P88) -> -2.41125e-05 | F83: -1.584486124e-06 | G83: 6.798761489e-05 | H83: -2.423065125e-05 | J83: -0.0001201418468 | K83: -0.0006666249073 | L83: 0.000743477325 | M83: 0.004303055334 | N83: 2.236817941e-06
A84: =IF('DF raw data'!M89="","",'DF raw data'!M89) -> -289 | B84: =IF('DF raw data'!N89="","",'DF raw data'!N89) -> 2.00805e-06 | C84: =IF('DF raw data'!O89="","",'DF raw data'!O89) -> 6.72763e-05 | D84: =IF('DF raw data'!P89="","",'DF raw data'!P89) -> -1.60462e-05 | F84: 2.017889445e-06 | G84: 6.760595387e-05 | H84: -1.612482638e-05 | J84: -0.0001191329021 | K84: -0.0007261913583 | L84: 0.000777280302 | M84: 0.004691695485 | N84: 2.5459966e-06
A85: =IF('DF raw data'!M90="","",'DF raw data'!M90) -> -288.5 | B85: =IF('DF raw data'!N90="","",'DF raw data'!N90) -> -1.58099e-05 | C85: =IF('DF raw data'!O90="","",'DF raw data'!O90) -> 6.85207e-05 | D85: =IF('DF raw data'!P90="","",'DF raw data'!P90) -> -2.13977e-05 | F85: -1.588736851e-05 | G85: 6.885645143e-05 | H85: -2.150254873e-05 | J85: -0.0001270765863 | K85: -0.0007897296515 | L85: 0.0008117085277 | M85: 0.005097549748 | N85: 2.883506196e-06
A86: =IF('DF raw data'!M91="","",'DF raw data'!M91) -> -288 | B86: =IF('DF raw data'!N91="","",'DF raw data'!N91) -> -3.81936e-06 | C86: =IF('DF raw data'!O91="","",'DF raw data'!O91) -> 7.57758e-05 | D86: =IF('DF raw data'!P91="","",'DF raw data'!P91) -> -2.58707e-05 | F86: -3.838074864e-06 | G86: 7.614710142e-05 | H86: -2.599746643e-05 | J86: -0.0001289956238 | K86: -0.0008542274634 | L86: 0.0008497820784 | M86: 0.005522440788 | N86: 3.252890922e-06
A87: =IF('DF raw data'!M92="","",'DF raw data'!M92) -> -287.5 | B87: =IF('DF raw data'!N92="","",'DF raw data'!N92) -> -7.47302e-06 | C87: =IF('DF raw data'!O92="","",'DF raw data'!O92) -> 6.8222e-05 | D87: =IF('DF raw data'!P92="","",'DF raw data'!P92) -> -2.64066e-05 | F87: -7.509637798e-06 | G87: 6.85562878e-05 | H87: -2.653599234e-05 | J87: -0.0001327504427 | K87: -0.0009206026847 | L87: 0.0008840602223 | M87: 0.005964470899 | N87: 3.6524835e-06
A88: =IF('DF raw data'!M93="","",'DF raw data'!M93) -> -287 | B88: =IF('DF raw data'!N93="","",'DF raw data'!N93) -> -9.38139e-07 | C88: =IF('DF raw data'!O93="","",'DF raw data'!O93) -> 6.21872e-05 | D88: =IF('DF raw data'!P93="","",'DF raw data'!P93) -> -2.03877e-05 | F88: -9.427358811e-07 | G88: 6.249191728e-05 | H88: -2.048759973e-05 | J88: -0.0001332218106 | K88: -0.00098721359 | L88: 0.0009153061809 | M88: 0.006422123989 | N88: 4.080250228e-06
A89: =IF('DF raw data'!M94="","",'DF raw data'!M94) -> -286.5 | B89: =IF('DF raw data'!N94="","",'DF raw data'!N94) -> -1.13249e-05 | C89: =IF('DF raw data'!O94="","",'DF raw data'!O94) -> 6.46906e-05 | D89: =IF('DF raw data'!P94="","",'DF raw data'!P94) -> -1.75933e-05 | F89: -1.138039201e-05 | G89: 6.500758394e-05 | H89: -1.767950717e-05 | J89: -0.0001389120066 | K89: -0.001056669593 | L89: 0.0009478099729 | M89: 0.006896028976 | N89: 4.539070373e-06
A90: =IF('DF raw data'!M95="","",'DF raw data'!M95) -> -286 | B90: =IF('DF raw data'!N95="","",'DF raw data'!N95) -> -1.00372e-05 | C90: =IF('DF raw data'!O95="","",'DF raw data'!O95) -> 6.43913e-05 | D90: =IF('DF raw data'!P95="","",'DF raw data'!P95) -> -2.6309e-05 | F90: -1.008638228e-05 | G90: 6.470681737e-05 | H90: -2.64379141e-05 | J90: -0.0001439551978 | K90: -0.001128647192 | L90: 0.0009801633816 | M90: 0.007386110666 | N90: 5.02979205e-06
A91: =IF('DF raw data'!M96="","",'DF raw data'!M96) -> -285.5 | B91: =IF('DF raw data'!N96="","",'DF raw data'!N96) -> -5.8085e-06 | C91: =IF('DF raw data'!O96="","",'DF raw data'!O96) -> 6.49747e-05 | D91: =IF('DF raw data'!P96="","",'DF raw data'!P96) -> -2.26607e-05 | F91: -5.83696165e-06 | G91: 6.529307603e-05 | H91: -2.277173743e-05 | J91: -0.0001468736786 | K91: -0.001202084031 | L91: 0.00101280992 | M91: 0.007892515626 | N91: 5.553469955e-06
A92: =IF('DF raw data'!M97="","",'DF raw data'!M97) -> -285 | B92: =IF('DF raw data'!N97="","",'DF raw data'!N97) -> -7.54515e-06 | C92: =IF('DF raw data'!O97="","",'DF raw data'!O97) -> 6.08152e-05 | D92: =IF('DF raw data'!P97="","",'DF raw data'!P97) -> -1.382e-05 | F92: -7.582121235e-06 | G92: 6.111319448e-05 | H92: -1.3887718e-05 | J92: -0.0001506647392 | K92: -0.001277416401 | L92: 0.001043366517 | M92: 0.008414198885 | N92: 6.109126731e-06
A93: =IF('DF raw data'!M98="","",'DF raw data'!M98) -> -284.5 | B93: =IF('DF raw data'!N98="","",'DF raw data'!N98) -> -1.57494e-05 | C93: =IF('DF raw data'!O98="","",'DF raw data'!O98) -> 5.76678e-05 | D93: =IF('DF raw data'!P98="","",'DF raw data'!P98) -> -1.56574e-05 | F93: -1.582657206e-05 | G93: 5.795037222e-05 | H93: -1.573412126e-05 | J93: -0.0001585780252 | K93: -0.001356705414 | L93: 0.001072341703 | M93: 0.008950369736 | N93: 6.69665859e-06
A94: =IF('DF raw data'!M99="","",'DF raw data'!M99) -> -284 | B94: =IF('DF raw data'!N99="","",'DF raw data'!N99) -> -1.17737e-05 | C94: =IF('DF raw data'!O99="","",'DF raw data'!O99) -> 6.27143e-05 | D94: =IF('DF raw data'!P99="","",'DF raw data'!P99) -> -1.76534e-05 | F94: -1.183139113e-05 | G94: 6.302160007e-05 | H94: -1.773990166e-05 | J94: -0.0001644937208 | K94: -0.001438952274 | L94: 0.001103852503 | M94: 0.009502295988 | N94: 7.319432857e-06
A95: =IF('DF raw data'!M100="","",'DF raw data'!M100) -> -283.5 | B95: =IF('DF raw data'!N100="","",'DF raw data'!N100) -> -1.09395e-05 | C95: =IF('DF raw data'!O100="","",'DF raw data'!O100) -> 5.93542e-05 | D95: =IF('DF raw data'!P100="","",'DF raw data'!P100) -> -1.87604e-05 | F95: -1.099310355e-05 | G95: 5.964503558e-05 | H95: -1.885232596e-05 | J95: -0.0001699902726 | K95: -0.00152394741 | L95: 0.001133675021 | M95: 0.0100691335 | N95: 7.976490729e-06
A96: =IF('DF raw data'!M101="","",'DF raw data'!M101) -> -283 | B96: =IF('DF raw data'!N101="","",'DF raw data'!N101) -> -3.37886e-06 | C96: =IF('DF raw data'!O101="","",'DF raw data'!O101) -> 5.95373e-05 | D96: =IF('DF raw data'!P101="","",'DF raw data'!P101) -> -1.29878e-05 | F96: -3.395416414e-06 | G96: 5.982903277e-05 | H96: -1.305144022e-05 | J96: -0.0001716879808 | K96: -0.001609791401 | L96: 0.001163589537 | M96: 0.01065092827 | N96: 8.668199416e-06
A97: =IF('DF raw data'!M102="","",'DF raw data'!M102) -> -282.5 | B97: =IF('DF raw data'!N102="","",'DF raw data'!N102) -> -1.06754e-05 | C97: =IF('DF raw data'!O102="","",'DF raw data'!O102) -> 5.35012e-05 | D97: =IF('DF raw data'!P102="","",'DF raw data'!P102) -> -3.0653e-05 | F97: -1.072770946e-05 | G97: 5.376335588e-05 | H97: -3.08031997e-05 | J97: -0.0001770518355 | K97: -0.001698317319 | L97: 0.001190471215 | M97: 0.01124616387 | N97: 9.39248395e-06
A98: =IF('DF raw data'!M103="","",'DF raw data'!M103) -> -282 | B98: =IF('DF raw data'!N103="","",'DF raw data'!N103) -> -4.64925e-06 | C98: =IF('DF raw data'!O103="","",'DF raw data'!O103) -> 6.3777e-05 | D98: =IF('DF raw data'!P103="","",'DF raw data'!P103) -> -3.09833e-05 | F98: -4.672031325e-06 | G98: 6.40895073e-05 | H98: -3.113511817e-05 | J98: -0.0001793878512 | K98: -0.001788011244 | L98: 0.001222515969 | M98: 0.01185742186 | N98: 1.01558466e-05
A99: =IF('DF raw data'!M104="","",'DF raw data'!M104) -> -281.5 | B99: =IF('DF raw data'!N104="","",'DF raw data'!N104) -> -5.74368e-06 | C99: =IF('DF raw data'!O104="","",'DF raw data'!O104) -> 6.52043e-05 | D99: =IF('DF raw data'!P104="","",'DF raw data'!P104) -> -2.39757e-05 | F99: -5.771824032e-06 | G99: 6.552380107e-05 | H99: -2.409318093e-05 | J99: -0.0001822737632 | K99: -0.001879148126 | L99: 0.001255277869 | M99: 0.01248506079 | N99: 1.096031972e-05
A100: =IF('DF raw data'!M105="","",'DF raw data'!M105) -> -281 | B100: =IF('DF raw data'!N105="","",'DF raw data'!N105) -> -3.18442e-06 | C100: =IF('DF raw data'!O105="","",'DF raw data'!O105) -> 5.75801e-05 | D100: =IF('DF raw data'!P105="","",'DF raw data'!P105) -> -1.64698e-05 | F100: -3.200023658e-06 | G100: 5.786224249e-05 | H100: -1.655050202e-05 | J100: -0.000183873775 | K100: -0.001971085013 | L100: 0.001284208991 | M100: 0.01312716529 | N100: 1.180182087e-05
A101: =IF('DF raw data'!M106="","",'DF raw data'!M106) -> -280.5 | B101: =IF('DF raw data'!N106="","",'DF raw data'!N106) -> -3.8286e-06 | C101: =IF('DF raw data'!O106="","",'DF raw data'!O106) -> 4.86111e-05 | D101: =IF('DF raw data'!P106="","",'DF raw data'!P106) -> -1.16133e-05 | F101: -3.84736014e-06 | G101: 4.884929439e-05 | H101: -1.167020517e-05 | J101: -0.0001857974551 | K101: -0.002063983741 | L101: 0.001308633638 | M101: 0.01378148211 | N101: 1.267534222e-05
A102: =IF('DF raw data'!M107="","",'DF raw data'!M107) -> -280 | B102: =IF('DF raw data'!N107="","",'DF raw data'!N107) -> 5.53324e-06 | C102: =IF('DF raw data'!O107="","",'DF raw data'!O107) -> 5.2308e-05 | D102: =IF('DF raw data'!P107="","",'DF raw data'!P107) -> -1.50994e-05 | F102: 5.560352876e-06 | G102: 5.25643092e-05 | H102: -1.517338706e-05 | J102: -0.0001830172786 | K102: -0.00215549238 | L102: 0.001334915792 | M102: 0.01444894 | N102: 1.358308997e-05
A103: =IF('DF raw data'!M108="","",'DF raw data'!M108) -> -279.5 | B103: =IF('DF raw data'!N108="","",'DF raw data'!N108) -> -2.28061e-06 | C103: =IF('DF raw data'!O108="","",'DF raw data'!O108) -> 5.58573e-05 | D103: =IF('DF raw data'!P108="","",'DF raw data'!P108) -> -2.58769e-05 | F103: -2.291784989e-06 | G103: 5.613100077e-05 | H103: -2.600369681e-05 | J103: -0.0001841631711 | K103: -0.002247573966 | L103: 0.001362981293 | M103: 0.01513043065 | N103: 1.452890701e-05
A104: =IF('DF raw data'!M109="","",'DF raw data'!M109) -> -279 | B104: =IF('DF raw data'!N109="","",'DF raw data'!N109) -> -3.24195e-06 | C104: =IF('DF raw data'!O109="","",'DF raw data'!O109) -> 5.44862e-05 | D104: =IF('DF raw data'!P109="","",'DF raw data'!P109) -> -2.64074e-05 | F104: -3.257835555e-06 | G104: 5.475318238e-05 | H104: -2.653679626e-05 | J104: -0.0001857920889 | K104: -0.00234047001 | L104: 0.001390357884 | M104: 0.01582560959 | N104: 1.551271388e-05
A105: =IF('DF raw data'!M110="","",'DF raw data'!M110) -> -278.5 | B105: =IF('DF raw data'!N110="","",'DF raw data'!N110) -> -8.3122e-06 | C105: =IF('DF raw data'!O110="","",'DF raw data'!O110) -> 5.24467e-05 | D105: =IF('DF raw data'!P110="","",'DF raw data'!P110) -> -1.71967e-05 | F105: -8.35292978e-06 | G105: 5.270368883e-05 | H105: -1.728096383e-05 | J105: -0.0001899685538 | K105: -0.002435454287 | L105: 0.001416709728 | M105: 0.01653396446 | N105: 1.653429113e-05
A106: =IF('DF raw data'!M111="","",'DF raw data'!M111) -> -278 | B106: =IF('DF raw data'!N111="","",'DF raw data'!N111) -> -1.83771e-05 | C106: =IF('DF raw data'!O111="","",'DF raw data'!O111) -> 5.26114e-05 | D106: =IF('DF raw data'!P111="","",'DF raw data'!P111) -> -1.66808e-05 | F106: -1.846714779e-05 | G106: 5.286919586e-05 | H106: -1.676253592e-05 | J106: -0.0001992021277 | K106: -0.002535055351 | L106: 0.001443144326 | M106: 0.01725553662 | N106: 1.759546465e-05
A107: =IF('DF raw data'!M112="","",'DF raw data'!M112) -> -277.5 | B107: =IF('DF raw data'!N112="","",'DF raw data'!N112) -> -5.68857e-06 | C107: =IF('DF raw data'!O112="","",'DF raw data'!O112) -> 5.05638e-05 | D107: =IF('DF raw data'!P112="","",'DF raw data'!P112) -> -9.89798e-06 | F107: -5.716443993e-06 | G107: 5.081156262e-05 | H107: -9.946480102e-06 | J107: -0.0002020603497 | K107: -0.002636085526 | L107: 0.001468550108 | M107: 0.01798981167 | N107: 1.869419855e-05
A108: =IF('DF raw data'!M113="","",'DF raw data'!M113) -> -277 | B108: =IF('DF raw data'!N113="","",'DF raw data'!N113) -> -1.19087e-05 | C108: =IF('DF raw data'!O113="","",'DF raw data'!O113) -> 4.85687e-05 | D108: =IF('DF raw data'!P113="","",'DF raw data'!P113) -> -7.17163e-06 | F108: -1.196705263e-05 | G108: 4.880668663e-05 | H108: -7.206770987e-06 | J108: -0.000208043876 | K108: -0.002740107464 | L108: 0.001492953451 | M108: 0.0187362884 | N108: 1.983029468e-05
A109: =IF('DF raw data'!M114="","",'DF raw data'!M114) -> -276.5 | B109: =IF('DF raw data'!N114="","",'DF raw data'!N114) -> -1.3325e-06 | C109: =IF('DF raw data'!O114="","",'DF raw data'!O114) -> 5.72091e-05 | D109: =IF('DF raw data'!P114="","",'DF raw data'!P114) -> -5.36869e-06 | F109: -1.33902925e-06 | G109: 5.748942459e-05 | H109: -5.394996581e-06 | J109: -0.0002087133906 | K109: -0.002844464159 | L109: 0.001521698163 | M109: 0.01949713748 | N109: 2.100985797e-05
A110: =IF('DF raw data'!M115="","",'DF raw data'!M115) -> -276 | B110: =IF('DF raw data'!N115="","",'DF raw data'!N115) -> -1.48467e-05 | C110: =IF('DF raw data'!O115="","",'DF raw data'!O115) -> 6.08074e-05 | D110: =IF('DF raw data'!P115="","",'DF raw data'!P115) -> -2.37954e-05 | F110: -1.491944883e-05 | G110: 6.110535626e-05 | H110: -2.391199746e-05 | J110: -0.0002161731151 | K110: -0.002952550717 | L110: 0.001552250841 | M110: 0.0202732629 | N110: 2.223796472e-05
A111: =IF('DF raw data'!M116="","",'DF raw data'!M116) -> -275.5 | B111: =IF('DF raw data'!N116="","",'DF raw data'!N116) -> -6.65082e-06 | C111: =IF('DF raw data'!O116="","",'DF raw data'!O116) -> 5.87037e-05 | D111: =IF('DF raw data'!P116="","",'DF raw data'!P116) -> -9.01486e-06 | F111: -6.683409018e-06 | G111: 5.899134813e-05 | H111: -9.059032814e-06 | J111: -0.0002195148196 | K111: -0.003062308126 | L111: 0.001581746515 | M111: 0.02106413616 | N111: 2.351301911e-05
A112: =IF('DF raw data'!M117="","",'DF raw data'!M117) -> -275 | B112: =IF('DF raw data'!N117="","",'DF raw data'!N117) -> -5.11009e-06 | C112: =IF('DF raw data'!O117="","",'DF raw data'!O117) -> 5.67291e-05 | D112: =IF('DF raw data'!P117="","",'DF raw data'!P117) -> -1.25009e-05 | F112: -5.135129441e-06 | G112: 5.700707259e-05 | H112: -1.256215441e-05 | J112: -0.0002220823843 | K112: -0.003173349319 | L112: 0.001610250052 | M112: 0.02186926118 | N112: 2.483413202e-05
A113: =IF('DF raw data'!M118="","",'DF raw data'!M118) -> -274.5 | B113: =IF('DF raw data'!N118="","",'DF raw data'!N118) -> -1.47241e-05 | C113: =IF('DF raw data'!O118="","",'DF raw data'!O118) -> 4.48111e-05 | D113: =IF('DF raw data'!P118="","",'DF raw data'!P118) -> -1.51231e-05 | F113: -1.479624809e-05 | G113: 4.503067439e-05 | H113: -1.519720319e-05 | J113: -0.0002294805083 | K113: -0.003288089573 | L113: 0.001632765389 | M113: 0.02268564388 | N113: 2.619342408e-05
A114: =IF('DF raw data'!M119="","",'DF raw data'!M119) -> -274 | B114: =IF('DF raw data'!N119="","",'DF raw data'!N119) -> -8.88244e-06 | C114: =IF('DF raw data'!O119="","",'DF raw data'!O119) -> 5.07393e-05 | D114: =IF('DF raw data'!P119="","",'DF raw data'!P119) -> -2.77134e-05 | F114: -8.925963956e-06 | G114: 5.098792257e-05 | H114: -2.784919566e-05 | J114: -0.0002339434903 | K114: -0.003405061318 | L114: 0.00165825935 | M114: 0.02351477355 | N114: 2.759570089e-05
A115: =IF('DF raw data'!M120="","",'DF raw data'!M120) -> -273.5 | B115: =IF('DF raw data'!N120="","",'DF raw data'!N120) -> 5.73122e-06 | C115: =IF('DF raw data'!O120="","",'DF raw data'!O120) -> 5.69283e-05 | D115: =IF('DF raw data'!P120="","",'DF raw data'!P120) -> -2.40509e-05 | F115: 5.759302978e-06 | G115: 5.720724867e-05 | H115: -2.416874941e-05 | J115: -0.0002310638388 | K115: -0.003520593237 | L115: 0.001686862974 | M115: 0.02435820504 | N115: 2.904514949e-05
A116: =IF('DF raw data'!M121="","",'DF raw data'!M121) -> -273 | B116: =IF('DF raw data'!N121="","",'DF raw data'!N121) -> -3.37854e-06 | C116: =IF('DF raw data'!O121="","",'DF raw data'!O121) -> 5.9862e-05 | D116: =IF('DF raw data'!P121="","",'DF raw data'!P121) -> -1.34698e-05 | F116: -3.395094846e-06 | G116: 6.01553238e-05 | H116: -1.353580202e-05 | J116: -0.0002327613862 | K116: -0.00363697393 | L116: 0.001716940636 | M116: 0.02521667536 | N116: 3.0546181e-05
A117: =IF('DF raw data'!M122="","",'DF raw data'!M122) -> -272.5 | B117: =IF('DF raw data'!N122="","",'DF raw data'!N122) -> -8.76351e-06 | C117: =IF('DF raw data'!O122="","",'DF raw data'!O122) -> 5.90067e-05 | D117: =IF('DF raw data'!P122="","",'DF raw data'!P122) -> -1.34135e-05 | F117: -8.806451199e-06 | G117: 5.929583283e-05 | H117: -1.347922615e-05 | J117: -0.0002371646118 | K117: -0.003755556236 | L117: 0.001746588553 | M117: 0.02608996964 | N117: 3.209959031e-05
A118: =IF('DF raw data'!M123="","",'DF raw data'!M123) -> -272 | B118: =IF('DF raw data'!N123="","",'DF raw data'!N123) -> 2.3955e-06 | C118: =IF('DF raw data'!O123="","",'DF raw data'!O123) -> 5.4153e-05 | D118: =IF('DF raw data'!P123="","",'DF raw data'!P123) -> -2.0407e-05 | F118: 2.40723795e-06 | G118: 5.44183497e-05 | H118: -2.05069943e-05 | J118: -0.0002359609929 | K118: -0.003873536733 | L118: 0.001773797728 | M118: 0.0269768685 | N118: 3.370060829e-05
A119: =IF('DF raw data'!M124="","",'DF raw data'!M124) -> -271.5 | B119: =IF('DF raw data'!N124="","",'DF raw data'!N124) -> -2.29063e-07 | C119: =IF('DF raw data'!O124="","",'DF raw data'!O124) -> 5.25908e-05 | D119: =IF('DF raw data'!P124="","",'DF raw data'!P124) -> -2.62619e-05 | F119: -2.301854087e-07 | G119: 5.284849492e-05 | H119: -2.639058331e-05 | J119: -0.0002360760856 | K119: -0.003991574776 | L119: 0.001800221975 | M119: 0.02787697949 | N119: 3.534887383e-05
A120: =IF('DF raw data'!M125="","",'DF raw data'!M125) -> -271 | B120: =IF('DF raw data'!N125="","",'DF raw data'!N125) -> -1.57469e-05 | C120: =IF('DF raw data'!O125="","",'DF raw data'!O125) -> 5.62187e-05 | D120: =IF('DF raw data'!P125="","",'DF raw data'!P125) -> -1.95662e-05 | F120: -1.582405981e-05 | G120: 5.649417163e-05 | H120: -1.966207438e-05 | J120: -0.0002439881155 | K120: -0.004113568833 | L120: 0.001828469061 | M120: 0.02879121402 | N120: 3.705028849e-05
A121: =IF('DF raw data'!M126="","",'DF raw data'!M126) -> -270.5 | B121: =IF('DF raw data'!N126="","",'DF raw data'!N126) -> -7.48378e-06 | C121: =IF('DF raw data'!O126="","",'DF raw data'!O126) -> 6.31202e-05 | D121: =IF('DF raw data'!P126="","",'DF raw data'!P126) -> -9.80327e-06 | F121: -7.520450522e-06 | G121: 6.342948898e-05 | H121: -9.851306023e-06 | J121: -0.0002477483407 | K121: -0.004237443004 | L121: 0.001860183805 | M121: 0.02972130592 | N121: 3.881112e-05
A122: =IF('DF raw data'!M127="","",'DF raw data'!M127) -> -270 | B122: =IF('DF raw data'!N127="","",'DF raw data'!N127) -> -4.52429e-06 | C122: =IF('DF raw data'!O127="","",'DF raw data'!O127) -> 5.4448e-05 | D122: =IF('DF raw data'!P127="","",'DF raw data'!P127) -> -2.59667e-05 | F122: -4.546459021e-06 | G122: 5.47147952e-05 | H122: -2.609393683e-05 | J122: -0.0002500215702 | K122: -0.004362453789 | L122: 0.001887541203 | M122: 0.03066507652 | N122: 4.062378129e-05
A123: =IF('DF raw data'!M128="","",'DF raw data'!M128) -> -269.5 | B123: =IF('DF raw data'!N128="","",'DF raw data'!N128) -> -1.24123e-05 | C123: =IF('DF raw data'!O128="","",'DF raw data'!O128) -> 5.82639e-05 | D123: =IF('DF raw data'!P128="","",'DF raw data'!P128) -> -2.14698e-05 | F123: -1.247312027e-05 | G123: 5.854939311e-05 | H123: -2.157500202e-05 | J123: -0.0002562581304 | K123: -0.004490582854 | L123: 0.0019168159 | M123: 0.03162348447 | N123: 4.2493707e-05
A124: =IF('DF raw data'!M129="","",'DF raw data'!M129) -> -269 | B124: =IF('DF raw data'!N129="","",'DF raw data'!N129) -> -5.17314e-06 | C124: =IF('DF raw data'!O129="","",'DF raw data'!O129) -> 6.4401e-05 | D124: =IF('DF raw data'!P129="","",'DF raw data'!P129) -> -1.39125e-05 | F124: -5.198488386e-06 | G124: 6.47165649e-05 | H124: -1.398067125e-05 | J124: -0.0002588573746 | K124: -0.004620011541 | L124: 0.001949174182 | M124: 0.03259807156 | N124: 4.442685057e-05
A125: =IF('DF raw data'!M130="","",'DF raw data'!M130) -> -268.5 | B125: =IF('DF raw data'!N130="","",'DF raw data'!N130) -> -9.84579e-06 | C125: =IF('DF raw data'!O130="","",'DF raw data'!O130) -> 5.83657e-05 | D125: =IF('DF raw data'!P130="","",'DF raw data'!P130) -> -2.51254e-05 | F125: -9.894034371e-06 | G125: 5.865169193e-05 | H125: -2.524851446e-05 | J125: -0.0002638043918 | K125: -0.004751913737 | L125: 0.001978500028 | M125: 0.03358732158 | N125: 4.641887813e-05
A126: =IF('DF raw data'!M131="","",'DF raw data'!M131) -> -268 | B126: =IF('DF raw data'!N131="","",'DF raw data'!N131) -> 4.7194e-07 | C126: =IF('DF raw data'!O131="","",'DF raw data'!O131) -> 6.23563e-05 | D126: =IF('DF raw data'!P131="","",'DF raw data'!P131) -> -2.00964e-05 | F126: 4.74252506e-07 | G126: 6.266184587e-05 | H126: -2.019487236e-05 | J126: -0.0002635672655 | K126: -0.00488369737 | L126: 0.002009830951 | M126: 0.03459223705 | N126: 4.84733222e-05
A127: =IF('DF raw data'!M132="","",'DF raw data'!M132) -> -267.5 | B127: =IF('DF raw data'!N132="","",'DF raw data'!N132) -> -7.16058e-06 | C127: =IF('DF raw data'!O132="","",'DF raw data'!O132) -> 6.6441e-05 | D127: =IF('DF raw data'!P132="","",'DF raw data'!P132) -> -1.3745e-05 | F127: -7.195666842e-06 | G127: 6.67665609e-05 | H127: -1.38123505e-05 | J127: -0.0002671650989 | K127: -0.005017279919 | L127: 0.002043214231 | M127: 0.03561384417 | N127: 5.0596373e-05
A128: =IF('DF raw data'!M133="","",'DF raw data'!M133) -> -267 | B128: =IF('DF raw data'!N133="","",'DF raw data'!N133) -> -4.46645e-06 | C128: =IF('DF raw data'!O133="","",'DF raw data'!O133) -> 6.51129e-05 | D128: =IF('DF raw data'!P133="","",'DF raw data'!P133) -> -1.65147e-05 | F128: =(1-$G$1*($B$49-$G$2))*B128 -> -4.488335605e-06 | G128: 6.543195321e-05 | H128: -1.659562203e-05 | J128: =F128*$G$3+J127 -> -0.0002694092667 | K128: =J128*$G$3+K127 -> -0.005151984553 | L128: =G128*$G$3+L127 -> 0.002075930208 | M128: =L128*$G$3+M127 -> 0.03665180927 | N128: =(J128^2+L128^2)*$G$3+N127 -> 5.278740679e-05
A129: =IF('DF raw data'!M134="","",'DF raw data'!M134) -> -266.5 | B129: =IF('DF raw data'!N134="","",'DF raw data'!N134) -> 6.04217e-06 | C129: =IF('DF raw data'!O134="","",'DF raw data'!O134) -> 5.12604e-05 | D129: =IF('DF raw data'!P134="","",'DF raw data'!P134) -> -9.08938e-06 | F129: 6.071776633e-06 | G129: 5.151157596e-05 | H129: -9.133917962e-06 | J129: -0.0002663733784 | K129: -0.005285171242 | L129: 0.002101685996 | M129: 0.03770265227 | N129: 5.503142619e-05
A130: =IF('DF raw data'!M135="","",'DF raw data'!M135) -> -266 | B130: =IF('DF raw data'!N135="","",'DF raw data'!N135) -> -7.86235e-06 | C130: =IF('DF raw data'!O135="","",'DF raw data'!O135) -> 5.2284e-05 | D130: =IF('DF raw data'!P135="","",'DF raw data'!P135) -> -1.91427e-05 | F130: -7.900875515e-06 | G130: 5.25401916e-05 | H130: -1.923649923e-05 | J130: -0.0002703238162 | K130: -0.00542033315 | L130: 0.002127956092 | M130: 0.03876663032 | N130: 5.733206224e-05
A131: =IF('DF raw data'!M136="","",'DF raw data'!M136) -> -265.5 | B131: =IF('DF raw data'!N136="","",'DF raw data'!N136) -> -7.28782e-06 | C131: =IF('DF raw data'!O136="","",'DF raw data'!O136) -> 5.69947e-05 | D131: =IF('DF raw data'!P136="","",'DF raw data'!P136) -> -1.52357e-05 | F131: -7.323530318e-06 | G131: 5.727397403e-05 | H131: -1.531035493e-05 | J131: -0.0002739855813 | K131: -0.005557325941 | L131: 0.002156593079 | M131: 0.03984492685 | N131: 5.969504314e-05
A132: =IF('DF raw data'!M137="","",'DF raw data'!M137) -> -265 | B132: =IF('DF raw data'!N137="","",'DF raw data'!N137) -> -8.76669e-06 | C132: =IF('DF raw data'!O137="","",'DF raw data'!O137) -> 5.53068e-05 | D132: =IF('DF raw data'!P137="","",'DF raw data'!P137) -> -8.50627e-06 | F132: -8.809646781e-06 | G132: 5.557780332e-05 | H132: -8.547950723e-06 | J132: -0.0002783904047 | K132: -0.005696521143 | L132: 0.00218438198 | M132: 0.04093711784 | N132: 6.211955607e-05
A133: =IF('DF raw data'!M138="","",'DF raw data'!M138) -> -264.5 | B133: =IF('DF raw data'!N138="","",'DF raw data'!N138) -> -1.68338e-05 | C133: =IF('DF raw data'!O138="","",'DF raw data'!O138) -> 5.48103e-05 | D133: =IF('DF raw data'!P138="","",'DF raw data'!P138) -> -2.41988e-05 | F133: -1.691628562e-05 | G133: 5.507887047e-05 | H133: -2.431737412e-05 | J133: -0.0002868485475 | K133: -0.005839945417 | L133: 0.002211921416 | M133: 0.04204307855 | N133: 6.460699528e-05
A134: =IF('DF raw data'!M139="","",'DF raw data'!M139) -> -264 | B134: =IF('DF raw data'!N139="","",'DF raw data'!N139) -> -2.17762e-05 | C134: =IF('DF raw data'!O139="","",'DF raw data'!O139) -> 5.10144e-05 | D134: =IF('DF raw data'!P139="","",'DF raw data'!P139) -> -1.4398e-05 | F134: -2.188290338e-05 | G134: 5.126437056e-05 | H134: -1.44685502e-05 | J134: -0.0002977899992 | K134: -0.005988840416 | L134: 0.002237553601 | M134: 0.04316185535 | N134: 6.715465778e-05
A135: =IF('DF raw data'!M140="","",'DF raw data'!M140) -> -263.5 | B135: =IF('DF raw data'!N140="","",'DF raw data'!N140) -> -6.90457e-06 | C135: =IF('DF raw data'!O140="","",'DF raw data'!O140) -> 5.64529e-05 | D135: =IF('DF raw data'!P140="","",'DF raw data'!P140) -> -1.31352e-05 | F135: -6.938402393e-06 | G135: 5.672951921e-05 | H135: -1.319956248e-05 | J135: -0.0003012592004 | K135: -0.006139470017 | L135: 0.002265918361 | M135: 0.04429481453 | N135: 6.976722935e-05
A136: =IF('DF raw data'!M141="","",'DF raw data'!M141) -> -263 | B136: =IF('DF raw data'!N141="","",'DF raw data'!N141) -> -5.61658e-06 | C136: =IF('DF raw data'!O141="","",'DF raw data'!O141) -> 6.2917e-05 | D136: =IF('DF raw data'!P141="","",'DF raw data'!P141) -> -2.22668e-05 | F136: -5.644101242e-06 | G136: 6.32252933e-05 | H136: -2.237590732e-05 | J136: -0.000304081251 | K136: -0.006291510642 | L136: 0.002297531007 | M136: 0.04544358004 | N136: 7.245278641e-05
A137: =IF('DF raw data'!M142="","",'DF raw data'!M142) -> -262.5 | B137: =IF('DF raw data'!N142="","",'DF raw data'!N142) -> -8.69754e-06 | C137: =IF('DF raw data'!O142="","",'DF raw data'!O142) -> 5.99262e-05 | D137: =IF('DF raw data'!P142="","",'DF raw data'!P142) -> -1.60756e-05 | F137: -8.740157946e-06 | G137: 6.021983838e-05 | H137: -1.615437044e-05 | J137: -0.00030845133 | K137: -0.006445736307 | L137: 0.002327640926 | M137: 0.0466074005 | N137: 7.520931367e-05
A138: =IF('DF raw data'!M143="","",'DF raw data'!M143) -> -262 | B138: =IF('DF raw data'!N143="","",'DF raw data'!N143) -> -2.87314e-06 | C138: =IF('DF raw data'!O143="","",'DF raw data'!O143) -> 5.2981e-05 | D138: =IF('DF raw data'!P143="","",'DF raw data'!P143) -> -2.0228e-06 | F138: -2.887218386e-06 | G138: 5.32406069e-05 | H138: -2.03271172e-06 | J138: -0.0003098949392 | K138: -0.006600683777 | L138: 0.00235426123 | M138: 0.04778453112 | N138: 7.802860407e-05
A139: =IF('DF raw data'!M144="","",'DF raw data'!M144) -> -261.5 | B139: =IF('DF raw data'!N144="","",'DF raw data'!N144) -> -6.584e-06 | C139: =IF('DF raw data'!O144="","",'DF raw data'!O144) -> 4.09623e-05 | D139: =IF('DF raw data'!P144="","",'DF raw data'!P144) -> -1.34181e-05 | F139: -6.6162616e-06 | G139: 4.116301527e-05 | H139: -1.348384869e-05 | J139: -0.00031320307 | K139: -0.006757285312 | L139: 0.002374842737 | M139: 0.04897195248 | N139: 8.089759117e-05
A140: =IF('DF raw data'!M145="","",'DF raw data'!M145) -> -261 | B140: =IF('DF raw data'!N145="","",'DF raw data'!N145) -> -6.85489e-07 | C140: =IF('DF raw data'!O145="","",'DF raw data'!O145) -> 5.16678e-05 | D140: =IF('DF raw data'!P145="","",'DF raw data'!P145) -> -1.45857e-05 | F140: -6.888478961e-07 | G140: 5.192097222e-05 | H140: -1.465716993e-05 | J140: -0.000313547494 | K140: -0.006914059059 | L140: 0.002400803224 | M140: 0.0501723541 | N140: 8.382867524e-05
A141: =IF('DF raw data'!M146="","",'DF raw data'!M146) -> -260.5 | B141: =IF('DF raw data'!N146="","",'DF raw data'!N146) -> -1.03027e-05 | C141: =IF('DF raw data'!O146="","",'DF raw data'!O146) -> 5.64605e-05 | D141: =IF('DF raw data'!P146="","",'DF raw data'!P146) -> -1.22305e-05 | F141: -1.035318323e-05 | G141: 5.673715645e-05 | H141: -1.229042945e-05 | J141: -0.0003187240856 | K141: -0.007073421102 | L141: 0.002429171802 | M141: 0.05138694 | N141: 8.682990559e-05
